Workbook

Sheet data
A1: ID | B1: PM101 | C1: RK101 | D1: HR101 | E1: BH101 | F1: AA101 | G1: SN101 | H1: DZ101 | I1: ER101 | J1: TN101 | K1: EJ101 | L1: DJ101 | M1: KM101 | N1: JC102 | O1: DP101 | P1: JF101 | Q1: CN101 | R1: DD101 | S1: MR101 | T1: AMP101 | U1: GS101 | V1: OA101 | W1: MT101 | X1: JB101 | Y1: ZP101 | Z1: LT101 | AA1: IOD101 | AB1: IF101 | AC1: OB101 | AD1: DY101 | AE1: IH101 | AF1: CJ101 | AG1: AK101 | AH1: AI101 | AI1: AP102 | AJ1: DI101 | AK1: AA102 | AL1: JS102 | AM1: TB101 | AN1: JP101 | AO1: EF101 | AP1: JD101 | AQ1: SR101 | AR1: NV101 | AS1: DS101 | AT1: DT101 | AU1: LB101 | AV1: FA101 | AW1: KP101 | AX1: MD101 | AY1: IG101 | AZ1: GH101 | BA1: DST102 | BB1: RT101 | BC1: JG101 | BD1: CC101 | BE1: SN102 | BF1: SW101 | BG1: FA102 | BH1: JH102 | BI1: RS101 | BJ1: TN102 | BK1: SK101 | BL1: SAV101 | BM1: AS102 | BN1: DE101 | BO1: JR101 | BP1: YS101 | BQ1: AP101 | BR1: JM101 | BS1: EC101 | BT1: RB101 | BU1: MK101 | BV1: SGJ101
A2: Date | B2: 2010-11-12 | C2: 2010-11-16 | D2: 2010-11-18 | E2: 2010-11-19 | F2: 2010-12-02 | G2: 2010-12-04 | H2: 2010-11-18 | I2: 2010-11-24 | J2: 2010-11-25 | K2: 2010-11-25 | L2: 2010-12-02 | M2: 2010-12-11 | N2: 2010-12-11 | O2: 2011-01-12 | P2: 2011-01-27 | Q2: 2011-02-03 | R2: 2011-02-03 | S2: 2011-02-09 | T2: 2011-02-09 | U2: 2011-02-16 | V2: 2011-02-17 | W2: 2011-02-19 | X2: 2011-03-08 | Y2: 2011-03-08 | Z2: 2011-03-09 | AA2: 2011-03-29 | AB2: 2011-04-19 | AC2: 2011-04-28 | AD2: 2011-04-30 | AE2: 2011-06-30 | AF2: 2011-07-20 | AG2: 2011-07-20 | AH2: 2011-07-26 | AI2: 2011-07-27 | AJ2: 2011-08-03 | AK2: 2011-08-03 | AL2: 2011-08-10 | AM2: 2011-11-11 | AN2: 2009-09-30 | AO2: 2009-10-01 | AP2: 2009-10-01 | AQ2: 2009-10-13 | AR2: 2009-10-23 | AS2: 2009-11-06 | AT2: 2009-11-06 | AU2: 2009-11-06 | AV2: 2009-11-11 | AW2: 2009-11-11 | AX2: 2009-11-11 | AY2: 2009-11-11 | AZ2: 2009-11-13 | BA2: 2009-11-13 | BB2: 2009-11-13 | BC2: 2009-11-13 | BD2: 2010-04-06 | BE2: 2012-04-13 | BF2: 2012-04-26 | BG2: 2012-04-28 | BH2: 2011-06-12 | BI2: 2011-06-08 | BJ2: 2012-07-10 | BK2: 2012-07-10 | BL2: 2012-07-10 | BM2: 2012-07-10 | BN2: 2012-07-11 | BO2: 2013-02-06 | BP2: 2010-11-20 | BQ2: 2010-10-19 | BR2: 2009-09-30 | BS2: 2009-10-24 | BT2: 2010-11-19 | BU2: 2009-09-30 | BV2: 2011-01-27
B3: 12.16pm | C3: 1.20 pm | D3: 2.30 pm | E3: 12.20 pm | F3: 4.30 pm | G3: 11.59am | H3: 4.20 pm | I3: 2.20 pm | J3: 3.30 pm | K3: 2.20 pm | L3: 1:00 PM | M3: 2:00 PM | N3: 12 noon | O3: 11.30 pm | P3: 1.30 pm | Q3: 2:00 PM | R3: 7:00 PM | S3: 1:00 PM | T3: 4:00 PM | U3: 12 noon | V3: 1.30 pm | W3: 8.00 am | X3: 11am | Y3: 2pm | Z3: 2pm | AA3: 9am | AB3: 12.25am | AC3: 10.30am | AD3: 11am | AE3: 2.45pm | AF3: 10am | AG3: 11.23am | AH3: 3.24pm | AI3: 3.00pm | AJ3: 10.30am | AK3: 3pm | AL3: 11.30am | AM3: 3.16pm | AN3: 4.41pm | AO3: 4.30pm | AP3: 2.40pm | AQ3: 3.40pm | AR3: 9.44am | AS3: 1.31pm | AT3: 11.11am | AU3: 4.44pm | AV3: 4.21pm | AW3: 12.25pm | AX3: 6.12pm | AY3: 2.09pm | AZ3: 4.08pm | BA3: 2.17pm | BB3: 12.35pm | BC3: 10.51am | BD3: 2.22pm | BE3: 6.30 pm | BF3: 9.00 am | BG3: 8.30 am | BH3: 2.00 pm | BI3: 2.00 pm | BJ3: 12.30 pm | BK3: 10.45 am | BL3: 9.00 am | BM3: 1.15 pm | BN3: 12.45 pm | BO3: 9.50 am | BP3: 3.20 pm | BQ3: 12:00:00 | BR3: 1.28pm | BS3: 12.40pm | BT3: 10.10 am | BU3: 11.39am | BV3: 12 noon
A5: http://www.biology.unt.edu/~tam/SelfTests/StroopEffects1.html
A6: PreCongr1 Set1 | B6: 14.51 | C6: 21.009 | D6: 21.719 | E6: 12.999 | F6: 16.791 | G6: 20.239 | H6: 16.847 | I6: 10.661 | J6: 17.016 | K6: 18.592 | L6: 17.544 | M6: 17.8 | N6: 14.544 | O6: 22.815 | P6: 15.368 | Q6: 18.388 | R6: 14.815 | S6: 19.638 | T6: 21.96 | U6: 13.753 | V6: 19.088 | W6: 42.32 | X6: 18.175 | Y6: 27.447 | Z6: 36.336 | AA6: 21.904 | AB6: 17.999 | AC6: 30.568 | AD6: 22.359 | AE6: 16.382 | AF6: 21.804 | AG6: 22.944 | AH6: 28.658 | AI6: 15.729 | AJ6: 23.379 | AK6: 18.305 | AL6: 20.687 | AM6: 17.175 | AN6: 15.264 | AO6: 17.987 | AP6: 26.719 | AQ6: 15.832 | AR6: 19.416 | AS6: 13.672 | AT6: 23.112 | AU6: 19.312 | AV6: 23.736 | AW6: 21.76 | AX6: 56.805 | AY6: 18.232 | AZ6: 17.672 | BA6: 13.745 | BB6: 37.385 | BC6: 21.608 | BD6: 19.051 | BE6: 27.736 | BF6: 9.358 | BG6: 14.059 | BH6: 16.825 | BI6: 36.008 | BJ6: 18.532 | BK6: 21.709 | BL6: 13.922 | BM6: 18.836 | BN6: 26.488 | BO6: 28.894 | BP6: 15.511 | BQ6: 20.806 | BR6: 23.537 | BS6: 20 | BT6: 20.904 | BU6: 19.848 | BV6: 13.592
A7: PreIncongr1 Set1 | B7: 29.233 | C7: 40.992 | D7: 35.279 | E7: 55.902 | F7: 24.535 | G7: 39.871 | H7: 25.887 | I7: 27.502 | J7: 34.471 | K7: 32.584 | L7: 39.863 | M7: 37.071 | N7: 26.616 | O7: 41.032 | P7: 31.433 | Q7: 40.983 | R7: 46.783 | S7: 33.256 | T7: 44.309 | U7: 41.631 | V7: 59.49 | W7: 50.699 | X7: 36.687 | Y7: 29.974 | Z7: 35.177 | AA7: 35.248 | AB7: 39.066 | AC7: 34.105 | AD7: 33.112 | AE7: 38.904 | AF7: 30.704 | AG7: 23.313 | AH7: 38.071 | AI7: 32.391 | AJ7: 56.934 | AK7: 34.625 | AL7: 28.336 | AM7: 30.359 | AN7: 31.762 | AO7: 38.706 | AP7: 37.146 | AQ7: 30.488 | AR7: 23.72 | AS7: 29.565 | AT7: 63.977 | AU7: 33.077 | AV7: 39 | AW7: 33.368 | AX7: 48.841 | AY7: 36.295 | AZ7: 42.681 | BA7: 27.177 | BB7: 42.921 | BC7: 32.377 | BD7: 35.386 | BE7: 52.453 | BF7: 27.295 | BG7: 30.293 | BH7: 31.08 | BI7: 44.956 | BJ7: 28.803 | BK7: 44.157 | BL7: 28.39 | BM7: 30.981 | BN7: 43.568 | BO7: 45.415 | BP7: 40.918 | BQ7: 28.9 | BR7: 55.994 | BS7: 39.769 | BT7: 48.966 | BU7: 36.609 | BV7: 24.571
A8: PreCongr1 Set2 | B8: 15.662 | C8: 21.592 | D8: 16.264 | E8: 25.935 | F8: 18.528 | G8: 16.248 | H8: 15.672 | I8: 12.717 | J8: 19.607 | K8: 24.472 | L8: 17.112 | M8: 18.831 | N8: 15.678 | O8: 25.077 | P8: 17.897 | Q8: 18.172 | R8: 15.323 | S8: 21.359 | T8: 27.656 | U8: 14.744 | V8: 19.696 | W8: 36.319 | X8: 18.615 | Y8: 27.663 | Z8: 31.529 | AA8: 23.88 | AB8: 19.822 | AC8: 25.288 | AD8: 19.992 | AE8: 18.852 | AF8: 20.85 | AG8: 20.456 | AH8: 23.7 | AI8: 20.443 | AJ8: 28.412 | AK8: 22.735 | AL8: 15.409 | AM8: 16.824 | AN8: 15.848 | AO8: 20.104 | AP8: 28.344 | AQ8: 17.296 | AR8: 18.318 | AS8: 13.152 | AT8: 24.568 | AU8: 24.025 | AV8: 24.664 | AW8: 23.223 | AX8: 29.784 | AY8: 20.305 | AZ8: 18.705 | BA8: 16.416 | BB8: 32.816 | BC8: 22.171 | BD8: 16.533 | BE8: 22.525 | BF8: 9.166 | BG8: 15.213 | BH8: 17.531 | BI8: 31.772 | BJ8: 17.427 | BK8: 22.672 | BL8: 15.757 | BM8: 19.932 | BN8: 26.82 | BO8: 26.302 | BP8: 15.75 | BQ8: 22.938 | BR8: 23.726 | BS8: 68.736 | BT8: 20.63 | BU8: 19.656 | BV8: 13.634
A9: PreIncongr1 Set2 | B9: 27.567 | C9: 45.17 | D9: 32.191 | E9: 47.502 | F9: 24.703 | G9: 36.631 | H9: 25.383 | I9: 23.902 | J9: 38.003 | K9: 30.008 | L9: 42.207 | M9: 42.031 | N9: 29.255 | O9: 45.134 | P9: 32.164 | Q9: 36.182 | R9: 48.185 | S9: 32.968 | T9: 46.976 | U9: 44.247 | V9: 60.527 | W9: 40.304 | X9: 35.63 | Y9: 30.631 | Z9: 33.888 | AA9: 33.858 | AB9: 38.209 | AC9: 33.247 | AD9: 35.071 | AE9: 31.672 | AF9: 30.92 | AG9: 25.968 | AH9: 38.64 | AI9: 32.159 | AJ9: 30.442 | AK9: 35.799 | AL9: 30.072 | AM9: 28.19 | AN9: 28.569 | AO9: 37.713 | AP9: 35.68 | AQ9: 26.513 | AR9: 27.657 | AS9: 32.092 | AT9: 84.545 | AU9: 35.257 | AV9: 35.808 | AW9: 31.624 | AX9: 45.201 | AY9: 34.656 | AZ9: 38.713 | BA9: 25.4 | BB9: 38.298 | BC9: 31.633 | BD9: 42.064 | BE9: 44.728 | BF9: 27.312 | BG9: 31.671 | BH9: 28.656 | BI9: 40.19 | BJ9: 25.634 | BK9: 42.575 | BL9: 28.992 | BM9: 26.969 | BN9: 35.959 | BO9: 41.469 | BP9: 38.175 | BQ9: 31.93 | BR9: 66.885 | BS9: 35.393 | BT9: 51.11 | BU9: 35.865 | BV9: 25.264
A10: PreCongr2 Set1 | B10: 15.256 | C10: 19.152 | D10: 17.167 | E10: 16.207 | F10: 17.576 | G10: 19.088 | H10: 15.935 | I10: 12.656 | J10: 19.759 | K10: 24.352 | L10: 16.76 | M10: 17.496 | N10: 15.608 | O10: 23.6 | P10: 15.937 | Q10: 17.328 | R10: 15.096 | S10: 18.296 | T10: 22.471 | U10: 14.879 | V10: 20.527 | W10: 37.936 | X10: 19.775 | Y10: 27.831 | Z10: 27.776 | AA10: 22.904 | AB10: 17.487 | AC10: 24.064 | AD10: 22.281 | AE10: 16.848 | AF10: 18.439 | AG10: 18.4 | AH10: 23.913 | AI10: 19.159 | AJ10: 27.433 | AK10: 22.472 | AL10: 19.113 | AM10: 16.664 | AN10: 15.203 | AO10: 18.416 | AP10: 28.214 | AQ10: 14.736 | AR10: 17.863 | AS10: 13.672 | AT10: 25 | AU10: 17.936 | AV10: 19.27 | AW10: 22.4 | AX10: 28.377 | AY10: 16.88 | AZ10: 16.6 | BA10: 13.464 | BB10: 26.56 | BC10: 21.455 | BD10: 17.216 | BE10: 19.839 | BF10: 9.488 | BG10: 14.068 | BH10: 16.274 | BI10: 30.719 | BJ10: 18.045 | BK10: 21.572 | BL10: 15.898 | BM10: 20.773 | BN10: 26.229 | BO10: 22.96 | BP10: 13.623 | BQ10: 18.715 | BR10: 20.76 | BS10: 16.608 | BT10: 18.576 | BU10: 20.969 | BV10: 13.392
A11: PreIncongr2 Set1 | B11: 27.322 | C11: 38.191 | D11: 32.327 | E11: 46.106 | F11: 24.832 | G11: 33.247 | H11: 26.687 | I11: 22.639 | J11: 36.143 | K11: 30.032 | L11: 45.406 | M11: 46.398 | N11: 27.599 | O11: 45.632 | P11: 32.624 | Q11: 34.927 | R11: 43.311 | S11: 38.136 | T11: 45.847 | U11: 44.583 | V11: 50.617 | W11: 39.737 | X11: 32.495 | Y11: 30.847 | Z11: 31.296 | AA11: 34.728 | AB11: 35.288 | AC11: 36.544 | AD11: 31.993 | AE11: 33.056 | AF11: 30.272 | AG11: 25.265 | AH11: 33.281 | AI11: 32.538 | AJ11: 45.113 | AK11: 30.232 | AL11: 27.208 | AM11: 27.375 | AN11: 29.204 | AO11: 35.28 | AP11: 38.631 | AQ11: 28.017 | AR11: 23.782 | AS11: 32.185 | AT11: 67.033 | AU11: 32.089 | AV11: 41.985 | AW11: 32.089 | AX11: 41.287 | AY11: 31.448 | AZ11: 43.832 | BA11: 25.185 | BB11: 33.657 | BC11: 33.16 | BD11: 38.506 | BE11: 44.912 | BF11: 35.326 | BG11: 31.969 | BH11: 34.225 | BI11: 35.879 | BJ11: 29.381 | BK11: 41.171 | BL11: 30.211 | BM11: 27.456 | BN11: 41.458 | BO11: 37.197 | BP11: 34.327 | BQ11: 30.022 | BR11: 53.371 | BS11: 34.257 | BT11: 51.894 | BU11: 33.699 | BV11: 25.079
A12: PreCongr2 Set2 | B12: 15.307 | C12: 22.073 | D12: 17.84 | E12: 13.943 | F12: 15.951 | G12: 18.76 | H12: 13.832 | I12: 10.991 | J12: 18.023 | K12: 21.888 | L12: 15.936 | M12: 18.112 | N12: 15.378 | O12: 23.608 | P12: 14.91 | Q12: 15.471 | R12: 14.631 | S12: 19.76 | T12: 21.112 | U12: 13.76 | V12: 18.591 | W12: 35.464 | X12: 17.504 | Y12: 25.934 | Z12: 22.208 | AA12: 20.088 | AB12: 17.472 | AC12: 25.873 | AD12: 22.273 | AE12: 16.057 | AF12: 20.435 | AG12: 18.59 | AH12: 22.194 | AI12: 19 | AJ12: 25.617 | AK12: 20.407 | AL12: 16.544 | AM12: 17.544 | AN12: 14.871 | AO12: 17.944 | AP12: 27.526 | AQ12: 14.736 | AR12: 16.832 | AS12: 11.512 | AT12: 27.056 | AU12: 19.649 | AV12: 18.151 | AW12: 20.336 | AX12: 22.609 | AY12: 17.544 | AZ12: 16.689 | BA12: 14.895 | BB12: 24.913 | BC12: 21.304 | BD12: 16.277 | BE12: 19.872 | BF12: 9.199 | BG12: 13.489 | BH12: 16.702 | BI12: 29.846 | BJ12: 16.242 | BK12: 20.864 | BL12: 15.357 | BM12: 18.123 | BN12: 27.058 | BO12: 23.916 | BP12: 13.896 | BQ12: 18.592 | BR12: 17.656 | BS12: 17.664 | BT12: 20.983 | BU12: 17.52 | BV12: 12.583
A13: PreIncongr2 Set2 | B13: 25.858 | C13: 42.329 | D13: 31.703 | E13: 42.526 | F13: 23.896 | G13: 36.647 | H13: 25.399 | I13: 27.335 | J13: 31.703 | K13: 30.536 | L13: 38.167 | M13: 41.198 | N13: 29.4 | O13: 43.021 | P13: 31.284 | Q13: 37.944 | R13: 43.68 | S13: 32.009 | T13: 43.808 | U13: 39.079 | V13: 63.519 | W13: 36.823 | X13: 31.878 | Y13: 31.166 | Z13: 27.72 | AA13: 31.905 | AB13: 39.864 | AC13: 34.456 | AD13: 33.216 | AE13: 30.024 | AF13: 30.512 | AG13: 23.762 | AH13: 37.753 | AI13: 35.568 | AJ13: 40.84 | AK13: 33.417 | AL13: 31.16 | AM13: 27.567 | AN13: 27.593 | AO13: 35.033 | AP13: 37.68 | AQ13: 28.688 | AR13: 24.248 | AS13: 31.808 | AT13: 125.57 | AU13: 33.505 | AV13: 42.344 | AW13: 33.736 | AX13: 44.704 | AY13: 45.045 | AZ13: 44.992 | BA13: 28.497 | BB13: 33.633 | BC13: 31.08 | BD13: 45.905 | BE13: 43.952 | BF13: 28.192 | BG13: 30.714 | BH13: 27.889 | BI13: 36.55 | BJ13: 27.549 | BK13: 49.861 | BL13: 27.625 | BM13: 26.631 | BN13: 40.256 | BO13: 33.887 | BP13: 32.9 | BQ13: 34.435 | BR13: 50.275 | BS13: 33.92 | BT13: 56.958 | BU13: 29.882 | BV13: 26.792
A14: PreCongr3 Set1 | B14: 15.17 | C14: 21.752 | D14: 16.871 | E14: 12.495 | F14: 14.815 | G14: 21.183 | H14: 15.784 | I14: 10.432 | J14: 17.663 | K14: 19.488 | L14: 16.159 | M14: 16.351 | N14: 15.143 | O14: 25.049 | P14: 13.626 | Q14: 14.967 | R14: 14.218 | S14: 19.031 | T14: 21.76 | U14: 14.46 | V14: 19.784 | W14: 35.04 | X14: 18.12 | Y14: 25.536 | Z14: 20.584 | AA14: 21.584 | AB14: 17.697 | AC14: 25.217 | AD14: 22.183 | AE14: 15.546 | AF14: 16.442 | AG14: 18.45 | AH14: 19.961 | AI14: 17.816 | AJ14: 25.728 | AK14: 21.423 | AL14: 15.48 | AM14: 15.991 | AN14: 14.424 | AO14: 19.424 | AP14: 26.546 | AQ14: 13.72 | AR14: 18.001 | AS14: 11.395 | AT14: 17.145 | AU14: 19.8 | AV14: 18.848 | AW14: 20.248 | AX14: 28.368 | AY14: 17.649 | AZ14: 16.544 | BA14: 13.681 | BB14: 22.423 | BC14: 20.576 | BD14: 17.374 | BE14: 18.935 | BF14: 8.623 | BG14: 14.255 | BH14: 15.857 | BI14: 30.745 | BJ14: 16.087 | BK14: 18.347 | BL14: 14.052 | BM14: 17.596 | BN14: 25.276 | BO14: 23.762 | BP14: 13.759 | BQ14: 15.731 | BR14: 18.283 | BS14: 15.064 | BT14: 19.655 | BU14: 18.51 | BV14: 11.99
A15: PreIncongr3 Set1 | B15: 26.776 | C15: 40.007 | D15: 30.886 | E15: 42.19 | F15: 24.015 | G15: 37.959 | H15: 25.407 | I15: 23.056 | J15: 35.615 | K15: 29.703 | L15: 44.67 | M15: 48.487 | N15: 26.999 | O15: 39.609 | P15: 33.528 | Q15: 36.095 | R15: 42.307 | S15: 37.136 | T15: 45.313 | U15: 42.334 | V15: 53.52 | W15: 31.512 | X15: 33.599 | Y15: 28.799 | Z15: 25.465 | AA15: 34.777 | AB15: 39.92 | AC15: 32.928 | AD15: 36.096 | AE15: 30.48 | AF15: 34.126 | AG15: 26.993 | AH15: 38.168 | AI15: 34.4 | AJ15: 40.536 | AK15: 28.513 | AL15: 27.196 | AM15: 28.575 | AN15: 26.425 | AO15: 37.841 | AP15: 35.56 | AQ15: 29.44 | AR15: 23.495 | AS15: 30.599 | AT15: 85.913 | AU15: 35.897 | AV15: 40.696 | AW15: 28.617 | AX15: 43.392 | AY15: 31.904 | AZ15: 39.599 | BA15: 26.888 | BB15: 32.168 | BC15: 33.44 | BD15: 36.439 | BE15: 44.344 | BF15: 25.559 | BG15: 36.275 | BH15: 30.394 | BI15: 38.052 | BJ15: 25.884 | BK15: 41.941 | BL15: 26.654 | BM15: 24.277 | BN15: 34.875 | BO15: 35.392 | BP15: 35.095 | BQ15: 30.479 | BR15: 52.68 | BS15: 32.601 | BT15: 44.702 | BU15: 29.432 | BV15: 24.98
A16: PreCongr3 Set2 | B16: 14.823 | C16: 21.673 | D16: 17.056 | E16: 11.664 | F16: 14.848 | G16: 17.984 | H16: 14.24 | I16: 9.151 | J16: 17.703 | K16: 20.568 | L16: 19.055 | M16: 17.655 | N16: 15.032 | O16: 21.088 | P16: 13.647 | Q16: 15.008 | R16: 14.014 | S16: 17.648 | T16: 19.671 | U16: 14.512 | V16: 18.711 | W16: 25.137 | X16: 17.344 | Y16: 26.087 | Z16: 19.127 | AA16: 21.192 | AB16: 15.336 | AC16: 26.648 | AD16: 22.84 | AE16: 15.863 | AF16: 16.785 | AG16: 16.522 | AH16: 19.137 | AI16: 17.41 | AJ16: 22.792 | AK16: 20.232 | AL16: 15.936 | AM16: 16.767 | AN16: 14.209 | AO16: 17.336 | AP16: 28.801 | AQ16: 13.72 | AR16: 16.772 | AS16: 11.4 | AT16: 31.832 | AU16: 20.785 | AV16: 19.329 | AW16: 19.801 | AX16: 27.496 | AY16: 16.776 | AZ16: 16.681 | BA16: 13.856 | BB16: 19.608 | BC16: 19.96 | BD16: 17.92 | BE16: 18.792 | BF16: 8.775 | BG16: 14.396 | BH16: 16.508 | BI16: 33.486 | BJ16: 16.668 | BK16: 17.071 | BL16: 13.827 | BM16: 16.81 | BN16: 27.266 | BO16: 23.011 | BP16: 12.928 | BQ16: 16.722 | BR16: 20.665 | BS16: 16.641 | BT16: 20.511 | BU16: 17.905 | BV16: 14.216
A17: PreIncongr3 Set2 | B17: 26.766 | C17: 43.065 | D17: 29.43 | E17: 38.726 | F17: 19.695 | G17: 43.015 | H17: 27.758 | I17: 20.631 | J17: 33.831 | K17: 32.303 | L17: 37.679 | M17: 40.911 | N17: 26.567 | O17: 39.798 | P17: 34.456 | Q17: 33.463 | R17: 42.931 | S17: 31.854 | T17: 40.696 | U17: 46.347 | V17: 59.808 | W17: 31.224 | X17: 31.342 | Y17: 33.495 | Z17: 26.544 | AA17: 34.504 | AB17: 30.64 | AC17: 35.831 | AD17: 38.935 | AE17: 30.176 | AF17: 30.77 | AG17: 24.199 | AH17: 34.559 | AI17: 46.962 | AJ17: 37.367 | AK17: 36.513 | AL17: 26.168 | AM17: 28.191 | AN17: 29.615 | AO17: 36.552 | AP17: 36.617 | AQ17: 26.669 | AR17: 23.552 | AS17: 30.977 | AT17: 120.747 | AU17: 36.433 | AV17: 47.213 | AW17: 28.68 | AX17: 51.865 | AY17: 31.305 | AZ17: 44.097 | BA17: 30.608 | BB17: 33.145 | BC17: 33.465 | BD17: 35.921 | BE17: 45.016 | BF17: 26.336 | BG17: 26.012 | BH17: 30.344 | BI17: 36.143 | BJ17: 25.261 | BK17: 43.63 | BL17: 33.254 | BM17: 27.146 | BN17: 38.983 | BO17: 33.571 | BP17: 36.694 | BQ17: 25.877 | BR17: 52.091 | BS17: 31.586 | BT17: 57.342 | BU17: 30.011 | BV17: 26.487
A18: PreCongr4 Set1 | B18: 15.664 | C18: 21.552 | D18: 16.928 | E18: 13.696 | F18: 13.424 | G18: 18.656 | H18: 13.872 | I18: 9.496 | J18: 17.519 | K18: 19.423 | L18: 19.032 | M18: 15.824 | N18: 14.615 | O18: 24.29 | P18: 13.6 | Q18: 14.063 | R18: 14.311 | S18: 17.76 | T18: 20.056 | U18: 14.048 | V18: 18.04 | W18: 30.184 | X18: 16.392 | Y18: 27.135 | Z18: 19.08 | AA18: 20.152 | AB18: 16.095 | AC18: 24.504 | AD18: 22.321 | AE18: 17.443 | AF18: 13.609 | AG18: 16.305 | AH18: 19.449 | AI18: 17.414 | AJ18: 21.976 | AK18: 23.489 | AL18: 17.216 | AM18: 16.855 | AN18: 13.064 | AO18: 18.042 | AP18: 28.535 | AQ18: 14.646 | AR18: 18.249 | AS18: 12.2 | AT18: 27.441 | AU18: 17.273 | AV18: 19.88 | AW18: 19.072 | AX18: 31.328 | AY18: 17.304 | AZ18: 15.993 | BA18: 13.352 | BB18: 18.457 | BC18: 19.704 | BD18: 16.857 | BE18: 20.017 | BF18: 10.561 | BG18: 13.161 | BH18: 16.877 | BI18: 27.908 | BJ18: 16.568 | BK18: 19.066 | BL18: 15.305 | BM18: 18.007 | BN18: 24.091 | BO18: 22.413 | BP18: 13.423 | BQ18: 17.265 | BR18: 20.848 | BS18: 15.2 | BT18: 19.567 | BU18: 17.672 | BV18: 11.728
A19: PreIncongr4 Set1 | B19: 25.766 | C19: 38.495 | D19: 33.527 | E19: 38.334 | F19: 21.447 | G19: 38.079 | H19: 23.103 | I19: 21.167 | J19: 34.663 | K19: 30.687 | L19: 39.591 | M19: 38.991 | N19: 25.855 | O19: 43.686 | P19: 30.185 | Q19: 38.983 | R19: 45.175 | S19: 30.456 | T19: 37.848 | U19: 36.68 | V19: 52.759 | W19: 29.839 | X19: 31.694 | Y19: 28.879 | Z19: 25.336 | AA19: 35.224 | AB19: 41.865 | AC19: 32.167 | AD19: 34.848 | AE19: 32.944 | AF19: 33.327 | AG19: 24.936 | AH19: 33.344 | AI19: 36.806 | AJ19: 41.353 | AK19: 32.007 | AL19: 28.024 | AM19: 25.808 | AN19: 29 | AO19: 38.786 | AP19: 34.546 | AQ19: 24.605 | AR19: 23.328 | AS19: 26.488 | AT19: 108.666 | AU19: 31.753 | AV19: 39.592 | AW19: 29.416 | AX19: 44.897 | AY19: 32.851 | AZ19: 49.953 | BA19: 25.56 | BB19: 30.736 | BC19: 33.344 | BD19: 35.739 | BE19: 40.76 | BF19: 31.211 | BG19: 27.005 | BH19: 27.137 | BI19: 36.028 | BJ19: 25.056 | BK19: 44.996 | BL19: 30.574 | BM19: 23.589 | BN19: 34.2 | BO19: 33.288 | BP19: 37.687 | BQ19: 33.32 | BR19: 50.304 | BS19: 32.032 | BT19: 48.03 | BU19: 30.12 | BV19: 24.632
A20: PreCongr4 Set2 | B20: 15.13 | C20: 22.616 | D20: 16.335 | E20: 12.279 | F20: 15.12 | G20: 17.424 | H20: 13.655 | I20: 9.535 | J20: 18.223 | K20: 19.287 | L20: 18.199 | M20: 18.519 | N20: 14.623 | O20: 21.441 | P20: 12.44 | Q20: 14.168 | R20: 14.144 | S20: 17.152 | T20: 18.761 | U20: 13.087 | V20: 18.367 | W20: 25.223 | X20: 16.44 | Y20: 28.487 | Z20: 17.632 | AA20: 20.48 | AB20: 16.96 | AC20: 24.687 | AD20: 22.784 | AE20: 16.536 | AF20: 12.887 | AG20: 15.432 | AH20: 17.816 | AI20: 18.864 | AJ20: 21.4 | AK20: 19.776 | AL20: 15.408 | AM20: 16.935 | AN20: 13.417 | AO20: 18.2 | AP20: 27.469 | AQ20: 13.648 | AR20: 17.504 | AS20: 10.944 | AT20: 28.449 | AU20: 17.08 | AV20: 17.352 | AW20: 18.392 | AX20: 26.409 | AY20: 17.325 | AZ20: 16.336 | BA20: 14.128 | BB20: 18.368 | BC20: 18.616 | BD20: 17.813 | BE20: 18.503 | BF20: 9.896 | BG20: 13.588 | BH20: 15.108 | BI20: 26.755 | BJ20: 16.465 | BK20: 17.312 | BL20: 14.961 | BM20: 17.997 | BN20: 24.452 | BO20: 24.814 | BP20: 16.855 | BQ20: 20.286 | BR20: 18.536 | BS20: 15.528 | BT20: 19.655 | BU20: 16.084 | BV20: 12.68
A21: PreIncongr4 Set2 | B21: 27.065 | C21: 42.705 | D21: 30.447 | E21: 39.135 | F21: 21.152 | G21: 38.711 | H21: 26.904 | I21: 20.823 | J21: 30.215 | K21: 31.111 | L21: 36.903 | M21: 41.543 | N21: 26.895 | O21: 45.6 | P21: 33.95 | Q21: 35.303 | R21: 39.083 | S21: 32.218 | T21: 42.783 | U21: 37.32 | V21: 44.225 | W21: 26.848 | X21: 32.102 | Y21: 27.791 | Z21: 25.872 | AA21: 35.704 | AB21: 30.342 | AC21: 32.816 | AD21: 31.473 | AE21: 30.784 | AF21: 31.713 | AG21: 25.17 | AH21: 32.649 | AI21: 35.496 | AJ21: 38.799 | AK21: 35.88 | AL21: 32.232 | AM21: 25.017 | AN21: 27.464 | AO21: 38.089 | AP21: 37.216 | AQ21: 23.928 | AR21: 23.144 | AS21: 28.665 | AT21: 102.251 | AU21: 33.969 | AV21: 33.272 | AW21: 28.161 | AX21: 36.241 | AY21: 36.056 | AZ21: 41.712 | BA21: 26.537 | BB21: 35.577 | BC21: 38.137 | BD21: 39.074 | BE21: 42.713 | BF21: 25.519 | BG21: 28.72 | BH21: 25.499 | BI21: 32.268 | BJ21: 24.711 | BK21: 74.558 | BL21: 29.948 | BM21: 25.92 | BN21: 38.942 | BO21: 35.509 | BP21: 33.302 | BQ21: 26.419 | BR21: 55.614 | BS21: 31.825 | BT21: 42.799 | BU21: 31.201 | BV21: 27.463
A22: PreCongr5 Set1 | B22: 15.606 | C22: 22.152 | D22: 16.591 | E22: 12.487 | F22: 13.951 | G22: 19.552 | H22: 14.152 | I22: 10.184 | J22: 17.952 | K22: 19.472 | L22: 15.879 | M22: 17.44 | N22: 16.623 | O22: 20.608 | P22: 12.544 | Q22: 14.336 | R22: 13.626 | S22: 16.567 | T22: 19.071 | U22: 14.017 | V22: 20.512 | W22: 25.081 | X22: 17.255 | Y22: 26.687 | Z22: 17.449 | AA22: 21.432 | AB22: 17.576 | AC22: 23.968 | AD22: 21.135 | AE22: 15.528 | AF22: 14.216 | AG22: 16.184 | AH22: 18.593 | AI22: 18.945 | AJ22: 23.368 | AK22: 21.049 | AL22: 17.504 | AM22: 17.272 | AN22: 14.033 | AO22: 18.109 | AP22: 27.304 | AQ22: 13.267 | AR22: 16.206 | AS22: 11.993 | AT22: 31.576 | AU22: 16.352 | AV22: 18.768 | AW22: 20.568 | AX22: 25.504 | AY22: 17.256 | AZ22: 15.153 | BA22: 13.209 | BB22: 16.681 | BC22: 18.704 | BD22: 17.776 | BE22: 17.335 | BF22: 9.904 | BG22: 13.924 | BH22: 15.102 | BI22: 30.296 | BJ22: 16.868 | BK22: 24.487 | BL22: 15.814 | BM22: 15.764 | BN22: 23.742 | BO22: 23.931 | BP22: 13.767 | BQ22: 16.81 | BR22: 18.272 | BS22: 15.824 | BT22: 19.448 | BU22: 18.016 | BV22: 13.248
A23: PreIncongr5 Set1 | B23: 27.327 | C23: 42.512 | D23: 31.311 | E23: 38.487 | F23: 24.159 | G23: 43.407 | H23: 24.431 | I23: 20.823 | J23: 33.159 | K23: 29.607 | L23: 40.007 | M23: 43.351 | N23: 26.192 | O23: 40.688 | P23: 27.111 | Q23: 34.815 | R23: 42.496 | S23: 31.583 | T23: 41.72 | U23: 30.944 | V23: 46.143 | W23: 27.209 | X23: 29.703 | Y23: 29.783 | Z23: 25.136 | AA23: 34 | AB23: 42.255 | AC23: 33.793 | AD23: 36.84 | AE23: 35.016 | AF23: 29.945 | AG23: 22.703 | AH23: 35.359 | AI23: 34.89 | AJ23: 37.416 | AK23: 32.255 | AL23: 27.528 | AM23: 26.768 | AN23: 29.376 | AO23: 37.266 | AP23: 35.329 | AQ23: 26.001 | AR23: 22.426 | AS23: 29.944 | AT23: 91.466 | AU23: 30.52 | AV23: 43.649 | AW23: 32.176 | AX23: 36.984 | AY23: 29.881 | AZ23: 47.009 | BA23: 26.809 | BB23: 31.896 | BC23: 32.752 | BD23: 36.628 | BE23: 38.543 | BF23: 29.616 | BG23: 33.103 | BH23: 25.064 | BI23: 36.162 | BJ23: 24.945 | BK23: 45.873 | BL23: 31.166 | BM23: 26.457 | BN23: 41.354 | BO23: 35.092 | BP23: 34.83 | BQ23: 27.157 | BR23: 49.905 | BS23: 29.994 | BT23: 48.254 | BU23: 30.21 | BV23: 28.465
A24: PreCongr5 Set2 | B24: 14.84 | C24: 23.913 | D24: 16.856 | E24: 12.191 | F24: 13.711 | G24: 20.744 | H24: 13.288 | I24: 9.087 | J24: 17.784 | K24: 19.6 | L24: 17.032 | M24: 17.383 | N24: 15.495 | O24: 24.872 | P24: 12.057 | Q24: 15.312 | R24: 13.672 | S24: 17.48 | T24: 18.056 | U24: 13.663 | V24: 17.68 | W24: 23.68 | X24: 16.831 | Y24: 26.183 | Z24: 16.048 | AA24: 19.048 | AB24: 17.776 | AC24: 24.992 | AD24: 20.686 | AE24: 15.24 | AF24: 17.6 | AG24: 15.376 | AH24: 16.401 | AI24: 19.61 | AJ24: 20.833 | AK24: 19.991 | AL24: 18.656 | AM24: 15.111 | AN24: 12.767 | AO24: 18.72 | AP24: 25.864 | AQ24: 14.273 | AR24: 16.201 | AS24: 10.912 | AT24: 24.84 | AU24: 18.336 | AV24: 17.537 | AW24: 17.653 | AX24: 25.784 | AY24: 17.136 | AZ24: 14.972 | BA24: 12.775 | BB24: 16.92 | BC24: 19.616 | BD24: 16.7 | BE24: 17.04 | BF24: 9.303 | BG24: 12.929 | BH24: 15.841 | BI24: 29.025 | BJ24: 16.563 | BK24: 15.415 | BL24: 15.147 | BM24: 15.857 | BN24: 24.345 | BO24: 22.341 | BP24: 15.216 | BQ24: 17.441 | BR24: 18.299 | BS24: 14.864 | BT24: 19.007 | BU24: 17.91 | BV24: 12.288
A25: PreIncongr5 Set2 | B25: 27.26 | C25: 43.273 | D25: 31.094 | E25: 39.23 | F25: 21.68 | G25: 41.295 | H25: 25.583 | I25: 21.151 | J25: 30.447 | K25: 29.216 | L25: 37.575 | M25: 40.375 | N25: 29.335 | O25: 54.384 | P25: 29.208 | Q25: 35.775 | R25: 40.672 | S25: 30.417 | T25: 37.463 | U25: 32.847 | V25: 51.188 | W25: 30.696 | X25: 30.703 | Y25: 28.312 | Z25: 22.792 | AA25: 34.336 | AB25: 37.299 | AC25: 29.208 | AD25: 31.926 | AE25: 29.656 | AF25: 31.481 | AG25: 24.016 | AH25: 31.087 | AI25: 34.505 | AJ25: 33.496 | AK25: 27.103 | AL25: 28.216 | AM25: 27.624 | AN25: 29.552 | AO25: 36.009 | AP25: 34.185 | AQ25: 22.688 | AR25: 26.529 | AS25: 27.289 | AT25: 112.722 | AU25: 29.624 | AV25: 51.665 | AW25: 30.345 | AX25: 33.954 | AY25: 31.96 | AZ25: 48.936 | BA25: 26.352 | BB25: 29.608 | BC25: 31.177 | BD25: 35.409 | BE25: 36.57 | BF25: 28.192 | BG25: 27.335 | BH25: 28.837 | BI25: 35.506 | BJ25: 24.216 | BK25: 44.016 | BL25: 30.393 | BM25: 25.751 | BN25: 34.931 | BO25: 33.453 | BP25: 35.462 | BQ25: 27.033 | BR25: 47.606 | BS25: 29.745 | BT25: 50.07 | BU25: 31.872 | BV25: 26.715
A26: PostCongr1 Set1 | B26: 14.044 | C26: 20.552 | D26: 19.265 | E26: 11.252 | F26: 13.903 | G26: 17.095 | H26: 13.359 | I26: 9.704 | J26: 17.583 | K26: 17.495 | L26: 15.664 | M26: 15.84 | N26: 15.768 | O26: 21.033 | P26: 12.319 | Q26: 14.767 | R26: 14.915 | S26: 19.257 | T26: 17.745 | U26: 12.92 | V26: 18.944 | W26: 27.149 | X26: 15.896 | Y26: 24.247 | Z26: 14.262 | AA26: 21.066 | AB26: 16.455 | AC26: 27.624 | AD26: 18.575 | AE26: 15.183 | AF26: 13.921 | AG26: 16.376 | AH26: 19.246 | AI26: 16.695 | AJ26: 20.009 | AK26: 18.948 | AL26: 15.444 | AM26: 17.16 | AN26: 13.28 | AO26: 17.448 | AP26: 24.263 | AQ26: 14.713 | AR26: 16.896 | AS26: 12.752 | AT26: 18.896 | AU26: 18.106 | AV26: 18.024 | AW26: 17.456 | AX26: 25.08 | AY26: 14.285 | AZ26: 15.16 | BA26: 11.624 | BB26: 19.504 | BC26: 17.329 | BD26: 15.255 | BE26: 20.121 | BF26: 9.513 | BG26: 13.955 | BH26: 14.656 | BI26: 22.244 | BJ26: 15.598 | BK26: 17.998 | BL26: 13.321 | BM26: 17.801 | BN26: 23.19 | BO26: 22.84 | BP26: 15.791 | BQ26: 14.861 | BR26: 17.777 | BS26: 16.528 | BT26: 16.967 | BU26: 17.954 | BV26: 11.193
A27: PostIncongr1 Set1 | B27: 23.583 | C27: 31.116 | D27: 33.575 | E27: 35.238 | F27: 22.633 | G27: 34.535 | H27: 24.375 | I27: 20.479 | J27: 30.791 | K27: 28.455 | L27: 39.183 | M27: 39.254 | N27: 24.327 | O27: 44.665 | P27: 24.576 | Q27: 29.487 | R27: 34.887 | S27: 27.601 | T27: 45.721 | U27: 33.536 | V27: 52.577 | W27: 30.576 | X27: 29.151 | Y27: 24.431 | Z27: 23.568 | AA27: 31.33 | AB27: 29.056 | AC27: 31.28 | AD27: 32.241 | AE27: 26.864 | AF27: 23.271 | AG27: 21.993 | AH27: 31.416 | AI27: 32.047 | AJ27: 36.76 | AK27: 24.431 | AL27: 34.096 | AM27: 22.751 | AN27: 24.896 | AO27: 30.571 | AP27: 32.633 | AQ27: 22.68 | AR27: 22.41 | AS27: 22.808 | AT27: 77.042 | AU27: 33.521 | AV27: 34.753 | AW27: 23.841 | AX27: 38.352 | AY27: 32.512 | AZ27: 41.36 | BA27: 23.967 | BB27: 28.64 | BC27: 26.369 | BD27: 37.29 | BE27: 34.608 | BF27: 26.104 | BG27: 28.986 | BH27: 27.87 | BI27: 39.198 | BJ27: 24.783 | BK27: 45.467 | BL27: 24.669 | BM27: 20.326 | BN27: 30.488 | BO27: 32.099 | BP27: 28.967 | BQ27: 30.815 | BR27: 46.392 | BS27: 32.002 | BT27: 44.022 | BU27: 30.512 | BV27: 23.199
A28: PostCongr1 Set2 | B28: 15.154 | C28: 20.712 | D28: 16.624 | E28: 12.296 | F28: 13.432 | G28: 18.248 | H28: 12.984 | I28: 9.991 | J28: 18.055 | K28: 18.352 | L28: 18.816 | M28: 16.608 | N28: 14.4 | O28: 20.752 | P28: 12.631 | Q28: 15.368 | R28: 13.564 | S28: 16.937 | T28: 17.888 | U28: 13.608 | V28: 17.904 | W28: 24.221 | X28: 16.28 | Y28: 22.767 | Z28: 15.344 | AA28: 19.233 | AB28: 15.968 | AC28: 24.896 | AD28: 18.536 | AE28: 15.335 | AF28: 14.864 | AG28: 14.777 | AH28: 16.736 | AI28: 17.144 | AJ28: 21.303 | AK28: 18.14 | AL28: 18.788 | AM28: 16.74 | AN28: 13.007 | AO28: 15.839 | AP28: 23.416 | AQ28: 14.52 | AR28: 16.481 | AS28: 11.848 | AT28: 18.128 | AU28: 16.332 | AV28: 16.327 | AW28: 16.508 | AX28: 25.057 | AY28: 15.304 | AZ28: 14.707 | BA28: 12.08 | BB28: 18.264 | BC28: 17.712 | BD28: 14.607 | BE28: 18.423 | BF28: 10.6 | BG28: 15.79 | BH28: 14.354 | BI28: 21.291 | BJ28: 16.317 | BK28: 19.832 | BL28: 12.732 | BM28: 15.888 | BN28: 24.837 | BO28: 23.562 | BP28: 15.327 | BQ28: 18.611 | BR28: 17.504 | BS28: 14.272 | BT28: 18.263 | BU28: 17.104 | BV28: 11.704
A29: PostIncongr1 Set2 | B29: 24.112 | C29: 34.789 | D29: 29.415 | E29: 34.231 | F29: 19.887 | G29: 32.607 | H29: 24.751 | I29: 18.92 | J29: 35.86 | K29: 28.944 | L29: 36.976 | M29: 38.71 | N29: 25.855 | O29: 48.966 | P29: 27.609 | Q29: 33.343 | R29: 34.872 | S29: 25.376 | T29: 35.878 | U29: 41.342 | V29: 44.002 | W29: 26.8 | X29: 30.83 | Y29: 26.039 | Z29: 22.142 | AA29: 32.728 | AB29: 28.896 | AC29: 34.4 | AD29: 30.455 | AE29: 26.247 | AF29: 26.85 | AG29: 26.929 | AH29: 28.7 | AI29: 32.632 | AJ29: 33.169 | AK29: 30.767 | AL29: 28.576 | AM29: 25.279 | AN29: 23.297 | AO29: 29.383 | AP29: 31.576 | AQ29: 24.006 | AR29: 23.297 | AS29: 22.416 | AT29: 58.041 | AU29: 30.952 | AV29: 33.816 | AW29: 24.712 | AX29: 34.616 | AY29: 25.857 | AZ29: 49.577 | BA29: 24.32 | BB29: 32.985 | BC29: 26.304 | BD29: 38.25 | BE29: 36.32 | BF29: 29.952 | BG29: 28.492 | BH29: 23.26 | BI29: 27.786 | BJ29: 24.885 | BK29: 40.256 | BL29: 29.53 | BM29: 23.324 | BN29: 32.165 | BO29: 32.47 | BP29: 31.935 | BQ29: 27.289 | BR29: 43.028 | BS29: 31.352 | BT29: 48.198 | BU29: 34.072 | BV29: 24.642
A30: PostCongr2 Set1 | B30: 14.079 | C30: 19.744 | D30: 17.047 | E30: 12.625 | F30: 12.895 | G30: 19.383 | H30: 13.52 | I30: 10.656 | J30: 17.288 | K30: 17.016 | L30: 17.527 | M30: 17.528 | N30: 13.16 | O30: 23.272 | P30: 13.488 | Q30: 14.104 | R30: 13.32 | S30: 16.816 | T30: 18.854 | U30: 13.287 | V30: 17.8 | W30: 23 | X30: 18.663 | Y30: 24.695 | Z30: 14.945 | AA30: 20.624 | AB30: 16.042 | AC30: 22.312 | AD30: 18.256 | AE30: 15.736 | AF30: 16.897 | AG30: 14.688 | AH30: 16.728 | AI30: 17.039 | AJ30: 21.128 | AK30: 18.792 | AL30: 17.015 | AM30: 14.704 | AN30: 12.175 | AO30: 17.058 | AP30: 24.44 | AQ30: 13.528 | AR30: 16.152 | AS30: 12.056 | AT30: 15.152 | AU30: 19.273 | AV30: 18 | AW30: 17.104 | AX30: 23.65 | AY30: 15.784 | AZ30: 14.128 | BA30: 12.529 | BB30: 17.288 | BC30: 17.465 | BD30: 15.001 | BE30: 18.64 | BF30: 9.471 | BG30: 13.637 | BH30: 14.036 | BI30: 19.417 | BJ30: 15.638 | BK30: 15.779 | BL30: 14.94 | BM30: 16.676 | BN30: 23.898 | BO30: 22.077 | BP30: 14.656 | BQ30: 16.741 | BR30: 17.247 | BS30: 16.552 | BT30: 18.087 | BU30: 17.878 | BV30: 12.072
A31: PostIncongr2 Set1 | B31: 25.808 | C31: 37.831 | D31: 28.279 | E31: 33.768 | F31: 20.912 | G31: 37.023 | H31: 23.007 | I31: 21.687 | J31: 32.255 | K31: 29.824 | L31: 38.879 | M31: 40.031 | N31: 26.663 | O31: 46.409 | P31: 25.961 | Q31: 29.423 | R31: 34.168 | S31: 29.512 | T31: 40.458 | U31: 36.129 | V31: 39.841 | W31: 33.16 | X31: 29.303 | Y31: 25.005 | Z31: 22.554 | AA31: 35.72 | AB31: 31.506 | AC31: 39.527 | AD31: 34.8 | AE31: 27.512 | AF31: 33.665 | AG31: 19.91 | AH31: 28.825 | AI31: 29.992 | AJ31: 36.545 | AK31: 30.783 | AL31: 31.361 | AM31: 21.823 | AN31: 25.216 | AO31: 34.401 | AP31: 34.073 | AQ31: 24.064 | AR31: 21.832 | AS31: 29.146 | AT31: 63.097 | AU31: 36.168 | AV31: 37.729 | AW31: 36.649 | AX31: 33.92 | AY31: 35.76 | AZ31: 40.072 | BA31: 26.736 | BB31: 30.292 | BC31: 25.72 | BD31: 34.482 | BE31: 37.961 | BF31: 29.888 | BG31: 30.786 | BH31: 23.928 | BI31: 28.26 | BJ31: 28.224 | BK31: 35.059 | BL31: 24.447 | BM31: 22.413 | BN31: 32.316 | BO31: 37.88 | BP31: 30.814 | BQ31: 25.11 | BR31: 45.912 | BS31: 31.688 | BT31: 41.247 | BU31: 31.047 | BV31: 28.921
A32: PostCongr2 Set2 | B32: 14.05 | C32: 19.207 | D32: 13.136 | E32: 13.191 | F32: 13.087 | G32: 18.903 | H32: 16.031 | I32: 10.431 | J32: 18.335 | K32: 16.56 | L32: 16.16 | M32: 19.512 | N32: 13.977 | O32: 19.04 | P32: 13.024 | Q32: 12.376 | R32: 12.456 | S32: 16.808 | T32: 18.384 | U32: 14.257 | V32: 18.615 | W32: 20.928 | X32: 16.287 | Y32: 24.367 | Z32: 13.799 | AA32: 19.2 | AB32: 15.713 | AC32: 19.383 | AD32: 16.935 | AE32: 14.728 | AF32: 15.616 | AG32: 14.81 | AH32: 16.61 | AI32: 16.047 | AJ32: 19.816 | AK32: 16.81 | AL32: 17.12 | AM32: 14.832 | AN32: 13.048 | AO32: 16.527 | AP32: 23.336 | AQ32: 12.864 | AR32: 16.376 | AS32: 12.12 | AT32: 15.368 | AU32: 18.008 | AV32: 19.28 | AW32: 17.312 | AX32: 24.52 | AY32: 15.816 | AZ32: 14.018 | BA32: 11.399 | BB32: 17.137 | BC32: 17.456 | BD32: 14.759 | BE32: 16.935 | BF32: 9.862 | BG32: 14.738 | BH32: 15.004 | BI32: 18.368 | BJ32: 17.534 | BK32: 13.665 | BL32: 12.498 | BM32: 17.132 | BN32: 24.982 | BO32: 22 | BP32: 13.327 | BQ32: 19.643 | BR32: 18.207 | BS32: 14.24 | BT32: 16.935 | BU32: 15.92 | BV32: 12.057
A33: PostIncongr2 Set2 | B33: 25.75 | C33: 39.68 | D33: 30.327 | E33: 39.214 | F33: 20.016 | G33: 39.67 | H33: 27.895 | I33: 20.935 | J33: 30.407 | K33: 30.208 | L33: 43.359 | M33: 46.967 | N33: 25.184 | O33: 45.946 | P33: 29.67 | Q33: 30.959 | R33: 35.609 | S33: 32.36 | T33: 37.034 | U33: 35.738 | V33: 42.92 | W33: 25.448 | X33: 29.223 | Y33: 27.303 | Z33: 21.304 | AA33: 36.296 | AB33: 28.137 | AC33: 30.369 | AD33: 32.943 | AE33: 28.056 | AF33: 33.343 | AG33: 18.656 | AH33: 33.714 | AI33: 32.207 | AJ33: 36.169 | AK33: 30.584 | AL33: 29.025 | AM33: 23.912 | AN33: 24.838 | AO33: 32.729 | AP33: 34.046 | AQ33: 22.593 | AR33: 20.383 | AS33: 25.384 | AT33: 58.377 | AU33: 27.672 | AV33: 38.873 | AW33: 25.705 | AX33: 36.305 | AY33: 30.689 | AZ33: 37.183 | BA33: 26.744 | BB33: 28.249 | BC33: 27.552 | BD33: 33.001 | BE33: 37.608 | BF33: 25.984 | BG33: 31.88 | BH33: 25.182 | BI33: 30.481 | BJ33: 23.998 | BK33: 38.485 | BL33: 27.706 | BM33: 23.525 | BN33: 32.212 | BO33: 35.83 | BP33: 28.351 | BQ33: 25.073 | BR33: 52.065 | BS33: 36.017 | BT33: 40.39 | BU33: 32.546 | BV33: 25.007
A34: PostCongr3 Set1 | B34: 13.378 | C34: 19.943 | D34: 13.488 | E34: 10.683 | F34: 13.576 | G34: 19.04 | H34: 18.704 | I34: 10.455 | J34: 17.447 | K34: 16.76 | L34: 16.176 | M34: 14.568 | N34: 14.031 | O34: 21.702 | P34: 13.545 | Q34: 13.207 | R34: 13.072 | S34: 15.928 | T34: 16.986 | U34: 12.631 | V34: 18.934 | W34: 21.839 | X34: 15.599 | Y34: 23.887 | Z34: 12.918 | AA34: 19.76 | AB34: 14.579 | AC34: 20.832 | AD34: 16.673 | AE34: 13.84 | AF34: 14.4 | AG34: 14.223 | AH34: 17.314 | AI34: 16.522 | AJ34: 21.097 | AK34: 19.16 | AL34: 16.409 | AM34: 14.999 | AN34: 11.632 | AO34: 17.505 | AP34: 25.762 | AQ34: 13.266 | AR34: 15.765 | AS34: 11.088 | AT34: 13.92 | AU34: 17.072 | AV34: 18.303 | AW34: 17.128 | AX34: 23.745 | AY34: 15.28 | AZ34: 13.328 | BA34: 11.513 | BB34: 16.944 | BC34: 17.56 | BD34: 14.843 | BE34: 18.351 | BF34: 9.752 | BG34: 13.705 | BH34: 13.886 | BI34: 21.009 | BJ34: 16.718 | BK34: 15.158 | BL34: 12.103 | BM34: 16.359 | BN34: 23.8 | BO34: 22.712 | BP34: 13.48 | BQ34: 18.967 | BR34: 18.571 | BS34: 14.576 | BT34: 18.256 | BU34: 17.28 | BV34: 11.282
A35: PostIncongr3 Set1 | B35: 26.73 | C35: 39.664 | D35: 29.135 | E35: 35.976 | F35: 21.128 | G35: 36.607 | H35: 26.831 | I35: 22.727 | J35: 29.279 | K35: 26.304 | L35: 39.158 | M35: 41.094 | N35: 26.183 | O35: 41.88 | P35: 28.078 | Q35: 30.655 | R35: 34.543 | S35: 28.36 | T35: 38.888 | U35: 33.816 | V35: 42.528 | W35: 26.64 | X35: 30.567 | Y35: 26.375 | Z35: 23.167 | AA35: 32.448 | AB35: 28.769 | AC35: 33.159 | AD35: 35.336 | AE35: 29.48 | AF35: 31.664 | AG35: 20.664 | AH35: 31.144 | AI35: 29.393 | AJ35: 41.856 | AK35: 29.046 | AL35: 25.65 | AM35: 24.559 | AN35: 22.529 | AO35: 32.368 | AP35: 32.224 | AQ35: 23.704 | AR35: 22.508 | AS35: 25.048 | AT35: 70.121 | AU35: 32.592 | AV35: 41.248 | AW35: 24.856 | AX35: 39.457 | AY35: 28.592 | AZ35: 40.856 | BA35: 24.368 | BB35: 29.656 | BC35: 25.856 | BD35: 31.941 | BE35: 37.736 | BF35: 27.391 | BG35: 30.446 | BH35: 27.922 | BI35: 28.236 | BJ35: 26.348 | BK35: 37.731 | BL35: 28.427 | BM35: 22.369 | BN35: 30.101 | BO35: 38.723 | BP35: 29.662 | BQ35: 28.859 | BR35: 48.385 | BS35: 32.456 | BT35: 43.766 | BU35: 28.833 | BV35: 24.537
A36: PostCongr3 Set2 | B36: 13.55 | C36: 20.048 | D36: 14.327 | E36: 11.815 | F36: 11.464 | G36: 18.823 | H36: 19.479 | I36: 10.136 | J36: 17.142 | K36: 15.791 | L36: 19.607 | M36: 16.711 | N36: 14.063 | O36: 27.102 | P36: 13.454 | Q36: 12.696 | R36: 12.601 | S36: 15.879 | T36: 17.282 | U36: 13.607 | V36: 17.185 | W36: 22.608 | X36: 17.16 | Y36: 24.415 | Z36: 14.511 | AA36: 17.272 | AB36: 15.367 | AC36: 20.232 | AD36: 16.537 | AE36: 17.056 | AF36: 16.032 | AG36: 12.753 | AH36: 15.76 | AI36: 16.847 | AJ36: 21.866 | AK36: 18.208 | AL36: 15.145 | AM36: 14.839 | AN36: 11.878 | AO36: 18.346 | AP36: 23.96 | AQ36: 12.912 | AR36: 15.504 | AS36: 10.5 | AT36: 16.192 | AU36: 17.383 | AV36: 17.432 | AW36: 16.361 | AX36: 27.977 | AY36: 15.15 | AZ36: 13.744 | BA36: 12.024 | BB36: 17.025 | BC36: 16.6 | BD36: 15.204 | BE36: 18.183 | BF36: 9.864 | BG36: 13.37 | BH36: 14.17 | BI36: 21.038 | BJ36: 16.128 | BK36: 14.323 | BL36: 11.768 | BM36: 16.544 | BN36: 25.329 | BO36: 23.161 | BP36: 13.823 | BQ36: 16.152 | BR36: 16.896 | BS36: 15.736 | BT36: 16.535 | BU36: 16.145 | BV36: 11.616
A37: PostIncongr3 Set2 | B37: 27.998 | C37: 37.166 | D37: 30.207 | E37: 34.265 | F37: 20.063 | G37: 45.447 | H37: 26.558 | I37: 22.375 | J37: 28.415 | K37: 30.927 | L37: 36.495 | M37: 50.719 | N37: 25.088 | O37: 41.688 | P37: 28.625 | Q37: 29.815 | R37: 37.048 | S37: 29.728 | T37: 35.749 | U37: 34.856 | V37: 40.392 | W37: 24.048 | X37: 28.622 | Y37: 25.527 | Z37: 23.025 | AA37: 33.2 | AB37: 30.36 | AC37: 31.984 | AD37: 37.128 | AE37: 25.032 | AF37: 26.417 | AG37: 20.408 | AH37: 35.648 | AI37: 35.065 | AJ37: 36.352 | AK37: 26.535 | AL37: 25.769 | AM37: 23.904 | AN37: 24.488 | AO37: 32.018 | AP37: 32.248 | AQ37: 21.2 | AR37: 28 | AS37: 28.385 | AT37: 78.217 | AU37: 36.299 | AV37: 43.985 | AW37: 28.977 | AX37: 35.504 | AY37: 27.979 | AZ37: 41.465 | BA37: 24.952 | BB37: 30.888 | BC37: 27.169 | BD37: 36.009 | BE37: 37.76 | BF37: 25.343 | BG37: 28.867 | BH37: 29.075 | BI37: 31.176 | BJ37: 23.147 | BK37: 47.889 | BL37: 27.859 | BM37: 22.69 | BN37: 32.369 | BO37: 32.72 | BP37: 28.463 | BQ37: 30.327 | BR37: 56.081 | BS37: 32.193 | BT37: 44.063 | BU37: 30.951 | BV37: 27.704
A38: PostCongr4 Set1 | B38: 14.843 | C38: 20.536 | D38: 13.64 | E38: 11.503 | F38: 13.048 | G38: 22.263 | H38: 18.239 | I38: 10.64 | J38: 16.824 | K38: 18.223 | L38: 16.504 | M38: 18.479 | N38: 13.027 | O38: 19.121 | P38: 13.336 | Q38: 13.592 | R38: 13.916 | S38: 16.271 | T38: 18.016 | U38: 13.385 | V38: 18.552 | W38: 21.72 | X38: 17.72 | Y38: 23.015 | Z38: 13.712 | AA38: 20.214 | AB38: 16.256 | AC38: 24.337 | AD38: 17.943 | AE38: 13.84 | AF38: 16.032 | AG38: 13.808 | AH38: 16.576 | AI38: 17.022 | AJ38: 21.129 | AK38: 18.839 | AL38: 17.793 | AM38: 14.68 | AN38: 12.16 | AO38: 18.163 | AP38: 23.624 | AQ38: 12.472 | AR38: 16.405 | AS38: 11.744 | AT38: 14.271 | AU38: 16.544 | AV38: 19.024 | AW38: 16.728 | AX38: 25.896 | AY38: 15.56 | AZ38: 14.144 | BA38: 11.184 | BB38: 18.098 | BC38: 16.2 | BD38: 15.285 | BE38: 20.128 | BF38: 10.423 | BG38: 15.861 | BH38: 14.207 | BI38: 18.903 | BJ38: 17.318 | BK38: 15.09 | BL38: 12.119 | BM38: 14.64 | BN38: 23.534 | BO38: 21.718 | BP38: 13.896 | BQ38: 18.317 | BR38: 19.376 | BS38: 16.01 | BT38: 17.607 | BU38: 17.088 | BV38: 11.015
A39: PostIncongr4 Set1 | B39: 25.335 | C39: 43.169 | D39: 29.088 | E39: 33.976 | F39: 20.887 | G39: 47.551 | H39: 28.127 | I39: 20.095 | J39: 31.896 | K39: 29.399 | L39: 39.767 | M39: 41.879 | N39: 24.127 | O39: 42.064 | P39: 28.144 | Q39: 27.839 | R39: 38.18 | S39: 29.278 | T39: 39.264 | U39: 38.96 | V39: 45.8 | W39: 26.489 | X39: 27.423 | Y39: 28.975 | Z39: 25.447 | AA39: 35.456 | AB39: 28.058 | AC39: 40.248 | AD39: 35.912 | AE39: 26.616 | AF39: 33.8 | AG39: 23.578 | AH39: 32.496 | AI39: 33.32 | AJ39: 38.16 | AK39: 29 | AL39: 29.217 | AM39: 24.783 | AN39: 23.32 | AO39: 31.201 | AP39: 33.641 | AQ39: 25.305 | AR39: 23.145 | AS39: 25.584 | AT39: 62.713 | AU39: 37.049 | AV39: 45.097 | AW39: 26.139 | AX39: 34.377 | AY39: 33.616 | AZ39: 35.508 | BA39: 23.472 | BB39: 35.168 | BC39: 27.761 | BD39: 33.986 | BE39: 38.562 | BF39: 28.568 | BG39: 28.66 | BH39: 25.766 | BI39: 30.617 | BJ39: 23.043 | BK39: 35.639 | BL39: 30.016 | BM39: 22.975 | BN39: 31.709 | BO39: 33.438 | BP39: 32.063 | BQ39: 30.517 | BR39: 43.856 | BS39: 31.192 | BT39: 41.935 | BU39: 30.056 | BV39: 25.848
A40: PostCongr4 Set2 | B40: 13.66 | C40: 19.511 | D40: 14.287 | E40: 11.591 | F40: 12.416 | G40: 21.983 | H40: 18.247 | I40: 9.992 | J40: 16.408 | K40: 17.432 | L40: 16.871 | M40: 18.272 | N40: 15.568 | O40: 20.383 | P40: 13.208 | Q40: 13.216 | R40: 13.75 | S40: 15.449 | T40: 17.664 | U40: 12.799 | V40: 17.896 | W40: 20.967 | X40: 15.671 | Y40: 25.383 | Z40: 14.751 | AA40: 18.519 | AB40: 15.288 | AC40: 19.895 | AD40: 17.103 | AE40: 14.112 | AF40: 13.656 | AG40: 13.401 | AH40: 14.92 | AI40: 16.735 | AJ40: 22.002 | AK40: 19.417 | AL40: 17.881 | AM40: 15.551 | AN40: 11.505 | AO40: 16.795 | AP40: 23.625 | AQ40: 11.889 | AR40: 15.993 | AS40: 10.512 | AT40: 15.233 | AU40: 15.497 | AV40: 18.953 | AW40: 15.953 | AX40: 24.456 | AY40: 14.19 | AZ40: 12.719 | BA40: 11.023 | BB40: 18.291 | BC40: 16.304 | BD40: 15.043 | BE40: 20.16 | BF40: 9.64 | BG40: 13.55 | BH40: 14.571 | BI40: 20.05 | BJ40: 17.282 | BK40: 15.76 | BL40: 12.069 | BM40: 13.709 | BN40: 23.014 | BO40: 23.226 | BP40: 15.335 | BQ40: 17.729 | BR40: 17.992 | BS40: 15.384 | BT40: 17.615 | BU40: 15.681 | BV40: 12.256
A41: PostIncongr4 Set2 | B41: 23.879 | C41: 36.615 | D41: 30.679 | E41: 33.455 | F41: 22.167 | G41: 43.662 | H41: 28.167 | I41: 23.391 | J41: 27.512 | K41: 34.783 | L41: 38.375 | M41: 45.238 | N41: 24.551 | O41: 44.406 | P41: 28.016 | Q41: 30.279 | R41: 33.456 | S41: 27.935 | T41: 35.112 | U41: 37.185 | V41: 39.745 | W41: 26.402 | X41: 26.695 | Y41: 25.447 | Z41: 24.27 | AA41: 34.624 | AB41: 26.419 | AC41: 42.424 | AD41: 31.633 | AE41: 33.024 | AF41: 31.216 | AG41: 23.295 | AH41: 32.04 | AI41: 30.32 | AJ41: 32.961 | AK41: 26.759 | AL41: 25.088 | AM41: 22.888 | AN41: 23.468 | AO41: 31.758 | AP41: 32.217 | AQ41: 22.688 | AR41: 20.288 | AS41: 26.552 | AT41: 68.465 | AU41: 33.705 | AV41: 40.817 | AW41: 27.097 | AX41: 35.113 | AY41: 27.272 | AZ41: 47.825 | BA41: 24.217 | BB41: 31.648 | BC41: 24.752 | BD41: 32.768 | BE41: 37.624 | BF41: 27.376 | BG41: 37.848 | BH41: 29.058 | BI41: 29.776 | BJ41: 24.148 | BK41: 38.875 | BL41: 34.955 | BM41: 22.882 | BN41: 30.767 | BO41: 31.718 | BP41: 27.039 | BQ41: 28.145 | BR41: 51.760 | BS41: 30.937 | BT41: 41.991 | BU41: 27.120 | BV41: 23.270
A42: PostCongr5 Set1 | B42: 13.02 | C42: 21.688 | D42: 14.207 | E42: 10.528 | F42: 12.344 | G42: 19.303 | H42: 19.831 | I42: 10.559 | J42: 18.376 | K42: 17.88 | L42: 17.232 | M42: 17.079 | N42: 13.728 | O42: 22.138 | P42: 14.479 | Q42: 12.199 | R42: 12.912 | S42: 15.543 | T42: 17.591 | U42: 12.864 | V42: 18.2 | W42: 21.087 | X42: 15.696 | Y42: 20.815 | Z42: 13.458 | AA42: 18.424 | AB42: 16.936 | AC42: 20.696 | AD42: 15.28 | AE42: 14.032 | AF42: 13.999 | AG42: 13.432 | AH42: 14.425 | AI42: 19.807 | AJ42: 21.137 | AK42: 17.696 | AL42: 12.968 | AM42: 13.935 | AN42: 11.508 | AO42: 17.264 | AP42: 21.881 | AQ42: 13.104 | AR42: 15.361 | AS42: 10.582 | AT42: 16.456 | AU42: 17.48 | AV42: 18.728 | AW42: 17.984 | AX42: 22.544 | AY42: 15.032 | AZ42: 13.288 | BA42: 12.104 | BB42: 18.424 | BC42: 16.552 | BD42: 16.858 | BE42: 18.432 | BF42: 10.039 | BG42: 14.564 | BH42: 13.835 | BI42: 21.054 | BJ42: 17.428 | BK42: 14.072 | BL42: 12.852 | BM42: 15.310 | BN42: 22.836 | BO42: 21.990 | BP42: 13.400 | BQ42: 18.877 | BR42: 17.992 | BS42: 14.944 | BT42: 17.631 | BU42: 17.409 | BV42: 10.762
A43: PostIncongr5 Set1 | B43: 23.778 | C43: 37.423 | D43: 33.248 | E43: 33.351 | F43: 21.319 | G43: 46.271 | H43: 25.551 | I43: 22.951 | J43: 29.679 | K43: 29.711 | L43: 4.775 | M43: 43.111 | N43: 23.735 | O43: 43.266 | P43: 27.618 | Q43: 30.095 | R43: 33.422 | S43: 26.84 | T43: 38.614 | U43: 33.4 | V43: 43.553 | W43: 27.302 | X43: 27.463 | Y43: 23.959 | Z43: 24.616 | AA43: 38.881 | AB43: 33.061 | AC43: 36.48 | AD43: 32.375 | AE43: 34.184 | AF43: 30.36 | AG43: 21.752 | AH43: 30.385 | AI43: 30.425 | AJ43: 38.529 | AK43: 32.497 | AL43: 27.024 | AM43: 23.664 | AN43: 24.601 | AO43: 33.744 | AP43: 31.385 | AQ43: 23.505 | AR43: 21.239 | AS43: 28.249 | AT43: 80.673 | AU43: 34.145 | AV43: 39.696 | AW43: 29.64 | AX43: 33.456 | AY43: 30.784 | AZ43: 37.423 | BA43: 23.688 | BB43: 30.609 | BC43: 25.488 | BD43: 35.129 | BE43: 34.816 | BF43: 30.376 | BG43: 31.667 | BH43: 27.957 | BI43: 30.463 | BJ43: 22.597 | BK43: 38.381 | BL43: 25.566 | BM43: 22.825 | BN43: 32.336 | BO43: 31.335 | BP43: 31.335 | BQ43: 27.047 | BR43: 53.025 | BS43: 32.880 | BT43: 47.438 | BU43: 28.688 | BV43: 24.782
A44: PostCongr5 Set2 | B44: 13.114 | C44: 19.08 | D44: 19.359 | E44: 10.493 | F44: 12.759 | G44: 22.863 | H44: 19.759 | I44: 10.496 | J44: 16.791 | K44: 17.416 | L44: 18.007 | M44: 15.664 | N44: 14.927 | O44: 18.518 | P44: 13.038 | Q44: 12.896 | R44: 12.737 | S44: 15.153 | T44: 18.064 | U44: 13.568 | V44: 16.607 | W44: 21.528 | X44: 15.568 | Y44: 19.335 | Z44: 13.128 | AA44: 17.84 | AB44: 16.04 | AC44: 19.535 | AD44: 14.711 | AE44: 14.84 | AF44: 13.816 | AG44: 12.529 | AH44: 14.969 | AI44: 18.848 | AJ44: 24.872 | AK44: 18.175 | AL44: 13.144 | AM44: 14.327 | AN44: 11.269 | AO44: 15.295 | AP44: 22.713 | AQ44: 12.032 | AR44: 15.215 | AS44: 10.568 | AT44: 18.217 | AU44: 16.183 | AV44: 18.096 | AW44: 17.705 | AX44: 22.88 | AY44: 16.424 | AZ44: 13.121 | BA44: 11.136 | BB44: 16.284 | BC44: 16.464 | BD44: 13.833 | BE44: 18.424 | BF44: 10.750 | BG44: 15.624 | BH44: 14.806 | BI44: 22.308 | BJ44: 17.152 | BK44: 13.350 | BL44: 12.083 | BM44: 13.669 | BN44: 23.444 | BO44: 22.276 | BP44: 13.415 | BQ44: 22.180 | BR44: 17.584 | BS44: 13.635 | BT44: 21.471 | BU44: 17.409 | BV44: 11.096
A45: PostIncongr5 Set2 | B45: 23.291 | C45: 43.241 | D45: 28.679 | E45: 30.79 | F45: 20.832 | G45: 48.247 | H45: 27.703 | I45: 22.647 | J45: 32.311 | K45: 27.927 | L45: 43.543 | M45: 37.103 | N45: 28.608 | O45: 44.913 | P45: 28.257 | Q45: 27.487 | R45: 36.73 | S45: 26.071 | T45: 34.704 | U45: 34.32 | V45: 34.07 | W45: 25.88 | X45: 32.295 | Y45: 27.047 | Z45: 22.952 | AA45: 39.105 | AB45: 32.408 | AC45: 31.304 | AD45: 33.455 | AE45: 31.872 | AF45: 29.8 | AG45: 20.137 | AH45: 29.832 | AI45: 31.424 | AJ45: 36.024 | AK45: 34.849 | AL45: 29.727 | AM45: 25.367 | AN45: 29.849 | AO45: 29.849 | AP45: 33.976 | AQ45: 22.912 | AR45: 19.952 | AS45: 26.544 | AT45: 82.609 | AU45: 38.481 | AV45: 37.64 | AW45: 27.817 | AX45: 33.356 | AY45: 32.529 | AZ45: 42.696 | BA45: 24.28 | BB45: 30.696 | BC45: 27.74 | BD45: 35.699 | BE45: 34.759 | BF45: 27.128 | BG45: 31.906 | BH45: 24.832 | BI45: 33.169 | BJ45: 27.236 | BK45: 35.879 | BL45: 33.483 | BM45: 22.723 | BN45: 33.647 | BO45: 30.884 | BP45: 28.967 | BQ45: 29.699 | BR45: 41.129 | BS45: 27.508 | BT45: 47.302 | BU45: 28.688 | BV45: 23.009
A46: PreErrorC1 set 1 | B46: 0 | C46: 0 | D46: 0 | E46: 0 | F46: 0 | G46: 0 | H46: 0 | I46: 0 | J46: 0 | K46: 0 | L46: 0 | M46: 0 | N46: 0 | O46: 0 | P46: 0 | Q46: 0 | R46: 0 | S46: 0 | T46: 0 | U46: 0 | V46: 0 | W46: 0 | X46: 0 | Y46: 0 | Z46: 0 | AA46: 0 | AB46: 0 | AC46: 0 | AD46: 0 | AE46: 0 | AF46: 0 | AG46: 0 | AH46: 0 | AI46: 0 | AJ46: 0 | AK46: 0 | AL46: 0 | AM46: 0 | AN46: 0 | AO46: 0 | AP46: 0 | AQ46: 0 | AR46: 0 | AS46: 0 | AT46: 0 | AU46: 0 | AV46: 0 | AW46: 0 | AX46: 0 | AY46: 0 | AZ46: 0 | BA46: 0 | BB46: 0 | BC46: 0 | BD46: 0 | BE46: 0 | BF46: 0 | BG46: 0 | BH46: 0 | BI46: 0 | BJ46: 0 | BK46: 0 | BL46: 0 | BM46: 0 | BN46: 0 | BO46: 0 | BP46: 0 | BQ46: 0 | BR46: 0 | BS46: 0 | BT46: 0 | BU46: 0 | BV46: 0
A47: PreErrorI1 set 1 | B47: 5 | C47: 5 | D47: 2.5 | E47: 17.5 | F47: 0 | G47: 2.5 | H47: 0 | I47: 2.5 | J47: 5 | K47: 0 | L47: 7.5 | M47: 0 | N47: 0 | O47: 0 | P47: 0 | Q47: 5 | R47: 2.5 | S47: 0 | T47: 0 | U47: 2.5 | V47: 2.5 | W47: 2.5 | X47: 5 | Y47: 0 | Z47: 0 | AA47: 0 | AB47: 2.5 | AC47: 0 | AD47: 0 | AE47: 7.5 | AF47: 0 | AG47: 0 | AH47: 0 | AI47: 5 | AJ47: 17.5 | AK47: 12.5 | AL47: 0 | AM47: 0 | AN47: 0 | AO47: 0 | AP47: 0 | AQ47: 5 | AR47: 0 | AS47: 0 | AT47: 7.5 | AU47: 2.5 | AV47: 0 | AW47: 5 | AX47: 0 | AY47: 10 | AZ47: 0 | BA47: 2.5 | BB47: 0 | BC47: 0 | BD47: 0 | BE47: 2.5 | BF47: 0 | BG47: 2.5 | BH47: 2.5 | BI47: 2.5 | BJ47: 2.5 | BK47: 5 | BL47: 2.5 | BM47: 2.5 | BN47: 5 | BO47: 5 | BP47: 0 | BQ47: 0 | BR47: 0 | BS47: 5 | BT47: 10 | BU47: 5 | BV47: 2.5
A48: PreErrorC1 set 2 | B48: 0 | C48: 0 | D48: 0 | E48: 0 | F48: 0 | G48: 0 | H48: 0 | I48: 0 | J48: 0 | K48: 0 | L48: 2.5 | M48: 0 | N48: 0 | O48: 0 | P48: 0 | Q48: 0 | R48: 0 | S48: 0 | T48: 0 | U48: 0 | V48: 0 | W48: 0 | X48: 5 | Y48: 2.5 | Z48: 0 | AA48: 0 | AB48: 0 | AC48: 0 | AD48: 0 | AE48: 0 | AF48: 0 | AG48: 0 | AH48: 0 | AI48: 0 | AJ48: 0 | AK48: 0 | AL48: 0 | AM48: 0 | AN48: 0 | AO48: 0 | AP48: 0 | AQ48: 0 | AR48: 0 | AS48: 0 | AT48: 0 | AU48: 0 | AV48: 0 | AW48: 0 | AX48: 0 | AY48: 0 | AZ48: 0 | BA48: 0 | BB48: 0 | BC48: 0 | BD48: 0 | BE48: 0 | BF48: 0 | BG48: 0 | BH48: 0 | BI48: 0 | BJ48: 0 | BK48: 0 | BL48: 0 | BM48: 0 | BN48: 0 | BO48: 0 | BP48: 0 | BQ48: 5 | BR48: 0 | BS48: 0 | BT48: 0 | BU48: 0 | BV48: 0
A49: PreErrorI1 set 2 | B49: 2.5 | C49: 7.5 | D49: 0 | E49: 0 | F49: 0 | G49: 0 | H49: 2.5 | I49: 2.5 | J49: 5 | K49: 0 | L49: 5 | M49: 2.5 | N49: 2.5 | O49: 0 | P49: 0 | Q49: 2.5 | R49: 0 | S49: 0 | T49: 2.5 | U49: 0 | V49: 0 | W49: 2.5 | X49: 5 | Y49: 2.5 | Z49: 5 | AA49: 0 | AB49: 0 | AC49: 0 | AD49: 2.5 | AE49: 2.5 | AF49: 0 | AG49: 0 | AH49: 0 | AI49: 0 | AJ49: 2.5 | AK49: 10 | AL49: 0 | AM49: 5 | AN49: 0 | AO49: 2.5 | AP49: 2.5 | AQ49: 0 | AR49: 0 | AS49: 0 | AT49: 7.5 | AU49: 5 | AV49: 2.5 | AW49: 2.5 | AX49: 5 | AY49: 5 | AZ49: 0 | BA49: 2.5 | BB49: 0 | BC49: 2.5 | BD49: 2.5 | BE49: 5 | BF49: 0 | BG49: 5 | BH49: 0 | BI49: 2.5 | BJ49: 0 | BK49: 0 | BL49: 0 | BM49: 0 | BN49: 2.5 | BO49: 2.5 | BP49: 0 | BQ49: 0 | BR49: 2.5 | BS49: 2.5 | BT49: 0 | BU49: 5 | BV49: 2.5
A50: PreErrorC2 set 1 | B50: 0 | C50: 0 | D50: 0 | E50: 0 | F50: 0 | G50: 0 | H50: 0 | I50: 0 | J50: 0 | K50: 0 | L50: 2.5 | M50: 0 | N50: 0 | O50: 0 | P50: 0 | Q50: 0 | R50: 0 | S50: 0 | T50: 0 | U50: 0 | V50: 0 | W50: 0 | X50: 0 | Y50: 0 | Z50: 0 | AA50: 0 | AB50: 0 | AC50: 0 | AD50: 0 | AE50: 0 | AF50: 0 | AG50: 0 | AH50: 0 | AI50: 0 | AJ50: 0 | AK50: 0 | AL50: 0 | AM50: 0 | AN50: 0 | AO50: 0 | AP50: 0 | AQ50: 0 | AR50: 0 | AS50: 0 | AT50: 0 | AU50: 0 | AV50: 0 | AW50: 0 | AX50: 0 | AY50: 0 | AZ50: 0 | BA50: 0 | BB50: 0 | BC50: 5 | BD50: 0 | BE50: 0 | BF50: 0 | BG50: 0 | BH50: 0 | BI50: 0 | BJ50: 0 | BK50: 0 | BL50: 5 | BM50: 0 | BN50: 0 | BO50: 0 | BP50: 0 | BQ50: 0 | BR50: 0 | BS50: 0 | BT50: 0 | BU50: 0 | BV50: 0
A51: PreErrorI2 set 1 | B51: 2.5 | C51: 0 | D51: 2.5 | E51: 0 | F51: 2.5 | G51: 0 | H51: 0 | I51: 5 | J51: 5 | K51: 0 | L51: 5 | M51: 0 | N51: 2.5 | O51: 0 | P51: 0 | Q51: 5 | R51: 2.5 | S51: 0 | T51: 2.5 | U51: 2.5 | V51: 0 | W51: 0 | X51: 0 | Y51: 0 | Z51: 7.5 | AA51: 0 | AB51: 2.5 | AC51: 0 | AD51: 0 | AE51: 2.5 | AF51: 0 | AG51: 0 | AH51: 0 | AI51: 0 | AJ51: 0 | AK51: 5 | AL51: 0 | AM51: 0 | AN51: 2.5 | AO51: 0 | AP51: 2.5 | AQ51: 0 | AR51: 0 | AS51: 0 | AT51: 0 | AU51: 5 | AV51: 7.5 | AW51: 0 | AX51: 0 | AY51: 2.5 | AZ51: 0 | BA51: 0 | BB51: 0 | BC51: 5 | BD51: 0 | BE51: 0 | BF51: 2.5 | BG51: 2.5 | BH51: 0 | BI51: 0 | BJ51: 2.5 | BK51: 2.5 | BL51: 5 | BM51: 0 | BN51: 5 | BO51: 0 | BP51: 0 | BQ51: 2.5 | BR51: 2.5 | BS51: 0 | BT51: 2.5 | BU51: 0 | BV51: 2.5
A52: PreErrorC2 set 2 | B52: 0 | C52: 0 | D52: 0 | E52: 0 | F52: 0 | G52: 0 | H52: 0 | I52: 0 | J52: 0 | K52: 0 | L52: 0 | M52: 2.5 | N52: 0 | O52: 0 | P52: 0 | Q52: 0 | R52: 0 | S52: 0 | T52: 0 | U52: 0 | V52: 0 | W52: 0 | X52: 0 | Y52: 0 | Z52: 0 | AA52: 0 | AB52: 0 | AC52: 0 | AD52: 0 | AE52: 0 | AF52: 0 | AG52: 0 | AH52: 0 | AI52: 0 | AJ52: 0 | AK52: 0 | AL52: 0 | AM52: 0 | AN52: 0 | AO52: 0 | AP52: 0 | AQ52: 0 | AR52: 0 | AS52: 0 | AT52: 0 | AU52: 0 | AV52: 0 | AW52: 0 | AX52: 0 | AY52: 0 | AZ52: 0 | BA52: 0 | BB52: 0 | BC52: 0 | BD52: 0 | BE52: 0 | BF52: 0 | BG52: 0 | BH52: 0 | BI52: 0 | BJ52: 0 | BK52: 0 | BL52: 0 | BM52: 0 | BN52: 0 | BO52: 0 | BP52: 0 | BQ52: 0 | BR52: 0 | BS52: 0 | BT52: 0 | BU52: 0 | BV52: 0
A53: PreErrorI2 set 2 | B53: 0 | C53: 10 | D53: 0 | E53: 5 | F53: 0 | G53: 2.5 | H53: 2.5 | I53: 0 | J53: 2.5 | K53: 0 | L53: 0 | M53: 0 | N53: 0 | O53: 0 | P53: 2.5 | Q53: 2.5 | R53: 5 | S53: 2.5 | T53: 0 | U53: 0 | V53: 0 | W53: 2.5 | X53: 0 | Y53: 2.5 | Z53: 0 | AA53: 0 | AB53: 5 | AC53: 0 | AD53: 0 | AE53: 5 | AF53: 0 | AG53: 0 | AH53: 2.5 | AI53: 0 | AJ53: 2.5 | AK53: 7.5 | AL53: 2.5 | AM53: 0 | AN53: 0 | AO53: 0 | AP53: 5 | AQ53: 5 | AR53: 0 | AS53: 0 | AT53: 12.5 | AU53: 5 | AV53: 0 | AW53: 7.5 | AX53: 0 | AY53: 7.5 | AZ53: 0 | BA53: 5 | BB53: 0 | BC53: 0 | BD53: 7.5 | BE53: 0 | BF53: 2.5 | BG53: 2.5 | BH53: 0 | BI53: 0 | BJ53: 2.5 | BK53: 7.5 | BL53: 0 | BM53: 2.5 | BN53: 7.5 | BO53: 0 | BP53: 0 | BQ53: 0 | BR53: 0 | BS53: 0 | BT53: 0 | BU53: 5 | BV53: 2.5
A54: PreErrorC3 set 1 | B54: 2.5 | C54: 0 | D54: 0 | E54: 0 | F54: 0 | G54: 2.5 | H54: 2.5 | I54: 0 | J54: 0 | K54: 0 | L54: 0 | M54: 0 | N54: 0 | O54: 2.5 | P54: 0 | Q54: 0 | R54: 0 | S54: 0 | T54: 0 | U54: 0 | V54: 0 | W54: 0 | X54: 2.5 | Y54: 0 | Z54: 0 | AA54: 0 | AB54: 0 | AC54: 0 | AD54: 0 | AE54: 0 | AF54: 0 | AG54: 0 | AH54: 0 | AI54: 2.5 | AJ54: 0 | AK54: 0 | AL54: 0 | AM54: 0 | AN54: 0 | AO54: 0 | AP54: 0 | AQ54: 0 | AR54: 0 | AS54: 0 | AT54: 0 | AU54: 0 | AV54: 0 | AW54: 0 | AX54: 2.5 | AY54: 0 | AZ54: 0 | BA54: 0 | BB54: 0 | BC54: 0 | BD54: 0 | BE54: 0 | BF54: 0 | BG54: 2.5 | BH54: 0 | BI54: 0 | BJ54: 0 | BK54: 0 | BL54: 0 | BM54: 0 | BN54: 0 | BO54: 2.5 | BP54: 0 | BQ54: 0 | BR54: 0 | BS54: 0 | BT54: 0 | BU54: 0 | BV54: 0
A55: PreErrorI3 set 1 | B55: 2.5 | C55: 2.5 | D55: 0 | E55: 0 | F55: 0 | G55: 0 | H55: 0 | I55: 2.5 | J55: 5 | K55: 2.5 | L55: 2.5 | M55: 7.5 | N55: 0 | O55: 0 | P55: 2.5 | Q55: 7.5 | R55: 5 | S55: 2.5 | T55: 0 | U55: 0 | V55: 0 | W55: 0 | X55: 0 | Y55: 0 | Z55: 0 | AA55: 5 | AB55: 0 | AC55: 0 | AD55: 0 | AE55: 0 | AF55: 5 | AG55: 0 | AH55: 2.5 | AI55: 0 | AJ55: 0 | AK55: 7.5 | AL55: 0 | AM55: 0 | AN55: 0 | AO55: 2.5 | AP55: 2.5 | AQ55: 2.5 | AR55: 0 | AS55: 2.5 | AT55: 7.5 | AU55: 2.5 | AV55: 2.5 | AW55: 0 | AX55: 0 | AY55: 0 | AZ55: 0 | BA55: 0 | BB55: 0 | BC55: 5 | BD55: 0 | BE55: 2.5 | BF55: 0 | BG55: 5 | BH55: 2.5 | BI55: 2.5 | BJ55: 2.5 | BK55: 0 | BL55: 0 | BM55: 2.5 | BN55: 0 | BO55: 2.5 | BP55: 0 | BQ55: 0 | BR55: 0 | BS55: 5 | BT55: 0 | BU55: 2.5 | BV55: 0
A56: PreErrorC3 set 2 | B56: 0 | C56: 0 | D56: 0 | E56: 0 | F56: 0 | G56: 0 | H56: 0 | I56: 0 | J56: 0 | K56: 0 | L56: 0 | M56: 0 | N56: 0 | O56: 0 | P56: 0 | Q56: 0 | R56: 0 | S56: 0 | T56: 0 | U56: 0 | V56: 0 | W56: 0 | X56: 0 | Y56: 0 | Z56: 0 | AA56: 0 | AB56: 0 | AC56: 0 | AD56: 0 | AE56: 0 | AF56: 0 | AG56: 0 | AH56: 0 | AI56: 0 | AJ56: 0 | AK56: 2.5 | AL56: 0 | AM56: 0 | AN56: 0 | AO56: 0 | AP56: 0 | AQ56: 0 | AR56: 0 | AS56: 0 | AT56: 0 | AU56: 0 | AV56: 0 | AW56: 0 | AX56: 2.5 | AY56: 0 | AZ56: 0 | BA56: 0 | BB56: 0 | BC56: 0 | BD56: 0 | BE56: 0 | BF56: 0 | BG56: 0 | BH56: 0 | BI56: 0 | BJ56: 0 | BK56: 0 | BL56: 0 | BM56: 0 | BN56: 0 | BO56: 0 | BP56: 0 | BQ56: 0 | BR56: 0 | BS56: 0 | BT56: 0 | BU56: 0 | BV56: 5
A57: PreErrorI3 set 2 | B57: 2.5 | C57: 2.5 | D57: 0 | E57: 2.5 | F57: 0 | G57: 5 | H57: 2.5 | I57: 0 | J57: 5 | K57: 0 | L57: 0 | M57: 0 | N57: 0 | O57: 0 | P57: 0 | Q57: 0 | R57: 0 | S57: 0 | T57: 0 | U57: 5 | V57: 2.5 | W57: 0 | X57: 2.5 | Y57: 0 | Z57: 0 | AA57: 5 | AB57: 0 | AC57: 0 | AD57: 2.5 | AE57: 2.5 | AF57: 0 | AG57: 0 | AH57: 0 | AI57: 5 | AJ57: 0 | AK57: 10 | AL57: 0 | AM57: 2.5 | AN57: 2.5 | AO57: 0 | AP57: 2.5 | AQ57: 0 | AR57: 0 | AS57: 2.5 | AT57: 12.5 | AU57: 2.5 | AV57: 2.5 | AW57: 0 | AX57: 0 | AY57: 2.5 | AZ57: 2.5 | BA57: 2.5 | BB57: 0 | BC57: 5 | BD57: 0 | BE57: 0 | BF57: 2.5 | BG57: 0 | BH57: 2.5 | BI57: 2.5 | BJ57: 2.5 | BK57: 7.5 | BL57: 5 | BM57: 2.5 | BN57: 0 | BO57: 0 | BP57: 5 | BQ57: 0 | BR57: 0 | BS57: 0 | BT57: 5 | BU57: 0 | BV57: 5
A58: PreErrorC4 set 1 | B58: 0 | C58: 0 | D58: 0 | E58: 0 | F58: 0 | G58: 0 | H58: 0 | I58: 0 | J58: 0 | K58: 0 | L58: 0 | M58: 0 | N58: 0 | O58: 2.5 | P58: 0 | Q58: 0 | R58: 0 | S58: 0 | T58: 0 | U58: 0 | V58: 0 | W58: 0 | X58: 0 | Y58: 0 | Z58: 0 | AA58: 0 | AB58: 0 | AC58: 0 | AD58: 0 | AE58: 0 | AF58: 0 | AG58: 0 | AH58: 0 | AI58: 0 | AJ58: 0 | AK58: 0 | AL58: 0 | AM58: 0 | AN58: 0 | AO58: 2.5 | AP58: 0 | AQ58: 0 | AR58: 0 | AS58: 0 | AT58: 0 | AU58: 0 | AV58: 0 | AW58: 0 | AX58: 5 | AY58: 0 | AZ58: 0 | BA58: 0 | BB58: 0 | BC58: 0 | BD58: 0 | BE58: 0 | BF58: 2.5 | BG58: 0 | BH58: 2.5 | BI58: 0 | BJ58: 0 | BK58: 5 | BL58: 2.5 | BM58: 0 | BN58: 0 | BO58: 0 | BP58: 0 | BQ58: 0 | BR58: 0 | BS58: 0 | BT58: 0 | BU58: 0 | BV58: 0
A59: PreErrorI4 set 1 | B59: 2.5 | C59: 0 | D59: 5 | E59: 5 | F59: 0 | G59: 0 | H59: 2.5 | I59: 0 | J59: 2.5 | K59: 0 | L59: 0 | M59: 0 | N59: 0 | O59: 5 | P59: 0 | Q59: 7.5 | R59: 2.5 | S59: 0 | T59: 0 | U59: 2.5 | V59: 2.5 | W59: 0 | X59: 2.5 | Y59: 0 | Z59: 0 | AA59: 5 | AB59: 2.5 | AC59: 0 | AD59: 0 | AE59: 0 | AF59: 5 | AG59: 0 | AH59: 0 | AI59: 0 | AJ59: 0 | AK59: 10 | AL59: 0 | AM59: 2.5 | AN59: 2.5 | AO59: 0 | AP59: 5 | AQ59: 0 | AR59: 0 | AS59: 0 | AT59: 10 | AU59: 0 | AV59: 2.5 | AW59: 0 | AX59: 0 | AY59: 5 | AZ59: 0 | BA59: 0 | BB59: 0 | BC59: 0 | BD59: 0 | BE59: 5 | BF59: 7.5 | BG59: 0 | BH59: 0 | BI59: 0 | BJ59: 2.5 | BK59: 0 | BL59: 0 | BM59: 0 | BN59: 0 | BO59: 0 | BP59: 0 | BQ59: 0 | BR59: 0 | BS59: 0 | BT59: 5 | BU59: 0 | BV59: 0
A60: PreErrorC4 set 2 | B60: 0 | C60: 0 | D60: 0 | E60: 0 | F60: 0 | G60: 0 | H60: 0 | I60: 0 | J60: 0 | K60: 0 | L60: 0 | M60: 0 | N60: 0 | O60: 0 | P60: 0 | Q60: 0 | R60: 0 | S60: 0 | T60: 0 | U60: 0 | V60: 0 | W60: 0 | X60: 0 | Y60: 0 | Z60: 0 | AA60: 0 | AB60: 0 | AC60: 0 | AD60: 0 | AE60: 0 | AF60: 0 | AG60: 0 | AH60: 0 | AI60: 0 | AJ60: 0 | AK60: 0 | AL60: 0 | AM60: 0 | AN60: 0 | AO60: 0 | AP60: 0 | AQ60: 0 | AR60: 0 | AS60: 0 | AT60: 0 | AU60: 0 | AV60: 0 | AW60: 0 | AX60: 0 | AY60: 0 | AZ60: 0 | BA60: 0 | BB60: 0 | BC60: 0 | BD60: 0 | BE60: 0 | BF60: 0 | BG60: 0 | BH60: 0 | BI60: 0 | BJ60: 0 | BK60: 0 | BL60: 0 | BM60: 0 | BN60: 0 | BO60: 0 | BP60: 0 | BQ60: 0 | BR60: 0 | BS60: 0 | BT60: 0 | BU60: 0 | BV60: 0
A61: PreErrorI4 set 2 | B61: 2.5 | C61: 2.5 | D61: 0 | E61: 2.5 | F61: 2.5 | G61: 0 | H61: 0 | I61: 0 | J61: 0 | K61: 0 | L61: 0 | M61: 0 | N61: 0 | O61: 0 | P61: 0 | Q61: 5 | R61: 0 | S61: 2.5 | T61: 0 | U61: 0 | V61: 0 | W61: 2.5 | X61: 0 | Y61: 0 | Z61: 2.5 | AA61: 5 | AB61: 0 | AC61: 0 | AD61: 0 | AE61: 5 | AF61: 2.5 | AG61: 0 | AH61: 0 | AI61: 2.5 | AJ61: 2.5 | AK61: 10 | AL61: 0 | AM61: 2.5 | AN61: 2.5 | AO61: 0 | AP61: 5 | AQ61: 0 | AR61: 0 | AS61: 0 | AT61: 10 | AU61: 0 | AV61: 0 | AW61: 0 | AX61: 0 | AY61: 2.5 | AZ61: 0 | BA61: 0 | BB61: 0 | BC61: 0 | BD61: 0 | BE61: 0 | BF61: 0 | BG61: 2.5 | BH61: 0 | BI61: 2.5 | BJ61: 2.5 | BK61: 10 | BL61: 2.5 | BM61: 2.5 | BN61: 2.5 | BO61: 0 | BP61: 0 | BQ61: 0 | BR61: 2.5 | BS61: 0 | BT61: 2.5 | BU61: 2.5 | BV61: 0
A62: PreErrorC5 set 1 | B62: 0 | C62: 0 | D62: 0 | E62: 0 | F62: 0 | G62: 0 | H62: 0 | I62: 0 | J62: 0 | K62: 0 | L62: 2.5 | M62: 0 | N62: 0 | O62: 0 | P62: 0 | Q62: 0 | R62: 0 | S62: 0 | T62: 0 | U62: 0 | V62: 0 | W62: 0 | X62: 2.5 | Y62: 0 | Z62: 0 | AA62: 0 | AB62: 0 | AC62: 0 | AD62: 0 | AE62: 0 | AF62: 0 | AG62: 0 | AH62: 0 | AI62: 0 | AJ62: 0 | AK62: 0 | AL62: 0 | AM62: 0 | AN62: 0 | AO62: 0 | AP62: 0 | AQ62: 0 | AR62: 0 | AS62: 0 | AT62: 0 | AU62: 0 | AV62: 0 | AW62: 0 | AX62: 0 | AY62: 0 | AZ62: 0 | BA62: 0 | BB62: 0 | BC62: 0 | BD62: 0 | BE62: 0 | BF62: 2.5 | BG62: 0 | BH62: 0 | BI62: 0 | BJ62: 0 | BK62: 10 | BL62: 0 | BM62: 0 | BN62: 0 | BO62: 0 | BP62: 0 | BQ62: 0 | BR62: 0 | BS62: 0 | BT62: 0 | BU62: 0 | BV62: 2.5
A63: PreErrorI5 set 1 | B63: 5 | C63: 5 | D63: 5 | E63: 12.5 | F63: 2.5 | G63: 0 | H63: 0 | I63: 0 | J63: 0 | K63: 2.5 | L63: 2.5 | M63: 0 | N63: 0 | O63: 2.5 | P63: 0 | Q63: 2.5 | R63: 7.5 | S63: 0 | T63: 0 | U63: 0 | V63: 5 | W63: 0 | X63: 0 | Y63: 5 | Z63: 0 | AA63: 0 | AB63: 0 | AC63: 0 | AD63: 2.5 | AE63: 2.5 | AF63: 0 | AG63: 0 | AH63: 0 | AI63: 0 | AJ63: 2.5 | AK63: 2.5 | AL63: 2.5 | AM63: 2.5 | AN63: 0 | AO63: 2.5 | AP63: 5 | AQ63: 2.5 | AR63: 0 | AS63: 0 | AT63: 12.5 | AU63: 0 | AV63: 0 | AW63: 0 | AX63: 0 | AY63: 0 | AZ63: 0 | BA63: 2.5 | BB63: 0 | BC63: 0 | BD63: 0 | BE63: 7.5 | BF63: 2.5 | BG63: 5 | BH63: 0 | BI63: 0 | BJ63: 2.5 | BK63: 10 | BL63: 7.5 | BM63: 2.5 | BN63: 2.5 | BO63: 2.5 | BP63: 0 | BQ63: 0 | BR63: 0 | BS63: 0 | BT63: 5 | BU63: 2.5 | BV63: 2.5
A64: PreErrorC5 set 2 | B64: 0 | C64: 0 | D64: 0 | E64: 0 | F64: 0 | G64: 0 | H64: 0 | I64: 0 | J64: 0 | K64: 0 | L64: 0 | M64: 2.5 | N64: 0 | O64: 0 | P64: 0 | Q64: 0 | R64: 0 | S64: 0 | T64: 0 | U64: 0 | V64: 0 | W64: 0 | X64: 0 | Y64: 0 | Z64: 0 | AA64: 0 | AB64: 0 | AC64: 0 | AD64: 0 | AE64: 0 | AF64: 0 | AG64: 0 | AH64: 0 | AI64: 0 | AJ64: 0 | AK64: 0 | AL64: 0 | AM64: 0 | AN64: 0 | AO64: 0 | AP64: 0 | AQ64: 0 | AR64: 0 | AS64: 0 | AT64: 0 | AU64: 0 | AV64: 0 | AW64: 0 | AX64: 0 | AY64: 0 | AZ64: 0 | BA64: 0 | BB64: 0 | BC64: 0 | BD64: 0 | BE64: 0 | BF64: 0 | BG64: 0 | BH64: 0 | BI64: 0 | BJ64: 0 | BK64: 0 | BL64: 0 | BM64: 0 | BN64: 0 | BO64: 0 | BP64: 0 | BQ64: 0 | BR64: 0 | BS64: 0 | BT64: 0 | BU64: 0 | BV64: 0
A65: PreErrorI5 set 2 | B65: 5 | C65: 2.5 | D65: 0 | E65: 5 | F65: 0 | G65: 0 | H65: 2.5 | I65: 2.5 | J65: 0 | K65: 0 | L65: 0 | M65: 0 | N65: 0 | O65: 0 | P65: 5 | Q65: 2.5 | R65: 2.5 | S65: 0 | T65: 2.5 | U65: 0 | V65: 2.5 | W65: 0 | X65: 0 | Y65: 0 | Z65: 0 | AA65: 0 | AB65: 5 | AC65: 0 | AD65: 0 | AE65: 5 | AF65: 0 | AG65: 0 | AH65: 0 | AI65: 0 | AJ65: 0 | AK65: 2.5 | AL65: 2.5 | AM65: 2.5 | AN65: 2.5 | AO65: 0 | AP65: 7.5 | AQ65: 0 | AR65: 5 | AS65: 2.5 | AT65: 7.5 | AU65: 0 | AV65: 0 | AW65: 0 | AX65: 0 | AY65: 0 | AZ65: 0 | BA65: 7.5 | BB65: 0 | BC65: 0 | BD65: 0 | BE65: 5 | BF65: 2.5 | BG65: 0 | BH65: 2.5 | BI65: 2.5 | BJ65: 2.5 | BK65: 0 | BL65: 2.5 | BM65: 0 | BN65: 2.5 | BO65: 0 | BP65: 2.5 | BQ65: 0 | BR65: 0 | BS65: 0 | BT65: 0 | BU65: 2.5 | BV65: 0
A66: PostErrorC1 set 1 | B66: 0 | C66: 0 | D66: 0 | E66: 0 | F66: 0 | G66: 0 | H66: 0 | I66: 0 | J66: 0 | K66: 0 | L66: 0 | M66: 0 | N66: 0 | O66: 0 | P66: 0 | Q66: 0 | R66: 0 | S66: 0 | T66: 0 | U66: 0 | V66: 0 | W66: 0 | X66: 0 | Y66: 0 | Z66: 0 | AA66: 0 | AB66: 0 | AC66: 0 | AD66: 0 | AE66: 0 | AF66: 0 | AG66: 0 | AH66: 0 | AI66: 0 | AJ66: 0 | AK66: 2.5 | AL66: 0 | AM66: 0 | AN66: 0 | AO66: 0 | AP66: 0 | AQ66: 0 | AR66: 0 | AS66: 0 | AT66: 0 | AU66: 0 | AV66: 0 | AW66: 0 | AX66: 0 | AY66: 0 | AZ66: 0 | BA66: 0 | BB66: 0 | BC66: 0 | BD66: 0 | BE66: 0 | BF66: 0 | BG66: 0 | BH66: 0 | BI66: 0 | BJ66: 0 | BK66: 5 | BL66: 0 | BM66: 2.5 | BN66: 0 | BO66: 2.5 | BP66: 0 | BQ66: 0 | BR66: 0 | BS66: 0 | BT66: 0 | BU66: 0 | BV66: 0
A67: PostErrorII1 set 1 | B67: 2.5 | C67: 0 | D67: 7.5 | E67: 5 | F67: 0 | G67: 5 | H67: 0 | I67: 0 | J67: 0 | K67: 0 | L67: 0 | M67: 2.5 | N67: 0 | O67: 0 | P67: 0 | Q67: 2.5 | R67: 2.5 | S67: 2.5 | T67: 10 | U67: 2.5 | V67: 0 | W67: 0 | X67: 2.5 | Y67: 0 | Z67: 7.5 | AA67: 0 | AB67: 0 | AC67: 0 | AD67: 2.5 | AE67: 0 | AF67: 0 | AG67: 0 | AH67: 0 | AI67: 5 | AJ67: 2.5 | AK67: 10 | AL67: 5 | AM67: 0 | AN67: 0 | AO67: 2.5 | AP67: 2.5 | AQ67: 2.5 | AR67: 0 | AS67: 0 | AT67: 7.5 | AU67: 5 | AV67: 0 | AW67: 0 | AX67: 0 | AY67: 7.5 | AZ67: 0 | BA67: 5 | BB67: 0 | BC67: 0 | BD67: 5 | BE67: 0 | BF67: 7.5 | BG67: 2.5 | BH67: 0 | BI67: 5 | BJ67: 7.5 | BK67: 7.5 | BL67: 0 | BM67: 0 | BN67: 0 | BO67: 2.5 | BP67: 0 | BQ67: 0 | BR67: 0 | BS67: 5 | BT67: 0 | BU67: 0 | BV67: 0
A68: PostErrorC1 set 2 | B68: 0 | C68: 0 | D68: 0 | E68: 0 | F68: 0 | G68: 0 | H68: 0 | I68: 0 | J68: 0 | K68: 0 | L68: 0 | M68: 0 | N68: 0 | O68: 0 | P68: 0 | Q68: 0 | R68: 0 | S68: 0 | T68: 0 | U68: 0 | V68: 0 | W68: 0 | X68: 0 | Y68: 0 | Z68: 0 | AA68: 0 | AB68: 0 | AC68: 0 | AD68: 0 | AE68: 0 | AF68: 0 | AG68: 0 | AH68: 0 | AI68: 0 | AJ68: 0 | AK68: 2.5 | AL68: 0 | AM68: 0 | AN68: 0 | AO68: 0 | AP68: 0 | AQ68: 0 | AR68: 0 | AS68: 0 | AT68: 0 | AU68: 0 | AV68: 0 | AW68: 0 | AX68: 0 | AY68: 0 | AZ68: 0 | BA68: 0 | BB68: 0 | BC68: 0 | BD68: 0 | BE68: 0 | BF68: 2.5 | BG68: 2.5 | BH68: 0 | BI68: 0 | BJ68: 0 | BK68: 5 | BL68: 0 | BM68: 0 | BN68: 0 | BO68: 2.5 | BP68: 0 | BQ68: 0 | BR68: 0 | BS68: 0 | BT68: 0 | BU68: 0 | BV68: 0
A69: PostErrorII1 set 2 | B69: 0 | C69: 2.5 | D69: 2.5 | E69: 0 | F69: 2.5 | G69: 2.5 | H69: 5 | I69: 0 | J69: 10 | K69: 0 | L69: 0 | M69: 2.5 | N69: 0 | O69: 2.5 | P69: 2.5 | Q69: 5 | R69: 0 | S69: 0 | T69: 0 | U69: 0 | V69: 0 | W69: 2.5 | X69: 5 | Y69: 0 | Z69: 2.5 | AA69: 0 | AB69: 0 | AC69: 0 | AD69: 0 | AE69: 0 | AF69: 0 | AG69: 2.5 | AH69: 0 | AI69: 2.5 | AJ69: 0 | AK69: 5 | AL69: 0 | AM69: 0 | AN69: 0 | AO69: 0 | AP69: 2.5 | AQ69: 0 | AR69: 0 | AS69: 0 | AT69: 7.5 | AU69: 0 | AV69: 0 | AW69: 5 | AX69: 0 | AY69: 2.5 | AZ69: 0 | BA69: 5 | BB69: 0 | BC69: 0 | BD69: 2.5 | BE69: 2.5 | BF69: 2.5 | BG69: 0 | BH69: 0 | BI69: 2.5 | BJ69: 5 | BK69: 5 | BL69: 5 | BM69: 2.5 | BN69: 5 | BO69: 5 | BP69: 0 | BQ69: 0 | BR69: 0 | BS69: 2.5 | BT69: 2.5 | BU69: 0 | BV69: 2.5
A70: PostErrorC2 set 1 | B70: 0 | C70: 0 | D70: 0 | E70: 0 | F70: 0 | G70: 0 | H70: 0 | I70: 0 | J70: 0 | K70: 0 | L70: 0 | M70: 0 | N70: 0 | O70: 0 | P70: 0 | Q70: 0 | R70: 0 | S70: 0 | T70: 0 | U70: 0 | V70: 0 | W70: 0 | X70: 0 | Y70: 0 | Z70: 0 | AA70: 0 | AB70: 0 | AC70: 0 | AD70: 0 | AE70: 0 | AF70: 0 | AG70: 0 | AH70: 0 | AI70: 0 | AJ70: 0 | AK70: 0 | AL70: 0 | AM70: 0 | AN70: 0 | AO70: 0 | AP70: 0 | AQ70: 0 | AR70: 0 | AS70: 0 | AT70: 0 | AU70: 0 | AV70: 0 | AW70: 0 | AX70: 0 | AY70: 0 | AZ70: 0 | BA70: 0 | BB70: 0 | BC70: 0 | BD70: 0 | BE70: 0 | BF70: 2.5 | BG70: 0 | BH70: 0 | BI70: 0 | BJ70: 0 | BK70: 0 | BL70: 2.5 | BM70: 0 | BN70: 0 | BO70: 0 | BP70: 0 | BQ70: 0 | BR70: 0 | BS70: 0 | BT70: 0 | BU70: 0 | BV70: 0
A71: PostErrorI2 set 1 | B71: 2.5 | C71: 0 | D71: 2.5 | E71: 5 | F71: 5 | G71: 0 | H71: 5 | I71: 0 | J71: 2.5 | K71: 5 | L71: 5 | M71: 0 | N71: 0 | O71: 0 | P71: 0 | Q71: 0 | R71: 0 | S71: 5 | T71: 5 | U71: 0 | V71: 0 | W71: 0 | X71: 0 | Y71: 2.5 | Z71: 2.5 | AA71: 0 | AB71: 2.5 | AC71: 0 | AD71: 2.5 | AE71: 0 | AF71: 5 | AG71: 0 | AH71: 0 | AI71: 0 | AJ71: 0 | AK71: 10 | AL71: 0 | AM71: 0 | AN71: 0 | AO71: 2.5 | AP71: 2.5 | AQ71: 2.5 | AR71: 0 | AS71: 5 | AT71: 5 | AU71: 0 | AV71: 0 | AW71: 10 | AX71: 0 | AY71: 7.5 | AZ71: 0 | BA71: 5 | BB71: 0 | BC71: 0 | BD71: 0 | BE71: 2.5 | BF71: 2.5 | BG71: 7.5 | BH71: 0 | BI71: 2.5 | BJ71: 5 | BK71: 0 | BL71: 0 | BM71: 5 | BN71: 2.5 | BO71: 5 | BP71: 2.5 | BQ71: 0 | BR71: 0 | BS71: 0 | BT71: 2.5 | BU71: 0 | BV71: 2.5
A72: PostErrorC2 set 2 | B72: 0 | C72: 0 | D72: 0 | E72: 0 | F72: 0 | G72: 0 | H72: 0 | I72: 0 | J72: 0 | K72: 0 | L72: 0 | M72: 0 | N72: 0 | O72: 0 | P72: 0 | Q72: 0 | R72: 0 | S72: 0 | T72: 0 | U72: 0 | V72: 0 | W72: 0 | X72: 0 | Y72: 0 | Z72: 0 | AA72: 0 | AB72: 0 | AC72: 0 | AD72: 0 | AE72: 0 | AF72: 0 | AG72: 0 | AH72: 0 | AI72: 0 | AJ72: 0 | AK72: 2.5 | AL72: 0 | AM72: 0 | AN72: 0 | AO72: 0 | AP72: 0 | AQ72: 0 | AR72: 0 | AS72: 0 | AT72: 0 | AU72: 0 | AV72: 0 | AW72: 0 | AX72: 0 | AY72: 0 | AZ72: 0 | BA72: 0 | BB72: 0 | BC72: 0 | BD72: 0 | BE72: 0 | BF72: 0 | BG72: 2.5 | BH72: 0 | BI72: 0 | BJ72: 0 | BK72: 0 | BL72: 0 | BM72: 0 | BN72: 0 | BO72: 0 | BP72: 0 | BQ72: 0 | BR72: 0 | BS72: 0 | BT72: 0 | BU72: 0 | BV72: 0
A73: PostErrorI2 set 2 | B73: 2.5 | C73: 5 | D73: 5 | E73: 0 | F73: 2.5 | G73: 0 | H73: 0 | I73: 5 | J73: 0 | K73: 2.5 | L73: 2.5 | M73: 5 | N73: 0 | O73: 0 | P73: 5 | Q73: 5 | R73: 2.5 | S73: 5 | T73: 0 | U73: 2.5 | V73: 0 | W73: 0 | X73: 0 | Y73: 0 | Z73: 0 | AA73: 5 | AB73: 0 | AC73: 0 | AD73: 0 | AE73: 2.5 | AF73: 2.5 | AG73: 0 | AH73: 0 | AI73: 0 | AJ73: 2.5 | AK73: 7.5 | AL73: 0 | AM73: 0 | AN73: 0 | AO73: 2.5 | AP73: 7.5 | AQ73: 0 | AR73: 0 | AS73: 5 | AT73: 2.5 | AU73: 0 | AV73: 5 | AW73: 0 | AX73: 0 | AY73: 0 | AZ73: 0 | BA73: 2.5 | BB73: 0 | BC73: 0 | BD73: 0 | BE73: 0 | BF73: 0 | BG73: 10 | BH73: 0 | BI73: 2.5 | BJ73: 2.5 | BK73: 5 | BL73: 0 | BM73: 0 | BN73: 0 | BO73: 0 | BP73: 0 | BQ73: 0 | BR73: 0 | BS73: 0 | BT73: 0 | BU73: 0 | BV73: 0
A74: PostErrorC3 set 1 | B74: 0 | C74: 0 | D74: 0 | E74: 0 | F74: 0 | G74: 0 | H74: 0 | I74: 0 | J74: 0 | K74: 0 | L74: 0 | M74: 0 | N74: 0 | O74: 0 | P74: 0 | Q74: 0 | R74: 0 | S74: 0 | T74: 0 | U74: 0 | V74: 0 | W74: 0 | X74: 0 | Y74: 0 | Z74: 0 | AA74: 0 | AB74: 0 | AC74: 0 | AD74: 0 | AE74: 0 | AF74: 0 | AG74: 0 | AH74: 0 | AI74: 0 | AJ74: 0 | AK74: 0 | AL74: 0 | AM74: 0 | AN74: 0 | AO74: 0 | AP74: 0 | AQ74: 0 | AR74: 0 | AS74: 0 | AT74: 0 | AU74: 0 | AV74: 0 | AW74: 0 | AX74: 0 | AY74: 0 | AZ74: 0 | BA74: 0 | BB74: 0 | BC74: 0 | BD74: 0 | BE74: 0 | BF74: 0 | BG74: 0 | BH74: 0 | BI74: 0 | BJ74: 0 | BK74: 0 | BL74: 0 | BM74: 0 | BN74: 0 | BO74: 2.5 | BP74: 0 | BQ74: 0 | BR74: 0 | BS74: 0 | BT74: 0 | BU74: 0 | BV74: 0
A75: PostErrorI3 set 1 | B75: 2.5 | C75: 0 | D75: 0 | E75: 2.5 | F75: 5 | G75: 0 | H75: 0 | I75: 0 | J75: 0 | K75: 0 | L75: 0 | M75: 0 | N75: 0 | O75: 0 | P75: 0 | Q75: 5 | R75: 2.5 | S75: 5 | T75: 0 | U75: 0 | V75: 0 | W75: 0 | X75: 2.5 | Y75: 0 | Z75: 0 | AA75: 0 | AB75: 2.5 | AC75: 0 | AD75: 5 | AE75: 5 | AF75: 5 | AG75: 0 | AH75: 0 | AI75: 0 | AJ75: 2.5 | AK75: 7.5 | AL75: 0 | AM75: 5 | AN75: 0 | AO75: 2.5 | AP75: 5 | AQ75: 0 | AR75: 2.5 | AS75: 0 | AT75: 5 | AU75: 0 | AV75: 5 | AW75: 0 | AX75: 2.5 | AY75: 2.5 | AZ75: 0 | BA75: 0 | BB75: 0 | BC75: 0 | BD75: 0 | BE75: 0 | BF75: 5 | BG75: 7.5 | BH75: 0 | BI75: 0 | BJ75: 5 | BK75: 10 | BL75: 0 | BM75: 2.5 | BN75: 0 | BO75: 0 | BP75: 2.5 | BQ75: 0 | BR75: 0 | BS75: 0 | BT75: 0 | BU75: 2.5 | BV75: 0
A76: PostErrorC3 set 2 | B76: 0 | C76: 0 | D76: 0 | E76: 0 | F76: 0 | G76: 0 | H76: 0 | I76: 0 | J76: 0 | K76: 0 | L76: 2.5 | M76: 0 | N76: 0 | O76: 7.5 | P76: 0 | Q76: 0 | R76: 0 | S76: 0 | T76: 0 | U76: 0 | V76: 0 | W76: 0 | X76: 0 | Y76: 0 | Z76: 0 | AA76: 0 | AB76: 0 | AC76: 0 | AD76: 0 | AE76: 0 | AF76: 0 | AG76: 0 | AH76: 0 | AI76: 0 | AJ76: 0 | AK76: 2.5 | AL76: 0 | AM76: 0 | AN76: 0 | AO76: 0 | AP76: 0 | AQ76: 0 | AR76: 0 | AS76: 0 | AT76: 0 | AU76: 0 | AV76: 0 | AW76: 0 | AX76: 0 | AY76: 0 | AZ76: 0 | BA76: 0 | BB76: 0 | BC76: 0 | BD76: 0 | BE76: 0 | BF76: 0 | BG76: 0 | BH76: 0 | BI76: 0 | BJ76: 0 | BK76: 2.5 | BL76: 0 | BM76: 0 | BN76: 0 | BO76: 0 | BP76: 0 | BQ76: 0 | BR76: 0 | BS76: 0 | BT76: 0 | BU76: 0 | BV76: 0
A77: PostErrorI3 set 2 | B77: 2.5 | C77: 5 | D77: 0 | E77: 0 | F77: 0 | G77: 2.5 | H77: 0 | I77: 2.5 | J77: 0 | K77: 0 | L77: 2.5 | M77: 0 | N77: 0 | O77: 0 | P77: 2.5 | Q77: 5 | R77: 0 | S77: 5 | T77: 0 | U77: 0 | V77: 0 | W77: 0 | X77: 0 | Y77: 0 | Z77: 5 | AA77: 7.5 | AB77: 0 | AC77: 0 | AD77: 0 | AE77: 0 | AF77: 0 | AG77: 0 | AH77: 0 | AI77: 5 | AJ77: 2.5 | AK77: 2.5 | AL77: 2.5 | AM77: 0 | AN77: 0 | AO77: 0 | AP77: 7.5 | AQ77: 0 | AR77: 2.5 | AS77: 0 | AT77: 5 | AU77: 0 | AV77: 0 | AW77: 2.5 | AX77: 0 | AY77: 0 | AZ77: 0 | BA77: 2.5 | BB77: 0 | BC77: 0 | BD77: 0 | BE77: 2.5 | BF77: 0 | BG77: 7.5 | BH77: 0 | BI77: 2.5 | BJ77: 5 | BK77: 17.5 | BL77: 0 | BM77: 2.5 | BN77: 5 | BO77: 0 | BP77: 2.5 | BQ77: 0 | BR77: 0 | BS77: 0 | BT77: 0 | BU77: 0 | BV77: 2.5
A78: PostErrorC4 set 1 | B78: 0 | C78: 0 | D78: 0 | E78: 0 | F78: 0 | G78: 0 | H78: 0 | I78: 0 | J78: 0 | K78: 0 | L78: 0 | M78: 0 | N78: 2.5 | O78: 0 | P78: 0 | Q78: 0 | R78: 0 | S78: 0 | T78: 0 | U78: 0 | V78: 0 | W78: 0 | X78: 0 | Y78: 0 | Z78: 0 | AA78: 0 | AB78: 0 | AC78: 0 | AD78: 0 | AE78: 0 | AF78: 2.5 | AG78: 0 | AH78: 0 | AI78: 5 | AJ78: 0 | AK78: 2.5 | AL78: 0 | AM78: 0 | AN78: 0 | AO78: 0 | AP78: 0 | AQ78: 0 | AR78: 0 | AS78: 0 | AT78: 2.5 | AU78: 0 | AV78: 0 | AW78: 0 | AX78: 0 | AY78: 0 | AZ78: 0 | BA78: 0 | BB78: 0 | BC78: 0 | BD78: 0 | BE78: 0 | BF78: 2.5 | BG78: 0 | BH78: 0 | BI78: 0 | BJ78: 0 | BK78: 0 | BL78: 0 | BM78: 0 | BN78: 0 | BO78: 0 | BP78: 0 | BQ78: 0 | BR78: 0 | BS78: 0 | BT78: 0 | BU78: 0 | BV78: 0
A79: PostErrorI4 set 1 | B79: 0 | C79: 5 | D79: 2.5 | E79: 0 | F79: 0 | G79: 2.5 | H79: 0 | I79: 0 | J79: 0 | K79: 0 | L79: 2.5 | M79: 0 | N79: 0 | O79: 0 | P79: 2.5 | Q79: 0 | R79: 0 | S79: 5 | T79: 0 | U79: 0 | V79: 0 | W79: 2.5 | X79: 0 | Y79: 2.5 | Z79: 5 | AA79: 5 | AB79: 0 | AC79: 5 | AD79: 0 | AE79: 2.5 | AF79: 2.5 | AG79: 2.5 | AH79: 0 | AI79: 0 | AJ79: 5 | AK79: 2.5 | AL79: 2.5 | AM79: 0 | AN79: 0 | AO79: 0 | AP79: 5 | AQ79: 2.5 | AR79: 0 | AS79: 0 | AT79: 2.5 | AU79: 0 | AV79: 5 | AW79: 0 | AX79: 0 | AY79: 2.5 | AZ79: 0 | BA79: 0 | BB79: 2.5 | BC79: 2.5 | BD79: 0 | BE79: 0 | BF79: 2.5 | BG79: 0 | BH79: 0 | BI79: 0 | BJ79: 2.5 | BK79: 5 | BL79: 0 | BM79: 5 | BN79: 2.5 | BO79: 0 | BP79: 2.5 | BQ79: 0 | BR79: 0 | BS79: 0 | BT79: 2.5 | BU79: 0 | BV79: 5
A80: PostErrorC4 set 2 | B80: 0 | C80: 0 | D80: 0 | E80: 0 | F80: 0 | G80: 0 | H80: 0 | I80: 0 | J80: 0 | K80: 2.5 | L80: 0 | M80: 2.5 | N80: 0 | O80: 0 | P80: 0 | Q80: 0 | R80: 0 | S80: 0 | T80: 0 | U80: 0 | V80: 0 | W80: 0 | X80: 0 | Y80: 0 | Z80: 0 | AA80: 0 | AB80: 0 | AC80: 0 | AD80: 0 | AE80: 0 | AF80: 0 | AG80: 0 | AH80: 0 | AI80: 0 | AJ80: 0 | AK80: 2.5 | AL80: 0 | AM80: 0 | AN80: 0 | AO80: 0 | AP80: 0 | AQ80: 0 | AR80: 0 | AS80: 0 | AT80: 0 | AU80: 0 | AV80: 0 | AW80: 0 | AX80: 0 | AY80: 0 | AZ80: 0 | BA80: 0 | BB80: 0 | BC80: 0 | BD80: 0 | BE80: 0 | BF80: 0 | BG80: 0 | BH80: 0 | BI80: 0 | BJ80: 0 | BK80: 5 | BL80: 0 | BM80: 0 | BN80: 0 | BO80: 0 | BP80: 0 | BQ80: 0 | BR80: 0 | BS80: 0 | BT80: 0 | BU80: 0 | BV80: 0
A81: PostErrorI4 set 2 | B81: 0 | C81: 0 | D81: 2.5 | E81: 5 | F81: 0 | G81: 2.5 | H81: 0 | I81: 2.5 | J81: 0 | K81: 2.5 | L81: 0 | M81: 0 | N81: 0 | O81: 0 | P81: 0 | Q81: 0 | R81: 2.5 | S81: 0 | T81: 2.5 | U81: 2.5 | V81: 2.5 | W81: 0 | X81: 0 | Y81: 0 | Z81: 7.5 | AA81: 2.5 | AB81: 0 | AC81: 0 | AD81: 2.5 | AE81: 7.5 | AF81: 2.5 | AG81: 0 | AH81: 0 | AI81: 0 | AJ81: 0 | AK81: 2.5 | AL81: 0 | AM81: 5 | AN81: 0 | AO81: 0 | AP81: 2.5 | AQ81: 2.5 | AR81: 0 | AS81: 2.5 | AT81: 7.5 | AU81: 5 | AV81: 5 | AW81: 2.5 | AX81: 0 | AY81: 0 | AZ81: 0 | BA81: 5 | BB81: 0 | BC81: 0 | BD81: 0 | BE81: 5 | BF81: 2.5 | BG81: 15 | BH81: 2.5 | BI81: 0 | BJ81: 2.5 | BK81: 5 | BL81: 2.5 | BM81: 0 | BN81: 0 | BO81: 0 | BP81: 0 | BQ81: 0 | BR81: 2.5 | BS81: 2.5 | BT81: 2.5 | BU81: 2.5 | BV81: 0
A82: PostErrorC5 set 1 | B82: 0 | C82: 0 | D82: 0 | E82: 0 | F82: 0 | G82: 0 | H82: 0 | I82: 0 | J82: 0 | K82: 0 | L82: 0 | M82: 0 | N82: 0 | O82: 0 | P82: 2.5 | Q82: 0 | R82: 0 | S82: 0 | T82: 0 | U82: 0 | V82: 0 | W82: 0 | X82: 0 | Y82: 0 | Z82: 0 | AA82: 0 | AB82: 0 | AC82: 0 | AD82: 0 | AE82: 0 | AF82: 0 | AG82: 0 | AH82: 0 | AI82: 0 | AJ82: 0 | AK82: 0 | AL82: 0 | AM82: 0 | AN82: 0 | AO82: 0 | AP82: 0 | AQ82: 0 | AR82: 0 | AS82: 0 | AT82: 0 | AU82: 0 | AV82: 0 | AW82: 0 | AX82: 0 | AY82: 0 | AZ82: 0 | BA82: 0 | BB82: 0 | BC82: 0 | BD82: 0 | BE82: 0 | BF82: 2.5 | BG82: 5 | BH82: 0 | BI82: 0 | BJ82: 0 | BK82: 2.5 | BL82: 0 | BM82: 0 | BN82: 0 | BO82: 0 | BP82: 0 | BQ82: 0 | BR82: 0 | BS82: 0 | BT82: 0 | BU82: 0 | BV82: 0
A83: PostErrorI5 set 1 | B83: 0 | C83: 0 | D83: 0 | E83: 0 | F83: 0 | G83: 0 | H83: 0 | I83: 0 | J83: 0 | K83: 5 | L83: 5 | M83: 2.5 | N83: 0 | O83: 2.5 | P83: 0 | Q83: 0 | R83: 2.5 | S83: 0 | T83: 2.5 | U83: 0 | V83: 0 | W83: 0 | X83: 0 | Y83: 0 | Z83: 2.5 | AA83: 2.5 | AB83: 0 | AC83: 0 | AD83: 0 | AE83: 7.5 | AF83: 2.5 | AG83: 0 | AH83: 0 | AI83: 0 | AJ83: 0 | AK83: 5 | AL83: 2.5 | AM83: 5 | AN83: 0 | AO83: 0 | AP83: 0 | AQ83: 2.5 | AR83: 0 | AS83: 2.5 | AT83: 12.5 | AU83: 0 | AV83: 5 | AW83: 0 | AX83: 0 | AY83: 0 | AZ83: 0 | BA83: 0 | BB83: 0 | BC83: 0 | BD83: 0 | BE83: 0 | BF83: 5 | BG83: 5 | BH83: 0 | BI83: 2.5 | BJ83: 0 | BK83: 10 | BL83: 0 | BM83: 0 | BN83: 0 | BO83: 0 | BP83: 0 | BQ83: 0 | BR83: 0 | BS83: 0 | BT83: 0 | BU83: 2.5 | BV83: 0
A84: PostErrorC5 set 2 | B84: 0 | C84: 0 | D84: 0 | E84: 0 | F84: 0 | G84: 0 | H84: 0 | I84: 0 | J84: 0 | K84: 0 | L84: 0 | M84: 0 | N84: 0 | O84: 0 | P84: 0 | Q84: 0 | R84: 0 | S84: 0 | T84: 0 | U84: 0 | V84: 0 | W84: 0 | X84: 0 | Y84: 0 | Z84: 0 | AA84: 0 | AB84: 0 | AC84: 0 | AD84: 0 | AE84: 0 | AF84: 0 | AG84: 0 | AH84: 0 | AI84: 0 | AJ84: 2.5 | AK84: 2.5 | AL84: 0 | AM84: 0 | AN84: 0 | AO84: 0 | AP84: 0 | AQ84: 0 | AR84: 0 | AS84: 0 | AT84: 0 | AU84: 0 | AV84: 0 | AW84: 0 | AX84: 0 | AY84: 0 | AZ84: 0 | BA84: 0 | BB84: 0 | BC84: 0 | BD84: 0 | BE84: 0 | BF84: 2.5 | BG84: 2.5 | BH84: 0 | BI84: 0 | BJ84: 0 | BK84: 2.5 | BL84: 0 | BM84: 0 | BN84: 0 | BO84: 0 | BP84: 0 | BQ84: 0 | BR84: 0 | BS84: 0 | BT84: 0 | BU84: 0 | BV84: 0
A85: PostErrorI5 set 2 | B85: 0 | C85: 5 | D85: 0 | E85: 2.5 | F85: 2.5 | G85: 0 | H85: 2.5 | I85: 0 | J85: 5 | K85: 0 | L85: 0 | M85: 0 | N85: 2.5 | O85: 2.5 | P85: 2.5 | Q85: 0 | R85: 2.5 | S85: 2.5 | T85: 2.5 | U85: 0 | V85: 0 | W85: 2.5 | X85: 5 | Y85: 2.5 | Z85: 2.5 | AA85: 5 | AB85: 0 | AC85: 0 | AD85: 0 | AE85: 5 | AF85: 0 | AG85: 0 | AH85: 0 | AI85: 0 | AJ85: 0 | AK85: 10 | AL85: 5 | AM85: 0 | AN85: 2.5 | AO85: 0 | AP85: 5 | AQ85: 0 | AR85: 0 | AS85: 0 | AT85: 37.5 | AU85: 0 | AV85: 0 | AW85: 0 | AX85: 2.5 | AY85: 2.5 | AZ85: 0 | BA85: 0 | BB85: 0 | BC85: 2.5 | BD85: 2.5 | BE85: 0 | BF85: 0 | BG85: 10 | BH85: 2.5 | BI85: 7.5 | BJ85: 5 | BK85: 5 | BL85: 2.5 | BM85: 7.5 | BN85: 5 | BO85: 2.5 | BP85: 0 | BQ85: 0 | BR85: 0 | BS85: 0 | BT85: 0 | BU85: 0 | BV85: 0
A86: PreHRC1 set 1 | B86: 76 | C86: 98 | D86: 87 | F86: 116 | G86: 128 | H86: 73 | I86: 70 | J86: 77 | K86: 74 | L86: 84 | M86: 103 | N86: 86 | O86: 70 | P86: 74 | Q86: 96 | R86: 68 | S86: 93 | T86: 96 | U86: 124 | V86: 69 | W86: 88 | X86: 118 | Y86: 107 | Z86: 89 | AA86: 94 | AB86: 86 | AC86: 100 | AD86: 86 | AE86: 88 | AF86: 110 | AG86: 91 | AH86: 92 | AI86: 88 | AJ86: 71 | AK86: 95 | AL86: 71 | AM86: 90 | AN86: 99 | AO86: 54 | AP86: 90 | AS86: 83 | AT86: 77 | AU86: 76 | AV86: 95 | AW86: 82 | AX86: 90 | AY86: 115 | AZ86: 58 | BA86: 102 | BB86: 83 | BC86: 79 | BD86: 89 | BE86: 74 | BF86: 95 | BG86: 84 | BH86: 103 | BI86: 99 | BJ86: 75 | BK86: 82 | BL86: 69 | BM86: 75 | BN86: 92 | BO86: 72 | BQ86: 82 | BR86: 91 | BT86: 80 | BV86: 85
A87: PreHR I1 set 1 | B87: 97 | C87: 104 | D87: 88 | F87: 114 | G87: 113 | H87: 81 | I87: 73 | J87: 76 | K87: 75 | L87: 87 | M87: 103 | N87: 15 | O87: 73 | P87: 66 | Q87: 84 | R87: 68 | S87: 84 | T87: 89 | U87: 121 | V87: 70 | W87: 83 | X87: 106 | Y87: 111 | Z87: 90 | AA87: 87 | AB87: 93 | AC87: 92 | AD87: 95 | AE87: 89 | AF87: 116 | AG87: 95 | AH87: 104 | AI87: 86 | AJ87: 74 | AK87: 92 | AL87: 85 | AM87: 93 | AN87: 99 | AO87: 54 | AP87: 88 | AS87: 76 | AT87: 77 | AU87: 81 | AV87: 94 | AW87: 102 | AX87: 72 | AY87: 104 | AZ87: 58 | BA87: 102 | BB87: 84 | BC87: 78 | BD87: 83 | BE87: 90 | BF87: 93 | BG87: 90 | BH87: 109 | BI87: 90 | BJ87: 83 | BK87: 79 | BL87: 76 | BM87: 84 | BN87: 102 | BO87: 85 | BQ87: 80 | BR87: 85 | BT87: 87 | BU87: 96 | BV87: 105
A88: PreHRC1 set2 | B88: 85 | C88: 108 | D88: 85 | F88: 109 | G88: 104 | H88: 72 | I88: 70 | J88: 67 | K88: 74 | L88: 75 | M88: 111 | N88: 84 | O88: 72 | P88: 70 | Q88: 86 | R88: 64 | S88: 80 | T88: 91 | U88: 123 | V88: 66 | W88: 85 | X88: 105 | Y88: 103 | Z88: 82 | AA88: 86 | AB88: 89 | AC88: 95 | AD88: 96 | AE88: 88 | AF88: 109 | AG88: 94 | AH88: 102 | AI88: 90 | AJ88: 77 | AK88: 78 | AL88: 59 | AM88: 95 | AN88: 98 | AO88: 54 | AP88: 79 | AS88: 68 | AT88: 76 | AU88: 77 | AV88: 97 | AW88: 77 | AX88: 71 | AY88: 112 | AZ88: 64 | BA88: 96 | BB88: 83 | BC88: 73 | BD88: 88 | BE88: 84 | BF88: 93 | BG88: 91 | BH88: 72 | BI88: 77 | BJ88: 83 | BK88: 76 | BL88: 56 | BM88: 80 | BN88: 108 | BO88: 87 | BQ88: 84 | BR88: 86 | BT88: 84 | BU88: 96 | BV88: 100
A89: PreHR I1 set2 | B89: 89 | C89: 104 | D89: 85 | F89: 93 | G89: 115 | H89: 73 | I89: 70 | J89: 72 | K89: 73 | L89: 89 | M89: 112 | N89: 84 | O89: 67 | P89: 68 | Q89: 95 | R89: 73 | S89: 88 | T89: 86 | U89: 121 | V89: 74 | W89: 86 | X89: 100 | Y89: 121 | Z89: 88 | AA89: 98 | AB89: 94 | AC89: 97 | AD89: 102 | AE89: 98 | AF89: 107 | AG89: 80 | AH89: 96 | AI89: 92 | AJ89: 82 | AK89: 89 | AL89: 68 | AM89: 87 | AN89: 99 | AO89: 93 | AP89: 74 | AS89: 71 | AT89: 76 | AU89: 78 | AV89: 93 | AW89: 81 | AX89: 71 | AY89: 104 | AZ89: 57 | BA89: 104 | BB89: 81 | BC89: 72 | BD89: 95 | BE89: 80 | BF89: 92 | BG89: 95 | BH89: 99 | BI89: 98 | BJ89: 73 | BK89: 81 | BL89: 78 | BM89: 68 | BN89: 92 | BO89: 81 | BQ89: 92 | BR89: 88 | BT89: 84 | BU89: 92 | BV89: 97
A90: PreHR C2 set1 | B90: 92 | C90: 107 | D90: 87 | F90: 83 | G90: 108 | H90: 85 | I90: 70 | J90: 79 | K90: 77 | L90: 86 | M90: 113 | N90: 74 | O90: 67 | P90: 68 | Q90: 93 | R90: 84 | S90: 77 | T90: 90 | U90: 121 | V90: 70 | W90: 87 | X90: 96 | Y90: 98 | Z90: 89 | AA90: 89 | AB90: 81 | AC90: 99 | AD90: 90 | AE90: 95 | AF90: 100 | AG90: 79 | AH90: 92 | AI90: 84 | AJ90: 62 | AK90: 85 | AL90: 82 | AM90: 90 | AN90: 99 | AO90: 101 | AP90: 79 | AS90: 70 | AT90: 72 | AU90: 82 | AV90: 99 | AW90: 80 | AX90: 68 | AY90: 101 | AZ90: 75 | BA90: 98 | BB90: 85 | BC90: 80 | BD90: 81 | BE90: 74 | BF90: 91 | BG90: 85 | BH90: 86 | BI90: 98 | BJ90: 75 | BK90: 79 | BL90: 65 | BM90: 76 | BN90: 107 | BO90: 90 | BQ90: 89 | BR90: 89 | BT90: 84 | BU90: 100 | BV90: 90
A91: PreHR I2 set1 | B91: 94 | C91: 103 | D91: 81 | F91: 109 | G91: 115 | H91: 78 | I91: 70 | J91: 80 | K91: 79 | L91: 90 | M91: 117 | N91: 78 | O91: 69 | P91: 66 | Q91: 88 | R91: 73 | S91: 92 | T91: 90 | U91: 123 | V91: 69 | W91: 84 | X91: 85 | Y91: 95 | Z91: 93 | AA91: 91 | AB91: 88 | AC91: 96 | AD91: 100 | AE91: 87 | AF91: 112 | AG91: 79 | AH91: 97 | AI91: 88 | AJ91: 86 | AK91: 92 | AL91: 70 | AM91: 88 | AN91: 99 | AO91: 100 | AP91: 91 | AS91: 66 | AT91: 80 | AU91: 80 | AV91: 94 | AW91: 93 | AX91: 72 | AY91: 102 | AZ91: 76 | BA91: 92 | BB91: 87 | BC91: 80 | BD91: 88 | BE91: 76 | BF91: 93 | BG91: 80 | BH91: 88 | BI91: 87 | BJ91: 82 | BK91: 77 | BL91: 82 | BM91: 76 | BN91: 99 | BO91: 84 | BQ91: 93 | BR91: 75 | BT91: 91 | BU91: 95 | BV91: 103
A92: PreHR C2 set2 | B92: 101 | C92: 102 | D92: 85 | F92: 105 | G92: 118 | H92: 73 | I92: 74 | J92: 75 | K92: 88 | L92: 81 | M92: 111 | N92: 82 | O92: 67 | P92: 70 | Q92: 91 | R92: 66 | S92: 77 | T92: 91 | U92: 126 | V92: 67 | W92: 86 | X92: 110 | Y92: 94 | Z92: 79 | AA92: 97 | AB92: 90 | AC92: 99 | AD92: 85 | AE92: 87 | AF92: 103 | AG92: 86 | AH92: 101 | AI92: 91 | AJ92: 70 | AK92: 81 | AL92: 67 | AM92: 92 | AN92: 98 | AO92: 101 | AP92: 69 | AS92: 63 | AT92: 73 | AU92: 73 | AV92: 91 | AW92: 80 | AX92: 76 | AY92: 116 | AZ92: 77 | BA92: 111 | BB92: 84 | BC92: 73 | BD92: 83 | BE92: 78 | BF92: 89 | BG92: 87 | BH92: 83 | BI92: 91 | BJ92: 85 | BK92: 92 | BL92: 78 | BM92: 70 | BN92: 99 | BO92: 88 | BQ92: 89 | BR92: 81 | BT92: 87 | BU92: 97 | BV92: 100
A93: PreHR I2 set2 | B93: 90 | C93: 109 | D93: 83 | F93: 96 | G93: 123 | H93: 85 | I93: 75 | J93: 76 | K93: 81 | L93: 85 | M93: 110 | N93: 83 | O93: 67 | P93: 68 | Q93: 88 | R93: 74 | S93: 89 | T93: 89 | U93: 119 | V93: 77 | W93: 85 | X93: 106 | Y93: 111 | Z93: 97 | AA93: 95 | AB93: 88 | AC93: 92 | AD93: 89 | AE93: 86 | AF93: 91 | AG93: 93 | AH93: 95 | AI93: 90 | AJ93: 76 | AK93: 84 | AL93: 73 | AM93: 91 | AN93: 96 | AO93: 105 | AP93: 76 | AS93: 73 | AT93: 80 | AU93: 71 | AV93: 95 | AW93: 96 | AX93: 69 | AY93: 102 | AZ93: 67 | BA93: 94 | BB93: 88 | BC93: 77 | BD93: 88 | BE93: 72 | BF93: 91 | BG93: 85 | BH93: 89 | BI93: 87 | BJ93: 76 | BK93: 82 | BL93: 76 | BM93: 68 | BN93: 93 | BO93: 85 | BQ93: 87 | BR93: 92 | BT93: 83 | BU93: 103 | BV93: 96
A94: PreHR C3 set1 | B94: 90 | C94: 102 | D94: 87 | F94: 111 | G94: 108 | H94: 78 | I94: 72 | J94: 64 | K94: 83 | L94: 78 | M94: 112 | N94: 86 | O94: 65 | P94: 77 | Q94: 92 | R94: 74 | S94: 75 | T94: 89 | U94: 117 | V94: 63 | W94: 81 | X94: 109 | Y94: 95 | Z94: 89 | AA94: 89 | AB94: 90 | AC94: 101 | AD94: 90 | AE94: 88 | AF94: 104 | AG94: 72 | AH94: 96 | AI94: 90 | AJ94: 71 | AK94: 79 | AL94: 78 | AM94: 93 | AN94: 98 | AO94: 106 | AP94: 67 | AS94: 75 | AT94: 74 | AU94: 76 | AV94: 95 | AW94: 74 | AX94: 76 | AY94: 104 | AZ94: 76 | BA94: 103 | BB94: 80 | BC94: 86 | BD94: 88 | BE94: 79 | BF94: 87 | BG94: 85 | BH94: 80 | BI94: 78 | BJ94: 81 | BK94: 92 | BL94: 83 | BM94: 61 | BN94: 91 | BO94: 84 | BQ94: 89 | BR94: 82 | BT94: 86 | BU94: 98 | BV94: 100
A95: PreHR I3 set1 | B95: 91 | C95: 104 | D95: 84 | F95: 109 | G95: 104 | H95: 84 | I95: 69 | J95: 78 | K95: 84 | L95: 83 | M95: 130 | N95: 82 | O95: 66 | P95: 71 | Q95: 95 | R95: 74 | S95: 90 | T95: 88 | U95: 115 | V95: 71 | W95: 89 | X95: 90 | Y95: 93 | Z95: 101 | AA95: 95 | AB95: 94 | AC95: 102 | AD95: 94 | AE95: 90 | AF95: 89 | AG95: 86 | AH95: 97 | AI95: 87 | AJ95: 84 | AK95: 86 | AL95: 72 | AM95: 89 | AN95: 99 | AO95: 97 | AP95: 76 | AS95: 70 | AT95: 80 | AU95: 78 | AV95: 96 | AW95: 100 | AX95: 71 | AY95: 104 | AZ95: 71 | BA95: 101 | BB95: 95 | BC95: 75 | BD95: 91 | BE95: 79 | BF95: 90 | BG95: 87 | BH95: 88 | BI95: 88 | BJ95: 83 | BK95: 78 | BL95: 71 | BM95: 72 | BN95: 106 | BO95: 82 | BQ95: 88 | BR95: 89 | BT95: 89 | BU95: 93 | BV95: 91
A96: PreHR C3 set2 | B96: 101 | C96: 110 | D96: 89 | F96: 111 | G96: 107 | H96: 78 | I96: 69 | J96: 71 | K96: 90 | L96: 74 | M96: 118 | N96: 86 | O96: 68 | P96: 72 | Q96: 93 | R96: 82 | S96: 79 | T96: 92 | U96: 118 | V96: 63 | W96: 85 | X96: 90 | Y96: 115 | Z96: 101 | AA96: 97 | AB96: 92 | AC96: 101 | AD96: 92 | AE96: 82 | AF96: 105 | AG96: 93 | AH96: 102 | AI96: 83 | AJ96: 71 | AK96: 79 | AL96: 84 | AM96: 87 | AN96: 98 | AO96: 111 | AP96: 82 | AS96: 65 | AT96: 87 | AU96: 82 | AV96: 89 | AW96: 80 | AX96: 79 | AY96: 103 | AZ96: 78 | BA96: 103 | BB96: 86 | BC96: 75 | BD96: 88 | BE96: 80 | BF96: 95 | BG96: 82 | BH96: 82 | BI96: 93 | BJ96: 88 | BK96: 77 | BL96: 67 | BM96: 74 | BN96: 104 | BO96: 87 | BQ96: 85 | BR96: 82 | BT96: 93 | BU96: 98 | BV96: 92
A97: PreHR I3 set2 | B97: 96 | C97: 115 | D97: 84 | F97: 111 | G97: 110 | H97: 82 | I97: 74 | J97: 73 | K97: 81 | L97: 74 | M97: 112 | N97: 83 | O97: 62 | P97: 72 | Q97: 85 | R97: 77 | S97: 84 | T97: 89 | U97: 113 | V97: 74 | W97: 87 | X97: 100 | Y97: 109 | Z97: 101 | AA97: 94 | AB97: 86 | AC97: 96 | AD97: 89 | AE97: 86 | AF97: 100 | AG97: 98 | AH97: 94 | AI97: 84 | AJ97: 66 | AK97: 75 | AL97: 75 | AM97: 85 | AN97: 98 | AO97: 112 | AP97: 76 | AS97: 66 | AT97: 75 | AU97: 75 | AV97: 98 | AW97: 88 | AX97: 84 | AY97: 107 | AZ97: 70 | BA97: 99 | BB97: 87 | BC97: 81 | BD97: 87 | BE97: 76 | BF97: 84 | BG97: 78 | BH97: 86 | BI97: 97 | BJ97: 83 | BK97: 80 | BL97: 67 | BM97: 75 | BN97: 105 | BO97: 88 | BQ97: 90 | BR97: 84 | BT97: 87 | BU97: 94 | BV97: 90
A98: PreHR C4 set1 | B98: 91 | C98: 109 | D98: 83 | F98: 107 | G98: 111 | H98: 76 | I98: 76 | J98: 68 | K98: 85 | L98: 76 | M98: 111 | N98: 80 | O98: 64 | P98: 68 | Q98: 96 | R98: 74 | S98: 84 | T98: 91 | U98: 122 | V98: 64 | W98: 94 | X98: 99 | Y98: 105 | Z98: 86 | AA98: 89 | AB98: 90 | AC98: 98 | AD98: 92 | AE98: 77 | AF98: 107 | AG98: 98 | AH98: 94 | AI98: 79 | AJ98: 71 | AK98: 76 | AL98: 63 | AM98: 93 | AN98: 97 | AO98: 106 | AP98: 77 | AS98: 67 | AT98: 77 | AU98: 77 | AV98: 87 | AW98: 79 | AX98: 82 | AY98: 107 | AZ98: 72 | BA98: 98 | BB98: 79 | BC98: 78 | BD98: 95 | BE98: 75 | BF98: 93 | BG98: 84 | BH98: 80 | BI98: 91 | BJ98: 90 | BK98: 94 | BL98: 85 | BM98: 77 | BN98: 103 | BO98: 92 | BQ98: 88 | BR98: 85 | BT98: 81 | BU98: 97 | BV98: 95
A99: PreHR I4 set1 | B99: 80 | C99: 97 | D99: 82 | F99: 102 | G99: 110 | H99: 76 | I99: 77 | J99: 78 | K99: 80 | L99: 75 | M99: 111 | N99: 79 | O99: 63 | P99: 70 | Q99: 83 | R99: 72 | S99: 86 | T99: 92 | U99: 110 | V99: 66 | W99: 78 | X99: 97 | Y99: 99 | Z99: 94 | AA99: 100 | AB99: 88 | AC99: 103 | AD99: 93 | AE99: 77 | AF99: 108 | AH99: 97 | AI99: 87 | AJ99: 73 | AK99: 78 | AL99: 71 | AM99: 87 | AN99: 96 | AO99: 109 | AP99: 75 | AS99: 66 | AT99: 87 | AU99: 79 | AV99: 77 | AW99: 89 | AX99: 80 | AY99: 110 | AZ99: 75 | BA99: 97 | BB99: 86 | BC99: 72 | BD99: 87 | BE99: 75 | BF99: 85 | BG99: 82 | BH99: 76 | BI99: 93 | BJ99: 92 | BK99: 98 | BL99: 80 | BM99: 74 | BN99: 98 | BO99: 88 | BQ99: 83 | BR99: 89 | BT99: 91 | BU99: 98 | BV99: 94
A100: PreHR C4 set2 | B100: 80 | C100: 99 | D100: 84 | F100: 106 | G100: 123 | H100: 81 | I100: 77 | J100: 77 | K100: 88 | L100: 74 | M100: 113 | N100: 77 | O100: 61 | P100: 71 | Q100: 95 | R100: 77 | S100: 89 | T100: 93 | U100: 117 | V100: 70 | W100: 83 | X100: 99 | Y100: 102 | Z100: 87 | AA100: 92 | AB100: 88 | AC100: 106 | AD100: 99 | AE100: 91 | AF100: 99 | AH100: 85 | AI100: 84 | AJ100: 76 | AK100: 79 | AL100: 60 | AM100: 86 | AN100: 97 | AO100: 107 | AP100: 71 | AS100: 82 | AT100: 74 | AU100: 78 | AV100: 89 | AW100: 79 | AX100: 80 | AY100: 107 | AZ100: 74 | BA100: 101 | BB100: 90 | BC100: 79 | BD100: 95 | BE100: 79 | BF100: 90 | BG100: 91 | BH100: 75 | BI100: 87 | BJ100: 89 | BK100: 88 | BL100: 79 | BM100: 77 | BN100: 103 | BO100: 85 | BQ100: 84 | BR100: 79 | BT100: 95 | BU100: 104 | BV100: 94
A101: PreHR I4 set2 | B101: 89 | C101: 106 | D101: 84 | F101: 107 | G101: 112 | H101: 79 | I101: 77 | J101: 81 | K101: 80 | L101: 76 | M101: 99 | N101: 82 | O101: 65 | P101: 68 | Q101: 87 | R101: 79 | S101: 79 | T101: 88 | U101: 106 | V101: 72 | W101: 91 | X101: 92 | Y101: 92 | Z101: 97 | AA101: 88 | AB101: 87 | AC101: 99 | AD101: 91 | AE101: 78 | AF101: 111 | AG101: 90 | AH101: 94 | AI101: 82 | AJ101: 74 | AK101: 81 | AL101: 65 | AM101: 85 | AN101: 97 | AO101: 104 | AP101: 84 | AS101: 70 | AT101: 74 | AU101: 87 | AV101: 87 | AW101: 79 | AX101: 69 | AY101: 103 | AZ101: 73 | BA101: 102 | BB101: 87 | BC101: 80 | BD101: 86 | BE101: 75 | BF101: 86 | BG101: 80 | BH101: 73 | BI101: 86 | BJ101: 82 | BK101: 83 | BL101: 74 | BM101: 84 | BN101: 99 | BO101: 84 | BQ101: 91 | BR101: 88 | BT101: 89 | BU101: 98 | BV101: 86
A102: PreHR C5 set1 | B102: 97 | C102: 109 | D102: 83 | F102: 93 | G102: 114 | H102: 82 | I102: 77 | J102: 73 | K102: 95 | L102: 76 | M102: 100 | N102: 76 | O102: 72 | P102: 69 | Q102: 87 | R102: 83 | S102: 80 | T102: 91 | U102: 121 | V102: 65 | W102: 89 | X102: 100 | Y102: 95 | Z102: 83 | AA102: 87 | AB102: 88 | AC102: 103 | AD102: 92 | AE102: 80 | AF102: 110 | AG102: 83 | AH102: 99 | AI102: 88 | AJ102: 79 | AK102: 75 | AL102: 60 | AM102: 94 | AN102: 96 | AO102: 111 | AP102: 78 | AS102: 75 | AT102: 79 | AU102: 75 | AV102: 90 | AW102: 83 | AX102: 77 | AY102: 98 | AZ102: 80 | BA102: 104 | BB102: 88 | BC102: 77 | BD102: 95 | BE102: 80 | BF102: 95 | BG102: 85 | BH102: 75 | BI102: 80 | BJ102: 87 | BK102: 90 | BL102: 71 | BM102: 77 | BN102: 108 | BO102: 80 | BQ102: 95 | BR102: 75 | BT102: 94 | BU102: 98 | BV102: 94
A103: PreHR I5 set1 | B103: 93 | C103: 106 | D103: 83 | F103: 94 | G103: 106 | H103: 70 | I103: 66 | J103: 68 | K103: 84 | L103: 81 | M103: 111 | N103: 79 | O103: 70 | P103: 74 | Q103: 89 | R103: 77 | S103: 81 | T103: 89 | U103: 111 | V103: 67 | W103: 92 | X103: 97 | Y103: 106 | Z103: 90 | AA103: 90 | AB103: 90 | AC103: 100 | AD103: 99 | AE103: 87 | AF103: 95 | AH103: 97 | AI103: 79 | AJ103: 71 | AK103: 74 | AL103: 68 | AM103: 85 | AN103: 98 | AO103: 103 | AP103: 73 | AS103: 69 | AT103: 81 | AU103: 81 | AV103: 95 | AW103: 78 | AX103: 76 | AY103: 112 | AZ103: 70 | BA103: 100 | BB103: 82 | BC103: 70 | BD103: 82 | BE103: 77 | BF103: 87 | BG103: 86 | BH103: 71 | BI103: 87 | BJ103: 80 | BK103: 85 | BL103: 73 | BM103: 80 | BN103: 99 | BO103: 84 | BQ103: 87 | BR103: 82 | BT103: 86 | BU103: 99 | BV103: 88
A104: PreHR C5 set2 | B104: 94 | C104: 107 | D104: 91 | F104: 109 | G104: 112 | H104: 76 | I104: 65 | J104: 71 | K104: 96 | L104: 74 | M104: 107 | N104: 81 | O104: 62 | P104: 73 | Q104: 91 | R104: 82 | S104: 80 | T104: 93 | U104: 122 | V104: 70 | W104: 88 | X104: 104 | Y104: 113 | Z104: 88 | AA104: 94 | AB104: 96 | AC104: 103 | AD104: 91 | AE104: 88 | AF104: 101 | AH104: 90 | AI104: 86 | AJ104: 73 | AK104: 74 | AL104: 61 | AM104: 86 | AN104: 98 | AO104: 109 | AP104: 69 | AS104: 75 | AT104: 73 | AU104: 73 | AV104: 90 | AW104: 81 | AX104: 81 | AY104: 111 | AZ104: 82 | BA104: 104 | BB104: 77 | BC104: 72 | BD104: 88 | BE104: 81 | BF104: 84 | BG104: 84 | BH104: 71 | BI104: 79 | BJ104: 75 | BK104: 81 | BL104: 77 | BM104: 79 | BN104: 89 | BO104: 87 | BQ104: 89 | BR104: 83 | BT104: 91 | BU104: 107 | BV104: 96
A105: PreHR I5 set2 | B105: 90 | C105: 103 | D105: 83 | F105: 108 | G105: 110 | H105: 85 | I105: 64 | J105: 71 | K105: 89 | L105: 80 | M105: 109 | N105: 74 | O105: 67 | P105: 69 | Q105: 89 | R105: 79 | S105: 87 | T105: 84 | U105: 112 | V105: 71 | W105: 82 | X105: 102 | Y105: 115 | Z105: 96 | AA105: 90 | AB105: 85 | AC105: 99 | AD105: 97 | AE105: 79 | AF105: 93 | AH105: 93 | AI105: 89 | AJ105: 82 | AK105: 90 | AL105: 70 | AM105: 85 | AN105: 97 | AO105: 105 | AP105: 76 | AS105: 68 | AT105: 81 | AU105: 75 | AV105: 89 | AW105: 93 | AX105: 80 | AY105: 103 | AZ105: 78 | BA105: 106 | BB105: 82 | BC105: 84 | BD105: 89 | BE105: 75 | BF105: 76 | BG105: 88 | BH105: 94 | BI105: 90 | BJ105: 80 | BK105: 84 | BL105: 78 | BM105: 82 | BN105: 95 | BO105: 84 | BQ105: 88 | BR105: 87 | BT105: 84 | BU105: 103 | BV105: 80
A106: PostHR C1 set1 | B106: 108 | C106: 112 | D106: 92 | F106: 123 | G106: 132 | H106: 105 | I106: 64 | J106: 99 | K106: 107 | L106: 106 | M106: 114 | N106: 86 | O106: 78 | P106: 91 | Q106: 112 | R106: 91 | S106: 95 | T106: 100 | U106: 125 | V106: 102 | W106: 109 | X106: 123 | Y106: 130 | Z106: 115 | AA106: 106 | AB106: 100 | AC106: 109 | AD106: 89 | AE106: 120 | AF106: 130 | AG106: 101 | AH106: 98 | AI106: 109 | AJ106: 101 | AK106: 107 | AL106: 74 | AM106: 92 | AN106: 98 | AO106: 137 | AP106: 75 | AS106: 97 | AT106: 101 | AU106: 96 | AV106: 101 | AW106: 118 | AX106: 82 | AY106: 124 | AZ106: 79 | BA106: 119 | BB106: 75 | BC106: 114 | BD106: 108 | BE106: 100 | BF106: 108 | BG106: 85 | BH106: 107 | BI106: 97 | BJ106: 113 | BK106: 113 | BL106: 91 | BM106: 94 | BN106: 115 | BO106: 100 | BQ106: 85 | BR106: 87 | BT106: 93 | BU106: 103 | BV106: 93
A107: PostHR I1 set1 | B107: 110 | C107: 122 | D107: 94 | F107: 122 | G107: 132 | H107: 106 | I107: 70 | J107: 102 | K107: 109 | L107: 95 | M107: 113 | N107: 81 | O107: 77 | P107: 90 | Q107: 122 | R107: 89 | S107: 90 | T107: 96 | U107: 122 | V107: 96 | W107: 107 | X107: 111 | Y107: 131 | Z107: 103 | AA107: 107 | AB107: 107 | AC107: 106 | AD107: 96 | AE107: 119 | AF107: 126 | AG107: 82 | AH107: 96 | AI107: 97 | AJ107: 94 | AK107: 106 | AL107: 73 | AM107: 93 | AN107: 99 | AO107: 139 | AP107: 77 | AS107: 110 | AT107: 96 | AU107: 90 | AV107: 96 | AW107: 110 | AX107: 74 | AY107: 125 | AZ107: 82 | BA107: 117 | BB107: 98 | BC107: 111 | BD107: 107 | BE107: 99 | BF107: 108 | BG107: 94 | BH107: 100 | BI107: 95 | BJ107: 109 | BK107: 111 | BL107: 95 | BM107: 95 | BN107: 112 | BO107: 101 | BQ107: 83 | BR107: 87 | BT107: 95 | BU107: 113 | BV107: 101
A108: PostHR C1 set2 | B108: 114 | C108: 118 | D108: 90 | F108: 122 | G108: 128 | H108: 107 | I108: 73 | J108: 95 | K108: 109 | L108: 101 | M108: 120 | N108: 81 | O108: 72 | P108: 89 | Q108: 123 | R108: 87 | S108: 98 | T108: 96 | U108: 118 | V108: 97 | W108: 109 | X108: 113 | Y108: 129 | Z108: 107 | AA108: 105 | AB108: 108 | AC108: 104 | AD108: 101 | AE108: 120 | AF108: 124 | AG108: 88 | AH108: 92 | AI108: 105 | AJ108: 97 | AK108: 106 | AL108: 74 | AM108: 93 | AN108: 99 | AO108: 135 | AP108: 83 | AS108: 102 | AT108: 99 | AU108: 92 | AV108: 101 | AW108: 111 | AX108: 73 | AY108: 116 | AZ108: 74 | BA108: 113 | BB108: 91 | BC108: 110 | BD108: 14 | BE108: 99 | BF108: 109 | BG108: 87 | BH108: 101 | BI108: 105 | BJ108: 113 | BK108: 116 | BL108: 91 | BM108: 90 | BN108: 116 | BO108: 98 | BQ108: 82 | BR108: 89 | BT108: 92 | BU108: 102 | BV108: 100
A109: PostHR I1 set2 | B109: 108 | C109: 106 | D109: 92 | F109: 115 | G109: 127 | H109: 106 | I109: 77 | J109: 91 | K109: 103 | L109: 101 | M109: 120 | N109: 85 | O109: 74 | P109: 88 | Q109: 115 | R109: 86 | S109: 96 | T109: 99 | U109: 120 | V109: 97 | W109: 106 | X109: 108 | Y109: 130 | Z109: 104 | AA109: 96 | AB109: 103 | AC109: 103 | AD109: 98 | AE109: 120 | AF109: 120 | AG109: 90 | AH109: 98 | AI109: 101 | AJ109: 93 | AK109: 98 | AL109: 70 | AM109: 91 | AN109: 99 | AO109: 141 | AP109: 76 | AS109: 107 | AT109: 97 | AU109: 85 | AV109: 101 | AW109: 112 | AX109: 75 | AY109: 128 | AZ109: 73 | BA109: 110 | BB109: 89 | BC109: 114 | BD109: 107 | BE109: 98 | BF109: 107 | BG109: 86 | BH109: 91 | BI109: 101 | BJ109: 104 | BK109: 106 | BL109: 88 | BM109: 94 | BN109: 110 | BO109: 98 | BQ109: 84 | BR109: 96 | BT109: 96 | BU109: 104 | BV109: 96
A110: PostHR C2 set1 | B110: 108 | C110: 112 | D110: 92 | F110: 117 | G110: 128 | H110: 105 | I110: 73 | J110: 87 | K110: 97 | L110: 103 | M110: 114 | N110: 84 | O110: 74 | P110: 85 | Q110: 122 | R110: 93 | S110: 89 | T110: 106 | U110: 122 | V110: 90 | W110: 105 | X110: 109 | Y110: 128 | Z110: 113 | AA110: 102 | AB110: 103 | AC110: 104 | AD110: 99 | AE110: 123 | AF110: 124 | AG110: 88 | AH110: 95 | AI110: 105 | AJ110: 93 | AK110: 99 | AL110: 73 | AM110: 92 | AN110: 98 | AO110: 132 | AP110: 71 | AS110: 109 | AT110: 98 | AU110: 89 | AV110: 98 | AW110: 109 | AX110: 75 | AY110: 123 | AZ110: 74 | BA110: 114 | BB110: 88 | BC110: 109 | BD110: 104 | BE110: 91 | BF110: 102 | BG110: 85 | BH110: 97 | BI110: 98 | BJ110: 106 | BK110: 109 | BL110: 91 | BM110: 95 | BN110: 114 | BO110: 98 | BQ110: 87 | BR110: 92 | BT110: 94 | BU110: 100 | BV110: 105
A111: PostHR I2 set1 | B111: 110 | C111: 113 | D111: 92 | F111: 110 | G111: 125 | H111: 104 | I111: 74 | J111: 94 | K111: 104 | L111: 96 | M111: 120 | N111: 82 | O111: 74 | P111: 85 | Q111: 115 | R111: 90 | S111: 95 | T111: 96 | U111: 119 | V111: 100 | W111: 104 | X111: 113 | Y111: 115 | Z111: 111 | AA111: 105 | AB111: 104 | AC111: 106 | AD111: 82 | AE111: 111 | AF111: 122 | AG111: 88 | AH111: 100 | AI111: 99 | AJ111: 102 | AK111: 98 | AL111: 75 | AM111: 92 | AN111: 98 | AO111: 137 | AP111: 77 | AS111: 95 | AT111: 98 | AU111: 88 | AV111: 107 | AW111: 109 | AX111: 69 | AY111: 116 | AZ111: 81 | BA111: 112 | BB111: 95 | BC111: 109 | BD111: 103 | BE111: 88 | BF111: 105 | BG111: 89 | BH111: 99 | BI111: 108 | BJ111: 105 | BK111: 111 | BL111: 93 | BM111: 92 | BN111: 109 | BO111: 98 | BQ111: 97 | BR111: 92 | BT111: 88 | BU111: 104 | BV111: 94
A112: PostHR C2 set2 | B112: 109 | C112: 111 | D112: 92 | F112: 115 | G112: 124 | H112: 106 | I112: 71 | J112: 89 | K112: 95 | L112: 105 | M112: 115 | N112: 81 | O112: 76 | P112: 86 | Q112: 120 | R112: 93 | S112: 87 | T112: 90 | U112: 121 | V112: 95 | W112: 106 | X112: 118 | Y112: 128 | Z112: 103 | AA112: 97 | AB112: 101 | AC112: 107 | AD112: 91 | AE112: 119 | AF112: 122 | AG112: 98 | AH112: 94 | AI112: 104 | AJ112: 104 | AK112: 95 | AL112: 73 | AM112: 91 | AN112: 99 | AO112: 128 | AP112: 76 | AS112: 92 | AT112: 97 | AU112: 86 | AV112: 108 | AW112: 111 | AX112: 68 | AY112: 122 | AZ112: 80 | BA112: 113 | BB112: 96 | BC112: 107 | BD112: 108 | BE112: 89 | BF112: 109 | BG112: 96 | BH112: 95 | BI112: 111 | BJ112: 102 | BK112: 116 | BL112: 88 | BM112: 86 | BN112: 111 | BO112: 94 | BQ112: 86 | BR112: 92 | BT112: 97 | BU112: 101 | BV112: 93
A113: PostHR I2 set2 | B113: 111 | C113: 115 | D113: 87 | F113: 106 | G113: 118 | H113: 103 | I113: 71 | J113: 90 | K113: 103 | L113: 99 | M113: 111 | N113: 85 | O113: 76 | P113: 81 | Q113: 111 | R113: 87 | S113: 89 | T113: 101 | U113: 118 | V113: 96 | W113: 107 | X113: 109 | Y113: 123 | Z113: 112 | AA113: 100 | AB113: 98 | AC113: 102 | AD113: 99 | AE113: 118 | AF113: 118 | AG113: 86 | AH113: 107 | AI113: 97 | AJ113: 94 | AK113: 97 | AL113: 77 | AM113: 94 | AN113: 98 | AO113: 124 | AP113: 72 | AS113: 90 | AT113: 96 | AU113: 83 | AV113: 100 | AW113: 114 | AX113: 75 | AY113: 127 | AZ113: 80 | BA113: 104 | BB113: 97 | BC113: 102 | BD113: 104 | BE113: 89 | BF113: 104 | BG113: 82 | BH113: 91 | BI113: 101 | BJ113: 104 | BK113: 106 | BL113: 91 | BM113: 90 | BN113: 116 | BO113: 98 | BQ113: 90 | BR113: 85 | BT113: 98 | BU113: 103 | BV113: 95
A114: PostHR C3 set1 | B114: 112 | C114: 113 | D114: 86 | F114: 108 | G114: 119 | H114: 103 | I114: 72 | J114: 90 | K114: 95 | L114: 103 | M114: 122 | N114: 79 | O114: 68 | P114: 81 | Q114: 118 | R114: 85 | S114: 93 | T114: 101 | U114: 122 | V114: 94 | W114: 107 | X114: 108 | Y114: 121 | Z114: 106 | AA114: 104 | AB114: 99 | AC114: 105 | AD114: 100 | AE114: 110 | AF114: 116 | AH114: 94 | AI114: 97 | AJ114: 101 | AK114: 100 | AL114: 73 | AM114: 88 | AN114: 98 | AO114: 129 | AP114: 64 | AS114: 99 | AT114: 99 | AU114: 88 | AV114: 105 | AW114: 113 | AX114: 72 | AY114: 119 | AZ114: 72 | BA114: 112 | BB114: 92 | BC114: 106 | BD114: 107 | BE114: 91 | BF114: 102 | BG114: 82 | BH114: 107 | BI114: 103 | BJ114: 100 | BK114: 109 | BL114: 98 | BM114: 91 | BN114: 109 | BO114: 96 | BQ114: 88 | BR114: 83 | BT114: 89 | BU114: 104 | BV114: 96
A115: PostHR I3 set1 | B115: 107 | C115: 117 | D115: 86 | F115: 106 | G115: 109 | H115: 105 | I115: 73 | J115: 88 | K115: 106 | L115: 100 | M115: 108 | N115: 87 | O115: 71 | P115: 88 | Q115: 114 | R115: 83 | S115: 89 | T115: 99 | U115: 119 | V115: 96 | W115: 100 | X115: 107 | Y115: 111 | Z115: 101 | AA115: 100 | AB115: 99 | AC115: 98 | AD115: 95 | AE115: 111 | AF115: 112 | AH115: 97 | AI115: 98 | AJ115: 91 | AK115: 96 | AL115: 74 | AM115: 91 | AN115: 98 | AO115: 127 | AP115: 72 | AS115: 95 | AT115: 102 | AU115: 89 | AV115: 99 | AW115: 112 | AX115: 71 | AY115: 123 | AZ115: 74 | BA115: 101 | BB115: 99 | BC115: 106 | BD115: 103 | BE115: 91 | BF115: 107 | BG115: 83 | BH115: 95 | BI115: 103 | BJ115: 101 | BK115: 111 | BL115: 91 | BM115: 89 | BN115: 111 | BO115: 92 | BQ115: 89 | BR115: 93 | BT115: 94 | BU115: 102 | BV115: 96
A116: PostHR C3 set2 | B116: 112 | C116: 104 | D116: 87 | F116: 115 | G116: 114 | H116: 104 | I116: 74 | J116: 86 | K116: 100 | L116: 88 | M116: 117 | N116: 82 | O116: 64 | P116: 83 | Q116: 116 | R116: 93 | S116: 92 | T116: 96 | U116: 113 | V116: 95 | W116: 105 | X116: 106 | Y116: 118 | Z116: 96 | AA116: 98 | AB116: 99 | AC116: 106 | AD116: 92 | AE116: 102 | AF116: 117 | AH116: 93 | AI116: 95 | AJ116: 89 | AK116: 97 | AL116: 77 | AM116: 93 | AN116: 98 | AO116: 127 | AP116: 70 | AS116: 100 | AT116: 99 | AU116: 84 | AV116: 96 | AW116: 115 | AX116: 62 | AY116: 122 | AZ116: 80 | BA116: 111 | BB116: 93 | BC116: 102 | BD116: 106 | BE116: 90 | BF116: 106 | BG116: 76 | BH116: 94 | BI116: 93 | BJ116: 102 | BK116: 115 | BL116: 89 | BM116: 89 | BN116: 113 | BO116: 94 | BQ116: 92 | BR116: 82 | BT116: 93 | BU116: 109 | BV116: 94
A117: PostHR I3 set2 | B117: 102 | C117: 114 | D117: 88 | F117: 105 | G117: 106 | H117: 99 | I117: 75 | J117: 87 | K117: 103 | L117: 100 | M117: 110 | N117: 85 | O117: 75 | P117: 83 | Q117: 111 | R117: 90 | S117: 91 | T117: 98 | U117: 119 | V117: 92 | W117: 103 | X117: 114 | Y117: 124 | Z117: 103 | AA117: 97 | AB117: 100 | AC117: 97 | AD117: 84 | AE117: 115 | AF117: 103 | AH117: 90 | AI117: 91 | AJ117: 93 | AK117: 100 | AL117: 66 | AM117: 92 | AN117: 98 | AO117: 132 | AP117: 72 | AS117: 83 | AT117: 92 | AU117: 84 | AV117: 97 | AW117: 113 | AX117: 67 | AY117: 121 | AZ117: 80 | BA117: 112 | BB117: 93 | BC117: 100 | BD117: 112 | BE117: 92 | BF117: 107 | BG117: 82 | BH117: 78 | BI117: 102 | BJ117: 100 | BK117: 111 | BL117: 93 | BM117: 95 | BN117: 107 | BO117: 103 | BQ117: 97 | BR117: 93 | BT117: 97 | BU117: 99 | BV117: 96
A118: PostHR C4 set1 | B118: 107 | C118: 115 | D118: 86 | F118: 107 | G118: 104 | H118: 101 | I118: 73 | J118: 87 | K118: 93 | L118: 105 | M118: 118 | N118: 81 | O118: 71 | P118: 80 | Q118: 106 | R118: 83 | S118: 82 | T118: 97 | U118: 115 | V118: 98 | W118: 108 | X118: 107 | Y118: 128 | Z118: 98 | AA118: 104 | AB118: 94 | AC118: 103 | AD118: 82 | AE118: 108 | AF118: 103 | AG118: 90 | AH118: 97 | AI118: 91 | AJ118: 96 | AK118: 96 | AL118: 73 | AM118: 88 | AN118: 98 | AO118: 126 | AP118: 70 | AS118: 87 | AT118: 99 | AU118: 77 | AV118: 98 | AW118: 102 | AX118: 67 | AY118: 127 | AZ118: 77 | BA118: 107 | BB118: 88 | BC118: 99 | BD118: 105 | BE118: 82 | BF118: 102 | BG118: 78 | BH118: 105 | BI118: 103 | BJ118: 97 | BK118: 112 | BL118: 96 | BM118: 91 | BN118: 109 | BO118: 99 | BQ118: 92 | BR118: 87 | BT118: 90 | BU118: 106 | BV118: 88
A119: PostHR I4 set1 | B119: 103 | C119: 104 | D119: 87 | F119: 95 | G119: 106 | H119: 101 | I119: 73 | J119: 84 | K119: 103 | L119: 96 | M119: 114 | N119: 80 | O119: 75 | P119: 82 | Q119: 113 | R119: 79 | S119: 92 | T119: 101 | U119: 120 | V119: 87 | W119: 100 | X119: 113 | Y119: 124 | Z119: 100 | AA119: 102 | AB119: 100 | AC119: 102 | AD119: 92 | AE119: 111 | AF119: 118 | AH119: 85 | AI119: 97 | AJ119: 83 | AK119: 100 | AL119: 64 | AM119: 91 | AN119: 98 | AO119: 130 | AP119: 72 | AS119: 91 | AT119: 100 | AU119: 89 | AV119: 100 | AW119: 110 | AX119: 64 | AY119: 123 | AZ119: 84 | BA119: 108 | BB119: 85 | BC119: 106 | BD119: 106 | BE119: 92 | BF119: 106 | BG119: 89 | BH119: 94 | BI119: 83 | BJ119: 98 | BK119: 114 | BL119: 94 | BM119: 85 | BN119: 110 | BO119: 96 | BQ119: 92 | BR119: 83 | BT119: 92 | BU119: 103 | BV119: 94
A120: PostHR C4 set2 | B120: 115 | C120: 103 | D120: 82 | F120: 109 | G120: 102 | H120: 100 | I120: 73 | J120: 91 | K120: 99 | L120: 101 | M120: 109 | N120: 80 | O120: 74 | P120: 80 | Q120: 110 | R120: 93 | S120: 85 | T120: 100 | U120: 119 | V120: 92 | W120: 105 | X120: 111 | Y120: 125 | Z120: 92 | AA120: 100 | AB120: 100 | AC120: 106 | AD120: 98 | AE120: 109 | AF120: 121 | AH120: 93 | AI120: 96 | AJ120: 94 | AK120: 94 | AL120: 75 | AM120: 95 | AN120: 97 | AO120: 124 | AP120: 76 | AS120: 98 | AT120: 94 | AU120: 86 | AV120: 103 | AW120: 111 | AX120: 75 | AY120: 117 | AZ120: 83 | BA120: 110 | BB120: 89 | BC120: 103 | BD120: 112 | BE120: 83 | BF120: 105 | BG120: 84 | BH120: 90 | BI120: 99 | BJ120: 95 | BK120: 117 | BL120: 92 | BM120: 92 | BN120: 113 | BO120: 108 | BQ120: 87 | BR120: 89 | BT120: 95 | BU120: 102 | BV120: 92
A121: PostHR I4 set2 | B121: 110 | C121: 114 | D121: 81 | F121: 106 | G121: 109 | H121: 109 | I121: 69 | J121: 85 | K121: 96 | L121: 97 | M121: 110 | N121: 78 | O121: 74 | P121: 82 | Q121: 110 | R121: 81 | S121: 89 | T121: 100 | U121: 113 | V121: 92 | W121: 102 | X121: 109 | Y121: 124 | Z121: 99 | AA121: 100 | AB121: 101 | AC121: 104 | AD121: 91 | AE121: 109 | AF121: 111 | AH121: 93 | AI121: 96 | AJ121: 88 | AK121: 98 | AL121: 79 | AM121: 90 | AN121: 98 | AO121: 135 | AP121: 81 | AS121: 97 | AT121: 96 | AU121: 83 | AV121: 98 | AW121: 112 | AX121: 71 | AY121: 120 | AZ121: 84 | BA121: 113 | BB121: 97 | BC121: 101 | BD121: 104 | BE121: 86 | BF121: 99 | BG121: 83 | BH121: 95 | BI121: 101 | BJ121: 100 | BK121: 102 | BL121: 92 | BM121: 94 | BN121: 109 | BO121: 101 | BQ121: 88 | BR121: 86 | BT121: 94 | BU121: 104 | BV121: 93
A122: PostHR C5 set1 | B122: 108 | C122: 108 | D122: 85 | F122: 104 | G122: 108 | H122: 110 | I122: 65 | J122: 87 | K122: 98 | L122: 98 | M122: 111 | N122: 78 | O122: 73 | P122: 82 | Q122: 105 | R122: 90 | S122: 88 | T122: 85 | U122: 124 | V122: 83 | W122: 99 | X122: 107 | Y122: 121 | Z122: 102 | AA122: 97 | AB122: 97 | AC122: 105 | AD122: 91 | AE122: 106 | AF122: 120 | AG122: 82 | AH122: 93 | AI122: 88 | AJ122: 89 | AK122: 97 | AL122: 81 | AM122: 92 | AN122: 98 | AO122: 120 | AP122: 71 | AS122: 97 | AT122: 100 | AU122: 85 | AV122: 102 | AW122: 107 | AX122: 74 | AY122: 124 | AZ122: 85 | BA122: 105 | BB122: 89 | BC122: 96 | BD122: 107 | BE122: 90 | BF122: 105 | BG122: 86 | BH122: 95 | BI122: 82 | BJ122: 104 | BK122: 112 | BL122: 91 | BM122: 82 | BN122: 108 | BO122: 91 | BQ122: 95 | BR122: 97 | BT122: 90 | BU122: 106 | BV122: 86
A123: PostHR I5 set1 | B123: 103 | C123: 111 | D123: 81 | F123: 102 | G123: 102 | H123: 105 | I123: 67 | J123: 85 | K123: 102 | L123: 93 | M123: 112 | N123: 79 | O123: 73 | P123: 84 | Q123: 109 | R123: 82 | S123: 94 | T123: 100 | U123: 112 | V123: 96 | W123: 94 | X123: 106 | Y123: 111 | Z123: 95 | AA123: 96 | AB123: 88 | AC123: 101 | AD123: 98 | AE123: 105 | AF123: 118 | AH123: 98 | AI123: 89 | AJ123: 90 | AK123: 93 | AL123: 82 | AM123: 92 | AN123: 98 | AO123: 125 | AP123: 82 | AS123: 89 | AT123: 95 | AU123: 85 | AV123: 102 | AW123: 116 | AX123: 58 | AY123: 121 | AZ123: 74 | BA123: 113 | BB123: 93 | BC123: 94 | BD123: 106 | BE123: 86 | BF123: 93 | BG123: 91 | BH123: 63 | BI123: 88 | BJ123: 96 | BK123: 104 | BL123: 87 | BM123: 87 | BN123: 102 | BO123: 96 | BQ123: 89 | BR123: 85 | BT123: 88 | BU123: 95 | BV123: 94
A124: PostHR C5 set2 | B124: 106 | C124: 109 | D124: 87 | F124: 105 | G124: 94 | H124: 101 | I124: 68 | J124: 84 | K124: 97 | L124: 83 | M124: 111 | N124: 85 | O124: 71 | P124: 83 | Q124: 110 | R124: 84 | S124: 88 | T124: 95 | U124: 110 | V124: 96 | W124: 106 | X124: 110 | Y124: 121 | Z124: 92 | AA124: 97 | AB124: 97 | AC124: 102 | AD124: 100 | AE124: 113 | AF124: 99 | AG124: 85 | AH124: 95 | AI124: 92 | AJ124: 93 | AK124: 89 | AL124: 80 | AM124: 90 | AN124: 97 | AO124: 127 | AP124: 67 | AS124: 86 | AT124: 96 | AU124: 86 | AV124: 97 | AW124: 111 | AX124: 71 | AY124: 127 | AZ124: 81 | BA124: 105 | BB124: 89 | BC124: 93 | BD124: 104 | BE124: 90 | BF124: 108 | BG124: 84 | BH124: 97 | BI124: 87 | BJ124: 97 | BK124: 105 | BL124: 88 | BM124: 87 | BN124: 107 | BO124: 93 | BQ124: 95 | BR124: 86 | BT124: 94 | BV124: 91
A125: PostHR I5 set2 | B125: 100 | C125: 111 | D125: 84 | F125: 110 | G125: 104 | H125: 99 | I125: 68 | J125: 82 | K125: 108 | L125: 91 | M125: 109 | N125: 75 | O125: 68 | P125: 81 | Q125: 114 | R125: 81 | S125: 93 | T125: 97 | U125: 110 | V125: 91 | W125: 103 | X125: 98 | Y125: 122 | Z125: 104 | AA125: 93 | AB125: 94 | AC125: 99 | AD125: 99 | AE125: 106 | AF125: 114 | AH125: 89 | AI125: 92 | AJ125: 78 | AK125: 92 | AL125: 74 | AM125: 94 | AN125: 98 | AO125: 135 | AP125: 77 | AS125: 104 | AT125: 95 | AU125: 75 | AV125: 97 | AW125: 113 | AX125: 66 | AY125: 124 | AZ125: 87 | BA125: 113 | BB125: 87 | BC125: 92 | BD125: 106 | BE125: 85 | BF125: 103 | BG125: 80 | BH125: 89 | BI125: 85 | BJ125: 97 | BK125: 103 | BL125: 86 | BM125: 92 | BN125: 100 | BO125: 95 | BQ125: 85 | BR125: 94 | BT125: 90 | BV125: 97
A126: weight (lb) | B126: 157 | C126: 130 | D126: 140 | E126: 125 | F126: 107 | G126: 120 | H126: 140 | I126: 160 | J126: 125 | K126: 185 | L126: 170 | M126: 93 | N126: 215 | O126: 165 | P126: 250 | Q126: 175 | R126: 162 | S126: 126 | T126: 133 | U126: 143.3 | V126: 185 | W126: 110 | X126: 136 | Y126: 95 | Z126: 128 | AA126: 115 | AB126: 110 | AC126: 217 | AD126: 140 | AE126: 115 | AF126: 180 | AG126: 140 | AH126: 115 | AI126: 120 | AJ126: 140 | AK126: 121 | AL126: 165 | AM126: 160 | AN126: 230 | AO126: 160 | AP126: 198 | AQ126: 130 | AR126: 127 | AS126: 114 | AT126: 160 | AU126: 165 | AV126: 149 | AW126: 134 | AX126: 214 | AY126: 191 | AZ126: 171 | BA126: 113 | BB126: 138 | BC126: 126 | BD126: 140 | BE126: 120 | BF126: 158 | BG126: 126 | BH126: 120 | BI126: 140 | BJ126: 122 | BK126: 165 | BL126: 149 | BM126: 105 | BN126: 132 | BO126: 170 | BP126: 126 | BQ126: 140 | BR126: 158 | BS126: 105 | BT126: 155 | BU126: 150 | BV126: 135
A127: Height (in) | B127: 69 | C127: 66 | D127: 66 | E127: 64 | F127: 62 | G127: 65 | H127: 70 | I127: 70 | J127: 65 | K127: 70 | L127: 69 | M127: 62 | N127: 70 | O127: 64 | P127: 73 | Q127: 62 | R127: 71 | S127: 63 | T127: 66 | U127: 64 | V127: 72 | W127: 60 | X127: 63 | Y127: 60 | Z127: 64 | AA127: 65 | AB127: 63 | AC127: 71 | AD127: 62 | AE127: 62 | AF127: 69 | AG127: 67 | AH127: 66 | AI127: 62 | AJ127: 65 | AK127: 63 | AL127: 77 | AM127: 60 | AN127: 66 | AO127: 62 | AP127: 71 | AQ127: 63 | AR127: 61 | AS127: 66 | AT127: 67 | AU127: 70 | AV127: 73 | AW127: 63 | AX127: 72 | AY127: 64 | AZ127: 70 | BA127: 108 | BB127: 65 | BC127: 68 | BD127: 63 | BE127: 64 | BF127: 66 | BG127: 64.5 | BH127: 66 | BI127: 63 | BJ127: 63 | BK127: 71 | BL127: 72 | BM127: 62 | BN127: 63 | BO127: 66 | BP127: 64 | BQ127: 62 | BR127: 67 | BS127: 60 | BT127: 62 | BU127: 67 | BV127: 61
A128: Age | B128: 28 | C128: 19 | D128: 34 | E128: 22 | F128: 24 | G128: 19 | H128: 23 | I128: 25 | J128: 19 | K128: 22 | L128: 24 | M128: 20 | N128: 24 | O128: 33 | P128: 31 | Q128: 26 | R128: 29 | S128: 28 | T128: 49 | U128: 27 | V128: 30 | W128: 24 | X128: 20 | Y128: 20 | Z128: 20 | AA128: 19 | AB128: 20 | AC128: 19 | AD128: 22 | AE128: 20 | AF128: 17 | AG128: 22 | AH128: 22 | AI128: 19 | AJ128: 21 | AK128: 23 | AL128: 23 | AM128: 23 | AN128: 21 | AO128: 21 | AP128: 26 | AQ128: 20 | AR128: 21 | AS128: 18 | AT128: 24 | AU128: 22 | AV128: 25 | AW128: 20 | AX128: 22 | AY128: 31 | AZ128: 21 | BA128: 22 | BB128: 23 | BC128: 21 | BD128: 16 | BE128: 30 | BF128: 24 | BG128: 21 | BH128: 16 | BI128: 16 | BJ128: 17 | BK128: 17 | BL128: 17 | BM128: 16 | BN128: 24 | BO128: 34 | BP128: 26 | BQ128: 29 | BR128: 21 | BS128: 25 | BT128: 22 | BU128: 21 | BV128: 24
A129: Gender | B129: M | C129: F | D129: M | E129: F | F129: F | G129: F | H129: M | I129: M | J129: F | K129: F | L129: M | M129: F | N129: M | O129: F | P129: M | Q129: F | R129: M | S129: F | T129: F | U129: F | V129: M | W129: F | X129: F | Y129: F | Z129: F | AA129: F | AB129: F | AC129: F | AD129: F | AE129: F | AF129: M | AG129: F | AH129: F | AI129: F | AJ129: F | AK129: F | AL129: M | AM129: F | AN129: F | AO129: F | AP129: M | AQ129: F | AR129: F | AS129: F | AT129: M | AU129: M | AV129: M | AW129: M | AX129: M | AY129: F | AZ129: M | BA129: M | BB129: F | BC129: F | BD129: F | BE129: F | BF129: M | BG129: F | BH129: F | BI129: F | BJ129: F | BK129: M | BL129: M | BM129: F | BN129: F | BO129: F | BP129: F | BQ129: F | BR129: F | BS129: F | BT129: F | BU129: F | BV129: F
A130: PreHeartRate (bpm) | B130: 74 | C130: 101 | D130: 95 | E130: 107 | F130: 103 | G130: 100 | H130: 78 | I130: 58 | J130: 64 | K130: 74 | L130: 94 | M130: 125 | N130: 75 | O130: 60 | P130: 62 | Q130: 95 | R130: 70 | S130: 69 | T130: 95 | U130: 101 | V130: 64 | W130: 88 | X130: 99 | Y130: 105 | Z130: 72 | AA130: 92 | AB130: 102 | AC130: 106 | AD130: 87 | AE130: 71 | AF130: 94 | AG130: 82 | AH130: 82 | AI130: 78 | AJ130: 67 | AK130: 62 | AL130: 56 | AM130: 94 | AN130: 117 | AO130: 94 | AP130: 83 | AQ130: 90 | AR130: 99 | AS130: 63 | AT130: 70 | AU130: 79 | AV130: 99 | AW130: 84 | AX130: 75 | AY130: 117 | AZ130: 54 | BA130: 107 | BB130: 80 | BC130: 74 | BD130: 84 | BE130: 74 | BF130: 89 | BG130: 97 | BH130: 82 | BI130: 84 | BJ130: 77 | BK130: 78 | BL130: 68 | BM130: 73 | BN130: 96 | BO130: 91 | BP130: 80 | BQ130: 90 | BR130: 21 | BS130: 88 | BT130: 84 | BU130: 104 | BV130: 95
A131: prePO2 (%) | B131: 98 | C131: 99 | D131: 95 | E131: 98 | F131: 98 | G131: 98 | H131: 99 | I131: 99 | J131: 97 | K131: 99 | L131: 98 | M131: 99 | N131: 97 | O131: 99 | P131: 97 | Q131: 98 | R131: 99 | S131: 99 | T131: 99 | U131: 99 | V131: 99 | W131: 99 | X131: 99 | Y131: 99 | Z131: 99 | AA131: 88 | AB131: 97 | AC131: 98 | AD131: 99 | AE131: 99 | AF131: 98 | AG131: 99 | AH131: 98 | AI131: 99 | AJ131: 99 | AK131: 99 | AL131: 98 | AM131: 98 | AN131: 99 | AO131: 99 | AP131: 98 | AS131: 99 | AT131: 118 | AU131: 97 | AV131: 98 | AW131: 96 | AX131: 97 | AY131: 97 | AZ131: 96 | BA131: 97 | BB131: 98 | BC131: 96 | BD131: 97 | BE131: 99 | BF131: 98 | BG131: 99 | BH131: 97 | BI131: 99 | BJ131: 99 | BK131: 99 | BL131: 99 | BM131: 98 | BN131: 98 | BO131: 98 | BP131: 97 | BQ131: 97 | BR131: 98 | BT131: 97 | BU131: 96 | BV131: 97
A132: PreBreathingRate (bpm) | B132: 16 | C132: 24 | D132: 20 | E132: 32 | F132: 14 | G132: 24 | H132: 26 | I132: 8 | J132: 18 | K132: 18 | L132: 14 | M132: 20 | N132: 20 | O132: 10 | P132: 26 | Q132: 26 | R132: 12 | S132: 20 | T132: 8 | U132: 24 | V132: 32 | W132: 40 | X132: 18 | Y132: 24 | Z132: 14 | AA132: 18 | AB132: 20 | AC132: 26 | AD132: 18 | AE132: 10 | AF132: 18 | AG132: 12 | AH132: 24 | AI132: 26 | AJ132: 20 | AK132: 16 | AL132: 10 | AM132: 18 | AN132: 20 | AO132: 24 | AP132: 28 | AQ132: 20 | AR132: 24 | AS132: 20 | AT132: 20 | AU132: 24 | AV132: 32 | AW132: 40 | AX132: 8 | AY132: 48 | AZ132: 24 | BA132: 20 | BB132: 36 | BC132: 16 | BD132: 12 | BE132: 25 | BF132: 16 | BG132: 26 | BH132: 16 | BI132: 40 | BJ132: 14 | BK132: 24 | BL132: 14 | BM132: 20 | BN132: 12 | BO132: 10 | BP132: 56 | BQ132: 24 | BR132: 28 | BS132: 18 | BT132: 26 | BU132: 20 | BV132: 20
A133: PostHeartRate (bpm) | B133: 127 | C133: 125 | D133: 118 | E133: 150 | F133: 154 | G133: 132 | H133: 117 | I133: 142 | J133: 124 | K133: 145 | L133: 137 | M133: 159 | N133: 125 | O133: 128 | P133: 131 | Q133: 173 | R133: 132 | S133: 115 | T133: 130 | U133: 153 | V133: 120 | W133: 164 | X133: 164 | Y133: 157 | Z133: 106 | AA133: 105 | AB133: 166 | AC133: 156 | AD133: 123 | AE133: 147 | AF133: 157 | AG133: 142 | AH133: 142 | AI133: 137 | AJ133: 156 | AK133: 122 | AL133: 119 | AM133: 120 | AN133: 128 | AO133: 150 | AP133: 69 | AQ133: 147 | AR133: 105 | AS133: 144 | AT133: 150 | AU133: 130 | AV133: 150 | AW133: 125 | AX133: 100 | AY133: 148 | AZ133: 135 | BA133: 163 | BB133: 151 | BC133: 144 | BD133: 150 | BE133: 150 | BF133: 163 | BG133: 117 | BH133: 167 | BI133: 162 | BJ133: 138 | BK133: 150 | BL133: 125 | BM133: 156 | BN133: 154 | BO133: 139 | BP133: 80 | BQ133: 105 | BR133: 104 | BS133: 150 | BT133: 135 | BV133: 108
A134: postPO2 (%) | B134: 96 | C134: 98 | D134: 93 | F134: 97 | G134: 97 | H134: 96 | I134: 97 | J134: 98 | K134: 96 | L134: 98 | M134: 97 | N134: 97 | O134: 97 | P134: 96 | Q134: 97 | R134: 96 | S134: 98 | T134: 98 | U134: 99 | V134: 96 | W134: 99 | X134: 96 | Y134: 97 | Z134: 98 | AA134: 97 | AB134: 99 | AC134: 98 | AD134: 97 | AE134: 99 | AF134: 98 | AG134: 99 | AH134: 97 | AI134: 97 | AJ134: 96 | AK134: 97 | AL134: 97 | AM134: 93 | AN134: 97 | AO134: 97 | AP134: 95 | AT134: 97 | AU134: 98 | AV134: 94 | AW134: 92 | AX134: 96 | AZ134: 94 | BA134: 96 | BB134: 98 | BC134: 97 | BD134: 97 | BE134: 96 | BF134: 99 | BG134: 98 | BH134: 96 | BI134: 97 | BJ134: 97 | BK134: 96 | BL134: 97 | BM134: 99 | BN134: 98 | BO134: 98 | BP134: 98 | BQ134: 98 | BR134: 97 | BT134: 98 | BV134: 98
A135: PostBreathingRate (bpm) | B135: 26 | C135: 22 | D135: 26 | E135: 28 | F135: 26 | G135: 30 | H135: 32 | I135: 12 | J135: 24 | K135: 22 | L135: 16 | M135: 26 | N135: 22 | O135: 16 | P135: 50 | Q135: 52 | R135: 18 | S135: 22 | T135: 10 | U135: 22 | V135: 52 | W135: 50 | X135: 26 | Y135: 26 | Z135: 14 | AA135: 24 | AB135: 40 | AC135: 48 | AD135: 32 | AE135: 22 | AF135: 26 | AG135: 18 | AH135: 32 | AI135: 28 | AJ135: 38 | AK135: 24 | AL135: 8 | AM135: 24 | AN135: 28 | AO135: 28 | AP135: 36 | AS135: 12 | AT135: 28 | AU135: 32 | AV135: 28 | AW135: 44 | AX135: 40 | AY135: 60 | AZ135: 32 | BA135: 28 | BB135: 24 | BC135: 24 | BD135: 56 | BE135: 41 | BF135: 32 | BG135: 28 | BH135: 18 | BI135: 68 | BJ135: 30 | BK135: 22 | BL135: 20 | BM135: 40 | BN135: 14 | BO135: 8 | BP135: 52 | BQ135: 30 | BR135: 44 | BT135: 40 | BV135: 22
A136: calorie expenditure | B136: 150 | C136: 206 | D136: 658 | E136: 186 | F136: 184 | G136: 320 | H136: 480 | I136: 607 | J136: 363 | K136: 300 | L136: 131 | M136: 310 | N136: 290 | O136: 373 | P136: 286 | Q136: 608 | R136: 659 | S136: 128 | T136: 156 | U136: 361 | V136: 307 | W136: 325 | X136: 399 | Y136: 338 | Z136: 399 | AA136: 246 | AB136: 486 | AC136: 256 | AD136: 542 | AE136: 456 | AF136: 407 | AG136: 587 | AH136: 225 | AI136: 184 | AJ136: 414 | AK136: 505 | AL136: 691 | AM136: 194 | AN136: 168 | AO136: 193 | AP136: 162 | AQ136: 125 | AR136: 159 | AS136: 629 | AT136: 183 | AU136: 252 | AV136: 178 | AW136: 277 | AX136: 239 | AY136: 179 | AZ136: 229 | BA136: 240 | BB136: 153 | BC136: 30 | BD136: 430 | BE136: 346 | BF136: 255 | BG136: 420 | BH136: 545 | BI136: 361 | BJ136: 664 | BK136: 819 | BL136: 629 | BM136: 566 | BN136: 159 | BO136: 242 | BP136: 145 | BQ136: 115 | BR136: 95 | BS136: 196 | BT136: 444 | BV136: 379
A137: Pre-Post time interval | B137: 30 | C137: 30 | D137: 30 | E137: 30 | F137: 30 | G137: 30 | H137: 30 | I137: 30 | J137: 30 | K137: 30.25 | L137: 30 | M137: 30 | N137: 30 | O137: 30 | P137: 30 | Q137: 30 | R137: 30.25 | S137: 30 | T137: 30 | U137: 30.44 | V137: 31.45 | W137: 30 | X137: 30 | Y137: 31.12 | Z137: 30 | AA137: 30 | AB137: 31 | AC137: 30 | AD137: 31 | AE137: 30.01 | AF137: 30 | AG137: 30 | AH137: 30 | AI137: 30.09 | AJ137: 30 | AK137: 32 | AL137: 30 | AM137: 30 | AN137: 30 | AO137: 30 | AP137: 30 | AQ137: 32 | AR137: 30 | AS137: 30 | AT137: 30 | AU137: 30 | AV137: 30 | AY137: 34 | AZ137: 30 | BA137: 30 | BB137: 30 | BC137: 30 | BD137: 30 | BE137: 30 | BF137: 30 | BG137: 29 | BH137: 30 | BI137: 30 | BJ137: 30 | BK137: 30 | BL137: 30 | BM137: 30 | BN137: 30 | BO137: 30 | BP137: 30 | BQ137: 30.08 | BR137: 34 | BT137: 30 | BU137: 20 | BV137: 30
A138: BMI | B138: 23 | C138: 21 | D138: 16 | E138: 21 | F138: 20 | G138: 20 | H138: 20 | I138: 23 | J138: 21 | K138: 27 | L138: 25 | M138: 17 | N138: 29 | O138: 28 | P138: 30 | Q138: 32 | R138: 23 | S138: 22 | T138: 22 | U138: 25 | V138: 25 | W138: 22 | X138: 24 | Y138: 19 | Z138: 22 | AA138: 19 | AB138: 19.53 | AC138: 30.26 | AD138: 25.6 | AE138: 21 | AF138: 26.78 | AG138: 21.97 | AH138: 19 | AI138: 22 | AJ138: 23 | AK138: 21 | AL138: 20 | AM138: 31 | AN138: 37 | AO138: 29 | AP138: 28 | AQ138: 23 | AR138: 24 | AS138: 18 | AT138: 25 | AU138: 24 | AV138: 20 | AW138: 24 | AX138: 29 | AY138: 33 | AZ138: 25 | BA138: 22 | BB138: 23 | BC138: 19 | BD138: 25 | BE138: 28 | BF138: 26 | BG138: 21 | BH138: 19 | BI138: 25 | BJ138: 22 | BK138: 23 | BL138: 20 | BM138: 19 | BN138: 23 | BO138: 27 | BP138: 22 | BQ138: 26 | BR138: 25 | BS138: 21 | BT138: 28.3 | BU138: 31 | BV138: 26
A139: Race | B139: W | C139: A(Middle eastern) | D139: W | E139: W | F139: biracial(w+a) | G139: W | H139: W | I139: W | J139: A | K139: W | L139: W | M139: W | N139: W | O139: W | P139: Hispanic | Q139: W | R139: W | S139: hispanic-w | T139: W | U139: A(India) | V139: B | W139: south asian | X139: A | Y139: W | Z139: A | AA139: Hispanic | AB139: W | AC139: B | AD139: Hispanic | AE139: A | AF139: W | AG139: W | AH139: W | AI139: A | AJ139: W | AK139: M | AL139: W | AM139: A | AO139: W | AS139: A | AT139: A | AU139: B | AV139: W | AW139: A | AX139: ME | AY139: W | AZ139: W | BA139: W | BB139: A | BC139: W | BD139: A | BE139: A(South) | BF139: A | BG139: Middle eastern | BH139: A+W | BI139: B+W | BJ139: A | BK139: A | BL139: A | BM139: A | BN139: H | BO139: W | BP139: Hispanic | BQ139: A | BR139: B | BS139: W | BT139: W | BU139: W | BV139: W
A140: Dist travelled | F140: 7.58 | G140: 7.6 | K140: 7.78 | L140: 5.75 | M140: 6.97 | N140: 7.31 | O140: 7.11 | P140: 7.99 | Q140: 7.19 | R140: 8.25 | S140: 7.12 | T140: 6.06 | U140: 4.96 | V140: 8.27 | W140: 5.27 | X140: 4.76 | Y140: 5.08 | Z140: 5.26 | AA140: 4.89 | AB140: 5.46 | AC140: 3.2 | AD140: 5.9 | AE140: 5.85 | AF140: 6.62 | AG140: 6.46 | AH140: 5.07 | AI140: 6.66 | AJ140: 6.08 | AK140: 5.9 | AL140: 7.29 | AM140: 6.78 | AN140: 6.72 | AO140: 8 | AP140: 6.44 | AQ140: 5.89 | AR140: 7.64 | AS140: 6.32 | AT140: 8.83 | AU140: 7.96 | AV140: 6.62 | AW140: 7.31 | AX140: 6.8 | AY140: 8.53 | AZ140: 7 | BA140: 9.81 | BB140: 6.59 | BC140: 7.34 | BD140: 25 | BE140: 5.49 | BF140: 6.7 | BG140: 3.82 | BH140: 5.92 | BI140: 4.79 | BJ140: 5.99 | BK140: 7.64 | BL140: 5.68 | BM140: 5.59 | BN140: 7.44 | BO140: 9.42 | BQ140: 6.42 | BR140: 4.85 | BS140: 6.63 | BV140: 5.85
A141: ADD | B141: T | C141: T | D141: T | E141: T | F141: T | G141: T | H141: F | I141: F | J141: F | K141: F | L141: F | M141: T | N141: F | O141: T | P141: T | Q141: T | R141: T | S141: F | T141: F | U141: F | V141: F | W141: F | X141: F | Y141: F | Z141: F | AA141: F | AB141: F | AC141: F | AD141: F | AE141: F | AF141: F | AG141: F | AH141: F | AI141: F | AJ141: T | AK141: F | AL141: F | AM141: F | AN141: F | AO141: F | AP141: T | AQ141: F | AR141: F | AS141: F | AT141: T | AU141: F | AV141: F | AW141: F | AX141: F | AY141: T | AZ141: F | BA141: F | BB141: F | BC141: F | BD141: T | BE141: F | BF141: F | BG141: F | BH141: F | BI141: F | BJ141: F | BK141: F | BL141: F | BM141: F | BN141: F | BO141: F | BP141: F | BQ141: F | BR141: F | BS141: F | BT141: T | BU141: F | BV141: F
E142: on meds, 4 hr | F142: , non meds | G142: : not on meds on day of exercise; takes Adderall | M142: on meds but not today | O142: no meds, WPW wolff parkinson white | Q142: on meds not today | R142: on addorall, 4 hrs after meds | AT142: sleep deprivation ADD | BE142: on menstruation day 5
A143: Smoker | B143: F | C143: F | D143: F | E143: F | F143: F | G143: F | H143: F | I143: F | J143: F | K143: F | L143: T | M143: F | N143: F | O143: F | P143: T | Q143: F | R143: F | S143: F | T143: F | U143: F | V143: F | W143: T | X143: F | Y143: T | Z143: F | AA143: F | AB143: F | AC143: F | AD143: F | AE143: F | AF143: F | AG143: F | AH143: F | AI143: F | AJ143: F | AK143: F | AL143: F | AM143: F | AN143: F | AO143: F | AP143: F | AQ143: F | AR143: F | AS143: F | AT143: F | AU143: F | AV143: T | AW143: F | AX143: F | AY143: F | AZ143: F | BA143: F | BB143: F | BC143: F | BD143: F | BE143: F | BF143: F | BG143: F | BH143: F | BI143: F | BJ143: F | BK143: F | BL143: F | BM143: F | BN143: F | BO143: F | BP143: F | BQ143: F | BR143: F | BS143: F | BT143: F | BU143: F | BV143: F
A144: color blind | Q144: partial
A145: left handed | O145: T | Q145: T
A146: http://www.thecalculatorsite.com/health/bmicalculator.php | U146: (came walking) | Z146: (recording?) | AC146: (calorie recording?) | AG146: (came biking) | AI146: (was biking at v low intensity) | AJ146: (confused pink with purple, learning disabilities) | AL146: yogi, controlling breath | AM146: (came walking), lack of sleep
A147: http://www.bbc.com/news/health-18770328
A148: % Change HR | B148: =(B133-B130)/B130*100 -> 71.62162162 | C148: 23.76237624 | D148: 24.21052632 | E148: 40.18691589 | F148: 49.51456311 | G148: 32 | H148: 50 | I148: 144.8275862 | J148: 93.75 | K148: 95.94594595 | L148: 45.74468085 | M148: 27.2 | N148: 66.66666667 | O148: 113.3333333 | P148: 111.2903226 | Q148: 82.10526316 | R148: 88.57142857 | S148: 66.66666667 | T148: 36.84210526 | U148: 51.48514851 | V148: 87.5 | W148: 86.36363636 | X148: 65.65656566 | Y148: 49.52380952 | Z148: 47.22222222 | AA148: =(AA133-AA130)/AA130*100 -> 14.13043478 | AB148: 62.74509804 | AC148: 47.16981132 | AD148: 41.37931034 | AE148: 107.0422535 | AF148: 67.0212766 | AG148: 73.17073171 | AH148: 73.17073171 | AI148: 75.64102564 | AJ148: 132.8358209 | AK148: 96.77419355 | AL148: 112.5 | AM148: 27.65957447 | AN148: 9.401709402 | AO148: 59.57446809 | AP148: -16.86746988 | AQ148: 63.33333333 | AR148: 6.060606061 | AS148: 128.5714286 | AT148: 114.2857143 | AU148: 64.55696203 | AV148: 51.51515152 | AW148: 48.80952381 | AX148: 33.33333333 | AY148: 26.4957265 | AZ148: 150 | BA148: 52.3364486 | BB148: 88.75 | BC148: 94.59459459 | BD148: 78.57142857 | BE148: 102.7027027 | BF148: 83.14606742 | BG148: 20.6185567 | BH148: 103.6585366 | BI148: 92.85714286 | BJ148: 79.22077922 | BK148: 92.30769231 | BL148: 83.82352941 | BM148: 113.6986301 | BN148: 60.41666667 | BO148: 52.74725275 | BP148: 0 | BQ148: 0 | BR148: 395.2380952 | BS148: 70.45454545 | BT148: 60.71428571 | BU148: -100 | BV148: 13.68421053
A149: % Change BR | B149: =(B135-B132)/B132*100 -> 62.5 | C149: -8.333333333 | D149: 30 | E149: -12.5 | F149: 85.71428571 | G149: 25 | H149: 23.07692308 | I149: 50 | J149: 33.33333333 | K149: 22.22222222 | L149: 14.28571429 | M149: 30 | N149: 10 | O149: 60 | P149: 92.30769231 | Q149: 100 | R149: 50 | S149: 10 | T149: 25 | U149: -8.333333333 | V149: 62.5 | W149: 25 | X149: 44.44444444 | Y149: 8.333333333 | Z149: 0 | AA149: =(AA135-AA132)/AA132*100 -> 33.33333333 | AB149: 100 | AC149: 84.61538462 | AD149: 77.77777778 | AE149: 120 | AF149: 44.44444444 | AG149: 50 | AH149: 33.33333333 | AI149: 7.692307692 | AJ149: 90 | AK149: 50 | AL149: -20 | AM149: 33.33333333 | AN149: 40 | AO149: 16.66666667 | AP149: 28.57142857 | AQ149: -100 | AR149: -100 | AS149: -40 | AT149: 40 | AU149: 33.33333333 | AV149: -12.5 | AW149: 10 | AX149: 400 | AY149: 25 | AZ149: 33.33333333 | BA149: 40 | BB149: -33.33333333 | BC149: 50 | BD149: 366.6666667 | BE149: 64 | BF149: 100 | BG149: 7.692307692 | BH149: 12.5 | BI149: 70 | BJ149: 114.2857143 | BK149: -8.333333333 | BL149: 42.85714286 | BM149: 100 | BN149: 16.66666667 | BO149: -20 | BP149: -7.142857143 | BQ149: -7.142857143 | BR149: 57.14285714 | BS149: -100 | BT149: 53.84615385 | BU149: -100 | BV149: 10
A150: TotalPreCongError% | B150: =AVERAGE(B46,B48, B50, B52,B54, B56, B58, B60, B62, B64) -> 0.25 | C150: =AVERAGE(C46,C48, C50, C52,C54, C56, C58, C60, C62, C64) -> 0 | D150: 0 | E150: 0 | F150: 0 | G150: 0.25 | H150: 0.25 | I150: 0 | J150: 0 | K150: 0 | L150: 0.75 | M150: 0.5 | N150: 0 | O150: 0.5 | P150: 0 | Q150: 0 | R150: 0 | S150: 0 | T150: 0 | U150: 0 | V150: 0 | W150: 0 | X150: 1 | Y150: 0.25 | Z150: 0 | AA150: 0 | AB150: 0 | AC150: 0 | AD150: 0 | AE150: 0 | AF150: 0 | AG150: 0 | AH150: 0 | AI150: 0.25 | AJ150: 0 | AK150: 0.25 | AL150: 0 | AM150: 0 | AN150: 0 | AO150: 0.25 | AP150: 0 | AQ150: 0 | AR150: 0 | AS150: 0 | AT150: 0 | AU150: 0 | AV150: 0 | AW150: 0 | AX150: 1 | AY150: 0 | AZ150: 0 | BA150: 0 | BB150: 0 | BC150: 0.5 | BD150: 0 | BE150: 0 | BF150: 0.5 | BG150: 0.25 | BH150: 0.25 | BI150: 0 | BJ150: 0 | BK150: 1.5 | BL150: 0.75 | BM150: 0 | BN150: 0 | BO150: =AVERAGE(BO46,BO48, BO50, BO52,BO54, BO56, BO58, BO60, BO62, BO64) -> 0.25 | BP150: 0 | BQ150: 0.5 | BR150: 0 | BS150: 0 | BT150: 0 | BU150: 0 | BV150: 0.75
A151: TotalPostCongError% | B151: =AVERAGE(B66, B68, B70, B72, B74, B76, B78, B80, B82, B84) -> 0 | C151: =AVERAGE(C66, C68, C70, C72, C74, C76, C78, C80, C82, C84) -> 0 | D151: 0 | E151: 0 | F151: 0 | G151: 0 | H151: 0 | I151: 0 | J151: 0 | K151: 0.25 | L151: 0.25 | M151: 0.25 | N151: 0.25 | O151: 0.75 | P151: 0.25 | Q151: 0 | R151: 0 | S151: 0 | T151: 0 | U151: 0 | V151: 0 | W151: 0 | X151: 0 | Y151: 0 | Z151: 0 | AA151: 0 | AB151: 0 | AC151: 0 | AD151: 0 | AE151: 0 | AF151: 0.25 | AG151: 0 | AH151: 0 | AI151: 0.5 | AJ151: 0.25 | AK151: 1.75 | AL151: 0 | AM151: 0 | AN151: 0 | AO151: 0 | AP151: 0 | AQ151: 0 | AR151: 0 | AS151: 0 | AT151: 0.25 | AU151: 0 | AV151: 0 | AW151: 0 | AX151: 0 | AY151: 0 | AZ151: 0 | BA151: 0 | BB151: 0 | BC151: 0 | BD151: 0 | BE151: 0 | BF151: 1.25 | BG151: 1.25 | BH151: 0 | BI151: 0 | BJ151: 0 | BK151: 2.25 | BL151: 0.25 | BM151: 0.25 | BN151: 0 | BO151: =AVERAGE(BO66, BO68, BO70, BO72, BO74, BO76, BO78, BO80, BO82, BO84) -> 0.75 | BP151: 0 | BQ151: 0 | BR151: 0 | BS151: 0 | BT151: 0 | BU151: 0 | BV151: 0
A152: Total PreIncongError% | B152: =AVERAGE(B47, B49, B51, B53, B55, B57, B59, B61, B63, B65) -> 3 | C152: =AVERAGE(C47, C49, C51, C53, C55, C57, C59, C61, C63, C65) -> 3.75 | D152: 1.5 | E152: 5 | F152: 0.75 | G152: 1 | H152: 1.25 | I152: 1.5 | J152: 3 | K152: 0.5 | L152: 2.25 | M152: 1 | N152: 0.5 | O152: 0.75 | P152: 1 | Q152: 4 | R152: 2.75 | S152: 0.75 | T152: 0.75 | U152: 1.25 | V152: 1.5 | W152: 1 | X152: 1.5 | Y152: 1 | Z152: 1.5 | AA152: 2 | AB152: 1.75 | AC152: 0 | AD152: 0.75 | AE152: 3.25 | AF152: 1.25 | AG152: 0 | AH152: 0.5 | AI152: 1.25 | AJ152: 2.75 | AK152: 7.75 | AL152: 0.75 | AM152: 1.75 | AN152: 1.25 | AO152: 0.75 | AP152: 3.75 | AQ152: 1.5 | AR152: 0.5 | AS152: 0.75 | AT152: 8.75 | AU152: 2.25 | AV152: 1.75 | AW152: 1.5 | AX152: 0.5 | AY152: 3.5 | AZ152: 0.25 | BA152: 2.25 | BB152: 0 | BC152: 1.75 | BD152: 1 | BE152: 2.75 | BF152: 2 | BG152: 2.5 | BH152: 1 | BI152: 1.5 | BJ152: 2.25 | BK152: 4.25 | BL152: 2.5 | BM152: 1.5 | BN152: 2.75 | BO152: =AVERAGE(BO47, BO49, BO51, BO53, BO55, BO57, BO59, BO61, BO63, BO65) -> 1.25 | BP152: 0.75 | BQ152: 0.25 | BR152: 0.75 | BS152: 1.25 | BT152: 3 | BU152: 2.5 | BV152: 1.75
A153: Total PostIncong Error% | B153: =AVERAGE(B67, B69, B71, B73, B75, B77, B79, B81, B83, B85) -> 1.25 | C153: =AVERAGE(C67, C69, C71, C73, C75, C77, C79, C81, C83, C85) -> 2.25 | D153: 2.25 | E153: 2 | F153: 1.75 | G153: 1.5 | H153: 1.25 | I153: 1 | J153: 1.75 | K153: 1.5 | L153: 1.75 | M153: 1.25 | N153: 0.25 | O153: 0.75 | P153: 1.5 | Q153: 2.25 | R153: 1.5 | S153: 3 | T153: 2.25 | U153: 0.75 | V153: 0.25 | W153: 0.75 | X153: 1.5 | Y153: 0.75 | Z153: 3.5 | AA153: 2.75 | AB153: 0.5 | AC153: 0.5 | AD153: 1.25 | AE153: 3 | AF153: 2 | AG153: 0.5 | AH153: 0 | AI153: 1.25 | AJ153: 1.5 | AK153: 6.25 | AL153: 1.75 | AM153: 1.5 | AN153: 0.25 | AO153: 1 | AP153: 4 | AQ153: 1.25 | AR153: 0.5 | AS153: 1.5 | AT153: 9.25 | AU153: 1 | AV153: 2.5 | AW153: 2 | AX153: 0.5 | AY153: 2.5 | AZ153: 0 | BA153: 2.5 | BB153: 0.25 | BC153: 0.5 | BD153: 1 | BE153: 1.25 | BF153: 2.75 | BG153: 6.5 | BH153: 0.5 | BI153: 2.5 | BJ153: 4 | BK153: 7 | BL153: 1 | BM153: 2.5 | BN153: 2 | BO153: =AVERAGE(BO67, BO69, BO71, BO73, BO75, BO77, BO79, BO81, BO83, BO85) -> 1.5 | BP153: 1 | BQ153: 0 | BR153: 0.25 | BS153: 1 | BT153: 1 | BU153: 0.75 | BV153: 1.25
A154: Avg-PreCongr (sec) | B154: =AVERAGE(B6,B8,B10,B12,B14,B16,B18,B20,B22,B24) -> 15.1968 | C154: 21.7484 | D154: 17.3627 | E154: 14.3896 | F154: 15.4715 | G154: 18.9878 | H154: 14.7277 | I154: 10.491 | J154: 18.1249 | K154: 20.7142 | L154: 17.2708 | M154: 17.5411 | N154: 15.2739 | O154: 23.2448 | P154: 14.2026 | Q154: 15.7213 | R154: 14.385 | S154: 18.4691 | T154: 21.0574 | U154: 14.0923 | V154: 19.0996 | W154: 31.6384 | X154: 17.6451 | Y154: 26.899 | Z154: 22.7769 | AA154: =AVERAGE(AA6,AA8,AA10,AA12,AA14,AA16,AA18,AA20,AA22,AA24) -> 21.2664 | AB154: 17.422 | AC154: 25.5809 | AD154: 21.8854 | AE154: 16.4295 | AF154: 17.3067 | AG154: 17.8659 | AH154: 20.9822 | AI154: 18.439 | AJ154: 24.0938 | AK154: 20.9879 | AL154: 17.1953 | AM154: 16.7138 | AN154: 14.31 | AO154: 18.4282 | AP154: 27.5322 | AQ154: 14.5874 | AR154: 17.5362 | AS154: 12.0852 | AT154: 26.0883 | AU154: 19.0548 | AV154: 19.7535 | AW154: 20.3453 | AX154: 30.2464 | AY154: 17.6407 | AZ154: 16.5345 | BA154: 13.9521 | BB154: 23.4131 | BC154: 20.3714 | BD154: 17.3517 | BE154: 20.0594 | BF154: 9.4273 | BG154: 13.9082 | BH154: 16.2625 | BI154: 30.656 | BJ154: 16.9465 | BK154: 19.8515 | BL154: 15.004 | BM154: 17.9695 | BN154: 25.5767 | BO154: 24.2344 | BP154: 14.4728 | BQ154: 14.4728 | BR154: 20.0582 | BS154: 21.6129 | BT154: 19.8936 | BU154: 18.409 | BV154: 12.9351
A155: Avg-PreIncongr (sec) | B155: =AVERAGE(B7,B9,B11,B13,B15,B17,B19,B21,B23,B25) -> 27.094 | C155: 41.6739 | D155: 31.8195 | E155: 42.8138 | F155: 23.0114 | G155: 38.8862 | H155: 25.6542 | I155: 22.9029 | J155: 33.825 | K155: 30.5787 | L155: 40.2068 | M155: 42.0356 | N155: 27.4713 | O155: 43.8584 | P155: 31.5943 | Q155: 36.447 | R155: 43.4623 | S155: 33.0033 | T155: 42.6763 | U155: 39.6012 | V155: 54.1796 | W155: 34.4891 | X155: 32.5833 | Y155: 29.9677 | Z155: 27.9226 | AA155: =AVERAGE(AA7,AA9,AA11,AA13,AA15,AA17,AA19,AA21,AA23,AA25) -> 34.4284 | AB155: 37.4748 | AC155: 33.5095 | AD155: 34.351 | AE155: 32.2712 | AF155: 31.377 | AG155: 24.6325 | AH155: 35.2911 | AI155: 35.5715 | AJ155: 40.2296 | AK155: 32.6344 | AL155: 28.614 | AM155: 27.5474 | AN155: 28.856 | AO155: 37.1275 | AP155: 36.259 | AQ155: 26.7037 | AR155: 24.1881 | AS155: 29.9612 | AT155: 96.289 | AU155: 33.2124 | AV155: 41.5224 | AW155: 30.8212 | AX155: 42.7366 | AY155: 34.1401 | AZ155: 44.1524 | BA155: 26.9013 | BB155: 34.1639 | BC155: 33.0565 | BD155: 38.1071 | BE155: 43.3991 | BF155: 28.4558 | BG155: 30.3097 | BH155: 28.9125 | BI155: 37.1734 | BJ155: 26.144 | BK155: 47.2778 | BL155: 29.7207 | BM155: 26.5177 | BN155: 38.4526 | BO155: 36.4273 | BP155: 35.939 | BQ155: 35.939 | BR155: 53.4725 | BS155: 33.1122 | BT155: 50.0125 | BU155: 31.8901 | BV155: 26.0448
A156: Avg-PostCongr (sec) | B156: =AVERAGE(B26,B28,B30,B32,B34,B36,B38,B40,B42,B44) -> 13.8892 | C156: 20.1021 | D156: 15.538 | E156: 11.5977 | F156: 12.8924 | G156: 19.7904 | H156: 17.0153 | I156: 10.306 | J156: 17.4249 | K156: 17.2925 | L156: 17.2564 | M156: 17.0261 | N156: 14.2649 | O156: 21.3061 | P156: 13.2522 | Q156: 13.4421 | R156: 13.3243 | S156: 16.4041 | T156: 17.8474 | U156: 13.2926 | V156: 18.0637 | W156: 22.5047 | X156: 16.454 | Y156: 23.2926 | Z156: 14.0828 | AA156: =AVERAGE(AA26,AA28,AA30,AA32,AA34,AA36,AA38,AA40,AA42,AA44) -> 19.2152 | AB156: 15.8644 | AC156: 21.9742 | AD156: 17.0549 | AE156: 14.8702 | AF156: 14.9233 | AG156: 14.0797 | AH156: 16.3284 | AI156: 17.2706 | AJ156: 21.4359 | AK156: 18.4185 | AL156: 16.1707 | AM156: 15.1767 | AN156: 12.1462 | AO156: 17.024 | AP156: 23.702 | AQ156: 13.13 | AR156: 16.0148 | AS156: 11.377 | AT156: 16.1833 | AU156: 17.1878 | AV156: 18.2167 | AW156: 17.0239 | AX156: 24.5805 | AY156: 15.2825 | AZ156: 13.8357 | BA156: 11.6616 | BB156: 17.7259 | BC156: 16.9642 | BD156: 15.0688 | BE156: 18.7797 | BF156: 9.9914 | BG156: 14.4794 | BH156: 14.3525 | BI156: 20.5682 | BJ156: 16.7113 | BK156: 15.5027 | BL156: 12.6485 | BM156: 15.7728 | BN156: 23.8864 | BO156: 22.5562 | BP156: 14.245 | BQ156: 14.245 | BR156: 17.9146 | BS156: 15.1877 | BT156: 17.9367 | BU156: 16.93988889 | BV156: 11.5053
A157: Avg-PostIncongr (sec) | B157: =AVERAGE(B27,B29,B31,B33,B35,B37,B39,B41,B43,B45) -> 25.0264 | C157: 38.0694 | D157: 30.2632 | E157: 34.4264 | F157: 20.9844 | G157: 41.162 | H157: 26.2965 | I157: 21.6207 | J157: 30.8405 | K157: 29.6482 | L157: 36.051 | M157: 42.4106 | N157: 25.4321 | O157: 44.4203 | P157: 27.6554 | Q157: 29.9382 | R157: 35.2915 | S157: 28.3061 | T157: 38.1422 | U157: 35.9282 | V157: 42.5428 | W157: 27.2745 | X157: 29.1572 | Y157: 26.0108 | Z157: 23.3045 | AA157: =AVERAGE(AA27,AA29,AA31,AA33,AA35,AA37,AA39,AA41,AA43,AA45) -> 34.9788 | AB157: 29.667 | AC157: 35.1175 | AD157: 33.6278 | AE157: 28.8887 | AF157: 30.0386 | AG157: 21.7322 | AH157: 31.42 | AI157: 31.6825 | AJ157: 36.6525 | AK157: 29.5251 | AL157: 28.5533 | AM157: 23.893 | AN157: 24.6502 | AO157: 31.8022 | AP157: 32.8019 | AQ157: 23.2657 | AR157: 22.3054 | AS157: 26.0116 | AT157: 69.9355 | AU157: 34.0584 | AV157: 39.3654 | AW157: 27.5433 | AX157: 35.4456 | AY157: 30.559 | AZ157: 41.3965 | BA157: 24.6744 | BB157: 30.8831 | BC157: 26.4711 | BD157: 34.8555 | BE157: 36.7754 | BF157: 27.811 | BG157: 30.9538 | BH157: 26.485 | BI157: 30.9162 | BJ157: 24.8409 | BK157: 39.3661 | BL157: 28.6658 | BM157: 22.6052 | BN157: 31.811 | BO157: 33.7097 | BP157: 29.7596 | BQ157: 29.7596 | BR157: 48.1633 | BS157: 31.8225 | BT157: 44.0352 | BU157: 30.425 | BV157: 25.0919
A158: %ChangeCongr (sec) | B158: =(B156-B154)/B154*100 -> -8.604443041 | C158: -7.569752258 | D158: -10.50931019 | E158: -19.40220715 | F158: -16.67000614 | G158: 4.226924657 | H158: 15.53263578 | I158: -1.763416262 | J158: -3.862090274 | K158: -16.51862008 | L158: -0.08337772425 | M158: -2.935961827 | N158: -6.60604037 | O158: -8.340359994 | P158: -6.6917325 | Q158: -14.49752883 | R158: -7.373653111 | S158: -11.18083718 | T158: -15.24404722 | U158: -5.674730172 | V158: -5.423673794 | W158: -28.86903257 | X158: -6.750315952 | Y158: -13.40718986 | Z158: -38.17069048 | AA158: =(AA156-AA154)/AA154*100 -> -9.64526201 | AB158: -8.940420158 | AC158: -14.09919119 | AD158: -22.07179215 | AE158: -9.490854865 | AF158: -13.77154512 | AG158: -21.19232728 | AH158: -22.17975236 | AI158: -6.336569228 | AJ158: -11.03146868 | AK158: -12.24229199 | AL158: -5.958604968 | AM158: -9.196592038 | AN158: -15.12089448 | AO158: -7.619843501 | AP158: -13.91171065 | AQ158: -9.99081399 | AR158: -8.67576784 | AS158: -5.860060239 | AT158: -37.96721136 | AU158: -9.798056133 | AV158: -7.779887109 | AW158: -16.32514635 | AX158: -18.73247725 | AY158: -13.36795025 | AZ158: -16.32223533 | BA158: -16.41688348 | BB158: -24.29067488 | BC158: -16.72540915 | BD158: -13.15663595 | BE158: -6.379552728 | BF158: 5.983685679 | BG158: 4.106929725 | BH158: -11.74481168 | BI158: -32.90644572 | BJ158: -1.387897206 | BK158: -21.90665693 | BL158: -15.69914689 | BM158: -12.2246028 | BN158: -6.60874937 | BO158: -6.924867131 | BP158: -1.573987065 | BQ158: -1.573987065 | BR158: -10.68690112 | BS158: -29.72854175 | BT158: -9.836831946 | BU158: -7.980396062 | BV158: -11.05364473
A159: %ChangeIncongr (sec) | B159: -7.631209862 | C159: -8.649298482 | D159: -4.891025943 | E159: -19.59041244 | F159: -8.808677438 | G159: 5.852461799 | H159: 2.503683607 | I159: -5.598417668 | J159: -8.823355506 | K159: -3.042967817 | L159: -10.33606256 | M159: 0.8921009811 | N159: -7.423019661 | O159: 1.281168488 | P159: -12.46712223 | Q159: -17.85825994 | R159: -18.79974139 | S159: -14.23251614 | T159: -10.62439809 | U159: -9.274971466 | V159: -21.47819474 | W159: -20.91849309 | X159: -10.51489567 | Y159: -13.20388285 | Z159: -16.53893262 | AA159: 1.598680159 | AB159: -20.83480099 | AC159: 4.798639192 | AD159: -2.105324445 | AE159: -10.48148194 | AF159: -4.265544826 | AG159: -11.77428194 | AH159: -10.96905452 | AI159: -10.93290977 | AJ159: -8.891711576 | AK159: -9.527676317 | AL159: -0.2121339205 | AM159: -13.26586175 | AN159: -14.57513169 | AO159: -14.34327655 | AP159: -9.53446041 | AQ159: -12.87462037 | AR159: -7.783579529 | AS159: -13.18238255 | AT159: -27.36916989 | AU159: 2.547241392 | AV159: -5.194786429 | AW159: -10.63521213 | AX159: -17.06031832 | AY159: -10.48942446 | AZ159: -6.241789801 | BA159: -8.278038608 | BB159: -9.603119082 | BC159: -19.9216493 | BD159: -8.532793102 | BE159: -15.26229807 | BF159: -2.265970382 | BG159: 2.125062274 | BH159: -8.396022482 | BI159: -16.83246623 | BJ159: -4.984317625 | BK159: -16.73449272 | BL159: -3.549378043 | BM159: -14.75429619 | BN159: -17.27217405 | BO159: -7.460338812 | BP159: -17.19413451 | BQ159: -17.19413451 | BR159: -9.928841928 | BS159: -3.894939025 | BT159: -11.9516121 | BU159: -4.59421576 | BV159: -3.658695786
A160: %ChangeCongruentError | B160: =B151-B150 -> -0.25 | C160: =C151-C150 -> 0 | D160: 0 | E160: 0 | F160: 0 | G160: -0.25 | H160: -0.25 | I160: 0 | J160: 0 | K160: 0.25 | L160: -0.5 | M160: -0.25 | N160: 0.25 | O160: 0.25 | P160: 0.25 | Q160: 0 | R160: 0 | S160: 0 | T160: 0 | U160: 0 | V160: 0 | W160: 0 | X160: -1 | Y160: -0.25 | Z160: 0 | AA160: 0 | AB160: 0 | AC160: 0 | AD160: 0 | AE160: 0 | AF160: 0.25 | AG160: 0 | AH160: 0 | AI160: 0.25 | AJ160: 0.25 | AK160: 1.5 | AL160: 0 | AM160: 0 | AN160: 0 | AO160: -0.25 | AP160: 0 | AQ160: 0 | AR160: 0 | AS160: 0 | AT160: 0.25 | AU160: 0 | AV160: 0 | AW160: 0 | AX160: -1 | AY160: 0 | AZ160: 0 | BA160: 0 | BB160: 0 | BC160: -0.5 | BD160: 0 | BE160: 0 | BF160: 0.75 | BG160: 1 | BH160: -0.25 | BI160: 0 | BJ160: 0 | BK160: 0.75 | BL160: -0.5 | BM160: 0.25 | BN160: 0 | BO160: =BO151-BO150 -> 0.5 | BP160: 0 | BQ160: -0.5 | BR160: 0 | BS160: 0 | BT160: 0 | BU160: 0 | BV160: -0.75
A161: %ChangeIncongError | B161: =B153-B152 -> -1.75 | C161: =C153-C152 -> -1.5 | D161: 0.75 | E161: -3 | F161: 1 | G161: 0.5 | H161: 0 | I161: -0.5 | J161: -1.25 | K161: 1 | L161: -0.5 | M161: 0.25 | N161: -0.25 | O161: 0 | P161: 0.5 | Q161: -1.75 | R161: -1.25 | S161: 2.25 | T161: 1.5 | U161: -0.5 | V161: -1.25 | W161: -0.25 | X161: 0 | Y161: -0.25 | Z161: 2 | AA161: 0.75 | AB161: -1.25 | AC161: 0.5 | AD161: 0.5 | AE161: -0.25 | AF161: 0.75 | AG161: 0.5 | AH161: -0.5 | AI161: 0 | AJ161: -1.25 | AK161: -1.5 | AL161: 1 | AM161: -0.25 | AN161: -1 | AO161: 0.25 | AP161: 0.25 | AQ161: -0.25 | AR161: 0 | AS161: 0.75 | AT161: 0.5 | AU161: -1.25 | AV161: 0.75 | AW161: 0.5 | AX161: 0 | AY161: -1 | AZ161: -0.25 | BA161: 0.25 | BB161: 0.25 | BC161: -1.25 | BD161: 0 | BE161: -1.5 | BF161: 0.75 | BG161: 4 | BH161: -0.5 | BI161: 1 | BJ161: 1.75 | BK161: 2.75 | BL161: -1.5 | BM161: 1 | BN161: -0.75 | BO161: =BO153-BO152 -> 0.25 | BP161: 0.25 | BQ161: -0.25 | BR161: -0.5 | BS161: -0.25 | BT161: -2 | BU161: -1.75 | BV161: -0.5

Sheet BR
A1: % Change BR | B1: =AVERAGE(A:A) -> 37.57796009 | C1: % Change HR | D1: =AVERAGE(C:C) -> 67.97045616 | E1: PreBreathingRate (bpm) | F1: PostBreathingRate (bpm)
A2: 62.5 | B2: =STDEV(A:A) -> 74.9172256 | C2: 71.62162162 | D2: =STDEV(C:C) -> 56.07831873 | E2: 16 | F2: 26
A3: -8.333333333 | B3: =COUNT(A:A) -> 73 | C3: 23.76237624 | D3: =COUNT(C:C) -> 73 | E3: 24 | F3: 22
A4: 30 | B4: =B2/SQRT(B3) -> 8.768398029 | C4: 24.21052632 | D4: =D2/SQRT(D3) -> 6.563470757 | E4: 20 | F4: 26
A5: -12.5 | C5: 40.18691589 | E5: 32 | F5: 28
A6: 85.71428571 | C6: 49.51456311 | E6: 14 | F6: 26
A7: 25 | C7: 32 | E7: 24 | F7: 30
A8: 23.07692308 | C8: 50 | E8: 26 | F8: 32
A9: 50 | C9: 144.8275862 | E9: 8 | F9: 12
A10: 33.33333333 | C10: 93.75 | E10: 18 | F10: 24
A11: 22.22222222 | C11: 95.94594595 | E11: 18 | F11: 22
A12: 14.28571429 | C12: 45.74468085 | E12: 14 | F12: 16
A13: 30 | C13: 27.2 | E13: 20 | F13: 26
A14: 10 | C14: 66.66666667 | E14: 20 | F14: 22
A15: 60 | C15: 113.3333333 | E15: 10 | F15: 16
A16: 92.30769231 | C16: 111.2903226 | E16: 26 | F16: 50
A17: 100 | C17: 82.10526316 | E17: 26 | F17: 52
A18: 50 | C18: 88.57142857 | E18: 12 | F18: 18
A19: 10 | C19: 66.66666667 | E19: 20 | F19: 22
A20: 25 | C20: 36.84210526 | E20: 8 | F20: 10
A21: -8.333333333 | C21: 51.48514851 | E21: 24 | F21: 22
A22: 62.5 | C22: 87.5 | E22: 32 | F22: 52
A23: 25 | C23: 86.36363636 | E23: 40 | F23: 50
A24: 44.44444444 | C24: 65.65656566 | E24: 18 | F24: 26
A25: 8.333333333 | C25: 49.52380952 | E25: 24 | F25: 26
A26: 0 | C26: 47.22222222 | E26: 14 | F26: 14
A27: 33.33333333 | C27: 14.13043478 | E27: 18 | F27: 24
A28: 100 | C28: 62.74509804 | E28: 20 | F28: 40
A29: 84.61538462 | C29: 47.16981132 | E29: 26 | F29: 48
A30: 77.77777778 | C30: 41.37931034 | E30: 18 | F30: 32
A31: 120 | C31: 107.0422535 | E31: 10 | F31: 22
A32: 44.44444444 | C32: 67.0212766 | E32: 18 | F32: 26
A33: 50 | C33: 73.17073171 | E33: 12 | F33: 18
A34: 33.33333333 | C34: 73.17073171 | E34: 24 | F34: 32
A35: 7.692307692 | C35: 75.64102564 | E35: 26 | F35: 28
A36: 90 | C36: 132.8358209 | E36: 20 | F36: 38
A37: 50 | C37: 96.77419355 | E37: 16 | F37: 24
A38: -20 | C38: 112.5 | E38: 10 | F38: 8
A39: 33.33333333 | C39: 27.65957447 | E39: 18 | F39: 24
A40: 40 | C40: 9.401709402 | E40: 20 | F40: 28
A41: 16.66666667 | C41: 59.57446809 | E41: 24 | F41: 28
A42: 28.57142857 | C42: -16.86746988 | E42: 28 | F42: 36
A43: -100 | C43: 63.33333333 | E43: 20
A44: -100 | C44: 6.060606061 | E44: 24
A45: -40 | C45: 128.5714286 | E45: 20 | F45: 12
A46: 40 | C46: 114.2857143 | E46: 20 | F46: 28
A47: 33.33333333 | C47: 64.55696203 | E47: 24 | F47: 32
A48: -12.5 | C48: 51.51515152 | E48: 32 | F48: 28
A49: 10 | C49: 48.80952381 | E49: 40 | F49: 44
A50: 400 | C50: 33.33333333 | E50: 8 | F50: 40
A51: 25 | C51: 26.4957265 | E51: 48 | F51: 60
A52: 33.33333333 | C52: 150 | E52: 24 | F52: 32
A53: 40 | C53: 52.3364486 | E53: 20 | F53: 28
A54: -33.33333333 | C54: 88.75 | E54: 36 | F54: 24
A55: 50 | C55: 94.59459459 | E55: 16 | F55: 24
A56: 366.6666667 | C56: 78.57142857 | E56: 12 | F56: 56
A57: 64 | C57: 102.7027027 | E57: 25 | F57: 41
A58: 100 | C58: 83.14606742 | E58: 16 | F58: 32
A59: 7.692307692 | C59: 20.6185567 | E59: 26 | F59: 28
A60: 12.5 | C60: 103.6585366 | E60: 16 | F60: 18
A61: 70 | C61: 92.85714286 | E61: 40 | F61: 68
A62: 114.2857143 | C62: 79.22077922 | E62: 14 | F62: 30
A63: -8.333333333 | C63: 92.30769231 | E63: 24 | F63: 22
A64: 42.85714286 | C64: 83.82352941 | E64: 14 | F64: 20
A65: 100 | C65: 113.6986301 | E65: 20 | F65: 40
A66: 16.66666667 | C66: 60.41666667 | E66: 12 | F66: 14
A67: -20 | C67: 52.74725275 | E67: 10 | F67: 8
A68: -7.142857143 | C68: 0 | E68: 56 | F68: 52
A69: -7.142857143 | C69: 0 | E69: 24 | F69: 30
A70: 57.14285714 | C70: 395.2380952 | E70: 28 | F70: 44
A71: -100 | C71: 70.45454545 | E71: 18
A72: 53.84615385 | C72: 60.71428571 | E72: 26 | F72: 40
A73: -100 | C73: -100 | E73: 20
A74: 10 | C74: 13.68421053 | E74: 20 | F74: 22

Sheet non-exercise
A1: ID | B1: CN101-nonexercise | C1: MR101-nonexercise | D1: JF101-nonexercise | E1: CJ101-nonexercise | F1: TB101-nonexercise | G1: SN102-nonexercise | H1: SW101-nonexercise | I1: FA102-nonexercise | J1: JF102-nonexercise | K1: BR102-nonexercise | L1: FH101-nonexercise | M1: JL101-nonexercise | N1: RO101-nonexercise | O1: KK101-nonexercise | P1: KV101-nonexercise | Q1: DD101-nonexercise | R1: MT102-nonexercise | S1: TP101-nonexercise | T1: RA101-nonexercise | U1: KLA101-nonexercise | V1: YS102-nonexercise | W1: TM101-nonexercise | X1: TR101-nonexercise | Y1: DJ102-nonexercise | Z1: MA101-nonexercise | AA1: SA102-nonexercise | AB1: JH102-nonexercise | AC1: RS101-nonexercise | AD1: AA102-nonexercise | AE1: JR101-nonexercise
A2: Date | B2: 2011-09-23 | C2: 2011-09-23 | D2: 2011-09-30 | E2: 2011-10-07 | F2: 2011-11-18 | G2: 2012-04-18 | H2: 2012-04-24 | I2: 2012-04-26 | J2: 2012-05-01 | K2: 2012-05-01 | L2: 2012-05-02 | M2: 2012-05-02 | N2: 2012-05-02 | O2: 2012-05-02 | P2: 2012-05-04 | Q2: 2012-05-04 | R2: 2012-05-05 | S2: 2012-05-05 | T2: 2012-05-05 | U2: 2012-05-05 | V2: 2012-05-08 | W2: 2012-05-08 | X2: 2012-05-09 | Y2: 2012-05-11 | Z2: 2012-05-11 | AA2: 2012-05-11 | AB2: 2012-06-14 | AC2: 2012-06-14 | AD2: 2013-01-17 | AE2: 2013-02-07
B3: 1.20pm | C3: 3.07pm | D3: 2.22pm | E3: 4.00pm | F3: 1.00pm | G3: 9.00 pm | H3: 10.00 am | I3: 9.40 am | J3: 2.00 pm | K3: 2.30 pm | L3: 11.20 am | M3: 12.39 pm | N3: 1.10 pm | O3: 6.00 pm | P3: 1.00 pm | Q3: 6.45 pm | R3: 9.17 am | S3: 10.00 am | T3: 11.40 am | U3: 1.20 pm | V3: 10:00:00 | W3: 10.31 am | X3: 2.00 pm | Y3: 10.00 am | Z3: 10.30 am | AA3: 1.30 pm | AB3: 2.15 pm | AC3: 2:00 p.m | AD3: 4.46 pm | AE3: 10.00 am
A4: http://www.biology.unt.edu/~tam/SelfTests/StroopEffects1.html
A5: http://www.biology.unt.edu/~tam/SelfTests/StroopEffects2.html
A6: PreCongr1 Set1 | B6: 18.616 | C6: 16.206 | D6: 16.907 | E6: 18.395 | F6: 17.245 | G6: 23.276 | H6: 11.558 | I6: 19.08 | J6: 20.159 | K6: 14.32 | L6: 17.343 | M6: 18.64 | N6: 18.457 | O6: 21.44 | P6: 24.896 | Q6: 15.584 | R6: 18.92 | S6: 30.633 | T6: 18.78 | U6: 17.668 | V6: 20.376 | W6: 19.511 | X6: 21.079 | Y6: 20.768 | Z6: 19.039 | AA6: 16.096 | AB6: 13.02 | AC6: 15.606 | AD6: 21.956 | AE6: 22.558
A7: PreIncongr1 Set1 | B7: 34.944 | C7: 32.049 | D7: 31.952 | E7: 31.298 | F7: 25.135 | G7: 31.599 | H7: 40.748 | I7: 44.175 | J7: 38.8 | K7: 34.823 | L7: 38.936 | M7: 40.438 | N7: 42.095 | O7: 35.233 | P7: 31.335 | Q7: 50.689 | R7: 27.303 | S7: 40.23 | T7: 35.471 | U7: 42.776 | V7: 48.6 | W7: 44.928 | X7: 37.408 | Y7: 35.336 | Z7: 57.871 | AA7: 44.232 | AB7: 22.697 | AC7: 25.707 | AD7: 40.888 | AE7: 29.127
A8: PreCongr1 Set2 | B8: 16.375 | C8: 17.096 | D8: 14.22 | E8: 19.572 | F8: 16.646 | G8: 18.82 | H8: 12.026 | I8: 22.952 | J8: 20.521 | K8: 14.222 | L8: 15.6 | M8: 16.343 | N8: 16.495 | O8: 22.08 | P8: 20.792 | Q8: 16.277 | R8: 20.185 | S8: 28.336 | T8: 18.136 | U8: 17.336 | V8: 16.88 | W8: 19.719 | X8: 21.23 | Y8: 20.424 | Z8: 20.041 | AA8: 17.36 | AB8: 13.765 | AC8: 17.339 | AD8: 22.225 | AE8: 21.375
A9: PreIncongr1 Set2 | B9: 36.352 | C9: 29.289 | D9: 28.384 | E9: 35.97 | F9: 25.232 | G9: 39.976 | H9: 41.224 | I9: 38.967 | J9: 36.523 | K9: 34.202 | L9: 34.551 | M9: 41.903 | N9: 39.976 | O9: 31.385 | P9: 28.08 | Q9: 48.74 | R9: 25.744 | S9: 39.943 | T9: 32.68 | U9: 39.24 | V9: 49.73 | W9: 34.975 | X9: 36.062 | Y9: 33.208 | Z9: 56.808 | AA9: 39.112 | AB9: 22.09 | AC9: 25.229 | AD9: 36.947 | AE9: 33.438
A10: PreCongr2 Set1 | B10: 15.872 | C10: 15.863 | D10: 13.768 | E10: 18.353 | F10: 15.706 | G10: 21.463 | H10: 11.159 | I10: 16.952 | J10: 18.111 | K10: 14.203 | L10: 15.056 | M10: 13.609 | N10: 17.88 | O10: 22.065 | P10: 17.016 | Q10: 15.088 | R10: 18.561 | S10: 28.599 | T10: 14.432 | U10: 15.664 | V10: 15.768 | W10: 17.76 | X10: 21.791 | Y10: 21.198 | Z10: 18.552 | AA10: 17.416 | AB10: 13.239 | AC10: 15.586 | AD10: 19.924 | AE10: 19.117
A11: PreIncongr2 Set1 | B11: 38.536 | C11: 26.69 | D11: 27.432 | E11: 36.65 | F11: 25.752 | G11: 34.608 | H11: 36.88 | I11: 37.497 | J11: 39.808 | K11: 31.731 | L11: 28.383 | M11: 39.192 | N11: 44.727 | O11: 30.593 | P11: 28.04 | Q11: 48.24 | R11: 25.047 | S11: 35.288 | T11: 33.02 | U11: 32.448 | V11: 38.345 | W11: 33.543 | X11: 34.408 | Y11: 30.343 | Z11: 45.591 | AA11: 41.048 | AB11: 22.875 | AC11: 24.419 | AD11: 36.926 | AE11: 34.053
A12: PreCongr2 Set2 | B12: 15.417 | C12: 16.066 | D12: 13.92 | E12: 23.003 | F12: 15.811 | G12: 21.48 | H12: 19.426 | I12: 16.352 | J12: 17.035 | K12: 13.889 | L12: 14.408 | M12: 14.392 | N12: 16.808 | O12: 20.887 | P12: 19.72 | Q12: 15.128 | R12: 17.896 | S12: 26.832 | T12: 15.96 | U12: 15.72 | V12: 16.224 | W12: 16.592 | X12: 21.92 | Y12: 19.255 | Z12: 17.848 | AA12: 15.768 | AB12: 13.984 | AC12: 16.679 | AD12: 20.085 | AE12: 18.564
A13: PreIncongr2 Set2 | B13: 39.535 | C13: 31.234 | D13: 31.745 | E13: 34.969 | F13: 25.484 | G13: 37.976 | H13: 37.288 | I13: 35.64 | J13: 38.172 | K13: 31.38 | L13: 30.519 | M13: 35.391 | N13: 43.759 | O13: 27.481 | P13: 27.279 | Q13: 38.833 | R13: 23.272 | S13: 38.069 | T13: 35.903 | U13: 38.968 | V13: 49.959 | W13: 32.424 | X13: 31.88 | Y13: 29.112 | Z13: 51.512 | AA13: 36.663 | AB13: 24 | AC13: 27.267 | AD13: 33.554 | AE13: 34.691
A14: PreCongr3 Set1 | B14: 15.874 | C14: 19.633 | D14: 15.072 | E14: 20.031 | F14: 16.161 | G14: 21.512 | H14: 11.031 | I14: 16.864 | J14: 15.921 | K14: 13.101 | L14: 14.593 | M14: 16.375 | N14: 21.05 | O14: 21.993 | P14: 15.471 | Q14: 14.409 | R14: 16.136 | S14: 27.048 | T14: 16.535 | U14: 16.104 | V14: 20.031 | W14: 15.824 | X14: 22.495 | Y14: 19.049 | Z14: 17.8 | AA14: 17.391 | AB14: 13.249 | AC14: 16.616 | AD14: 19.456 | AE14: 21.024
A15: PreIncongr3 Set1 | B15: 32.873 | C15: 28.361 | D15: 28.872 | E15: 36.343 | F15: 26.333 | G15: 35.169 | H15: 32.081 | I15: 35.2 | J15: 41.709 | K15: 30.681 | L15: 31.839 | M15: 39.72 | N15: 38.232 | O15: 30.198 | P15: 28.816 | Q15: 41.68 | R15: 22.961 | S15: 35.928 | T15: 29.152 | U15: 43.807 | V15: 40.687 | W15: 31.544 | X15: 31.6 | Y15: 27.08 | Z15: 45.479 | AA15: 36.231 | AB15: 24.128 | AC15: 28.693 | AD15: 34.547 | AE15: 33.337
A16: PreCongr3 Set2 | B16: 15.368 | C16: 16.256 | D16: 13.52 | E16: 18.84 | F16: 16.138 | G16: 18.039 | H16: 11.359 | I16: 16.864 | J16: 15.636 | K16: 12.46 | L16: 14.856 | M16: 15.976 | N16: 21.937 | O16: 22.808 | P16: 16.207 | Q16: 14.704 | R16: 15.944 | S16: 25.927 | T16: 16.28 | U16: 16.12 | V16: 14.215 | W16: 15.048 | X16: 21.776 | Y16: 18.536 | Z16: 18.68 | AA16: 16.663 | AB16: 13.209 | AC16: 15.53 | AD16: 21.02 | AE16: 21.643
A17: PreIncongr3 Set2 | B17: 32.151 | C17: 30.224 | D17: 28.817 | E17: 36.008 | F17: 24.145 | G17: 31.224 | H17: 32.936 | I17: 31.015 | J17: 33.261 | K17: 30.329 | L17: 33.768 | M17: 36.984 | N17: 40.4 | O17: 26.744 | P17: 27.936 | Q17: 36.983 | R17: 24 | S17: 36.216 | T17: 33.48 | U17: 38.031 | V17: 40.336 | W17: 32.241 | X17: 33.575 | Y17: 29.168 | Z17: 44.287 | AA17: 45.592 | AB17: 24.078 | AC17: 27.669 | AD17: 32.332 | AE17: 35.795
A18: PreCongr4 Set1 | B18: 14.672 | C18: 15.855 | D18: 12.984 | E18: 21.706 | F18: 16.029 | G18: 17.073 | H18: 11.239 | I18: 16.881 | J18: 14.929 | K18: 12.449 | L18: 14.928 | M18: 15.575 | N18: 18.632 | O18: 21.2 | P18: 17.344 | Q18: 14.96 | R18: 15.767 | S18: 23.856 | T18: 15.623 | U18: 15.72 | V18: 14.328 | W18: 14.942 | X18: 20.743 | Y18: 19.128 | Z18: 18.752 | AA18: 17.04 | AB18: 13.247 | AC18: 16.759 | AD18: 21.773 | AE18: 20.823
A19: PreIncongr4 Set1 | B19: 36.745 | C19: 28.463 | D19: 25.944 | E19: 31.208 | F19: 22.108 | G19: 38.904 | H19: 30.656 | I19: 33.376 | J19: 40.528 | K19: 29.019 | L19: 30.823 | M19: 35.992 | N19: 42.031 | O19: 30.976 | P19: 26.831 | Q19: 40.248 | R19: 23.751 | S19: 35.224 | T19: 33.416 | U19: 34.872 | V19: 35.784 | W19: 36.88 | X19: 31.736 | Y19: 27.88 | Z19: 43.16 | AA19: 37.215 | AB19: 27.113 | AC19: 28.128 | AD19: 36.191 | AE19: 34.206
A20: PreCongr4 Set2 | B20: 15.032 | C20: 19.977 | D20: 12.896 | E20: 20.754 | F20: 16.025 | G20: 16.335 | H20: 11.56 | I20: 15.12 | J20: 15.13 | K20: 11.679 | L20: 14.776 | M20: 14.456 | N20: 19.192 | O20: 22.016 | P20: 16.504 | Q20: 15.009 | R20: 14.8 | S20: 24.631 | T20: 15.623 | U20: 14.248 | V20: 14.848 | W20: 14.76 | X20: 21.615 | Y20: 16.792 | Z20: 17.303 | AA20: 18.247 | AB20: 13.575 | AC20: 15.597 | AD20: 22 | AE20: 23.309
A21: PreIncongr4 Set2 | B21: 32.473 | C21: 31.729 | D21: 27.521 | E21: 32.08 | F21: 21.524 | G21: 32.031 | H21: 31.616 | I21: 31.552 | J21: 33.357 | K21: 29.075 | L21: 28.009 | M21: 35.28 | N21: 39.183 | O21: 28.032 | P21: 26.377 | Q21: 39.52 | R21: 22.92 | S21: 34.6 | T21: 32.72 | U21: 30.712 | V21: 33.984 | W21: 34.424 | X21: 31.681 | Y21: 33.232 | Z21: 42.736 | AA21: 39.32 | AB21: 25.004 | AC21: 26.519 | AD21: 33.858 | AE21: 32.876
A22: PreCongr5 Set1 | B22: 14.873 | C22: 16.552 | D22: 13.688 | E22: 17.689 | F22: 15.105 | G22: 15.56 | H22: 11.096 | I22: 15.887 | J22: 16.607 | K22: 12.753 | L22: 14.161 | M22: 14.24 | N22: 17.56 | O22: 21.528 | P22: 16.944 | Q22: 14.591 | R22: 14.983 | S22: 23.728 | T22: 15.36 | U22: 13.511 | V22: 11.808 | W22: 14.265 | X22: 20.718 | Y22: 18.056 | Z22: 17.08 | AA22: 16.736 | AB22: 13.389 | AC22: 18.481 | AD22: 29.328 | AE22: 23.096
A23: PreIncongr5 Set1 | B23: 33.15 | C23: 29.105 | D23: 27.16 | E23: 32.552 | F23: 22.993 | G23: 30.175 | H23: 31.808 | I23: 43.752 | J23: 34.974 | K23: 28.104 | L23: 29.544 | M23: 33.399 | N23: 45.03 | O23: 29.281 | P23: 26.799 | Q23: 40.631 | R23: 22.2 | S23: 35.241 | T23: 32.479 | U23: 33.407 | V23: 37.906 | W23: 34.383 | X23: 31.488 | Y23: 28.368 | Z23: 41.903 | AA23: 36.088 | AB23: 27.968 | AC23: 27.603 | AD23: 37.264 | AE23: 38.766
A24: PreCongr5 Set2 | B24: 15.824 | C24: 15.72 | D24: 13.224 | E24: 18.152 | F24: 15.494 | G24: 17.871 | H24: 13.568 | I24: 16.223 | J24: 15.642 | K24: 12.301 | L24: 14.4 | M24: 14.184 | N24: 18.16 | O24: 21.207 | P24: 16.464 | Q24: 13.768 | R24: 14.911 | S24: 23.447 | T24: 15.399 | U24: 14.441 | V24: 15.176 | W24: 13.127 | X24: 20.456 | Y24: 16.896 | Z24: 17.584 | AA24: 16.248 | AB24: 14.223 | AC24: 16.55 | AD24: 25 | AE24: 18.915
A25: PreIncongr5 Set2 | B25: 38.969 | C25: 29.338 | D25: 27.112 | E25: 33.185 | F25: 24.879 | G25: 34.44 | H25: 31.544 | I25: 33.096 | J25: 43.945 | K25: 28.361 | L25: 30.6 | M25: 40.512 | N25: 43.431 | O25: 25.248 | P25: 26.031 | Q25: 38.815 | R25: 26.234 | S25: 33.277 | T25: 31.041 | U25: 30.02 | V25: 33.567 | W25: 37.544 | X25: 31.088 | Y25: 31.183 | Z25: 42.473 | AA25: 34.321 | AB25: 26.266 | AC25: 27.808 | AD25: 33.552 | AE25: 32.536
A26: PostCongr1 Set1 | B26: 14.696 | C26: 16.017 | D26: 14.089 | E26: 18.464 | F26: 16.895 | G26: 18.136 | H26: 12.491 | I26: 17.719 | J26: 18.65 | K26: 15.475 | L26: 15.071 | M26: 15.855 | N26: 18.328 | O26: 19.632 | P26: 19.488 | Q26: 14 | R26: 16.504 | S26: 25.768 | T26: 14.72 | U26: 13.928 | V26: 13.764 | W26: 15.24 | X26: 21.648 | Y26: 16.08 | Z26: 18.35 | AA26: 16.83 | AB26: 13.058 | AC26: 15.635 | AD26: 22.322 | AE26: 20.188
A27: PostIncongr1 Set1 | B27: 31.688 | C27: 29.593 | D27: 23.935 | E27: 33.839 | F27: 21.91 | G27: 35.31 | H27: 35.112 | I27: 33.184 | J27: 37.469 | K27: 29.844 | L27: 30.28 | M27: 34.152 | N27: 36.879 | O27: 24.777 | P27: 25.382 | Q27: 34.288 | R27: 22.6 | S27: 33.312 | T27: 28.719 | U27: 35.719 | V27: 27.048 | W27: 28.263 | X27: 28.879 | Y27: 25.513 | Z27: 40.88 | AA27: 31.467 | AB27: 23.549 | AC27: 24.109 | AD27: 29.792 | AE27: 28.425
A28: PostCongr1 Set2 | B28: 16.176 | C28: 18.998 | D28: 14.871 | E28: 17.602 | F28: 15.59 | G28: 16.287 | H28: 12.825 | I28: 17.424 | J28: 16.821 | K28: 14.689 | L28: 14.04 | M28: 15.48 | N28: 19.688 | O28: 20.312 | P28: 18.158 | Q28: 14.025 | R28: 14.6 | S28: 22.473 | T28: 15.2 | U28: 15.968 | V28: 13.216 | W28: 13.631 | X28: 21.776 | Y28: 16.47 | Z28: 16.442 | AA28: 16.744 | AB28: 14.112 | AC28: 14.414 | AD28: 21.278 | AE28: 19.002
A29: PostIncongr1 Set2 | B29: 31.785 | C29: 28.417 | D29: 24.577 | E29: 32.065 | F29: 26.504 | G29: 35.961 | H29: 31.544 | I29: 34.606 | J29: 39.439 | K29: 33.329 | L29: 31.04 | M29: 33.855 | N29: 37.848 | O29: 26.049 | P29: 28.586 | Q29: 41.952 | R29: 21.056 | S29: 32.248 | T29: 30.52 | U29: 33.527 | V29: 28.032 | W29: 30.44 | X29: 35.95 | Y29: 35.032 | Z29: 40.031 | AA29: 33.346 | AB29: 22.546 | AC29: 23.692 | AD29: 35.658 | AE29: 33.318
A30: PostCongr2 Set1 | B30: 14.498 | C30: 16.818 | D30: 13.536 | E30: 16.594 | F30: 16.726 | G30: 16.281 | H30: 12.048 | I30: 17.216 | J30: 15.325 | K30: 14.132 | L30: 13.856 | M30: 15.432 | N30: 18.04 | O30: 19.092 | P30: 17.864 | Q30: 13.696 | R30: 14.4 | S30: 20.744 | T30: 13.94 | U30: 13.744 | V30: 13.92 | W30: 15.384 | X30: 21.335 | Y30: 19.344 | Z30: 17.127 | AA30: 15.85 | AB30: 13.485 | AC30: 14.688 | AD30: 21 | AE30: 21.057
A31: PostIncongr2 Set1 | B31: 38.602 | C31: 25.105 | D31: 26.681 | E31: 31.376 | F31: 22.341 | G31: 30.897 | H31: 34.399 | I31: 32.216 | J31: 35.885 | K31: 31.332 | L31: 26.64 | M31: 39.72 | N31: 48.703 | O31: 26.24 | P31: 25.32 | Q31: 43.567 | R31: 20.928 | S31: 32.057 | T31: 27.815 | U31: 30.968 | V31: 33.952 | W31: 28.407 | X31: 31.001 | Y31: 32.735 | Z31: 41.986 | AA31: 34.601 | AB31: 24.077 | AC31: 27.406 | AD31: 35.843 | AE31: 30.612
A32: PostCongr2 Set2 | B32: 13.457 | C32: 16.945 | D32: 13.055 | E32: 15.792 | F32: 15.975 | G32: 15.838 | H32: 11.615 | I32: 14.896 | J32: 13.536 | K32: 13.018 | L32: 13.184 | M32: 14.24 | N32: 22.16 | O32: 19.617 | P32: 18.631 | Q32: 14.197 | R32: 13.92 | S32: 19.736 | T32: 14.063 | U32: 12.928 | V32: 14.832 | W32: 13.753 | X32: 20.375 | Y32: 16.696 | Z32: 17.569 | AA32: 14.268 | AB32: 12.861 | AC32: 14.155 | AD32: 23.711 | AE32: 20.556
A33: PostIncongr2 Set2 | B33: 29.576 | C33: 26.569 | D33: 25.194 | E33: 30.114 | F33: 23.628 | G33: 40.575 | H33: 30.485 | I33: 36.512 | J33: 31.384 | K33: 30.464 | L33: 31.793 | M33: 29.375 | N33: 38.631 | O33: 25.784 | P33: 26.256 | Q33: 41.429 | R33: 23.848 | S33: 35.439 | T33: 31.017 | U33: 28.839 | V33: 33.695 | W33: 27.856 | X33: 30.424 | Y33: 33.544 | Z33: 50.321 | AA33: 35.911 | AB33: 21.56 | AC33: 27.817 | AD33: 33.504 | AE33: 28.928
A34: PostCongr3 Set1 | B34: 14.785 | C34: 15.981 | D34: 15.319 | E34: 15.241 | F34: 16.225 | G34: 15.367 | H34: 11.184 | I34: 15.216 | J34: 13.676 | K34: 13.266 | L34: 13.312 | M34: 13.368 | N34: 17.4 | O34: 17.616 | P34: 18.96 | Q34: 13.84 | R34: 14.088 | S34: 19.927 | T34: 15.015 | U34: 13.296 | V34: 13.088 | W34: 13.216 | X34: 21.36 | Y34: 16.144 | Z34: 16.64 | AA34: 14.616 | AB34: 12.32 | AC34: 16.534 | AD34: 25.806 | AE34: 21.423
A35: PostIncongr3 Set1 | B35: 34.937 | C35: 27.847 | D35: 27.113 | E35: 31.824 | F35: 22.526 | G35: 34.425 | H35: 29.767 | I35: 29.864 | J35: 35.149 | K35: 34.308 | L35: 29.824 | M35: 33.367 | N35: 45.904 | O35: 25.074 | P35: 25.335 | Q35: 39.328 | R35: 21.815 | S35: 32.312 | T35: 31.56 | U35: 32.318 | V35: 34.688 | W35: 30.175 | X35: 31.151 | Y35: 29.376 | Z35: 40.072 | AA35: 33.801 | AB35: 25.261 | AC35: 25.496 | AD35: 31.94 | AE35: 33.439
A36: PostCongr3 Set2 | B36: 13.625 | C36: 16.296 | D36: 12.712 | E36: 16.184 | F36: 15.744 | G36: 16.302 | H36: 12.232 | I36: 16.6 | J36: 14.64 | K36: 13.281 | L36: 13.057 | M36: 14.064 | N36: 18.056 | O36: 18.272 | P36: 18.088 | Q36: 15.223 | R36: 14.017 | S36: 19.976 | T36: 13.416 | U36: 14.368 | V36: 13.192 | W36: 13.167 | X36: 20.183 | Y36: 16.04 | Z36: 16.967 | AA36: 14.197 | AB36: 12.959 | AC36: 15.803 | AD36: 26.05 | AE36: 20.788
A37: PostIncongr3 Set2 | B37: 30.521 | C37: 30.913 | D37: 29.976 | E37: 31.641 | F37: 27.487 | G37: 33.73 | H37: 31.864 | I37: 33.616 | J37: 33.733 | K37: 33.87 | L37: 28.263 | M37: 30.904 | N37: 40.688 | O37: 25.832 | P37: 25.888 | Q37: 32.759 | R37: 22.688 | S37: 35.488 | T37: 30.809 | U37: 33.263 | V37: 37.815 | W37: 32.631 | X37: 31.767 | Y37: 35.776 | Z37: 40.488 | AA37: 35.231 | AB37: 22.913 | AC37: 24.637 | AD37: 33.736 | AE37: 32.081
A38: PostCongr4 Set1 | B38: 14.625 | C38: 16.688 | D38: 13.048 | E38: 15.504 | F38: 15.509 | G38: 16.456 | H38: 11.335 | I38: 15.783 | J38: 13.85 | K38: 12.599 | L38: 12.344 | M38: 13.088 | N38: 16.632 | O38: 17.72 | P38: 16.343 | Q38: 13.384 | R38: 13.512 | S38: 20.649 | T38: 13.679 | U38: 12.632 | V38: 12.488 | W38: 12.905 | X38: 19.391 | Y38: 16.217 | Z38: 16.968 | AA38: 16.206 | AB38: 11.989 | AC38: 16.528 | AD38: 24.766 | AE38: 19.569
A39: PostIncongr4 Set1 | B39: 31.385 | C39: 27.928 | D39: 27.544 | E39: 30.352 | F39: 22.308 | G39: 35.623 | H39: 32.152 | I39: 36.968 | J39: 33.783 | K39: 31.58 | L39: 24.834 | M39: 36.512 | N39: 35.639 | O39: 25.814 | P39: 24.576 | Q39: 40.384 | R39: 23.073 | S39: 33.383 | T39: 28.535 | U39: 28.081 | V39: 30.688 | W39: 35.264 | X39: 33.752 | Y39: 25.96 | Z39: 38.856 | AA39: 36.829 | AB39: 26.713 | AC39: 27.044 | AD39: 35.475 | AE39: 35.76
A40: PostCongr4 Set2 | B40: 12.889 | C40: 15.889 | D40: 12.488 | E40: 14.992 | F40: 15.46 | G40: 16.751 | H40: 11.56 | I40: 17.288 | J40: 14.418 | K40: 12.35 | L40: 12.84 | M40: 13.631 | N40: 15.072 | O40: 18.584 | P40: 15.976 | Q40: 15.496 | R40: 14.895 | S40: 21.928 | T40: 13.159 | U40: 13.112 | V40: 14.85 | W40: 11.832 | X40: 20.024 | Y40: 16.56 | Z40: 15.967 | AA40: 16.479 | AB40: 12.948 | AC40: 18.087 | AD40: 21.437 | AE40: 19.883
A41: PostIncongr4 Set2 | B41: 33.168 | C41: 30.297 | D41: 28.872 | E41: 30.266 | F41: 24.347 | G41: 34.392 | H41: 31.768 | I41: 32.24 | J41: 39.274 | K41: 29.795 | L41: 27.712 | M41: 34.561 | N41: 39.591 | O41: 26.425 | P41: 25.992 | Q41: 39.136 | R41: 21.793 | S41: 32.671 | T41: 29.312 | U41: 32.408 | V41: 31.384 | W41: 28.991 | X41: 33.025 | Y41: 27.079 | Z41: 40.408 | AA41: 34.396 | AB41: 29.251 | AC41: 25.552 | AD41: 33.638 | AE41: 32.648
A42: PostCongr5 Set1 | B42: 13.082 | C42: 16.895 | D42: 14.463 | E42: 16.118 | F42: 15.591 | G42: 15.185 | H42: 11.464 | I42: 15.847 | J42: 13.247 | K42: 12.484 | L42: 13.424 | M42: 13.608 | N42: 19.423 | O42: 17.056 | P42: 15.575 | Q42: 13.336 | R42: 13.625 | S42: 18.056 | T42: 13.472 | U42: 13.544 | V42: 12.911 | W42: 12.912 | X42: 19.512 | Y42: 18.257 | Z42: 16.76 | AA42: 17.681 | AB42: 12.054 | AC42: 15.439 | AD42: 23.611 | AE42: 20.268
A43: PostIncongr5 Set1 | B43: 36.159 | C43: 28.326 | D43: 25.962 | E43: 28.984 | F43: 24.265 | G43: 34.392 | H43: 29.399 | I43: 29.016 | J43: 36.273 | K43: 28.571 | L43: 29.648 | M43: 34.424 | N43: 36.759 | O43: 26.02 | P43: 24.384 | Q43: 35.703 | R43: 22.536 | S43: 35 | T43: 30.296 | U43: 32.095 | V43: 35.137 | W43: 29.968 | X43: 31.56 | Y43: 27.437 | Z43: 44.511 | AA43: 33.899 | AB43: 29.945 | AC43: 28.572 | AD43: 36.293 | AE43: 34.56
A44: PostCongr5 Set2 | B44: 13.28 | C44: 15.599 | D44: 14.519 | E44: 15.152 | F44: 15.339 | G44: 16.137 | H44: 10.439 | I44: 16.224 | J44: 14.226 | K44: 11.566 | L44: 12.878 | M44: 12.471 | N44: 13.808 | O44: 17.408 | P44: 17.44 | Q44: 13.504 | R44: 13.8 | S44: 16.76 | T44: 13.664 | U44: 13.343 | V44: 12.032 | W44: 13.583 | X44: 20.159 | Y44: 17.096 | Z44: 17.168 | AA44: 15.324 | AB44: 12.511 | AC44: 14.955 | AD44: 23.11 | AE44: 18.53
A45: PostIncongr5 Set2 | B45: 33.968 | C45: 25.697 | D45: 27.033 | E45: 29.969 | F45: 24.163 | G45: 35.032 | H45: 29.319 | I45: 37.991 | J45: 36.551 | K45: 33.57 | L45: 29.585 | M45: 31.745 | N45: 36.2 | O45: 27.48 | P45: 25.336 | Q45: 39.175 | R45: 21.225 | S45: 35.295 | T45: 26.839 | U45: 31.473 | V45: 29.97 | W45: 28.105 | X45: 31.142 | Y45: 28.744 | Z45: 42.696 | AA45: 31.632 | AB45: 26.553 | AC45: 28.559 | AD45: 37.384 | AE45: 32.602
A46: PreErrorC1 set 1 | B46: 0 | C46: 0 | D46: 0 | E46: 0 | F46: 0 | G46: 0 | H46: 0 | I46: 0 | J46: 0 | K46: 0 | L46: 0 | M46: 0 | N46: 0 | O46: 0 | P46: 0 | Q46: 0 | R46: 0 | S46: 0 | T46: 0 | U46: 0 | V46: 0 | W46: 0 | X46: 0 | Y46: 0 | Z46: 0 | AA46: 0 | AB46: 0 | AC46: 0 | AD46: 5 | AE46: 0
A47: PreErrorI1 set 1 | B47: 2.5 | C47: 2.5 | D47: 0 | E47: 2.5 | F47: 5 | G47: 0 | H47: 0 | I47: 5 | J47: 0 | K47: 0 | L47: 5 | M47: 10 | N47: 15 | O47: 0 | P47: 0 | Q47: 2.5 | R47: 7.5 | S47: 2.5 | T47: 0 | U47: 5 | V47: 7.5 | W47: 0 | X47: 0 | Y47: 5 | Z47: 12.5 | AA47: 7.5 | AB47: 0 | AC47: 0 | AD47: 12.5 | AE47: 0
A48: PreErrorC1 set 2 | B48: 0 | C48: 0 | D48: 0 | E48: 0 | F48: 0 | G48: 0 | H48: 0 | I48: 0 | J48: 0 | K48: 0 | L48: 0 | M48: 0 | N48: 0 | O48: 0 | P48: 0 | Q48: 0 | R48: 0 | S48: 0 | T48: 0 | U48: 0 | V48: 0 | W48: 0 | X48: 0 | Y48: 0 | Z48: 0 | AA48: 0 | AB48: 0 | AC48: 0 | AD48: 0 | AE48: 0
A49: PreErrorI1 set 2 | B49: 7.5 | C49: 0 | D49: 2.5 | E49: 7.5 | F49: 2.5 | G49: 5 | H49: 7.5 | I49: 5 | J49: 0 | K49: 0 | L49: 5 | M49: 5 | N49: 32.5 | O49: 0 | P49: 0 | Q49: 0 | R49: 0 | S49: 10 | T49: 2.5 | U49: 5 | V49: 12.5 | W49: 5 | X49: 15 | Y49: 2.5 | Z49: 10 | AA49: 7.5 | AB49: 2.5 | AC49: 0 | AD49: 12.5 | AE49: 5
A50: PreErrorC2 set 1 | B50: 0 | C50: 0 | D50: 0 | E50: 0 | F50: 0 | G50: 0 | H50: 0 | I50: 0 | J50: 0 | K50: 0 | L50: 0 | M50: 0 | N50: 0 | O50: 0 | P50: 0 | Q50: 0 | R50: 0 | S50: 0 | T50: 0 | U50: 0 | V50: 0 | W50: 0 | X50: 0 | Y50: 0 | Z50: 0 | AA50: 0 | AB50: 0 | AC50: 0 | AD50: 0 | AE50: 0
A51: PreErrorI2 set 1 | B51: 2.5 | C51: 0 | D51: 2.5 | E51: 2.5 | F51: 0 | G51: 2.5 | H51: 0 | I51: 5 | J51: 0 | K51: 0 | L51: 2.5 | M51: 7.5 | N51: 7.5 | O51: 0 | P51: 0 | Q51: 22.5 | R51: 0 | S51: 2.5 | T51: 2.5 | U51: 0 | V51: 2.5 | W51: 0 | X51: 2.5 | Y51: 2.5 | Z51: 5 | AA51: 5 | AB51: 0 | AC51: 2.5 | AD51: 12.5 | AE51: 5
A52: PreErrorC2 set 2 | B52: 0 | C52: 0 | D52: 0 | E52: 0 | F52: 0 | G52: 0 | H52: 0 | I52: 0 | J52: 0 | K52: 0 | L52: 0 | M52: 0 | N52: 0 | O52: 0 | P52: 0 | Q52: 0 | R52: 0 | S52: 0 | T52: 0 | U52: 0 | V52: 0 | W52: 0 | X52: 0 | Y52: 0 | Z52: 0 | AA52: 0 | AB52: 0 | AC52: 0 | AD52: 0 | AE52: 0
A53: PreErrorI2 set 2 | B53: 12.5 | C53: 2.5 | D53: 5 | E53: 0 | F53: 7.5 | G53: 2.5 | H53: 2.5 | I53: 5 | J53: 2.5 | K53: 0 | L53: 5 | M53: 5 | N53: 15 | O53: 0 | P53: 5 | Q53: 0 | R53: 0 | S53: 5 | T53: 0 | U53: 5 | V53: 5 | W53: 0 | X53: 5 | Y53: 2.5 | Z53: 7.5 | AA53: 5 | AB53: 0 | AC53: 5 | AD53: 7.5 | AE53: 7.5
A54: PreErrorC3 set 1 | B54: 7.5 | C54: 5 | D54: 0 | E54: 2.5 | F54: 0 | G54: 2.5 | H54: 0 | I54: 0 | J54: 0 | K54: 0 | L54: 0 | M54: 2.5 | N54: 0 | O54: 0 | P54: 0 | Q54: 0 | R54: 0 | S54: 0 | T54: 0 | U54: 0 | V54: 0 | W54: 2.5 | X54: 2.5 | Y54: 0 | Z54: 0 | AA54: 0 | AB54: 0 | AC54: 0 | AD54: 0 | AE54: 0
A55: PreErrorI3 set 1 | B55: 7.5 | C55: 0 | D55: 2.5 | E55: 0 | F55: 7.5 | G55: 5 | H55: 0 | I55: 2.5 | J55: 0 | K55: 0 | L55: 5 | M55: 20 | N55: 0 | O55: 0 | P55: 2.5 | Q55: 0 | R55: 0 | S55: 2.5 | T55: 0 | U55: 22.5 | V55: 7.5 | W55: 0 | X55: 0 | Y55: 7.5 | Z55: 2.5 | AA55: 0 | AB55: 0 | AC55: 2.5 | AD55: 5 | AE55: 0
A56: PreErrorC3 set 2 | B56: 0 | C56: 2.5 | D56: 0 | E56: 0 | F56: 0 | G56: 0 | H56: 2.5 | I56: 0 | J56: 0 | K56: 0 | L56: 0 | M56: 0 | N56: 2.5 | O56: 0 | P56: 0 | Q56: 0 | R56: 0 | S56: 0 | T56: 0 | U56: 0 | V56: 0 | W56: 0 | X56: 0 | Y56: 0 | Z56: 0 | AA56: 0 | AB56: 0 | AC56: 2.5 | AD56: 2.5 | AE56: 0
A57: PreErrorI3 set 2 | B57: 0 | C57: 2.5 | D57: 2.5 | E57: 5 | F57: 0 | G57: 0 | H57: 0 | I57: 0 | J57: 0 | K57: 2.5 | L57: 2.5 | M57: 17.5 | N57: 17.5 | O57: 0 | P57: 2.5 | Q57: 0 | R57: 2.5 | S57: 7.5 | T57: 5 | U57: 2.5 | V57: 5 | W57: 2.5 | X57: 2.5 | Y57: 0 | Z57: 7.5 | AA57: 7.5 | AB57: 0 | AC57: 0 | AD57: 5 | AE57: 2.5
A58: PreErrorC4 set 1 | B58: 0 | C58: 0 | D58: 0 | E58: 0 | F58: 0 | G58: 0 | H58: 0 | I58: 0 | J58: 0 | K58: 0 | L58: 0 | M58: 2.5 | N58: 2.5 | O58: 0 | P58: 0 | Q58: 0 | R58: 0 | S58: 0 | T58: 0 | U58: 0 | V58: 2.5 | W58: 0 | X58: 0 | Y58: 2.5 | Z58: 0 | AA58: 0 | AB58: 0 | AC58: 2.5 | AD58: 2.5 | AE58: 0
A59: PreErrorI4 set 1 | B59: 5 | C59: 0 | D59: 2.5 | E59: 0 | F59: 0 | G59: 10 | H59: 0 | I59: 0 | J59: 0 | K59: 0 | L59: 2.5 | M59: 5 | N59: 10 | O59: 2.5 | P59: 0 | Q59: 2.5 | R59: 2.5 | S59: 0 | T59: 2.5 | U59: 2.5 | V59: 5 | W59: 5 | X59: 5 | Y59: 5 | Z59: 5 | AA59: 2.5 | AB59: 0 | AC59: 0 | AD59: 12.5 | AE59: 0
A60: PreErrorC4 set 2 | B60: 0 | C60: 2.5 | D60: 0 | E60: 0 | F60: 0 | G60: 0 | H60: 0 | I60: 0 | J60: 0 | K60: 0 | L60: 0 | M60: 0 | N60: 2.5 | O60: 0 | P60: 0 | Q60: 0 | R60: 0 | S60: 0 | T60: 0 | U60: 5 | V60: 0 | W60: 0 | X60: 0 | Y60: 0 | Z60: 0 | AA60: 0 | AB60: 0 | AC60: 0 | AD60: 2.5 | AE60: 10
A61: PreErrorI4 set 2 | B61: 7.5 | C61: 2.5 | D61: 0 | E61: 2.5 | F61: 2.5 | G61: 2.5 | H61: 2.5 | I61: 2.5 | J61: 0 | K61: 2.5 | L61: 5 | M61: 10 | N61: 7.5 | O61: 2.5 | P61: 0 | Q61: 0 | R61: 0 | S61: 2.5 | T61: 5 | U61: 2.5 | V61: 2.5 | W61: 5 | X61: 2.5 | Y61: 10 | Z61: 0 | AA61: 0 | AB61: 2.5 | AC61: 0 | AD61: 12.5 | AE61: 0
A62: PreErrorC5 set 1 | B62: 0 | C62: 0 | D62: 0 | E62: 0 | F62: 0 | G62: 0 | H62: 0 | I62: 0 | J62: 0 | K62: 0 | L62: 0 | M62: 2.5 | N62: 0 | O62: 0 | P62: 0 | Q62: 0 | R62: 0 | S62: 0 | T62: 0 | U62: 0 | V62: 0 | W62: 0 | X62: 0 | Y62: 0 | Z62: 0 | AA62: 0 | AB62: 0 | AC62: 0 | AD62: 0 | AE62: 0
A63: PreErrorI5 set 1 | B63: 2.5 | C63: 0 | D63: 5 | E63: 2.5 | F63: 7.5 | G63: 0 | H63: 0 | I63: 7.5 | J63: 0 | K63: 2.5 | L63: 5 | M63: 12.5 | N63: 10 | O63: 0 | P63: 0 | Q63: 2.5 | R63: 0 | S63: 2.5 | T63: 0 | U63: 5 | V63: 10 | W63: 2.5 | X63: 0 | Y63: 5 | Z63: 0 | AA63: 2.5 | AB63: 5 | AC63: 5 | AD63: 10 | AE63: 2.5
A64: PreErrorC5 set 2 | B64: 2.5 | C64: 0 | D64: 2.5 | E64: 0 | F64: 0 | G64: 2.5 | H64: 5 | I64: 2.5 | J64: 0 | K64: 0 | L64: 0 | M64: 0 | N64: 0 | O64: 0 | P64: 0 | Q64: 0 | R64: 0 | S64: 0 | T64: 0 | U64: 0 | V64: 0 | W64: 0 | X64: 0 | Y64: 0 | Z64: 0 | AA64: 0 | AB64: 0 | AC64: 2.5 | AD64: 5 | AE64: 0
A65: PreErrorI5 set 2 | B65: 12.5 | C65: 2.5 | D65: 0 | E65: 2.5 | F65: 0 | G65: 7.5 | H65: 0 | I65: 5 | J65: 2.5 | K65: 2.5 | L65: 2.5 | M65: 12.5 | N65: 22.5 | O65: 0 | P65: 0 | Q65: 2.5 | R65: 7.5 | S65: 0 | T65: 0 | U65: 2.5 | V65: 7.5 | W65: 10 | X65: 7.5 | Y65: 12.5 | Z65: 2.5 | AA65: 0 | AB65: 2.5 | AC65: 0 | AD65: 5 | AE65: 0
A66: PostErrorC1 set 1 | B66: 0 | C66: 0 | D66: 0 | E66: 0 | F66: 0 | G66: 2.5 | H66: 2.5 | I66: 2.5 | J66: 2.5 | K66: 2.5 | L66: 0 | M66: 0 | N66: 0 | O66: 0 | P66: 0 | Q66: 0 | R66: 0 | S66: 0 | T66: 0 | U66: 0 | V66: 0 | W66: 0 | X66: 2.5 | Y66: 0 | Z66: 0 | AA66: 0 | AB66: 0 | AC66: 0 | AD66: 0 | AE66: 0
A67: PostErrorII1 set 1 | B67: 5 | C67: 2.5 | D67: 2.5 | E67: 0 | F67: 2.5 | G67: 0 | H67: 5 | I67: 7.5 | J67: 2.5 | K67: 2.5 | L67: 5 | M67: 5 | N67: 10 | O67: 0 | P67: 0 | Q67: 0 | R67: 0 | S67: 2.5 | T67: 0 | U67: 0 | V67: 0 | W67: 5 | X67: 2.5 | Y67: 12.5 | Z67: 0 | AA67: 0 | AB67: 0 | AC67: 0 | AD67: 12.5 | AE67: 0
A68: PostErrorC1 set 2 | B68: 2.5 | C68: 0 | D68: 2.5 | E68: 0 | F68: 0 | G68: 0 | H68: 0 | I68: 0 | J68: 0 | K68: 0 | L68: 0 | M68: 0 | N68: 0 | O68: 0 | P68: 0 | Q68: 0 | R68: 0 | S68: 0 | T68: 0 | U68: 0 | V68: 0 | W68: 0 | X68: 0 | Y68: 2.5 | Z68: 0 | AA68: 0 | AB68: 2.5 | AC68: 0 | AD68: 2.5 | AE68: 0
A69: PostErrorII1 set 2 | B69: 12.5 | C69: 5 | D69: 0 | E69: 0 | F69: 5 | G69: 5 | H69: 0 | I69: 5 | J69: 5 | K69: 2.5 | L69: 0 | M69: 0 | N69: 10 | O69: 0 | P69: 2.5 | Q69: 5 | R69: 0 | S69: 5 | T69: 2.5 | U69: 2.5 | V69: 5 | W69: 2.5 | X69: 7.5 | Y69: 15 | Z69: 0 | AA69: 0 | AB69: 0 | AC69: 0 | AD69: 15 | AE69: 2.5
A70: PostErrorC2 set 1 | B70: 0 | C70: 0 | D70: 0 | E70: 0 | F70: 0 | G70: 0 | H70: 0 | I70: 0 | J70: 0 | K70: 0 | L70: 0 | M70: 2.5 | N70: 0 | O70: 0 | P70: 0 | Q70: 0 | R70: 0 | S70: 0 | T70: 0 | U70: 0 | V70: 0 | W70: 2.5 | X70: 0 | Y70: 2.5 | Z70: 0 | AA70: 0 | AB70: 0 | AC70: 2.5 | AD70: 0 | AE70: 0
A71: PostErrorI2 set 1 | B71: 10 | C71: 0 | D71: 5 | E71: 2.5 | F71: 2.5 | G71: 2.5 | H71: 2.5 | I71: 0 | J71: 0 | K71: 0 | L71: 2.5 | M71: 15 | N71: 10 | O71: 0 | P71: 0 | Q71: 0 | R71: 2.5 | S71: 5 | T71: 0 | U71: 10 | V71: 2.5 | W71: 0 | X71: 5 | Y71: 12.5 | Z71: 2.5 | AA71: 0 | AB71: 2.5 | AC71: 0 | AD71: 10 | AE71: 0
A72: PostErrorC2 set 2 | B72: 0 | C72: 0 | D72: 0 | E72: 0 | F72: 0 | G72: 0 | H72: 0 | I72: 0 | J72: 0 | K72: 0 | L72: 0 | M72: 0 | N72: 2.5 | O72: 0 | P72: 0 | Q72: 0 | R72: 0 | S72: 0 | T72: 0 | U72: 0 | V72: 0 | W72: 2.5 | X72: 0 | Y72: 0 | Z72: 0 | AA72: 0 | AB72: 0 | AC72: 0 | AD72: 0 | AE72: 0
A73: PostErrorI2 set 2 | B73: 0 | C73: 2.5 | D73: 0 | E73: 2.5 | F73: 0 | G73: 15 | H73: 0 | I73: 5 | J73: 0 | K73: 2.5 | L73: 7.5 | M73: 7.5 | N73: 0 | O73: 0 | P73: 0 | Q73: 0 | R73: 2.5 | S73: 5 | T73: 0 | U73: 5 | V73: 2.5 | W73: 0 | X73: 5 | Y73: 7.5 | Z73: 5 | AA73: 5 | AB73: 0 | AC73: 0 | AD73: 5 | AE73: 0
A74: PostErrorC3 set 1 | B74: 0 | C74: 0 | D74: 7.5 | E74: 0 | F74: 0 | G74: 0 | H74: 0 | I74: 0 | J74: 0 | K74: 0 | L74: 0 | M74: 0 | N74: 0 | O74: 0 | P74: 0 | Q74: 0 | R74: 0 | S74: 0 | T74: 2.5 | U74: 0 | V74: 0 | W74: 0 | X74: 0 | Y74: 0 | Z74: 0 | AA74: 0 | AB74: 0 | AC74: 7.5 | AD74: 2.5 | AE74: 0
A75: PostErrorI3 set 1 | B75: 7.5 | C75: 2.5 | D75: 7.5 | E75: 2.5 | F75: 2.5 | G75: 5 | H75: 0 | I75: 0 | J75: 2.5 | K75: 2.5 | L75: 2.5 | M75: 7.5 | N75: 2.5 | O75: 0 | P75: 0 | Q75: 5 | R75: 0 | S75: 0 | T75: 2.5 | U75: 12.5 | V75: 12.5 | W75: 0 | X75: 10 | Y75: 5 | Z75: 0 | AA75: 0 | AB75: 2.5 | AC75: 2.5 | AD75: 5 | AE75: 0
A76: PostErrorC3 set 2 | B76: 0 | C76: 0 | D76: 0 | E76: 0 | F76: 0 | G76: 0 | H76: 0 | I76: 0 | J76: 0 | K76: 0 | L76: 0 | M76: 5 | N76: 0 | O76: 0 | P76: 0 | Q76: 0 | R76: 0 | S76: 0 | T76: 0 | U76: 0 | V76: 0 | W76: 0 | X76: 0 | Y76: 0 | Z76: 0 | AA76: 0 | AB76: 0 | AC76: 2.5 | AD76: 2.5 | AE76: 0
A77: PostErrorI3 set 2 | B77: 5 | C77: 0 | D77: 10 | E77: 0 | F77: 10 | G77: 0 | H77: 0 | I77: 2.5 | J77: 2.5 | K77: 0 | L77: 0 | M77: 2.5 | N77: 5 | O77: 5 | P77: 2.5 | Q77: 0 | R77: 0 | S77: 12.5 | T77: 5 | U77: 2.5 | V77: 12.5 | W77: 2.5 | X77: 2.5 | Y77: 12.5 | Z77: 0 | AA77: 5 | AB77: 0 | AC77: 0 | AD77: 10 | AE77: 2.5
A78: PostErrorC4 set 1 | B78: 0 | C78: 2.5 | D78: 0 | E78: 0 | F78: 0 | G78: 0 | H78: 0 | I78: 0 | J78: 0 | K78: 0 | L78: 0 | M78: 0 | N78: 0 | O78: 0 | P78: 0 | Q78: 0 | R78: 0 | S78: 0 | T78: 2.5 | U78: 0 | V78: 0 | W78: 0 | X78: 0 | Y78: 0 | Z78: 2.5 | AA78: 0 | AB78: 0 | AC78: 0 | AD78: 0 | AE78: 0
A79: PostErrorI4 set 1 | B79: 5 | C79: 0 | D79: 2.5 | E79: 2.5 | F79: 7.5 | G79: 5 | H79: 2.5 | I79: 5 | J79: 0 | K79: 0 | L79: 0 | M79: 2.5 | N79: 2.5 | O79: 0 | P79: 0 | Q79: 0 | R79: 5 | S79: 12.5 | T79: 2.5 | U79: 7.5 | V79: 5 | W79: 2.5 | X79: 0 | Y79: 0 | Z79: 5 | AA79: 0 | AB79: 2.5 | AC79: 2.5 | AD79: 12.5 | AE79: 2.5
A80: PostErrorC4 set 2 | B80: 0 | C80: 0 | D80: 0 | E80: 0 | F80: 0 | G80: 0 | H80: 0 | I80: 2.5 | J80: 0 | K80: 2.5 | L80: 0 | M80: 0 | N80: 0 | O80: 0 | P80: 0 | Q80: 0 | R80: 0 | S80: 2.5 | T80: 0 | U80: 0 | V80: 2.5 | W80: 0 | X80: 0 | Y80: 5 | Z80: 0 | AA80: 0 | AB80: 0 | AC80: 2.5 | AD80: 0 | AE80: 0
A81: PostErrorI4 set 2 | B81: 10 | C81: 2.5 | D81: 2.5 | E81: 2.5 | F81: 0 | G81: 2.5 | H81: 0 | I81: 0 | J81: 5 | K81: 0 | L81: 0 | M81: 10 | N81: 0 | O81: 0 | P81: 0 | Q81: 5 | R81: 0 | S81: 2.5 | T81: 2.5 | U81: 2.5 | V81: 7.5 | W81: 0 | X81: 0 | Y81: 15 | Z81: 2.5 | AA81: 2.5 | AB81: 5 | AC81: 2.5 | AD81: 5 | AE81: 2.5
A82: PostErrorC5 set 1 | B82: 0 | C82: 2.5 | D82: 0 | E82: 0 | F82: 0 | G82: 0 | H82: 0 | I82: 0 | J82: 0 | K82: 0 | L82: 0 | M82: 0 | N82: 0 | O82: 0 | P82: 0 | Q82: 0 | R82: 0 | S82: 0 | T82: 0 | U82: 5 | V82: 0 | W82: 0 | X82: 0 | Y82: 2.5 | Z82: 0 | AA82: 0 | AB82: 0 | AC82: 0 | AD82: 2.5 | AE82: 0
A83: PostErrorI5 set 1 | B83: 15 | C83: 0 | D83: 0 | E83: 5 | F83: 0 | G83: 7.5 | H83: 0 | I83: 0 | J83: 2.5 | K83: 2.5 | L83: 0 | M83: 2.5 | N83: 0 | O83: 0 | P83: 0 | Q83: 5 | R83: 7.5 | S83: 7.5 | T83: 5 | U83: 0 | V83: 5 | W83: 5 | X83: 2.5 | Y83: 5 | Z83: 7.5 | AA83: 0 | AB83: 10 | AC83: 2.5 | AD83: 10 | AE83: 0
A84: PostErrorC5 set 2 | B84: 0 | C84: 0 | D84: 0 | E84: 0 | F84: 0 | G84: 0 | H84: 2.5 | I84: 0 | J84: 0 | K84: 0 | L84: 0 | M84: 0 | N84: 0 | O84: 0 | P84: 0 | Q84: 0 | R84: 0 | S84: 0 | T84: 0 | U84: 0 | V84: 0 | W84: 2.5 | X84: 0 | Y84: 0 | Z84: 0 | AA84: 0 | AB84: 0 | AC84: 0 | AD84: 2.5 | AE84: 0
A85: PostErrorI5 set 2 | B85: 5 | C85: 0 | D85: 0 | E85: 10 | F85: 5 | G85: 0 | H85: 0 | I85: 10 | J85: 0 | K85: 2.5 | L85: 2.5 | M85: 0 | N85: 2.5 | O85: 2.5 | P85: 0 | Q85: 0 | R85: 0 | S85: 5 | T85: 0 | U85: 5 | V85: 2.5 | W85: 0 | X85: 0 | Y85: 7.5 | Z85: 0 | AA85: 0 | AB85: 2.5 | AC85: 0 | AD85: 20 | AE85: 0
A86: PreHRC1 set 1 | B86: 73 | C86: 85 | D86: 67 | E86: 81 | F86: 85 | G86: 79 | H86: 107 | I86: 83 | J86: 121 | K86: 69 | L86: 108 | M86: 82 | N86: 97 | O86: 109 | P86: 58 | Q86: 75 | R86: 61 | S86: 105 | T86: 72 | U86: 75 | V86: 75 | W86: 50 | X86: 90 | Y86: 70 | Z86: 66 | AA86: 85 | AB86: 82 | AC86: 86 | AD86: 78 | AE86: 74
A87: PreHR I1 set 1 | B87: 77 | C87: 91 | D87: 82 | E87: 71 | F87: 81 | G87: 76 | H87: 107 | I87: 98 | J87: 118 | K87: 69 | L87: 70 | M87: 82 | N87: 84 | O87: 88 | P87: 78 | Q87: 73 | R87: 58 | S87: 67 | T87: 85 | U87: 69 | V87: 75 | W87: 56 | X87: 94 | Y87: 81 | Z87: 77 | AA87: 78 | AB87: 79 | AC87: 92 | AD87: 79 | AE87: 72
A88: PreHRC1 set2 | B88: 64 | C88: 84 | D88: 75 | E88: 70 | F88: 84 | G88: 79 | H88: 103 | I88: 90 | J88: 116 | K88: 68 | L88: 101 | M88: 84 | N88: 83 | O88: 87 | P88: 81 | Q88: 74 | R88: 56 | S88: 113 | T88: 81 | U88: 64 | V88: 77 | W88: 57 | X88: 91 | Y88: 81 | Z88: 74 | AA88: 70 | AB88: 63 | AC88: 82 | AD88: 77 | AE88: 72
A89: PreHR I1 set2 | B89: 79 | C89: 88 | D89: 73 | E89: 72 | F89: 84 | G89: 82 | H89: 96 | I89: 95 | J89: 119 | K89: 72 | L89: 112 | M89: 83 | N89: 89 | O89: 96 | P89: 78 | Q89: 75 | R89: 65 | S89: 112 | T89: 96 | U89: 66 | V89: 68 | W89: 65 | X89: 102 | Y89: 78 | Z89: 81 | AA89: 76 | AB89: 74 | AC89: 90 | AD89: 85 | AE89: 69
A90: PreHR C2 set1 | B90: 73 | C90: 91 | D90: 73 | E90: 89 | F90: 85 | G90: 80 | H90: 102 | I90: 96 | J90: 116 | K90: 74 | L90: 104 | M90: 82 | N90: 91 | O90: 93 | P90: 88 | Q90: 76 | R90: 68 | S90: 84 | T90: 80 | U90: 65 | V90: 79 | W90: 56 | X90: 92 | Y90: 75 | Z90: 65 | AA90: 70 | AB90: 65 | AC90: 87 | AD90: 85 | AE90: 74
A91: PreHR I2 set1 | B91: 76 | C91: 84 | D91: 76 | E91: 86 | F91: 84 | G91: 86 | H91: 104 | I91: 91 | J91: 109 | K91: 71 | L91: 102 | M91: 82 | N91: 96 | O91: 101 | P91: 85 | Q91: 76 | R91: 63 | S91: 81 | T91: 80 | U91: 64 | V91: 81 | W91: 49 | X91: 99 | Y91: 80 | Z91: 72 | AA91: 76 | AB91: 65 | AC91: 93 | AD91: 87 | AE91: 72
A92: PreHR C2 set2 | B92: 72 | C92: 91 | D92: 76 | E92: 86 | F92: 88 | G92: 80 | H92: 99 | I92: 78 | J92: 108 | K92: 72 | L92: 108 | M92: 86 | N92: 92 | O92: 88 | P92: 73 | Q92: 79 | R92: 63 | S92: 106 | T92: 91 | U92: 70 | V92: 85 | W92: 59 | X92: 94 | Y92: 84 | Z92: 77 | AA92: 76 | AB92: 64 | AC92: 89 | AD92: 76 | AE92: 72
A93: PreHR I2 set2 | B93: 74 | C93: 86 | D93: 75 | E93: 86 | F93: 87 | G93: 80 | H93: 100 | I93: 88 | J93: 107 | K93: 75 | L93: 103 | M93: 83 | N93: 96 | O93: 90 | P93: 82 | Q93: 81 | R93: 74 | S93: 97 | T93: 90 | U93: 68 | V93: 87 | W93: 60 | X93: 99 | Y93: 81 | Z93: 80 | AA93: 77 | AB93: 67 | AC93: 77 | AD93: 75 | AE93: 75
A94: PreHR C3 set1 | B94: 74 | C94: 90 | D94: 71 | E94: 80 | F94: 80 | G94: 80 | H94: 97 | I94: 93 | J94: 99 | K94: 77 | L94: 101 | M94: 80 | N94: 82 | O94: 90 | P94: 88 | Q94: 84 | R94: 66 | S94: 104 | T94: 91 | U94: 77 | V94: 74 | W94: 60 | X94: 95 | Y94: 81 | Z94: 72 | AA94: 78 | AB94: 62 | AC94: 90 | AD94: 73 | AE94: 71
A95: PreHR I3 set1 | B95: 77 | C95: 90 | D95: 76 | E95: 73 | F95: 82 | G95: 79 | H95: 100 | I95: 88 | J95: 113 | K95: 82 | L95: 102 | M95: 77 | N95: 95 | O95: 90 | P95: 80 | Q95: 79 | R95: 72 | S95: 102 | T95: 95 | U95: 64 | V95: 70 | W95: 59 | X95: 104 | Y95: 72 | Z95: 87 | AA95: 81 | AB95: 68 | AC95: 93 | AD95: 81 | AE95: 71
A96: PreHR C3 set2 | B96: 77 | C96: 87 | D96: 69 | E96: 73 | F96: 80 | G96: 76 | H96: 96 | I96: 79 | J96: 108 | K96: 73 | L96: 106 | M96: 75 | N96: 93 | O96: 93 | P96: 87 | Q96: 81 | R96: 80 | S96: 98 | T96: 89 | U96: 62 | V96: 87 | W96: 57 | X96: 100 | Y96: 81 | Z96: 88 | AA96: 68 | AB96: 76 | AC96: 95 | AD96: 81 | AE96: 82
A97: PreHR I3 set2 | B97: 73 | C97: 85 | D97: 77 | E97: 84 | F97: 78 | G97: 78 | H97: 98 | I97: 87 | J97: 112 | K97: 75 | L97: 109 | M97: 79 | N97: 95 | O97: 93 | P97: 72 | Q97: 76 | R97: 71 | S97: 98 | T97: 95 | U97: 76 | V97: 78 | W97: 56 | X97: 88 | Y97: 81 | Z97: 86 | AA97: 68 | AB97: 75 | AC97: 77 | AD97: 77 | AE97: 72
A98: PreHR C4 set1 | B98: 67 | C98: 85 | D98: 70 | E98: 95 | F98: 79 | G98: 67 | H98: 95 | I98: 82 | J98: 105 | K98: 74 | L98: 110 | M98: 79 | N98: 82 | O98: 93 | P98: 82 | Q98: 84 | R98: 61 | S98: 88 | T98: 88 | U98: 67 | V98: 80 | W98: 58 | X98: 97 | Y98: 76 | Z98: 82 | AA98: 79 | AB98: 77 | AC98: 83 | AD98: 69 | AE98: 72
A99: PreHR I4 set1 | B99: 73 | C99: 80 | D99: 74 | E99: 101 | F99: 82 | G99: 66 | H99: 96 | I99: 86 | J99: 111 | K99: 70 | L99: 109 | M99: 75 | N99: 101 | O99: 94 | P99: 84 | Q99: 78 | R99: 68 | S99: 115 | T99: 93 | U99: 66 | V99: 83 | W99: 53 | X99: 96 | Y99: 75 | Z99: 76 | AA99: 71 | AB99: 69 | AC99: 97 | AD99: 75 | AE99: 74
A100: PreHR C4 set2 | B100: 68 | C100: 88 | D100: 76 | E100: 100 | F100: 84 | G100: 65 | H100: 93 | I100: 86 | J100: 111 | K100: 73 | L100: 101 | M100: 81 | N100: 76 | O100: 93 | P100: 79 | Q100: 79 | R100: 65 | S100: 94 | T100: 86 | U100: 74 | V100: 76 | W100: 53 | X100: 96 | Y100: 79 | Z100: 80 | AA100: 73 | AB100: 73 | AC100: 92 | AD100: 64 | AE100: 69
A101: PreHR I4 set2 | B101: 76 | C101: 85 | D101: 73 | E101: 87 | F101: 83 | G101: 64 | H101: 100 | I101: 87 | J101: 114 | K101: 68 | L101: 107 | M101: 77 | N101: 76 | O101: 86 | P101: 79 | Q101: 78 | R101: 65 | S101: 102 | T101: 92 | U101: 69 | V101: 86 | W101: 68 | X101: 93 | Y101: 74 | Z101: 81 | AA101: 69 | AB101: 64 | AC101: 77 | AD101: 66 | AE101: 72
A102: PreHR C5 set1 | B102: 73 | C102: 83 | D102: 72 | E102: 86 | F102: 80 | G102: 63 | H102: 103 | I102: 82 | J102: 112 | K102: 72 | L102: 106 | M102: 79 | N102: 75 | O102: 98 | P102: 90 | Q102: 79 | R102: 77 | S102: 103 | T102: 89 | U102: 65 | V102: 85 | W102: 54 | X102: 95 | Y102: 76 | Z102: 88 | AA102: 74 | AB102: 77 | AC102: 76 | AD102: 79 | AE102: 74
A103: PreHR I5 set1 | B103: 77 | C103: 87 | D103: 71 | E103: 80 | F103: 79 | G103: 77.76 | H103: 91 | I103: 86 | J103: 106 | K103: 73 | L103: 105 | M103: 82 | N103: 74 | O103: 89 | P103: 86 | Q103: 77 | R103: 73 | S103: 90 | T103: 93 | U103: 74 | V103: 74 | W103: 55 | X103: 96 | Y103: 77 | Z103: 83 | AA103: 86 | AB103: 69 | AC103: 89 | AD103: 78 | AE103: 76
A104: PreHR C5 set2 | B104: 74 | C104: 85 | D104: 72 | E104: 80 | F104: 84 | G104: 85 | H104: 96 | I104: 77 | J104: 104 | K104: 74 | L104: 96 | M104: 82 | N104: 81 | O104: 97 | P104: 73 | Q104: 78 | R104: 69 | S104: 101 | T104: 95 | U104: 70 | V104: 80 | W104: 58 | X104: 100 | Y104: 75 | Z104: 84 | AA104: 74 | AB104: 70 | AC104: 86 | AD104: 72 | AE104: 75
A105: PreHR I5 set2 | B105: 74 | C105: 84 | D105: 74 | E105: 91 | F105: 78 | G105: 81 | H105: 93 | I105: 87 | J105: 100 | K105: 72 | L105: 108 | M105: 81 | N105: 78 | O105: 86 | P105: 84 | Q105: 76 | R105: 74 | S105: 101 | T105: 88 | U105: 73 | V105: 87 | W105: 59 | X105: 89 | Y105: 78 | Z105: 80 | AA105: 67 | AB105: 67 | AC105: 75 | AD105: 76 | AE105: 79
A106: PostHR C1 set1 | B106: 84 | C106: 80 | D106: 66 | E106: 82 | F106: 80 | G106: 85 | H106: 95 | I106: 76 | J106: 93 | K106: 62 | L106: 104 | M106: 82 | N106: 70 | O106: 90 | P106: 80 | Q106: 77 | R106: 77 | S106: 94 | T106: 75 | U106: 59 | V106: 75 | W106: 49 | X106: 94 | Y106: 63 | Z106: 51 | AA106: 65 | AB106: 74 | AC106: 77 | AD106: 73 | AE106: 71
A107: PostHR I1 set1 | B107: 76 | C107: 73 | D107: 70 | E107: 73 | F107: 89 | G107: 77 | H107: 87 | I107: 81 | J107: 93 | K107: 68 | L107: 103 | M107: 84 | N107: 73 | O107: 92 | P107: 87 | Q107: 78 | R107: 72 | S107: 82 | T107: 75 | U107: 61 | V107: 85 | W107: 49 | X107: 91 | Y107: 66 | Z107: 51 | AA107: 75 | AB107: 64 | AC107: 94 | AD107: 62 | AE107: 71
A108: PostHR C1 set2 | B108: 77 | C108: 74 | D108: 65 | E108: 100 | F108: 83 | G108: 84 | H108: 100 | I108: 85 | J108: 97 | K108: 69 | L108: 98 | M108: 77 | N108: 75 | O108: 90 | P108: 85 | Q108: 80 | R108: 58 | S108: 70 | T108: 77 | U108: 72 | V108: 75 | W108: 57 | X108: 89 | Y108: 56 | Z108: 65 | AA108: 71 | AB108: 67 | AC108: 88 | AD108: 60 | AE108: 71
A109: PostHR I1 set2 | B109: 78 | C109: 73 | D109: 66 | E109: 92 | F109: 77 | G109: 78 | H109: 97 | I109: 81 | J109: 102 | K109: 65 | L109: 102 | M109: 79 | N109: 74 | O109: 90 | P109: 69 | Q109: 74 | R109: 58 | S109: 77 | T109: 71 | U109: 63 | V109: 74 | W109: 61 | X109: 97 | Y109: 57 | Z109: 76 | AA109: 73 | AB109: 73 | AC109: 89 | AD109: 68 | AE109: 76
A110: PostHR C2 set1 | B110: 72 | C110: 76 | D110: 66 | E110: 102 | F110: 76 | G110: 81 | H110: 100 | I110: 85 | J110: 95 | K110: 67 | L110: 98 | M110: 81 | N110: 78 | O110: 89 | P110: 81 | Q110: 77 | R110: 60 | S110: 70 | T110: 74 | U110: 61 | V110: 69 | W110: 54 | X110: 77 | Y110: 61 | Z110: 78 | AA110: 74 | AB110: 68 | AC110: 91 | AD110: 73 | AE110: 70
A111: PostHR I2 set1 | B111: 79 | C111: 73 | D111: 74 | E111: 88 | F111: 87 | G111: 79 | H111: 98 | I111: 74 | J111: 95 | K111: 71 | L111: 98 | M111: 79 | N111: 73 | O111: 100 | P111: 82 | Q111: 75 | R111: 61 | S111: 90 | T111: 76 | U111: 59 | V111: 76 | W111: 48 | X111: 89 | Y111: 62 | Z111: 80 | AA111: 70 | AB111: 74 | AC111: 90 | AD111: 73 | AE111: 71
A112: PostHR C2 set2 | B112: 71 | C112: 78 | D112: 64 | E112: 96 | F112: 84 | G112: 78 | H112: 94 | I112: 73 | J112: 91 | K112: 71 | L112: 96 | M112: 78 | N112: 76 | O112: 95 | P112: 81 | Q112: 74 | R112: 56 | S112: 90 | T112: 80 | U112: 67 | V112: 74 | W112: 54 | X112: 82 | Y112: 60 | Z112: 77 | AA112: 70 | AB112: 87 | AC112: 88 | AD112: 65 | AE112: 71
A113: PostHR I2 set2 | B113: 76 | C113: 73 | D113: 66 | E113: 94 | F113: 78 | G113: 81 | H113: 90 | I113: 77 | J113: 93 | K113: 65 | L113: 95 | M113: 76 | N113: 73 | O113: 88 | P113: 79 | Q113: 78 | R113: 55 | S113: 85 | T113: 75 | U113: 72 | V113: 76 | W113: 51 | X113: 89 | Y113: 62 | Z113: 70 | AA113: 71 | AB113: 72 | AC113: 78 | AD113: 67 | AE113: 77
A114: PostHR C3 set1 | B114: 82 | C114: 76 | D114: 65 | E114: 96 | F114: 72 | G114: 83 | H114: 88 | I114: 81 | J114: 99 | K114: 68 | L114: 101 | M114: 79 | N114: 73 | O114: 97 | P114: 77 | Q114: 77 | R114: 58 | S114: 93 | T114: 77 | U114: 71 | V114: 74 | W114: 52 | X114: 104 | Y114: 60 | Z114: 59 | AA114: 72 | AB114: 64 | AC114: 79 | AD114: 77 | AE114: 77
A115: PostHR I3 set1 | B115: 77 | C115: 73 | D115: 67 | E115: 95 | F115: 82 | G115: 80 | H115: 93 | I115: 76 | J115: 99 | K115: 65 | L115: 101 | M115: 79 | N115: 81 | O115: 91 | P115: 76 | Q115: 77 | R115: 62 | S115: 90 | T115: 86 | U115: 70 | V115: 66 | W115: 56 | X115: 92 | Y115: 63 | Z115: 64 | AA115: 71 | AB115: 72 | AC115: 88 | AD115: 71 | AE115: 74
A116: PostHR C3 set2 | B116: 75 | C116: 76 | D116: 70 | E116: 88 | F116: 81 | G116: 83 | H116: 98 | I116: 77 | J116: 99 | K116: 68 | L116: 98 | M116: 79 | N116: 81 | O116: 89 | P116: 79 | Q116: 77 | R116: 64 | S116: 89 | T116: 71 | U116: 74 | V116: 76 | W116: 53 | X116: 101 | Y116: 57 | Z116: 65 | AA116: 69 | AB116: 68 | AC116: 90 | AD116: 80 | AE116: 68
A117: PostHR I3 set2 | B117: 81 | C117: 78 | D117: 66 | E117: 89 | F117: 73 | G117: 76 | H117: 89 | I117: 85 | J117: 97 | K117: 68 | L117: 97 | M117: 82 | N117: 93 | O117: 85 | P117: 76 | Q117: 74 | R117: 65 | S117: 83 | T117: 74 | U117: 57 | V117: 64 | W117: 55 | X117: 82 | Y117: 63 | Z117: 75 | AA117: 74 | AB117: 76 | AC117: 90 | AD117: 74 | AE117: 77
A118: PostHR C4 set1 | B118: 77 | C118: 77 | D118: 66 | E118: 64 | F118: 81 | G118: 84 | H118: 94 | I118: 84 | J118: 101 | K118: 64 | L118: 99 | M118: 77 | N118: 80 | O118: 84 | P118: 76 | Q118: 85 | R118: 65 | S118: 80 | T118: 75 | U118: 73 | V118: 79 | W118: 54 | X118: 80 | Y118: 57 | Z118: 71 | AA118: 77 | AB118: 81 | AC118: 85 | AD118: 74 | AE118: 78
A119: PostHR I4 set1 | B119: 81 | C119: 77 | D119: 66 | E119: 66 | F119: 84 | G119: 78 | H119: 87 | I119: 74 | J119: 97 | K119: 70 | L119: 95 | M119: 78 | N119: 70 | O119: 91 | P119: 86 | Q119: 77 | R119: 65 | S119: 88 | T119: 80 | U119: 69 | V119: 68 | W119: 49 | X119: 89 | Y119: 56 | Z119: 73 | AA119: 76 | AB119: 68 | AC119: 92 | AD119: 77 | AE119: 68
A120: PostHR C4 set2 | B120: 74 | C120: 74 | D120: 68 | E120: 83 | F120: 79 | G120: 80 | H120: 97 | I120: 74 | J120: 95 | K120: 67 | L120: 97 | M120: 79 | N120: 70 | O120: 90 | P120: 80 | Q120: 74 | R120: 68 | S120: 79 | T120: 84 | U120: 59 | V120: 73 | W120: 51 | X120: 100 | Y120: 57 | Z120: 67 | AA120: 80 | AB120: 69 | AC120: 92 | AD120: 75 | AE120: 71
A121: PostHR I4 set2 | B121: 77 | C121: 72 | D121: 67 | E121: 82 | F121: 77 | G121: 80 | H121: 104 | I121: 75 | J121: 109 | K121: 74 | L121: 92 | M121: 81 | N121: 70 | O121: 91 | P121: 85 | Q121: 77 | R121: 58 | S121: 90 | T121: 83 | U121: 73 | V121: 73 | W121: 56 | X121: 89 | Y121: 55 | Z121: 75 | AA121: 67 | AB121: 71 | AC121: 95 | AD121: 75 | AE121: 77
A122: PostHR C5 set1 | B122: 72 | C122: 74 | D122: 66 | E122: 92 | F122: 76 | G122: 80 | H122: 102 | I122: 78 | J122: 100 | K122: 73 | L122: 95 | M122: 75 | N122: 70 | O122: 88 | P122: 74 | Q122: 77 | R122: 56 | S122: 84 | T122: 85 | U122: 68 | V122: 73 | W122: 58 | X122: 86 | Y122: 57 | Z122: 74 | AA122: 70 | AB122: 67 | AC122: 88 | AD122: 62 | AE122: 76
A123: PostHR I5 set1 | B123: 76 | C123: 74 | D123: 67 | E123: 82 | F123: 82 | G123: 80 | H123: 99 | I123: 76 | J123: 104 | K123: 63 | L123: 95 | M123: 80 | N123: 70 | O123: 91 | P123: 71 | Q123: 71 | R123: 55 | S123: 100 | T123: 84 | U123: 76 | V123: 73 | W123: 56 | X123: 91 | Y123: 56 | Z123: 70 | AA123: 70 | AB123: 61 | AC123: 81 | AD123: 71 | AE123: 74
A124: PostHR C5 set2 | B124: 79 | C124: 75 | D124: 70 | E124: 93 | F124: 83 | G124: 77 | H124: 102 | I124: 8 | J124: 101 | K124: 67 | L124: 97 | M124: 77 | N124: 63 | O124: 87 | P124: 76 | Q124: 75 | R124: 59 | S124: 90 | T124: 74 | U124: 70 | V124: 79 | W124: 53 | X124: 87 | Y124: 60 | Z124: 62 | AA124: 69 | AB124: 87 | AC124: 81 | AD124: 66 | AE124: 75
A125: PostHR I5 set2 | B125: 86 | C125: 75 | D125: 65 | E125: 98 | F125: 91 | G125: 77 | H125: 91 | I125: 77 | J125: 104 | K125: 69 | L125: 95 | M125: 83 | N125: 63 | O125: 88 | P125: 75 | Q125: 77 | R125: 60 | S125: 83 | T125: 76 | U125: 56 | V125: 77 | W125: 48 | X125: 87 | Y125: 56 | Z125: 60 | AA125: 68 | AB125: 75 | AC125: 90 | AD125: 69 | AE125: 81
A126: weight (lb) | B126: 175 | C126: 126 | D126: 250 | E126: 170 | F126: 160 | G126: 162 | H126: 158 | I126: 126 | J126: 120 | K126: 205 | L126: 155 | M126: 180 | N126: 150 | O126: 125 | P126: 115 | Q126: 160 | R126: 130 | S126: 125 | T126: 130 | U126: 170 | V126: 148 | W126: 195 | X126: 175 | Y126: 194 | Z126: 168 | AA126: 150 | AB126: 120 | AC126: 140 | AD126: 121 | AE126: 170
A127: Height (in) | B127: 62 | C127: 63 | D127: 73 | E127: 69 | F127: 60 | G127: 64 | H127: 66 | I127: 64.5 | J127: 61 | K127: 74 | L127: 63 | M127: 68.5 | N127: 66 | O127: 66 | P127: 64 | Q127: 71 | R127: 63 | S127: 67 | T127: 63 | U127: 71 | V127: 67 | W127: 72 | X127: 67.5 | Y127: 69 | Z127: 69 | AA127: 64 | AB127: 66 | AC127: 63 | AD127: 63 | AE127: 66
A128: Age | B128: 26 | C128: 29 | D128: 31 | E128: 17 | F128: 23 | G128: 30 | H128: 24 | I128: 21 | J128: 19 | K128: 27 | L128: 21 | M128: 24 | N128: 24 | O128: 21 | P128: 25 | Q128: 34 | R128: 18 | S128: 19 | T128: 23 | U128: 19 | V128: 23 | W128: 20 | X128: 18 | Y128: 20 | Z128: 23 | AA128: 20 | AB128: 16 | AC128: 16 | AD128: 24 | AE128: 34
A129: Gender | B129: F | C129: F | D129: M | E129: M | F129: F | G129: F | H129: M | I129: F | J129: F | K129: M | L129: F | M129: F | N129: F | O129: F | P129: F | Q129: M | R129: F | S129: F | T129: F | U129: M | V129: M | W129: M | X129: M | Y129: M | Z129: M | AA129: F | AB129: F | AC129: F | AD129: F | AE129: F
A130: PreHeartRate (bpm) | B130: 70 | C130: 95 | D130: 67 | E130: 88 | F130: 89 | G130: 79 | H130: 100 | I130: 100 | J130: 126 | K130: 61 | L130: 108 | M130: 79 | N130: 83 | O130: 90 | P130: 58 | Q130: 77 | R130: 67 | S130: 105 | T130: 65 | U130: 89 | V130: 86 | W130: 60 | X130: 93 | Y130: 87 | Z130: 83 | AA130: 77 | AB130: 71 | AC130: 86 | AD130: 78 | AE130: 83
A131: prePO2 (%) | B131: 99 | C131: 98 | D131: 99 | E131: 99 | F131: 99 | G131: 96 | H131: 99 | I131: 99 | J131: 99 | K131: 99 | L131: 93 | M131: 97 | N131: 99 | O131: 99 | P131: 96 | Q131: 98 | R131: 99 | S131: 97 | T131: 98 | U131: 98 | V131: 98 | W131: 99 | X131: 98 | Y131: 96 | Z131: 98 | AA131: 99 | AB131: 99 | AC131: 98 | AD131: 99 | AE131: 98
A132: PreBreathingRate (bpm) | B132: 20 | C132: 20 | D132: 30 | E132: 18 | F132: 16 | G132: 22 | H132: 16 | I132: 20 | J132: 16 | K132: 16 | L132: 24 | M132: 40 | N132: 28 | O132: 14 | P132: 16 | Q132: 16 | R132: 16 | S132: 40 | T132: 14 | U132: 12 | V132: 20 | W132: 20 | X132: 10 | Y132: 20 | Z132: 20 | AA132: 20 | AB132: 16 | AC132: 16 | AE132: 6
A133: PostHeartRate (bpm) | B133: 68 | C133: 77 | D133: 65 | E133: 78 | F133: 75 | G133: 77 | H133: 103 | I133: 75 | J133: 97 | K133: 68 | L133: 104 | M133: 95 | N133: 72 | O133: 91 | P133: 75 | Q133: 77 | R133: 62 | S133: 68 | T133: 82 | U133: 89 | V133: 69 | W133: 48 | X133: 87 | Y133: 58 | Z133: 51 | AA133: 78 | AB133: 75 | AC133: 76 | AD133: 70 | AE133: 81
A134: postPO2 (%) | B134: 96 | C134: 99 | D134: 99 | E134: 97 | F134: 99 | G134: 82 | H134: 95 | I134: 99 | J134: 98 | K134: 99 | L134: 97 | M134: 91 | N134: 99 | O134: 99 | P134: 98 | Q134: 98 | R134: 97 | S134: 98 | T134: 98 | U134: 99 | V134: 98 | W134: 99 | X134: 99 | Y134: 99 | Z134: 99 | AA134: 98 | AB134: 99 | AC134: 99 | AD134: 98 | AE134: 98
A135: PostBreathingRate (bpm) | B135: 20 | C135: 18 | D135: 28 | E135: 14 | F135: 14 | G135: 22 | H135: 16 | I135: 20 | J135: 14 | K135: 16 | L135: 22 | M135: 32 | N135: 26 | O135: 14 | P135: 22 | Q135: 16 | R135: 24 | S135: 32 | T135: 14 | U135: 12 | V135: 12 | W135: 24 | X135: 12 | Y135: 22 | Z135: 20 | AA135: 16 | AB135: 20 | AC135: 20 | AE135: 6
A136: calorie expenditure
A137: Time(min) | B137: 30 | C137: 30 | D137: 30 | E137: 30 | F137: 30 | G137: 30 | H137: 20 | I137: 30 | J137: 30 | K137: 30 | L137: 20 | M137: 35 | N137: 30 | O137: 30 | P137: 30 | Q137: 25 | R137: 30 | S137: 30 | T137: 30 | U137: 30 | V137: 30 | W137: 30 | X137: 30 | Y137: 30 | Z137: 30 | AA137: 30 | AB137: 30 | AC137: 30 | AD137: 30 | AE137: 30
A138: BMI (Body Mass Index) | B138: 32 | C138: 22 | D138: 30 | E138: 25 | F138: 31 | G138: 28 | H138: 26 | I138: 21 | J138: 23 | K138: 26 | L138: 27 | M138: 27 | N138: 24 | O138: 20 | P138: 20 | Q138: 22 | R138: 23 | S138: 20 | T138: 23 | U138: 24 | V138: 23 | W138: 26 | X138: 27 | Y138: 29 | Z138: 25 | AA138: 26 | AB138: 19 | AC138: 25 | AD138: 21 | AE138: 27
A139: Race | B139: W | C139: hispanic-w | D139: Hispanic | E139: W | F139: A | G139: A(south) | H139: A | I139: Middle eastern | J139: W | K139: W | L139: M | M139: B | N139: B | O139: W | P139: W | Q139: W | R139: A | S139: A | T139: W | U139: W | V139: M | W139: B | X139: H | Y139: B | Z139: B (M) | AA139: W | AB139: A+W | AC139: B+W | AD139: M | AE139: W
A140: Dist travelled
A141: ADHD | B141: T | C141: F | D141: T | E141: F | F141: F | G141: F | H141: F | I141: F | J141: F | K141: F | L141: F | M141: F | N141: F | O141: T | P141: F | Q141: T | R141: F | S141: F | T141: T | U141: F | V141: F | W141: F | X141: F | Y141: F | Z141: T | AA141: F | AB141: F | AC141: F | AD141: F | AE141: F
A142: On meds | B142: T | D142: F | Q142: 6 hr back | T142: 22 hr back | AB142: F | AC142: F | AD142: f
A143: Smoker | B143: F | C143: F | D143: T | E143: F | F143: F | G143: F | H143: F | I143: F | J143: F | K143: F | L143: F | M143: F | N143: F | O143: T | P143: F | Q143: T | R143: F | S143: F | T143: T | U143: F | V143: F | W143: F | X143: F | Y143: T | Z143: F | AA143: F | AB143: F | AC143: F | AD143: f | AE143: F
A144: color blind | B144: partial, also dyslexia | E144: F | F144: F | G144: F | H144: F | I144: F | J144: F | K144: F | L144: F | M144: F | N144: F | O144: F | P144: F | Q144: F | R144: F | S144: F | T144: F | U144: F | V144: F | W144: F | X144: F | Y144: F | Z144: T | AA144: F | AB144: F | AC144: F | AD144: f
A145: left handed | B145: T | C145: F | D145: F | E145: F | F145: F | G145: F | H145: F | I145: F | J145: F | K145: F | L145: F | M145: F | N145: F | O145: F | P145: F | Q145: F | R145: F | S145: F | T145: F | U145: F | V145: F | W145: F | X145: F | Y145: F | Z145: F | AA145: F | AB145: F | AC145: F | AD145: f
A146: menstruation | R146: F | S146: F | T146: F | Z146: congenital degenerative back disorder: got more comfy chair next time recording | AB146: F | AC146: F | AD146: f
A147: http://www.thecalculatorsite.com/health/bmicalculator.php
A148: % Change HR | B148: =(B133-B130)/B130*100 -> -2.857142857 | C148: =(C133-C130)/C130*100 -> -18.94736842 | D148: =(D133-D130)/D130*100 -> -2.985074627 | E148: -11.36363636 | F148: -15.73033708 | G148: -2.53164557 | H148: 3 | I148: -25 | J148: -23.01587302 | K148: 11.47540984 | L148: -3.703703704 | M148: 20.25316456 | N148: -13.25301205 | O148: 1.111111111 | P148: 29.31034483 | Q148: 0 | R148: -7.462686567 | S148: -35.23809524 | T148: 26.15384615 | U148: 0 | V148: -19.76744186 | W148: -20 | X148: -6.451612903 | Y148: -33.33333333 | Z148: -38.55421687 | AA148: 1.298701299 | AB148: 5.633802817 | AC148: -11.62790698 | AD148: -10.25641026 | AE148: -2.409638554
A149: % Change BR | B149: =(B135-B132)/B132*100 -> 0 | C149: =(C135-C132)/C132*100 -> -10 | D149: =(D135-D132)/D132*100 -> -6.666666667 | E149: -22.22222222 | F149: -12.5 | G149: 0 | H149: 0 | I149: 0 | J149: -12.5 | K149: 0 | L149: -8.333333333 | M149: -20 | N149: -7.142857143 | O149: 0 | P149: 37.5 | Q149: 0 | R149: 50 | S149: -20 | T149: 0 | U149: 0 | V149: -40 | W149: 20 | X149: 20 | Y149: 10 | Z149: 0 | AA149: -20 | AB149: 25 | AC149: 25 | AE149: 0
A150: TotalPreCongError% | B150: =2.5*AVERAGE(B46,B48, B50, B52,B54, B56, B58, B60, B62, B64) -> 2.5 | C150: =2.5*AVERAGE(C46,C48, C50, C52,C54, C56, C58, C60, C62, C64) -> 2.5 | D150: 0.625 | E150: 0.625 | F150: 0 | G150: 1.25 | H150: 1.875 | I150: 0.625 | J150: 0 | K150: 0 | L150: 0 | M150: 1.875 | N150: 1.875 | O150: 0 | P150: 0 | Q150: 0 | R150: 0 | S150: 0 | T150: 0 | U150: 1.25 | V150: 0.625 | W150: 0.625 | X150: 0.625 | Y150: 0.625 | Z150: 0 | AA150: 0 | AB150: 0 | AC150: 1.875 | AD150: 4.375 | AE150: 2.5
A151: TotalPostCongError% | B151: =2.5*AVERAGE(B66, B68, B70, B72, B74, B76, B78, B80, B82, B84) -> 0.625 | C151: =2.5*AVERAGE(C66, C68, C70, C72, C74, C76, C78, C80, C82, C84) -> 1.25 | D151: 2.5 | E151: 0 | F151: 0 | G151: 0.625 | H151: 1.25 | I151: 1.25 | J151: 0.625 | K151: 1.25 | L151: 0 | M151: 1.875 | N151: 0.625 | O151: 0 | P151: 0 | Q151: 0 | R151: 0 | S151: 0.625 | T151: 1.25 | U151: 1.25 | V151: 0.625 | W151: 1.875 | X151: 0.625 | Y151: 3.125 | Z151: 0.625 | AA151: 0 | AB151: 0.625 | AC151: 3.75 | AD151: 3.125 | AE151: 0
A152: Total PreIncongError% | B152: =2.5*AVERAGE(B47, B49, B51, B53, B55, B57, B59, B61, B63, B65) -> 15 | C152: =2.5*AVERAGE(C47, C49, C51, C53, C55, C57, C59, C61, C63, C65) -> 3.125 | D152: 5.625 | E152: 6.25 | F152: 8.125 | G152: 8.75 | H152: 3.125 | I152: 9.375 | J152: 1.25 | K152: 2.5 | L152: 10 | M152: 26.25 | N152: 34.375 | O152: 1.25 | P152: 2.5 | Q152: 8.125 | R152: 5 | S152: 8.75 | T152: 4.375 | U152: 13.125 | V152: 16.25 | W152: 7.5 | X152: 10 | Y152: 13.125 | Z152: 13.125 | AA152: 9.375 | AB152: 3.125 | AC152: 3.75 | AD152: 23.75 | AE152: 5.625
A153: Total PostIncong Error% | B153: =2.5*AVERAGE(B67, B69, B71, B73, B75, B77, B79, B81, B83, B85) -> 18.75 | C153: =2.5*AVERAGE(C67, C69, C71, C73, C75, C77, C79, C81, C83, C85) -> 3.75 | D153: 7.5 | E153: 6.875 | F153: 8.75 | G153: 10.625 | H153: 2.5 | I153: 8.75 | J153: 5 | K153: 3.75 | L153: 5 | M153: 13.125 | N153: 10.625 | O153: 1.875 | P153: 1.25 | Q153: 5 | R153: 4.375 | S153: 14.375 | T153: 5 | U153: 11.875 | V153: 13.75 | W153: 4.375 | X153: 8.75 | Y153: 23.125 | Z153: 5.625 | AA153: 3.125 | AB153: 6.25 | AC153: 2.5 | AD153: 26.25 | AE153: 2.5
A154: Avg-PreCongr (sec) | B154: =AVERAGE(B6,B8,B10,B12,B14,B16,B18,B20,B22,B24) -> 15.7923 | C154: 16.9224 | D154: 14.0199 | E154: 19.6495 | F154: 16.036 | G154: 19.1429 | H154: 12.4022 | I154: 17.3175 | J154: 16.9691 | K154: 13.1377 | L154: 15.0121 | M154: 15.379 | N154: 18.6171 | O154: 21.7224 | P154: 18.1358 | Q154: 14.9518 | R154: 16.8103 | S154: 26.3037 | T154: 16.2128 | U154: 15.6532 | V154: 15.9654 | W154: 16.1548 | X154: 21.3823 | Y154: 19.0102 | Z154: 18.2679 | AA154: 16.8965 | AB154: 13.49 | AC154: 16.4743 | AD154: 22.2767 | AE154: 21.0424
A155: Avg-PreIncongr (sec) | B155: =AVERAGE(B7,B9,B11,B13,B15,B17,B19,B21,B23,B25) -> 35.5728 | C155: 29.6482 | D155: 28.4939 | E155: 34.0263 | F155: 24.3585 | G155: 34.6102 | H155: 34.6781 | I155: 36.427 | J155: 38.1077 | K155: 30.7705 | L155: 31.6972 | M155: 37.8811 | N155: 41.8864 | O155: 29.5171 | P155: 27.7524 | Q155: 42.4379 | R155: 24.3432 | S155: 36.4016 | T155: 32.9362 | U155: 36.4281 | V155: 40.8898 | W155: 35.2886 | X155: 33.0926 | Y155: 30.491 | Z155: 47.182 | AA155: 38.9822 | AB155: 24.6219 | AC155: 26.9042 | AD155: 35.6059 | AE155: 33.8825
A156: Avg-PostCongr (sec) | B156: =AVERAGE(B26,B28,B30,B32,B34,B36,B38,B40,B42,B44) -> 14.1113 | C156: 16.6126 | D156: 13.81 | E156: 16.1643 | F156: 15.9054 | G156: 16.274 | H156: 11.7193 | I156: 16.4213 | J156: 14.8389 | K156: 13.286 | L156: 13.4006 | M156: 14.1237 | N156: 17.8607 | O156: 18.5309 | P156: 17.6523 | Q156: 14.0701 | R156: 14.3361 | S156: 20.6017 | T156: 14.0328 | U156: 13.6863 | V156: 13.4293 | W156: 13.5623 | X156: 20.5763 | Y156: 16.8904 | Z156: 16.9958 | AA156: 15.8195 | AB156: 12.8297 | AC156: 15.6238 | AD156: 23.3091 | AE156: 20.1264
A157: Avg-PostIncongr (sec) | B157: =AVERAGE(B27,B29,B31,B33,B35,B37,B39,B41,B43,B45) -> 33.1789 | C157: 28.0692 | D157: 26.6887 | E157: 31.043 | F157: 23.9479 | G157: 35.0337 | H157: 31.5809 | I157: 33.6213 | J157: 35.894 | K157: 31.6663 | L157: 28.9619 | M157: 33.8615 | N157: 39.6842 | O157: 25.9495 | P157: 25.7055 | Q157: 38.7721 | R157: 22.1562 | S157: 33.7205 | T157: 29.5422 | U157: 31.8691 | V157: 32.2409 | W157: 30.01 | X157: 31.8651 | Y157: 30.1196 | Z157: 42.0249 | AA157: 34.1113 | AB157: 25.2368 | AC157: 26.2884 | AD157: 34.3263 | AE157: 32.2373
A158: %ChangeCongr (sec) | B158: =(B156-B154)/B154*100 -> -10.64442798 | C158: =(C156-C154)/C154*100 -> -1.830709592 | D158: =(D156-D154)/D154*100 -> -1.497157612 | E158: -17.73683809 | F158: -0.8144175605 | G158: -14.98675749 | H158: -5.506281144 | I158: -5.175111881 | J158: -12.5534059 | K158: 1.128812501 | L158: -10.73467403 | M158: -8.162429287 | N158: -4.062931391 | O158: -14.69220712 | P158: -2.66599764 | Q158: -5.896948862 | R158: -14.7183572 | S158: -21.67755867 | T158: -13.44616599 | U158: -12.56548182 | V158: -15.88497626 | W158: -16.04786194 | X158: -3.769472882 | Y158: -11.15085586 | Z158: -6.963580926 | AA158: -6.374101145 | AB158: -4.894736842 | AC158: -5.162586574 | AD158: 4.634438674 | AE158: -4.353115614
A159: %ChangeIncongr (sec) | B159: =(B157-B155)/B155*100 -> -6.729579904 | C159: =(C157-C155)/C155*100 -> -5.325787063 | D159: -6.335391084 | E159: -8.767629745 | F159: -1.685653879 | G159: 1.223627717 | H159: -8.931285163 | I159: -7.702253823 | J159: -5.809062211 | K159: 2.911229912 | L159: -8.629468849 | M159: -10.6110963 | N159: -5.257553764 | O159: -12.08655322 | P159: -7.375578328 | Q159: -8.638033456 | R159: -8.984028394 | S159: -7.36533559 | T159: -10.30477104 | U159: -12.51506392 | V159: -21.15172977 | W159: -14.95837183 | X159: -3.709288481 | Y159: -1.218064347 | Z159: -10.93022763 | AA159: -12.49519011 | AB159: 2.497370227 | AC159: -2.288861962 | AD159: -3.593786423 | AE159: -4.855603925
A160: %ChangeCongruentError | B160: =B151-B150 -> -1.875 | C160: =C151-C150 -> -1.25 | D160: 1.875 | E160: -0.625 | F160: 0 | G160: -0.625 | H160: -0.625 | I160: 0.625 | J160: 0.625 | K160: 1.25 | L160: 0 | M160: 0 | N160: -1.25 | O160: 0 | P160: 0 | Q160: 0 | R160: 0 | S160: 0.625 | T160: 1.25 | U160: 0 | V160: 0 | W160: 1.25 | X160: 0 | Y160: 2.5 | Z160: 0.625 | AA160: 0 | AB160: 0.625 | AC160: 1.875 | AD160: -1.25 | AE160: -2.5
A161: %ChangeIncongError | B161: =B153-B152 -> 3.75 | C161: =C153-C152 -> 0.625 | D161: 1.875 | E161: 0.625 | F161: 0.625 | G161: 1.875 | H161: -0.625 | I161: -0.625 | J161: 3.75 | K161: 1.25 | L161: -5 | M161: -13.125 | N161: -23.75 | O161: 0.625 | P161: -1.25 | Q161: -3.125 | R161: -0.625 | S161: 5.625 | T161: 0.625 | U161: -1.25 | V161: -2.5 | W161: -3.125 | X161: -1.25 | Y161: 10 | Z161: -7.5 | AA161: -6.25 | AB161: 3.125 | AC161: -1.25 | AD161: 2.5 | AE161: -3.125

Sheet transposed
A1: ID (reds lack HR data) | B1: PreCongr1 Set1 | C1: PreIncongr1 Set1 | D1: PreCongr1 Set2 | E1: PreIncongr1 Set2 | F1: PreCongr2 Set1 | G1: PreIncongr2 Set1 | H1: PreCongr2 Set2 | I1: PreIncongr2 Set2 | J1: PreCongr3 Set1 | K1: PreIncongr3 Set1 | L1: PreCongr3 Set2 | M1: PreIncongr3 Set2 | N1: PreCongr4 Set1 | O1: PreIncongr4 Set1 | P1: PreCongr4 Set2 | Q1: PreIncongr4 Set2 | R1: PreCongr5 Set1 | S1: PreIncongr5 Set1 | T1: PreCongr5 Set2 | U1: PreIncongr5 Set2 | V1: PostCongr1 Set1 | W1: PostIncongr1 Set1 | X1: PostCongr1 Set2 | Y1: PostIncongr1 Set2 | Z1: PostCongr2 Set1 | AA1: PostIncongr2 Set1 | AB1: PostCongr2 Set2 | AC1: PostIncongr2 Set2 | AD1: PostCongr3 Set1 | AE1: PostIncongr3 Set1 | AF1: PostCongr3 Set2 | AG1: PostIncongr3 Set2 | AH1: PostCongr4 Set1 | AI1: PostIncongr4 Set1 | AJ1: PostCongr4 Set2 | AK1: PostIncongr4 Set2 | AL1: PostCongr5 Set1 | AM1: PostIncongr5 Set1 | AN1: PostCongr5 Set2 | AO1: PostIncongr5 Set2 | AP1: PreErrorC1 set 1 | AQ1: PreErrorI1 set 1 | AR1: PreErrorC1 set 2 | AS1: PreErrorI1 set 2 | AT1: PreErrorC2 set 1 | AU1: PreErrorI2 set 1 | AV1: PreErrorC2 set 2 | AW1: PreErrorI2 set 2 | AX1: PreErrorC3 set 1 | AY1: PreErrorI3 set 1 | AZ1: PreErrorC3 set 2 | BA1: PreErrorI3 set 2 | BB1: PreErrorC4 set 1 | BC1: PreErrorI4 set 1 | BD1: PreErrorC4 set 2 | BE1: PreErrorI4 set 2 | BF1: PreErrorC5 set 1 | BG1: PreErrorI5 set 1 | BH1: PreErrorC5 set 2 | BI1: PreErrorI5 set 2 | BJ1: PostErrorC1 set 1 | BK1: PostErrorII1 set 1 | BL1: PostErrorC1 set 2 | BM1: PostErrorII1 set 2 | BN1: PostErrorC2 set 1 | BO1: PostErrorI2 set 1 | BP1: PostErrorC2 set 2 | BQ1: PostErrorI2 set 2 | BR1: PostErrorC3 set 1 | BS1: PostErrorI3 set 1 | BT1: PostErrorC3 set 2 | BU1: PostErrorI3 set 2 | BV1: PostErrorC4 set 1 | BW1: PostErrorI4 set 1 | BX1: PostErrorC4 set 2 | BY1: PostErrorI4 set 2 | BZ1: PostErrorC5 set 1 | CA1: PostErrorI5 set 1 | CB1: PostErrorC5 set 2 | CC1: PostErrorI5 set 2 | CD1: PreHRC1 set 1 | CE1: PreHR I1 set 1 | CF1: PreHRC1 set2 | CG1: PreHR I1 set2 | CH1: PreHR C2 set1 | CI1: PreHR I2 set1 | CJ1: PreHR C2 set2 | CK1: PreHR I2 set2 | CL1: PreHR C3 set1 | CM1: PreHR I3 set1 | CN1: PreHR C3 set2 | CO1: PreHR I3 set2 | CP1: PreHR C4 set1 | CQ1: PreHR I4 set1 | CR1: PreHR C4 set2 | CS1: PreHR I4 set2 | CT1: PreHR C5 set1 | CU1: PreHR I5 set1 | CV1: PreHR C5 set2 | CW1: PreHR I5 set2 | CX1: PostHR C1 set1 | CY1: PostHR I1 set1 | CZ1: PostHR C1 set2 | DA1: PostHR I1 set2 | DB1: PostHR C2 set1 | DC1: PostHR I2 set1 | DD1: PostHR C2 set2 | DE1: PostHR I2 set2 | DF1: PostHR C3 set1 | DG1: PostHR I3 set1 | DH1: PostHR C3 set2 | DI1: PostHR I3 set2 | DJ1: PostHR C4 set1 | DK1: PostHR I4 set1 | DL1: PostHR C4 set2 | DM1: PostHR I4 set2 | DN1: PostHR C5 set1 | DO1: PostHR I5 set1 | DP1: PostHR C5 set2 | DQ1: PostHR I5 set2 | DR1: Gender | DS1: BMI | DT1: ADD | DU1: On meds | DV1: Time | DW1: Race | DX1: Age
A2: PM101 | B2: 14.51 | C2: 29.233 | D2: 15.662 | E2: 27.567 | F2: 15.256 | G2: 27.322 | H2: 15.307 | I2: 25.858 | J2: 15.17 | K2: 26.776 | L2: 14.823 | M2: 26.766 | N2: 15.664 | O2: 25.766 | P2: 15.13 | Q2: 27.065 | R2: 15.606 | S2: 27.327 | T2: 14.84 | U2: 27.26 | V2: 14.044 | W2: 23.583 | X2: 15.154 | Y2: 24.112 | Z2: 14.079 | AA2: 25.808 | AB2: 14.05 | AC2: 25.75 | AD2: 13.378 | AE2: 26.73 | AF2: 13.55 | AG2: 27.998 | AH2: 14.843 | AI2: 25.335 | AJ2: 13.66 | AK2: 23.879 | AL2: 13.02 | AM2: 23.778 | AN2: 13.114 | AO2: 23.291 | AP2: 0 | AQ2: 5 | AR2: 0 | AS2: 2.5 | AT2: 0 | AU2: 2.5 | AV2: 0 | AW2: 0 | AX2: 2.5 | AY2: 2.5 | AZ2: 0 | BA2: 2.5 | BB2: 0 | BC2: 2.5 | BD2: 0 | BE2: 2.5 | BF2: 0 | BG2: 5 | BH2: 0 | BI2: 5 | BJ2: 0 | BK2: 2.5 | BL2: 0 | BM2: 0 | BN2: 0 | BO2: 2.5 | BP2: 0 | BQ2: 2.5 | BR2: 0 | BS2: 2.5 | BT2: 0 | BU2: 2.5 | BV2: 0 | BW2: 0 | BX2: 0 | BY2: 0 | BZ2: 0 | CA2: 0 | CB2: 0 | CC2: 0 | CD2: 76 | CE2: 97 | CF2: 85 | CG2: 89 | CH2: 92 | CI2: 94 | CJ2: 101 | CK2: 90 | CL2: 90 | CM2: 91 | CN2: 101 | CO2: 96 | CP2: 91 | CQ2: 80 | CR2: 80 | CS2: 89 | CT2: 97 | CU2: 93 | CV2: 94 | CW2: 90 | CX2: 108 | CY2: 110 | CZ2: 114 | DA2: 108 | DB2: 108 | DC2: 110 | DD2: 109 | DE2: 111 | DF2: 112 | DG2: 107 | DH2: 112 | DI2: 102 | DJ2: 107 | DK2: 103 | DL2: 115 | DM2: 110 | DN2: 108 | DO2: 103 | DP2: 106 | DQ2: 100 | DR2: M | DS2: 23 | DT2: T | DU2: F | DV2: 12.16pm | DW2: W | DX2: 28
A3: RK101 | B3: 21.009 | C3: 40.992 | D3: 21.592 | E3: 45.17 | F3: 19.152 | G3: 38.191 | H3: 22.073 | I3: 42.329 | J3: 21.752 | K3: 40.007 | L3: 21.673 | M3: 43.065 | N3: 21.552 | O3: 38.495 | P3: 22.616 | Q3: 42.705 | R3: 22.152 | S3: 42.512 | T3: 23.913 | U3: 43.273 | V3: 20.552 | W3: 31.116 | X3: 20.712 | Y3: 34.789 | Z3: 19.744 | AA3: 37.831 | AB3: 19.207 | AC3: 39.68 | AD3: 19.943 | AE3: 39.664 | AF3: 20.048 | AG3: 37.166 | AH3: 20.536 | AI3: 43.169 | AJ3: 19.511 | AK3: 36.615 | AL3: 21.688 | AM3: 37.423 | AN3: 19.08 | AO3: 43.241 | AP3: 0 | AQ3: 5 | AR3: 0 | AS3: 7.5 | AT3: 0 | AU3: 0 | AV3: 0 | AW3: 10 | AX3: 0 | AY3: 2.5 | AZ3: 0 | BA3: 2.5 | BB3: 0 | BC3: 0 | BD3: 0 | BE3: 2.5 | BF3: 0 | BG3: 5 | BH3: 0 | BI3: 2.5 | BJ3: 0 | BK3: 0 | BL3: 0 | BM3: 2.5 | BN3: 0 | BO3: 0 | BP3: 0 | BQ3: 5 | BR3: 0 | BS3: 0 | BT3: 0 | BU3: 5 | BV3: 0 | BW3: 5 | BX3: 0 | BY3: 0 | BZ3: 0 | CA3: 0 | CB3: 0 | CC3: 5 | CD3: 98 | CE3: 104 | CF3: 108 | CG3: 104 | CH3: 107 | CI3: 103 | CJ3: 102 | CK3: 109 | CL3: 102 | CM3: 104 | CN3: 110 | CO3: 115 | CP3: 109 | CQ3: 97 | CR3: 99 | CS3: 106 | CT3: 109 | CU3: 106 | CV3: 107 | CW3: 103 | CX3: 112 | CY3: 122 | CZ3: 118 | DA3: 106 | DB3: 112 | DC3: 113 | DD3: 111 | DE3: 115 | DF3: 113 | DG3: 117 | DH3: 104 | DI3: 114 | DJ3: 115 | DK3: 104 | DL3: 103 | DM3: 114 | DN3: 108 | DO3: 111 | DP3: 109 | DQ3: 111 | DR3: F | DS3: 21 | DT3: T | DU3: F | DV3: 1.20 pm | DW3: A(Middle eastern) | DX3: 19
A4: HR101 | B4: 21.719 | C4: 35.279 | D4: 16.264 | E4: 32.191 | F4: 17.167 | G4: 32.327 | H4: 17.84 | I4: 31.703 | J4: 16.871 | K4: 30.886 | L4: 17.056 | M4: 29.43 | N4: 16.928 | O4: 33.527 | P4: 16.335 | Q4: 30.447 | R4: 16.591 | S4: 31.311 | T4: 16.856 | U4: 31.094 | V4: 19.265 | W4: 33.575 | X4: 16.624 | Y4: 29.415 | Z4: 17.047 | AA4: 28.279 | AB4: 13.136 | AC4: 30.327 | AD4: 13.488 | AE4: 29.135 | AF4: 14.327 | AG4: 30.207 | AH4: 13.64 | AI4: 29.088 | AJ4: 14.287 | AK4: 30.679 | AL4: 14.207 | AM4: 33.248 | AN4: 19.359 | AO4: 28.679 | AP4: 0 | AQ4: 2.5 | AR4: 0 | AS4: 0 | AT4: 0 | AU4: 2.5 | AV4: 0 | AW4: 0 | AX4: 0 | AY4: 0 | AZ4: 0 | BA4: 0 | BB4: 0 | BC4: 5 | BD4: 0 | BE4: 0 | BF4: 0 | BG4: 5 | BH4: 0 | BI4: 0 | BJ4: 0 | BK4: 7.5 | BL4: 0 | BM4: 2.5 | BN4: 0 | BO4: 2.5 | BP4: 0 | BQ4: 5 | BR4: 0 | BS4: 0 | BT4: 0 | BU4: 0 | BV4: 0 | BW4: 2.5 | BX4: 0 | BY4: 2.5 | BZ4: 0 | CA4: 0 | CB4: 0 | CC4: 0 | CD4: 87 | CE4: 88 | CF4: 85 | CG4: 85 | CH4: 87 | CI4: 81 | CJ4: 85 | CK4: 83 | CL4: 87 | CM4: 84 | CN4: 89 | CO4: 84 | CP4: 83 | CQ4: 82 | CR4: 84 | CS4: 84 | CT4: 83 | CU4: 83 | CV4: 91 | CW4: 83 | CX4: 92 | CY4: 94 | CZ4: 90 | DA4: 92 | DB4: 92 | DC4: 92 | DD4: 92 | DE4: 87 | DF4: 86 | DG4: 86 | DH4: 87 | DI4: 88 | DJ4: 86 | DK4: 87 | DL4: 82 | DM4: 81 | DN4: 85 | DO4: 81 | DP4: 87 | DQ4: 84 | DR4: M | DS4: 16 | DT4: T | DU4: F | DV4: 2.30 pm | DW4: W | DX4: 34
A5: BH101 | B5: 12.999 | C5: 55.902 | D5: 25.935 | E5: 47.502 | F5: 16.207 | G5: 46.106 | H5: 13.943 | I5: 42.526 | J5: 12.495 | K5: 42.19 | L5: 11.664 | M5: 38.726 | N5: 13.696 | O5: 38.334 | P5: 12.279 | Q5: 39.135 | R5: 12.487 | S5: 38.487 | T5: 12.191 | U5: 39.23 | V5: 11.252 | W5: 35.238 | X5: 12.296 | Y5: 34.231 | Z5: 12.625 | AA5: 33.768 | AB5: 13.191 | AC5: 39.214 | AD5: 10.683 | AE5: 35.976 | AF5: 11.815 | AG5: 34.265 | AH5: 11.503 | AI5: 33.976 | AJ5: 11.591 | AK5: 33.455 | AL5: 10.528 | AM5: 33.351 | AN5: 10.493 | AO5: 30.79 | AP5: 0 | AQ5: 17.5 | AR5: 0 | AS5: 0 | AT5: 0 | AU5: 0 | AV5: 0 | AW5: 5 | AX5: 0 | AY5: 0 | AZ5: 0 | BA5: 2.5 | BB5: 0 | BC5: 5 | BD5: 0 | BE5: 2.5 | BF5: 0 | BG5: 12.5 | BH5: 0 | BI5: 5 | BJ5: 0 | BK5: 5 | BL5: 0 | BM5: 0 | BN5: 0 | BO5: 5 | BP5: 0 | BQ5: 0 | BR5: 0 | BS5: 2.5 | BT5: 0 | BU5: 0 | BV5: 0 | BW5: 0 | BX5: 0 | BY5: 5 | BZ5: 0 | CA5: 0 | CB5: 0 | CC5: 2.5 | DR5: F | DS5: 21 | DT5: T | DU5: T, on meds, 4 hr | DV5: 12.20 pm | DW5: W | DX5: 22
A6: AA101 | B6: 16.791 | C6: 24.535 | D6: 18.528 | E6: 24.703 | F6: 17.576 | G6: 24.832 | H6: 15.951 | I6: 23.896 | J6: 14.815 | K6: 24.015 | L6: 14.848 | M6: 19.695 | N6: 13.424 | O6: 21.447 | P6: 15.12 | Q6: 21.152 | R6: 13.951 | S6: 24.159 | T6: 13.711 | U6: 21.68 | V6: 13.903 | W6: 22.633 | X6: 13.432 | Y6: 19.887 | Z6: 12.895 | AA6: 20.912 | AB6: 13.087 | AC6: 20.016 | AD6: 13.576 | AE6: 21.128 | AF6: 11.464 | AG6: 20.063 | AH6: 13.048 | AI6: 20.887 | AJ6: 12.416 | AK6: 22.167 | AL6: 12.344 | AM6: 21.319 | AN6: 12.759 | AO6: 20.832 | AP6: 0 | AQ6: 0 | AR6: 0 | AS6: 0 | AT6: 0 | AU6: 2.5 | AV6: 0 | AW6: 0 | AX6: 0 | AY6: 0 | AZ6: 0 | BA6: 0 | BB6: 0 | BC6: 0 | BD6: 0 | BE6: 2.5 | BF6: 0 | BG6: 2.5 | BH6: 0 | BI6: 0 | BJ6: 0 | BK6: 0 | BL6: 0 | BM6: 2.5 | BN6: 0 | BO6: 5 | BP6: 0 | BQ6: 2.5 | BR6: 0 | BS6: 5 | BT6: 0 | BU6: 0 | BV6: 0 | BW6: 0 | BX6: 0 | BY6: 0 | BZ6: 0 | CA6: 0 | CB6: 0 | CC6: 2.5 | CD6: 116 | CE6: 114 | CF6: 109 | CG6: 93 | CH6: 83 | CI6: 109 | CJ6: 105 | CK6: 96 | CL6: 111 | CM6: 109 | CN6: 111 | CO6: 111 | CP6: 107 | CQ6: 102 | CR6: 106 | CS6: 107 | CT6: 93 | CU6: 94 | CV6: 109 | CW6: 108 | CX6: 123 | CY6: 122 | CZ6: 122 | DA6: 115 | DB6: 117 | DC6: 110 | DD6: 115 | DE6: 106 | DF6: 108 | DG6: 106 | DH6: 115 | DI6: 105 | DJ6: 107 | DK6: 95 | DL6: 109 | DM6: 106 | DN6: 104 | DO6: 102 | DP6: 105 | DQ6: 110 | DR6: F | DS6: 20 | DT6: T | DU6: T, on meds | DV6: 4.30 pm | DW6: biracial(w+a) | DX6: 24
A7: SN101 | B7: 20.239 | C7: 39.871 | D7: 16.248 | E7: 36.631 | F7: 19.088 | G7: 33.247 | H7: 18.76 | I7: 36.647 | J7: 21.183 | K7: 37.959 | L7: 17.984 | M7: 43.015 | N7: 18.656 | O7: 38.079 | P7: 17.424 | Q7: 38.711 | R7: 19.552 | S7: 43.407 | T7: 20.744 | U7: 41.295 | V7: 17.095 | W7: 34.535 | X7: 18.248 | Y7: 32.607 | Z7: 19.383 | AA7: 37.023 | AB7: 18.903 | AC7: 39.67 | AD7: 19.04 | AE7: 36.607 | AF7: 18.823 | AG7: 45.447 | AH7: 22.263 | AI7: 47.551 | AJ7: 21.983 | AK7: 43.662 | AL7: 19.303 | AM7: 46.271 | AN7: 22.863 | AO7: 48.247 | AP7: 0 | AQ7: 2.5 | AR7: 0 | AS7: 0 | AT7: 0 | AU7: 0 | AV7: 0 | AW7: 2.5 | AX7: 2.5 | AY7: 0 | AZ7: 0 | BA7: 5 | BB7: 0 | BC7: 0 | BD7: 0 | BE7: 0 | BF7: 0 | BG7: 0 | BH7: 0 | BI7: 0 | BJ7: 0 | BK7: 5 | BL7: 0 | BM7: 2.5 | BN7: 0 | BO7: 0 | BP7: 0 | BQ7: 0 | BR7: 0 | BS7: 0 | BT7: 0 | BU7: 2.5 | BV7: 0 | BW7: 2.5 | BX7: 0 | BY7: 2.5 | BZ7: 0 | CA7: 0 | CB7: 0 | CC7: 0 | CD7: 128 | CE7: 113 | CF7: 104 | CG7: 115 | CH7: 108 | CI7: 115 | CJ7: 118 | CK7: 123 | CL7: 108 | CM7: 104 | CN7: 107 | CO7: 110 | CP7: 111 | CQ7: 110 | CR7: 123 | CS7: 112 | CT7: 114 | CU7: 106 | CV7: 112 | CW7: 110 | CX7: 132 | CY7: 132 | CZ7: 128 | DA7: 127 | DB7: 128 | DC7: 125 | DD7: 124 | DE7: 118 | DF7: 119 | DG7: 109 | DH7: 114 | DI7: 106 | DJ7: 104 | DK7: 106 | DL7: 102 | DM7: 109 | DN7: 108 | DO7: 102 | DP7: 94 | DQ7: 104 | DR7: F | DS7: 20 | DT7: T | DU7: T, not on meds on day of exercise; takes Adderall | DV7: 11.59am | DW7: W | DX7: 19
A8: DZ101 | B8: 16.847 | C8: 25.887 | D8: 15.672 | E8: 25.383 | F8: 15.935 | G8: 26.687 | H8: 13.832 | I8: 25.399 | J8: 15.784 | K8: 25.407 | L8: 14.24 | M8: 27.758 | N8: 13.872 | O8: 23.103 | P8: 13.655 | Q8: 26.904 | R8: 14.152 | S8: 24.431 | T8: 13.288 | U8: 25.583 | V8: 13.359 | W8: 24.375 | X8: 12.984 | Y8: 24.751 | Z8: 13.52 | AA8: 23.007 | AB8: 16.031 | AC8: 27.895 | AD8: 18.704 | AE8: 26.831 | AF8: 19.479 | AG8: 26.558 | AH8: 18.239 | AI8: 28.127 | AJ8: 18.247 | AK8: 28.167 | AL8: 19.831 | AM8: 25.551 | AN8: 19.759 | AO8: 27.703 | AP8: 0 | AQ8: 0 | AR8: 0 | AS8: 2.5 | AT8: 0 | AU8: 0 | AV8: 0 | AW8: 2.5 | AX8: 2.5 | AY8: 0 | AZ8: 0 | BA8: 2.5 | BB8: 0 | BC8: 2.5 | BD8: 0 | BE8: 0 | BF8: 0 | BG8: 0 | BH8: 0 | BI8: 2.5 | BJ8: 0 | BK8: 0 | BL8: 0 | BM8: 5 | BN8: 0 | BO8: 5 | BP8: 0 | BQ8: 0 | BR8: 0 | BS8: 0 | BT8: 0 | BU8: 0 | BV8: 0 | BW8: 0 | BX8: 0 | BY8: 0 | BZ8: 0 | CA8: 0 | CB8: 0 | CC8: 2.5 | CD8: 73 | CE8: 81 | CF8: 72 | CG8: 73 | CH8: 85 | CI8: 78 | CJ8: 73 | CK8: 85 | CL8: 78 | CM8: 84 | CN8: 78 | CO8: 82 | CP8: 76 | CQ8: 76 | CR8: 81 | CS8: 79 | CT8: 82 | CU8: 70 | CV8: 76 | CW8: 85 | CX8: 105 | CY8: 106 | CZ8: 107 | DA8: 106 | DB8: 105 | DC8: 104 | DD8: 106 | DE8: 103 | DF8: 103 | DG8: 105 | DH8: 104 | DI8: 99 | DJ8: 101 | DK8: 101 | DL8: 100 | DM8: 109 | DN8: 110 | DO8: 105 | DP8: 101 | DQ8: 99 | DR8: M | DS8: 20 | DT8: F | DU8: F | DV8: 4.20 pm | DW8: W | DX8: 23
A9: ER101 | B9: 10.661 | C9: 27.502 | D9: 12.717 | E9: 23.902 | F9: 12.656 | G9: 22.639 | H9: 10.991 | I9: 27.335 | J9: 10.432 | K9: 23.056 | L9: 9.151 | M9: 20.631 | N9: 9.496 | O9: 21.167 | P9: 9.535 | Q9: 20.823 | R9: 10.184 | S9: 20.823 | T9: 9.087 | U9: 21.151 | V9: 9.704 | W9: 20.479 | X9: 9.991 | Y9: 18.92 | Z9: 10.656 | AA9: 21.687 | AB9: 10.431 | AC9: 20.935 | AD9: 10.455 | AE9: 22.727 | AF9: 10.136 | AG9: 22.375 | AH9: 10.64 | AI9: 20.095 | AJ9: 9.992 | AK9: 23.391 | AL9: 10.559 | AM9: 22.951 | AN9: 10.496 | AO9: 22.647 | AP9: 0 | AQ9: 2.5 | AR9: 0 | AS9: 2.5 | AT9: 0 | AU9: 5 | AV9: 0 | AW9: 0 | AX9: 0 | AY9: 2.5 | AZ9: 0 | BA9: 0 | BB9: 0 | BC9: 0 | BD9: 0 | BE9: 0 | BF9: 0 | BG9: 0 | BH9: 0 | BI9: 2.5 | BJ9: 0 | BK9: 0 | BL9: 0 | BM9: 0 | BN9: 0 | BO9: 0 | BP9: 0 | BQ9: 5 | BR9: 0 | BS9: 0 | BT9: 0 | BU9: 2.5 | BV9: 0 | BW9: 0 | BX9: 0 | BY9: 2.5 | BZ9: 0 | CA9: 0 | CB9: 0 | CC9: 0 | CD9: 70 | CE9: 73 | CF9: 70 | CG9: 70 | CH9: 70 | CI9: 70 | CJ9: 74 | CK9: 75 | CL9: 72 | CM9: 69 | CN9: 69 | CO9: 74 | CP9: 76 | CQ9: 77 | CR9: 77 | CS9: 77 | CT9: 77 | CU9: 66 | CV9: 65 | CW9: 64 | CX9: 64 | CY9: 70 | CZ9: 73 | DA9: 77 | DB9: 73 | DC9: 74 | DD9: 71 | DE9: 71 | DF9: 72 | DG9: 73 | DH9: 74 | DI9: 75 | DJ9: 73 | DK9: 73 | DL9: 73 | DM9: 69 | DN9: 65 | DO9: 67 | DP9: 68 | DQ9: 68 | DR9: M | DS9: 23 | DT9: F | DU9: f | DV9: 2.20 pm | DW9: W | DX9: 25
A10: TN101 | B10: 17.016 | C10: 34.471 | D10: 19.607 | E10: 38.003 | F10: 19.759 | G10: 36.143 | H10: 18.023 | I10: 31.703 | J10: 17.663 | K10: 35.615 | L10: 17.703 | M10: 33.831 | N10: 17.519 | O10: 34.663 | P10: 18.223 | Q10: 30.215 | R10: 17.952 | S10: 33.159 | T10: 17.784 | U10: 30.447 | V10: 17.583 | W10: 30.791 | X10: 18.055 | Y10: 35.86 | Z10: 17.288 | AA10: 32.255 | AB10: 18.335 | AC10: 30.407 | AD10: 17.447 | AE10: 29.279 | AF10: 17.142 | AG10: 28.415 | AH10: 16.824 | AI10: 31.896 | AJ10: 16.408 | AK10: 27.512 | AL10: 18.376 | AM10: 29.679 | AN10: 16.791 | AO10: 32.311 | AP10: 0 | AQ10: 5 | AR10: 0 | AS10: 5 | AT10: 0 | AU10: 5 | AV10: 0 | AW10: 2.5 | AX10: 0 | AY10: 5 | AZ10: 0 | BA10: 5 | BB10: 0 | BC10: 2.5 | BD10: 0 | BE10: 0 | BF10: 0 | BG10: 0 | BH10: 0 | BI10: 0 | BJ10: 0 | BK10: 0 | BL10: 0 | BM10: 10 | BN10: 0 | BO10: 2.5 | BP10: 0 | BQ10: 0 | BR10: 0 | BS10: 0 | BT10: 0 | BU10: 0 | BV10: 0 | BW10: 0 | BX10: 0 | BY10: 0 | BZ10: 0 | CA10: 0 | CB10: 0 | CC10: 5 | CD10: 77 | CE10: 76 | CF10: 67 | CG10: 72 | CH10: 79 | CI10: 80 | CJ10: 75 | CK10: 76 | CL10: 64 | CM10: 78 | CN10: 71 | CO10: 73 | CP10: 68 | CQ10: 78 | CR10: 77 | CS10: 81 | CT10: 73 | CU10: 68 | CV10: 71 | CW10: 71 | CX10: 99 | CY10: 102 | CZ10: 95 | DA10: 91 | DB10: 87 | DC10: 94 | DD10: 89 | DE10: 90 | DF10: 90 | DG10: 88 | DH10: 86 | DI10: 87 | DJ10: 87 | DK10: 84 | DL10: 91 | DM10: 85 | DN10: 87 | DO10: 85 | DP10: 84 | DQ10: 82 | DR10: F | DS10: 21 | DT10: F | DU10: f | DV10: 3.30 pm | DW10: A | DX10: 19
A11: EJ101 | B11: 18.592 | C11: 32.584 | D11: 24.472 | E11: 30.008 | F11: 24.352 | G11: 30.032 | H11: 21.888 | I11: 30.536 | J11: 19.488 | K11: 29.703 | L11: 20.568 | M11: 32.303 | N11: 19.423 | O11: 30.687 | P11: 19.287 | Q11: 31.111 | R11: 19.472 | S11: 29.607 | T11: 19.6 | U11: 29.216 | V11: 17.495 | W11: 28.455 | X11: 18.352 | Y11: 28.944 | Z11: 17.016 | AA11: 29.824 | AB11: 16.56 | AC11: 30.208 | AD11: 16.76 | AE11: 26.304 | AF11: 15.791 | AG11: 30.927 | AH11: 18.223 | AI11: 29.399 | AJ11: 17.432 | AK11: 34.783 | AL11: 17.88 | AM11: 29.711 | AN11: 17.416 | AO11: 27.927 | AP11: 0 | AQ11: 0 | AR11: 0 | AS11: 0 | AT11: 0 | AU11: 0 | AV11: 0 | AW11: 0 | AX11: 0 | AY11: 2.5 | AZ11: 0 | BA11: 0 | BB11: 0 | BC11: 0 | BD11: 0 | BE11: 0 | BF11: 0 | BG11: 2.5 | BH11: 0 | BI11: 0 | BJ11: 0 | BK11: 0 | BL11: 0 | BM11: 0 | BN11: 0 | BO11: 5 | BP11: 0 | BQ11: 2.5 | BR11: 0 | BS11: 0 | BT11: 0 | BU11: 0 | BV11: 0 | BW11: 0 | BX11: 2.5 | BY11: 2.5 | BZ11: 0 | CA11: 5 | CB11: 0 | CC11: 0 | CD11: 74 | CE11: 75 | CF11: 74 | CG11: 73 | CH11: 77 | CI11: 79 | CJ11: 88 | CK11: 81 | CL11: 83 | CM11: 84 | CN11: 90 | CO11: 81 | CP11: 85 | CQ11: 80 | CR11: 88 | CS11: 80 | CT11: 95 | CU11: 84 | CV11: 96 | CW11: 89 | CX11: 107 | CY11: 109 | CZ11: 109 | DA11: 103 | DB11: 97 | DC11: 104 | DD11: 95 | DE11: 103 | DF11: 95 | DG11: 106 | DH11: 100 | DI11: 103 | DJ11: 93 | DK11: 103 | DL11: 99 | DM11: 96 | DN11: 98 | DO11: 102 | DP11: 97 | DQ11: 108 | DR11: F | DS11: 27 | DT11: F | DU11: f | DV11: 2.20 pm | DW11: W | DX11: 22
A12: DJ101 | B12: 17.544 | C12: 39.863 | D12: 17.112 | E12: 42.207 | F12: 16.76 | G12: 45.406 | H12: 15.936 | I12: 38.167 | J12: 16.159 | K12: 44.67 | L12: 19.055 | M12: 37.679 | N12: 19.032 | O12: 39.591 | P12: 18.199 | Q12: 36.903 | R12: 15.879 | S12: 40.007 | T12: 17.032 | U12: 37.575 | V12: 15.664 | W12: 39.183 | X12: 18.816 | Y12: 36.976 | Z12: 17.527 | AA12: 38.879 | AB12: 16.16 | AC12: 43.359 | AD12: 16.176 | AE12: 39.158 | AF12: 19.607 | AG12: 36.495 | AH12: 16.504 | AI12: 39.767 | AJ12: 16.871 | AK12: 38.375 | AL12: 17.232 | AM12: 4.775 | AN12: 18.007 | AO12: 43.543 | AP12: 0 | AQ12: 7.5 | AR12: 2.5 | AS12: 5 | AT12: 2.5 | AU12: 5 | AV12: 0 | AW12: 0 | AX12: 0 | AY12: 2.5 | AZ12: 0 | BA12: 0 | BB12: 0 | BC12: 0 | BD12: 0 | BE12: 0 | BF12: 2.5 | BG12: 2.5 | BH12: 0 | BI12: 0 | BJ12: 0 | BK12: 0 | BL12: 0 | BM12: 0 | BN12: 0 | BO12: 5 | BP12: 0 | BQ12: 2.5 | BR12: 0 | BS12: 0 | BT12: 2.5 | BU12: 2.5 | BV12: 0 | BW12: 2.5 | BX12: 0 | BY12: 0 | BZ12: 0 | CA12: 5 | CB12: 0 | CC12: 0 | CD12: 84 | CE12: 87 | CF12: 75 | CG12: 89 | CH12: 86 | CI12: 90 | CJ12: 81 | CK12: 85 | CL12: 78 | CM12: 83 | CN12: 74 | CO12: 74 | CP12: 76 | CQ12: 75 | CR12: 74 | CS12: 76 | CT12: 76 | CU12: 81 | CV12: 74 | CW12: 80 | CX12: 106 | CY12: 95 | CZ12: 101 | DA12: 101 | DB12: 103 | DC12: 96 | DD12: 105 | DE12: 99 | DF12: 103 | DG12: 100 | DH12: 88 | DI12: 100 | DJ12: 105 | DK12: 96 | DL12: 101 | DM12: 97 | DN12: 98 | DO12: 93 | DP12: 83 | DQ12: 91 | DR12: M | DS12: 25 | DT12: F | DU12: f | DV12: 1:00 PM | DW12: W | DX12: 24
A13: KM101 | B13: 17.8 | C13: 37.071 | D13: 18.831 | E13: 42.031 | F13: 17.496 | G13: 46.398 | H13: 18.112 | I13: 41.198 | J13: 16.351 | K13: 48.487 | L13: 17.655 | M13: 40.911 | N13: 15.824 | O13: 38.991 | P13: 18.519 | Q13: 41.543 | R13: 17.44 | S13: 43.351 | T13: 17.383 | U13: 40.375 | V13: 15.84 | W13: 39.254 | X13: 16.608 | Y13: 38.71 | Z13: 17.528 | AA13: 40.031 | AB13: 19.512 | AC13: 46.967 | AD13: 14.568 | AE13: 41.094 | AF13: 16.711 | AG13: 50.719 | AH13: 18.479 | AI13: 41.879 | AJ13: 18.272 | AK13: 45.238 | AL13: 17.079 | AM13: 43.111 | AN13: 15.664 | AO13: 37.103 | AP13: 0 | AQ13: 0 | AR13: 0 | AS13: 2.5 | AT13: 0 | AU13: 0 | AV13: 2.5 | AW13: 0 | AX13: 0 | AY13: 7.5 | AZ13: 0 | BA13: 0 | BB13: 0 | BC13: 0 | BD13: 0 | BE13: 0 | BF13: 0 | BG13: 0 | BH13: 2.5 | BI13: 0 | BJ13: 0 | BK13: 2.5 | BL13: 0 | BM13: 2.5 | BN13: 0 | BO13: 0 | BP13: 0 | BQ13: 5 | BR13: 0 | BS13: 0 | BT13: 0 | BU13: 0 | BV13: 0 | BW13: 0 | BX13: 2.5 | BY13: 0 | BZ13: 0 | CA13: 2.5 | CB13: 0 | CC13: 0 | CD13: 103 | CE13: 103 | CF13: 111 | CG13: 112 | CH13: 113 | CI13: 117 | CJ13: 111 | CK13: 110 | CL13: 112 | CM13: 130 | CN13: 118 | CO13: 112 | CP13: 111 | CQ13: 111 | CR13: 113 | CS13: 99 | CT13: 100 | CU13: 111 | CV13: 107 | CW13: 109 | CX13: 114 | CY13: 113 | CZ13: 120 | DA13: 120 | DB13: 114 | DC13: 120 | DD13: 115 | DE13: 111 | DF13: 122 | DG13: 108 | DH13: 117 | DI13: 110 | DJ13: 118 | DK13: 114 | DL13: 109 | DM13: 110 | DN13: 111 | DO13: 112 | DP13: 111 | DQ13: 109 | DR13: F | DS13: 17 | DT13: T | DU13: T, on meds but not today | DV13: 2:00 PM | DW13: W | DX13: 20
A14: JC102 | B14: 14.544 | C14: 26.616 | D14: 15.678 | E14: 29.255 | F14: 15.608 | G14: 27.599 | H14: 15.378 | I14: 29.4 | J14: 15.143 | K14: 26.999 | L14: 15.032 | M14: 26.567 | N14: 14.615 | O14: 25.855 | P14: 14.623 | Q14: 26.895 | R14: 16.623 | S14: 26.192 | T14: 15.495 | U14: 29.335 | V14: 15.768 | W14: 24.327 | X14: 14.4 | Y14: 25.855 | Z14: 13.16 | AA14: 26.663 | AB14: 13.977 | AC14: 25.184 | AD14: 14.031 | AE14: 26.183 | AF14: 14.063 | AG14: 25.088 | AH14: 13.027 | AI14: 24.127 | AJ14: 15.568 | AK14: 24.551 | AL14: 13.728 | AM14: 23.735 | AN14: 14.927 | AO14: 28.608 | AP14: 0 | AQ14: 0 | AR14: 0 | AS14: 2.5 | AT14: 0 | AU14: 2.5 | AV14: 0 | AW14: 0 | AX14: 0 | AY14: 0 | AZ14: 0 | BA14: 0 | BB14: 0 | BC14: 0 | BD14: 0 | BE14: 0 | BF14: 0 | BG14: 0 | BH14: 0 | BI14: 0 | BJ14: 0 | BK14: 0 | BL14: 0 | BM14: 0 | BN14: 0 | BO14: 0 | BP14: 0 | BQ14: 0 | BR14: 0 | BS14: 0 | BT14: 0 | BU14: 0 | BV14: 2.5 | BW14: 0 | BX14: 0 | BY14: 0 | BZ14: 0 | CA14: 0 | CB14: 0 | CC14: 2.5 | CD14: 86 | CE14: 15 | CF14: 84 | CG14: 84 | CH14: 74 | CI14: 78 | CJ14: 82 | CK14: 83 | CL14: 86 | CM14: 82 | CN14: 86 | CO14: 83 | CP14: 80 | CQ14: 79 | CR14: 77 | CS14: 82 | CT14: 76 | CU14: 79 | CV14: 81 | CW14: 74 | CX14: 86 | CY14: 81 | CZ14: 81 | DA14: 85 | DB14: 84 | DC14: 82 | DD14: 81 | DE14: 85 | DF14: 79 | DG14: 87 | DH14: 82 | DI14: 85 | DJ14: 81 | DK14: 80 | DL14: 80 | DM14: 78 | DN14: 78 | DO14: 79 | DP14: 85 | DQ14: 75 | DR14: M | DS14: 29 | DT14: F | DU14: F | DV14: 12 noon | DW14: W | DX14: 24
A15: DP101 | B15: 22.815 | C15: 41.032 | D15: 25.077 | E15: 45.134 | F15: 23.6 | G15: 45.632 | H15: 23.608 | I15: 43.021 | J15: 25.049 | K15: 39.609 | L15: 21.088 | M15: 39.798 | N15: 24.29 | O15: 43.686 | P15: 21.441 | Q15: 45.6 | R15: 20.608 | S15: 40.688 | T15: 24.872 | U15: 54.384 | V15: 21.033 | W15: 44.665 | X15: 20.752 | Y15: 48.966 | Z15: 23.272 | AA15: 46.409 | AB15: 19.04 | AC15: 45.946 | AD15: 21.702 | AE15: 41.88 | AF15: 27.102 | AG15: 41.688 | AH15: 19.121 | AI15: 42.064 | AJ15: 20.383 | AK15: 44.406 | AL15: 22.138 | AM15: 43.266 | AN15: 18.518 | AO15: 44.913 | AP15: 0 | AQ15: 0 | AR15: 0 | AS15: 0 | AT15: 0 | AU15: 0 | AV15: 0 | AW15: 0 | AX15: 2.5 | AY15: 0 | AZ15: 0 | BA15: 0 | BB15: 2.5 | BC15: 5 | BD15: 0 | BE15: 0 | BF15: 0 | BG15: 2.5 | BH15: 0 | BI15: 0 | BJ15: 0 | BK15: 0 | BL15: 0 | BM15: 2.5 | BN15: 0 | BO15: 0 | BP15: 0 | BQ15: 0 | BR15: 0 | BS15: 0 | BT15: 7.5 | BU15: 0 | BV15: 0 | BW15: 0 | BX15: 0 | BY15: 0 | BZ15: 0 | CA15: 2.5 | CB15: 0 | CC15: 2.5 | CD15: 70 | CE15: 73 | CF15: 72 | CG15: 67 | CH15: 67 | CI15: 69 | CJ15: 67 | CK15: 67 | CL15: 65 | CM15: 66 | CN15: 68 | CO15: 62 | CP15: 64 | CQ15: 63 | CR15: 61 | CS15: 65 | CT15: 72 | CU15: 70 | CV15: 62 | CW15: 67 | CX15: 78 | CY15: 77 | CZ15: 72 | DA15: 74 | DB15: 74 | DC15: 74 | DD15: 76 | DE15: 76 | DF15: 68 | DG15: 71 | DH15: 64 | DI15: 75 | DJ15: 71 | DK15: 75 | DL15: 74 | DM15: 74 | DN15: 73 | DO15: 73 | DP15: 71 | DQ15: 68 | DR15: F | DS15: 28 | DT15: T | DU15: F, no meds, WPW wolff parkinson white | DV15: 11.30 pm | DW15: W | DX15: 33
A16: JF101 | B16: 15.368 | C16: 31.433 | D16: 17.897 | E16: 32.164 | F16: 15.937 | G16: 32.624 | H16: 14.91 | I16: 31.284 | J16: 13.626 | K16: 33.528 | L16: 13.647 | M16: 34.456 | N16: 13.6 | O16: 30.185 | P16: 12.44 | Q16: 33.95 | R16: 12.544 | S16: 27.111 | T16: 12.057 | U16: 29.208 | V16: 12.319 | W16: 24.576 | X16: 12.631 | Y16: 27.609 | Z16: 13.488 | AA16: 25.961 | AB16: 13.024 | AC16: 29.67 | AD16: 13.545 | AE16: 28.078 | AF16: 13.454 | AG16: 28.625 | AH16: 13.336 | AI16: 28.144 | AJ16: 13.208 | AK16: 28.016 | AL16: 14.479 | AM16: 27.618 | AN16: 13.038 | AO16: 28.257 | AP16: 0 | AQ16: 0 | AR16: 0 | AS16: 0 | AT16: 0 | AU16: 0 | AV16: 0 | AW16: 2.5 | AX16: 0 | AY16: 2.5 | AZ16: 0 | BA16: 0 | BB16: 0 | BC16: 0 | BD16: 0 | BE16: 0 | BF16: 0 | BG16: 0 | BH16: 0 | BI16: 5 | BJ16: 0 | BK16: 0 | BL16: 0 | BM16: 2.5 | BN16: 0 | BO16: 0 | BP16: 0 | BQ16: 5 | BR16: 0 | BS16: 0 | BT16: 0 | BU16: 2.5 | BV16: 0 | BW16: 2.5 | BX16: 0 | BY16: 0 | BZ16: 2.5 | CA16: 0 | CB16: 0 | CC16: 2.5 | CD16: 74 | CE16: 66 | CF16: 70 | CG16: 68 | CH16: 68 | CI16: 66 | CJ16: 70 | CK16: 68 | CL16: 77 | CM16: 71 | CN16: 72 | CO16: 72 | CP16: 68 | CQ16: 70 | CR16: 71 | CS16: 68 | CT16: 69 | CU16: 74 | CV16: 73 | CW16: 69 | CX16: 91 | CY16: 90 | CZ16: 89 | DA16: 88 | DB16: 85 | DC16: 85 | DD16: 86 | DE16: 81 | DF16: 81 | DG16: 88 | DH16: 83 | DI16: 83 | DJ16: 80 | DK16: 82 | DL16: 80 | DM16: 82 | DN16: 82 | DO16: 84 | DP16: 83 | DQ16: 81 | DR16: M | DS16: 30 | DT16: T | DU16: F | DV16: 1.30 pm | DW16: Hispanic | DX16: 31
A17: CN101 | B17: 18.388 | C17: 40.983 | D17: 18.172 | E17: 36.182 | F17: 17.328 | G17: 34.927 | H17: 15.471 | I17: 37.944 | J17: 14.967 | K17: 36.095 | L17: 15.008 | M17: 33.463 | N17: 14.063 | O17: 38.983 | P17: 14.168 | Q17: 35.303 | R17: 14.336 | S17: 34.815 | T17: 15.312 | U17: 35.775 | V17: 14.767 | W17: 29.487 | X17: 15.368 | Y17: 33.343 | Z17: 14.104 | AA17: 29.423 | AB17: 12.376 | AC17: 30.959 | AD17: 13.207 | AE17: 30.655 | AF17: 12.696 | AG17: 29.815 | AH17: 13.592 | AI17: 27.839 | AJ17: 13.216 | AK17: 30.279 | AL17: 12.199 | AM17: 30.095 | AN17: 12.896 | AO17: 27.487 | AP17: 0 | AQ17: 5 | AR17: 0 | AS17: 2.5 | AT17: 0 | AU17: 5 | AV17: 0 | AW17: 2.5 | AX17: 0 | AY17: 7.5 | AZ17: 0 | BA17: 0 | BB17: 0 | BC17: 7.5 | BD17: 0 | BE17: 5 | BF17: 0 | BG17: 2.5 | BH17: 0 | BI17: 2.5 | BJ17: 0 | BK17: 2.5 | BL17: 0 | BM17: 5 | BN17: 0 | BO17: 0 | BP17: 0 | BQ17: 5 | BR17: 0 | BS17: 5 | BT17: 0 | BU17: 5 | BV17: 0 | BW17: 0 | BX17: 0 | BY17: 0 | BZ17: 0 | CA17: 0 | CB17: 0 | CC17: 0 | CD17: 96 | CE17: 84 | CF17: 86 | CG17: 95 | CH17: 93 | CI17: 88 | CJ17: 91 | CK17: 88 | CL17: 92 | CM17: 95 | CN17: 93 | CO17: 85 | CP17: 96 | CQ17: 83 | CR17: 95 | CS17: 87 | CT17: 87 | CU17: 89 | CV17: 91 | CW17: 89 | CX17: 112 | CY17: 122 | CZ17: 123 | DA17: 115 | DB17: 122 | DC17: 115 | DD17: 120 | DE17: 111 | DF17: 118 | DG17: 114 | DH17: 116 | DI17: 111 | DJ17: 106 | DK17: 113 | DL17: 110 | DM17: 110 | DN17: 105 | DO17: 109 | DP17: 110 | DQ17: 114 | DR17: F | DS17: 32 | DT17: T | DU17: T,on meds not today | DV17: 2:00 PM | DW17: W | DX17: 26
A18: DD101 | B18: 14.815 | C18: 46.783 | D18: 15.323 | E18: 48.185 | F18: 15.096 | G18: 43.311 | H18: 14.631 | I18: 43.68 | J18: 14.218 | K18: 42.307 | L18: 14.014 | M18: 42.931 | N18: 14.311 | O18: 45.175 | P18: 14.144 | Q18: 39.083 | R18: 13.626 | S18: 42.496 | T18: 13.672 | U18: 40.672 | V18: 14.915 | W18: 34.887 | X18: 13.564 | Y18: 34.872 | Z18: 13.32 | AA18: 34.168 | AB18: 12.456 | AC18: 35.609 | AD18: 13.072 | AE18: 34.543 | AF18: 12.601 | AG18: 37.048 | AH18: 13.916 | AI18: 38.18 | AJ18: 13.75 | AK18: 33.456 | AL18: 12.912 | AM18: 33.422 | AN18: 12.737 | AO18: 36.73 | AP18: 0 | AQ18: 2.5 | AR18: 0 | AS18: 0 | AT18: 0 | AU18: 2.5 | AV18: 0 | AW18: 5 | AX18: 0 | AY18: 5 | AZ18: 0 | BA18: 0 | BB18: 0 | BC18: 2.5 | BD18: 0 | BE18: 0 | BF18: 0 | BG18: 7.5 | BH18: 0 | BI18: 2.5 | BJ18: 0 | BK18: 2.5 | BL18: 0 | BM18: 0 | BN18: 0 | BO18: 0 | BP18: 0 | BQ18: 2.5 | BR18: 0 | BS18: 2.5 | BT18: 0 | BU18: 0 | BV18: 0 | BW18: 0 | BX18: 0 | BY18: 2.5 | BZ18: 0 | CA18: 2.5 | CB18: 0 | CC18: 2.5 | CD18: 68 | CE18: 68 | CF18: 64 | CG18: 73 | CH18: 84 | CI18: 73 | CJ18: 66 | CK18: 74 | CL18: 74 | CM18: 74 | CN18: 82 | CO18: 77 | CP18: 74 | CQ18: 72 | CR18: 77 | CS18: 79 | CT18: 83 | CU18: 77 | CV18: 82 | CW18: 79 | CX18: 91 | CY18: 89 | CZ18: 87 | DA18: 86 | DB18: 93 | DC18: 90 | DD18: 93 | DE18: 87 | DF18: 85 | DG18: 83 | DH18: 93 | DI18: 90 | DJ18: 83 | DK18: 79 | DL18: 93 | DM18: 81 | DN18: 90 | DO18: 82 | DP18: 84 | DQ18: 81 | DR18: M | DS18: 23 | DT18: T | DU18: T,on addorall, 4 hrs after meds | DV18: 7:00 PM | DW18: W | DX18: 29
A19: MR101 | B19: 19.638 | C19: 33.256 | D19: 21.359 | E19: 32.968 | F19: 18.296 | G19: 38.136 | H19: 19.76 | I19: 32.009 | J19: 19.031 | K19: 37.136 | L19: 17.648 | M19: 31.854 | N19: 17.76 | O19: 30.456 | P19: 17.152 | Q19: 32.218 | R19: 16.567 | S19: 31.583 | T19: 17.48 | U19: 30.417 | V19: 19.257 | W19: 27.601 | X19: 16.937 | Y19: 25.376 | Z19: 16.816 | AA19: 29.512 | AB19: 16.808 | AC19: 32.36 | AD19: 15.928 | AE19: 28.36 | AF19: 15.879 | AG19: 29.728 | AH19: 16.271 | AI19: 29.278 | AJ19: 15.449 | AK19: 27.935 | AL19: 15.543 | AM19: 26.84 | AN19: 15.153 | AO19: 26.071 | AP19: 0 | AQ19: 0 | AR19: 0 | AS19: 0 | AT19: 0 | AU19: 0 | AV19: 0 | AW19: 2.5 | AX19: 0 | AY19: 2.5 | AZ19: 0 | BA19: 0 | BB19: 0 | BC19: 0 | BD19: 0 | BE19: 2.5 | BF19: 0 | BG19: 0 | BH19: 0 | BI19: 0 | BJ19: 0 | BK19: 2.5 | BL19: 0 | BM19: 0 | BN19: 0 | BO19: 5 | BP19: 0 | BQ19: 5 | BR19: 0 | BS19: 5 | BT19: 0 | BU19: 5 | BV19: 0 | BW19: 5 | BX19: 0 | BY19: 0 | BZ19: 0 | CA19: 0 | CB19: 0 | CC19: 2.5 | CD19: 93 | CE19: 84 | CF19: 80 | CG19: 88 | CH19: 77 | CI19: 92 | CJ19: 77 | CK19: 89 | CL19: 75 | CM19: 90 | CN19: 79 | CO19: 84 | CP19: 84 | CQ19: 86 | CR19: 89 | CS19: 79 | CT19: 80 | CU19: 81 | CV19: 80 | CW19: 87 | CX19: 95 | CY19: 90 | CZ19: 98 | DA19: 96 | DB19: 89 | DC19: 95 | DD19: 87 | DE19: 89 | DF19: 93 | DG19: 89 | DH19: 92 | DI19: 91 | DJ19: 82 | DK19: 92 | DL19: 85 | DM19: 89 | DN19: 88 | DO19: 94 | DP19: 88 | DQ19: 93 | DR19: F | DS19: 22 | DT19: F | DU19: F | DV19: 1:00 PM | DW19: hispanic-w | DX19: 28
A20: AMP101 | B20: 21.96 | C20: 44.309 | D20: 27.656 | E20: 46.976 | F20: 22.471 | G20: 45.847 | H20: 21.112 | I20: 43.808 | J20: 21.76 | K20: 45.313 | L20: 19.671 | M20: 40.696 | N20: 20.056 | O20: 37.848 | P20: 18.761 | Q20: 42.783 | R20: 19.071 | S20: 41.72 | T20: 18.056 | U20: 37.463 | V20: 17.745 | W20: 45.721 | X20: 17.888 | Y20: 35.878 | Z20: 18.854 | AA20: 40.458 | AB20: 18.384 | AC20: 37.034 | AD20: 16.986 | AE20: 38.888 | AF20: 17.282 | AG20: 35.749 | AH20: 18.016 | AI20: 39.264 | AJ20: 17.664 | AK20: 35.112 | AL20: 17.591 | AM20: 38.614 | AN20: 18.064 | AO20: 34.704 | AP20: 0 | AQ20: 0 | AR20: 0 | AS20: 2.5 | AT20: 0 | AU20: 2.5 | AV20: 0 | AW20: 0 | AX20: 0 | AY20: 0 | AZ20: 0 | BA20: 0 | BB20: 0 | BC20: 0 | BD20: 0 | BE20: 0 | BF20: 0 | BG20: 0 | BH20: 0 | BI20: 2.5 | BJ20: 0 | BK20: 10 | BL20: 0 | BM20: 0 | BN20: 0 | BO20: 5 | BP20: 0 | BQ20: 0 | BR20: 0 | BS20: 0 | BT20: 0 | BU20: 0 | BV20: 0 | BW20: 0 | BX20: 0 | BY20: 2.5 | BZ20: 0 | CA20: 2.5 | CB20: 0 | CC20: 2.5 | CD20: 96 | CE20: 89 | CF20: 91 | CG20: 86 | CH20: 90 | CI20: 90 | CJ20: 91 | CK20: 89 | CL20: 89 | CM20: 88 | CN20: 92 | CO20: 89 | CP20: 91 | CQ20: 92 | CR20: 93 | CS20: 88 | CT20: 91 | CU20: 89 | CV20: 93 | CW20: 84 | CX20: 100 | CY20: 96 | CZ20: 96 | DA20: 99 | DB20: 106 | DC20: 96 | DD20: 90 | DE20: 101 | DF20: 101 | DG20: 99 | DH20: 96 | DI20: 98 | DJ20: 97 | DK20: 101 | DL20: 100 | DM20: 100 | DN20: 85 | DO20: 100 | DP20: 95 | DQ20: 97 | DR20: F | DS20: 22 | DT20: F | DU20: F | DV20: 4:00 PM | DW20: W | DX20: 49
A21: GS101 | B21: 13.753 | C21: 41.631 | D21: 14.744 | E21: 44.247 | F21: 14.879 | G21: 44.583 | H21: 13.76 | I21: 39.079 | J21: 14.46 | K21: 42.334 | L21: 14.512 | M21: 46.347 | N21: 14.048 | O21: 36.68 | P21: 13.087 | Q21: 37.32 | R21: 14.017 | S21: 30.944 | T21: 13.663 | U21: 32.847 | V21: 12.92 | W21: 33.536 | X21: 13.608 | Y21: 41.342 | Z21: 13.287 | AA21: 36.129 | AB21: 14.257 | AC21: 35.738 | AD21: 12.631 | AE21: 33.816 | AF21: 13.607 | AG21: 34.856 | AH21: 13.385 | AI21: 38.96 | AJ21: 12.799 | AK21: 37.185 | AL21: 12.864 | AM21: 33.4 | AN21: 13.568 | AO21: 34.32 | AP21: 0 | AQ21: 2.5 | AR21: 0 | AS21: 0 | AT21: 0 | AU21: 2.5 | AV21: 0 | AW21: 0 | AX21: 0 | AY21: 0 | AZ21: 0 | BA21: 5 | BB21: 0 | BC21: 2.5 | BD21: 0 | BE21: 0 | BF21: 0 | BG21: 0 | BH21: 0 | BI21: 0 | BJ21: 0 | BK21: 2.5 | BL21: 0 | BM21: 0 | BN21: 0 | BO21: 0 | BP21: 0 | BQ21: 2.5 | BR21: 0 | BS21: 0 | BT21: 0 | BU21: 0 | BV21: 0 | BW21: 0 | BX21: 0 | BY21: 2.5 | BZ21: 0 | CA21: 0 | CB21: 0 | CC21: 0 | CD21: 124 | CE21: 121 | CF21: 123 | CG21: 121 | CH21: 121 | CI21: 123 | CJ21: 126 | CK21: 119 | CL21: 117 | CM21: 115 | CN21: 118 | CO21: 113 | CP21: 122 | CQ21: 110 | CR21: 117 | CS21: 106 | CT21: 121 | CU21: 111 | CV21: 122 | CW21: 112 | CX21: 125 | CY21: 122 | CZ21: 118 | DA21: 120 | DB21: 122 | DC21: 119 | DD21: 121 | DE21: 118 | DF21: 122 | DG21: 119 | DH21: 113 | DI21: 119 | DJ21: 115 | DK21: 120 | DL21: 119 | DM21: 113 | DN21: 124 | DO21: 112 | DP21: 110 | DQ21: 110 | DR21: F | DS21: 25 | DT21: F | DU21: F | DV21: 12 noon | DW21: A(India) | DX21: 27
A22: OA101 | B22: 19.088 | C22: 59.49 | D22: 19.696 | E22: 60.527 | F22: 20.527 | G22: 50.617 | H22: 18.591 | I22: 63.519 | J22: 19.784 | K22: 53.52 | L22: 18.711 | M22: 59.808 | N22: 18.04 | O22: 52.759 | P22: 18.367 | Q22: 44.225 | R22: 20.512 | S22: 46.143 | T22: 17.68 | U22: 51.188 | V22: 18.944 | W22: 52.577 | X22: 17.904 | Y22: 44.002 | Z22: 17.8 | AA22: 39.841 | AB22: 18.615 | AC22: 42.92 | AD22: 18.934 | AE22: 42.528 | AF22: 17.185 | AG22: 40.392 | AH22: 18.552 | AI22: 45.8 | AJ22: 17.896 | AK22: 39.745 | AL22: 18.2 | AM22: 43.553 | AN22: 16.607 | AO22: 34.07 | AP22: 0 | AQ22: 2.5 | AR22: 0 | AS22: 0 | AT22: 0 | AU22: 0 | AV22: 0 | AW22: 0 | AX22: 0 | AY22: 0 | AZ22: 0 | BA22: 2.5 | BB22: 0 | BC22: 2.5 | BD22: 0 | BE22: 0 | BF22: 0 | BG22: 5 | BH22: 0 | BI22: 2.5 | BJ22: 0 | BK22: 0 | BL22: 0 | BM22: 0 | BN22: 0 | BO22: 0 | BP22: 0 | BQ22: 0 | BR22: 0 | BS22: 0 | BT22: 0 | BU22: 0 | BV22: 0 | BW22: 0 | BX22: 0 | BY22: 2.5 | BZ22: 0 | CA22: 0 | CB22: 0 | CC22: 0 | CD22: 69 | CE22: 70 | CF22: 66 | CG22: 74 | CH22: 70 | CI22: 69 | CJ22: 67 | CK22: 77 | CL22: 63 | CM22: 71 | CN22: 63 | CO22: 74 | CP22: 64 | CQ22: 66 | CR22: 70 | CS22: 72 | CT22: 65 | CU22: 67 | CV22: 70 | CW22: 71 | CX22: 102 | CY22: 96 | CZ22: 97 | DA22: 97 | DB22: 90 | DC22: 100 | DD22: 95 | DE22: 96 | DF22: 94 | DG22: 96 | DH22: 95 | DI22: 92 | DJ22: 98 | DK22: 87 | DL22: 92 | DM22: 92 | DN22: 83 | DO22: 96 | DP22: 96 | DQ22: 91 | DR22: M | DS22: 25 | DT22: F | DU22: F | DV22: 1.30 pm | DW22: B | DX22: 30
A23: MT101 | B23: 42.32 | C23: 50.699 | D23: 36.319 | E23: 40.304 | F23: 37.936 | G23: 39.737 | H23: 35.464 | I23: 36.823 | J23: 35.04 | K23: 31.512 | L23: 25.137 | M23: 31.224 | N23: 30.184 | O23: 29.839 | P23: 25.223 | Q23: 26.848 | R23: 25.081 | S23: 27.209 | T23: 23.68 | U23: 30.696 | V23: 27.149 | W23: 30.576 | X23: 24.221 | Y23: 26.8 | Z23: 23 | AA23: 33.16 | AB23: 20.928 | AC23: 25.448 | AD23: 21.839 | AE23: 26.64 | AF23: 22.608 | AG23: 24.048 | AH23: 21.72 | AI23: 26.489 | AJ23: 20.967 | AK23: 26.402 | AL23: 21.087 | AM23: 27.302 | AN23: 21.528 | AO23: 25.88 | AP23: 0 | AQ23: 2.5 | AR23: 0 | AS23: 2.5 | AT23: 0 | AU23: 0 | AV23: 0 | AW23: 2.5 | AX23: 0 | AY23: 0 | AZ23: 0 | BA23: 0 | BB23: 0 | BC23: 0 | BD23: 0 | BE23: 2.5 | BF23: 0 | BG23: 0 | BH23: 0 | BI23: 0 | BJ23: 0 | BK23: 0 | BL23: 0 | BM23: 2.5 | BN23: 0 | BO23: 0 | BP23: 0 | BQ23: 0 | BR23: 0 | BS23: 0 | BT23: 0 | BU23: 0 | BV23: 0 | BW23: 2.5 | BX23: 0 | BY23: 0 | BZ23: 0 | CA23: 0 | CB23: 0 | CC23: 2.5 | CD23: 88 | CE23: 83 | CF23: 85 | CG23: 86 | CH23: 87 | CI23: 84 | CJ23: 86 | CK23: 85 | CL23: 81 | CM23: 89 | CN23: 85 | CO23: 87 | CP23: 94 | CQ23: 78 | CR23: 83 | CS23: 91 | CT23: 89 | CU23: 92 | CV23: 88 | CW23: 82 | CX23: 109 | CY23: 107 | CZ23: 109 | DA23: 106 | DB23: 105 | DC23: 104 | DD23: 106 | DE23: 107 | DF23: 107 | DG23: 100 | DH23: 105 | DI23: 103 | DJ23: 108 | DK23: 100 | DL23: 105 | DM23: 102 | DN23: 99 | DO23: 94 | DP23: 106 | DQ23: 103 | DR23: F | DS23: 22 | DT23: F | DU23: F | DV23: 8.00 am | DW23: south asian | DX23: 24
A24: JB101 | B24: 18.175 | C24: 36.687 | D24: 18.615 | E24: 35.63 | F24: 19.775 | G24: 32.495 | H24: 17.504 | I24: 31.878 | J24: 18.12 | K24: 33.599 | L24: 17.344 | M24: 31.342 | N24: 16.392 | O24: 31.694 | P24: 16.44 | Q24: 32.102 | R24: 17.255 | S24: 29.703 | T24: 16.831 | U24: 30.703 | V24: 15.896 | W24: 29.151 | X24: 16.28 | Y24: 30.83 | Z24: 18.663 | AA24: 29.303 | AB24: 16.287 | AC24: 29.223 | AD24: 15.599 | AE24: 30.567 | AF24: 17.16 | AG24: 28.622 | AH24: 17.72 | AI24: 27.423 | AJ24: 15.671 | AK24: 26.695 | AL24: 15.696 | AM24: 27.463 | AN24: 15.568 | AO24: 32.295 | AP24: 0 | AQ24: 5 | AR24: 5 | AS24: 5 | AT24: 0 | AU24: 0 | AV24: 0 | AW24: 0 | AX24: 2.5 | AY24: 0 | AZ24: 0 | BA24: 2.5 | BB24: 0 | BC24: 2.5 | BD24: 0 | BE24: 0 | BF24: 2.5 | BG24: 0 | BH24: 0 | BI24: 0 | BJ24: 0 | BK24: 2.5 | BL24: 0 | BM24: 5 | BN24: 0 | BO24: 0 | BP24: 0 | BQ24: 0 | BR24: 0 | BS24: 2.5 | BT24: 0 | BU24: 0 | BV24: 0 | BW24: 0 | BX24: 0 | BY24: 0 | BZ24: 0 | CA24: 0 | CB24: 0 | CC24: 5 | CD24: 118 | CE24: 106 | CF24: 105 | CG24: 100 | CH24: 96 | CI24: 85 | CJ24: 110 | CK24: 106 | CL24: 109 | CM24: 90 | CN24: 90 | CO24: 100 | CP24: 99 | CQ24: 97 | CR24: 99 | CS24: 92 | CT24: 100 | CU24: 97 | CV24: 104 | CW24: 102 | CX24: 123 | CY24: 111 | CZ24: 113 | DA24: 108 | DB24: 109 | DC24: 113 | DD24: 118 | DE24: 109 | DF24: 108 | DG24: 107 | DH24: 106 | DI24: 114 | DJ24: 107 | DK24: 113 | DL24: 111 | DM24: 109 | DN24: 107 | DO24: 106 | DP24: 110 | DQ24: 98 | DR24: F | DS24: 24 | DT24: F | DU24: F | DV24: 11am | DW24: A | DX24: 20
A25: ZP101 | B25: 27.447 | C25: 29.974 | D25: 27.663 | E25: 30.631 | F25: 27.831 | G25: 30.847 | H25: 25.934 | I25: 31.166 | J25: 25.536 | K25: 28.799 | L25: 26.087 | M25: 33.495 | N25: 27.135 | O25: 28.879 | P25: 28.487 | Q25: 27.791 | R25: 26.687 | S25: 29.783 | T25: 26.183 | U25: 28.312 | V25: 24.247 | W25: 24.431 | X25: 22.767 | Y25: 26.039 | Z25: 24.695 | AA25: 25.005 | AB25: 24.367 | AC25: 27.303 | AD25: 23.887 | AE25: 26.375 | AF25: 24.415 | AG25: 25.527 | AH25: 23.015 | AI25: 28.975 | AJ25: 25.383 | AK25: 25.447 | AL25: 20.815 | AM25: 23.959 | AN25: 19.335 | AO25: 27.047 | AP25: 0 | AQ25: 0 | AR25: 2.5 | AS25: 2.5 | AT25: 0 | AU25: 0 | AV25: 0 | AW25: 2.5 | AX25: 0 | AY25: 0 | AZ25: 0 | BA25: 0 | BB25: 0 | BC25: 0 | BD25: 0 | BE25: 0 | BF25: 0 | BG25: 5 | BH25: 0 | BI25: 0 | BJ25: 0 | BK25: 0 | BL25: 0 | BM25: 0 | BN25: 0 | BO25: 2.5 | BP25: 0 | BQ25: 0 | BR25: 0 | BS25: 0 | BT25: 0 | BU25: 0 | BV25: 0 | BW25: 2.5 | BX25: 0 | BY25: 0 | BZ25: 0 | CA25: 0 | CB25: 0 | CC25: 2.5 | CD25: 107 | CE25: 111 | CF25: 103 | CG25: 121 | CH25: 98 | CI25: 95 | CJ25: 94 | CK25: 111 | CL25: 95 | CM25: 93 | CN25: 115 | CO25: 109 | CP25: 105 | CQ25: 99 | CR25: 102 | CS25: 92 | CT25: 95 | CU25: 106 | CV25: 113 | CW25: 115 | CX25: 130 | CY25: 131 | CZ25: 129 | DA25: 130 | DB25: 128 | DC25: 115 | DD25: 128 | DE25: 123 | DF25: 121 | DG25: 111 | DH25: 118 | DI25: 124 | DJ25: 128 | DK25: 124 | DL25: 125 | DM25: 124 | DN25: 121 | DO25: 111 | DP25: 121 | DQ25: 122 | DR25: F | DS25: 19 | DT25: F | DU25: F | DV25: 2pm | DW25: W | DX25: 20
A26: LT101 | B26: 36.336 | C26: 35.177 | D26: 31.529 | E26: 33.888 | F26: 27.776 | G26: 31.296 | H26: 22.208 | I26: 27.72 | J26: 20.584 | K26: 25.465 | L26: 19.127 | M26: 26.544 | N26: 19.08 | O26: 25.336 | P26: 17.632 | Q26: 25.872 | R26: 17.449 | S26: 25.136 | T26: 16.048 | U26: 22.792 | V26: 14.262 | W26: 23.568 | X26: 15.344 | Y26: 22.142 | Z26: 14.945 | AA26: 22.554 | AB26: 13.799 | AC26: 21.304 | AD26: 12.918 | AE26: 23.167 | AF26: 14.511 | AG26: 23.025 | AH26: 13.712 | AI26: 25.447 | AJ26: 14.751 | AK26: 24.27 | AL26: 13.458 | AM26: 24.616 | AN26: 13.128 | AO26: 22.952 | AP26: 0 | AQ26: 0 | AR26: 0 | AS26: 5 | AT26: 0 | AU26: 7.5 | AV26: 0 | AW26: 0 | AX26: 0 | AY26: 0 | AZ26: 0 | BA26: 0 | BB26: 0 | BC26: 0 | BD26: 0 | BE26: 2.5 | BF26: 0 | BG26: 0 | BH26: 0 | BI26: 0 | BJ26: 0 | BK26: 7.5 | BL26: 0 | BM26: 2.5 | BN26: 0 | BO26: 2.5 | BP26: 0 | BQ26: 0 | BR26: 0 | BS26: 0 | BT26: 0 | BU26: 5 | BV26: 0 | BW26: 5 | BX26: 0 | BY26: 7.5 | BZ26: 0 | CA26: 2.5 | CB26: 0 | CC26: 2.5 | CD26: 89 | CE26: 90 | CF26: 82 | CG26: 88 | CH26: 89 | CI26: 93 | CJ26: 79 | CK26: 97 | CL26: 89 | CM26: 101 | CN26: 101 | CO26: 101 | CP26: 86 | CQ26: 94 | CR26: 87 | CS26: 97 | CT26: 83 | CU26: 90 | CV26: 88 | CW26: 96 | CX26: 115 | CY26: 103 | CZ26: 107 | DA26: 104 | DB26: 113 | DC26: 111 | DD26: 103 | DE26: 112 | DF26: 106 | DG26: 101 | DH26: 96 | DI26: 103 | DJ26: 98 | DK26: 100 | DL26: 92 | DM26: 99 | DN26: 102 | DO26: 95 | DP26: 92 | DQ26: 104 | DR26: F | DS26: 22 | DT26: F | DU26: F | DV26: 2pm | DW26: A | DX26: 20
A27: IOD101 | B27: 21.904 | C27: 35.248 | D27: 23.88 | E27: 33.858 | F27: 22.904 | G27: 34.728 | H27: 20.088 | I27: 31.905 | J27: 21.584 | K27: 34.777 | L27: 21.192 | M27: 34.504 | N27: 20.152 | O27: 35.224 | P27: 20.48 | Q27: 35.704 | R27: 21.432 | S27: 34 | T27: 19.048 | U27: 34.336 | V27: 21.066 | W27: 31.33 | X27: 19.233 | Y27: 32.728 | Z27: 20.624 | AA27: 35.72 | AB27: 19.2 | AC27: 36.296 | AD27: 19.76 | AE27: 32.448 | AF27: 17.272 | AG27: 33.2 | AH27: 20.214 | AI27: 35.456 | AJ27: 18.519 | AK27: 34.624 | AL27: 18.424 | AM27: 38.881 | AN27: 17.84 | AO27: 39.105 | AP27: 0 | AQ27: 0 | AR27: 0 | AS27: 0 | AT27: 0 | AU27: 0 | AV27: 0 | AW27: 0 | AX27: 0 | AY27: 5 | AZ27: 0 | BA27: 5 | BB27: 0 | BC27: 5 | BD27: 0 | BE27: 5 | BF27: 0 | BG27: 0 | BH27: 0 | BI27: 0 | BJ27: 0 | BK27: 0 | BL27: 0 | BM27: 0 | BN27: 0 | BO27: 0 | BP27: 0 | BQ27: 5 | BR27: 0 | BS27: 0 | BT27: 0 | BU27: 7.5 | BV27: 0 | BW27: 5 | BX27: 0 | BY27: 2.5 | BZ27: 0 | CA27: 2.5 | CB27: 0 | CC27: 5 | CD27: 94 | CE27: 87 | CF27: 86 | CG27: 98 | CH27: 89 | CI27: 91 | CJ27: 97 | CK27: 95 | CL27: 89 | CM27: 95 | CN27: 97 | CO27: 94 | CP27: 89 | CQ27: 100 | CR27: 92 | CS27: 88 | CT27: 87 | CU27: 90 | CV27: 94 | CW27: 90 | CX27: 106 | CY27: 107 | CZ27: 105 | DA27: 96 | DB27: 102 | DC27: 105 | DD27: 97 | DE27: 100 | DF27: 104 | DG27: 100 | DH27: 98 | DI27: 97 | DJ27: 104 | DK27: 102 | DL27: 100 | DM27: 100 | DN27: 97 | DO27: 96 | DP27: 97 | DQ27: 93 | DR27: F | DS27: 19 | DT27: F | DU27: F | DV27: 9am | DW27: Hispanic | DX27: 19
A28: IF101 | B28: 17.999 | C28: 39.066 | D28: 19.822 | E28: 38.209 | F28: 17.487 | G28: 35.288 | H28: 17.472 | I28: 39.864 | J28: 17.697 | K28: 39.92 | L28: 15.336 | M28: 30.64 | N28: 16.095 | O28: 41.865 | P28: 16.96 | Q28: 30.342 | R28: 17.576 | S28: 42.255 | T28: 17.776 | U28: 37.299 | V28: 16.455 | W28: 29.056 | X28: 15.968 | Y28: 28.896 | Z28: 16.042 | AA28: 31.506 | AB28: 15.713 | AC28: 28.137 | AD28: 14.579 | AE28: 28.769 | AF28: 15.367 | AG28: 30.36 | AH28: 16.256 | AI28: 28.058 | AJ28: 15.288 | AK28: 26.419 | AL28: 16.936 | AM28: 33.061 | AN28: 16.04 | AO28: 32.408 | AP28: 0 | AQ28: 2.5 | AR28: 0 | AS28: 0 | AT28: 0 | AU28: 2.5 | AV28: 0 | AW28: 5 | AX28: 0 | AY28: 0 | AZ28: 0 | BA28: 0 | BB28: 0 | BC28: 2.5 | BD28: 0 | BE28: 0 | BF28: 0 | BG28: 0 | BH28: 0 | BI28: 5 | BJ28: 0 | BK28: 0 | BL28: 0 | BM28: 0 | BN28: 0 | BO28: 2.5 | BP28: 0 | BQ28: 0 | BR28: 0 | BS28: 2.5 | BT28: 0 | BU28: 0 | BV28: 0 | BW28: 0 | BX28: 0 | BY28: 0 | BZ28: 0 | CA28: 0 | CB28: 0 | CC28: 0 | CD28: 86 | CE28: 93 | CF28: 89 | CG28: 94 | CH28: 81 | CI28: 88 | CJ28: 90 | CK28: 88 | CL28: 90 | CM28: 94 | CN28: 92 | CO28: 86 | CP28: 90 | CQ28: 88 | CR28: 88 | CS28: 87 | CT28: 88 | CU28: 90 | CV28: 96 | CW28: 85 | CX28: 100 | CY28: 107 | CZ28: 108 | DA28: 103 | DB28: 103 | DC28: 104 | DD28: 101 | DE28: 98 | DF28: 99 | DG28: 99 | DH28: 99 | DI28: 100 | DJ28: 94 | DK28: 100 | DL28: 100 | DM28: 101 | DN28: 97 | DO28: 88 | DP28: 97 | DQ28: 94 | DR28: F | DS28: 19.53 | DT28: F | DU28: F | DV28: 12.25am | DW28: W | DX28: 20
A29: OB101 | B29: 30.568 | C29: 34.105 | D29: 25.288 | E29: 33.247 | F29: 24.064 | G29: 36.544 | H29: 25.873 | I29: 34.456 | J29: 25.217 | K29: 32.928 | L29: 26.648 | M29: 35.831 | N29: 24.504 | O29: 32.167 | P29: 24.687 | Q29: 32.816 | R29: 23.968 | S29: 33.793 | T29: 24.992 | U29: 29.208 | V29: 27.624 | W29: 31.28 | X29: 24.896 | Y29: 34.4 | Z29: 22.312 | AA29: 39.527 | AB29: 19.383 | AC29: 30.369 | AD29: 20.832 | AE29: 33.159 | AF29: 20.232 | AG29: 31.984 | AH29: 24.337 | AI29: 40.248 | AJ29: 19.895 | AK29: 42.424 | AL29: 20.696 | AM29: 36.48 | AN29: 19.535 | AO29: 31.304 | AP29: 0 | AQ29: 0 | AR29: 0 | AS29: 0 | AT29: 0 | AU29: 0 | AV29: 0 | AW29: 0 | AX29: 0 | AY29: 0 | AZ29: 0 | BA29: 0 | BB29: 0 | BC29: 0 | BD29: 0 | BE29: 0 | BF29: 0 | BG29: 0 | BH29: 0 | BI29: 0 | BJ29: 0 | BK29: 0 | BL29: 0 | BM29: 0 | BN29: 0 | BO29: 0 | BP29: 0 | BQ29: 0 | BR29: 0 | BS29: 0 | BT29: 0 | BU29: 0 | BV29: 0 | BW29: 5 | BX29: 0 | BY29: 0 | BZ29: 0 | CA29: 0 | CB29: 0 | CC29: 0 | CD29: 100 | CE29: 92 | CF29: 95 | CG29: 97 | CH29: 99 | CI29: 96 | CJ29: 99 | CK29: 92 | CL29: 101 | CM29: 102 | CN29: 101 | CO29: 96 | CP29: 98 | CQ29: 103 | CR29: 106 | CS29: 99 | CT29: 103 | CU29: 100 | CV29: 103 | CW29: 99 | CX29: 109 | CY29: 106 | CZ29: 104 | DA29: 103 | DB29: 104 | DC29: 106 | DD29: 107 | DE29: 102 | DF29: 105 | DG29: 98 | DH29: 106 | DI29: 97 | DJ29: 103 | DK29: 102 | DL29: 106 | DM29: 104 | DN29: 105 | DO29: 101 | DP29: 102 | DQ29: 99 | DR29: F | DS29: 30.26 | DT29: F | DU29: F | DV29: 10.30am | DW29: B | DX29: 19
A30: DY101 | B30: 22.359 | C30: 33.112 | D30: 19.992 | E30: 35.071 | F30: 22.281 | G30: 31.993 | H30: 22.273 | I30: 33.216 | J30: 22.183 | K30: 36.096 | L30: 22.84 | M30: 38.935 | N30: 22.321 | O30: 34.848 | P30: 22.784 | Q30: 31.473 | R30: 21.135 | S30: 36.84 | T30: 20.686 | U30: 31.926 | V30: 18.575 | W30: 32.241 | X30: 18.536 | Y30: 30.455 | Z30: 18.256 | AA30: 34.8 | AB30: 16.935 | AC30: 32.943 | AD30: 16.673 | AE30: 35.336 | AF30: 16.537 | AG30: 37.128 | AH30: 17.943 | AI30: 35.912 | AJ30: 17.103 | AK30: 31.633 | AL30: 15.28 | AM30: 32.375 | AN30: 14.711 | AO30: 33.455 | AP30: 0 | AQ30: 0 | AR30: 0 | AS30: 2.5 | AT30: 0 | AU30: 0 | AV30: 0 | AW30: 0 | AX30: 0 | AY30: 0 | AZ30: 0 | BA30: 2.5 | BB30: 0 | BC30: 0 | BD30: 0 | BE30: 0 | BF30: 0 | BG30: 2.5 | BH30: 0 | BI30: 0 | BJ30: 0 | BK30: 2.5 | BL30: 0 | BM30: 0 | BN30: 0 | BO30: 2.5 | BP30: 0 | BQ30: 0 | BR30: 0 | BS30: 5 | BT30: 0 | BU30: 0 | BV30: 0 | BW30: 0 | BX30: 0 | BY30: 2.5 | BZ30: 0 | CA30: 0 | CB30: 0 | CC30: 0 | CD30: 86 | CE30: 95 | CF30: 96 | CG30: 102 | CH30: 90 | CI30: 100 | CJ30: 85 | CK30: 89 | CL30: 90 | CM30: 94 | CN30: 92 | CO30: 89 | CP30: 92 | CQ30: 93 | CR30: 99 | CS30: 91 | CT30: 92 | CU30: 99 | CV30: 91 | CW30: 97 | CX30: 89 | CY30: 96 | CZ30: 101 | DA30: 98 | DB30: 99 | DC30: 82 | DD30: 91 | DE30: 99 | DF30: 100 | DG30: 95 | DH30: 92 | DI30: 84 | DJ30: 82 | DK30: 92 | DL30: 98 | DM30: 91 | DN30: 91 | DO30: 98 | DP30: 100 | DQ30: 99 | DR30: F | DS30: 25.6 | DT30: F | DU30: F | DV30: 11am | DW30: Hispanic | DX30: 22
A31: IH101 | B31: 16.382 | C31: 38.904 | D31: 18.852 | E31: 31.672 | F31: 16.848 | G31: 33.056 | H31: 16.057 | I31: 30.024 | J31: 15.546 | K31: 30.48 | L31: 15.863 | M31: 30.176 | N31: 17.443 | O31: 32.944 | P31: 16.536 | Q31: 30.784 | R31: 15.528 | S31: 35.016 | T31: 15.24 | U31: 29.656 | V31: 15.183 | W31: 26.864 | X31: 15.335 | Y31: 26.247 | Z31: 15.736 | AA31: 27.512 | AB31: 14.728 | AC31: 28.056 | AD31: 13.84 | AE31: 29.48 | AF31: 17.056 | AG31: 25.032 | AH31: 13.84 | AI31: 26.616 | AJ31: 14.112 | AK31: 33.024 | AL31: 14.032 | AM31: 34.184 | AN31: 14.84 | AO31: 31.872 | AP31: 0 | AQ31: 7.5 | AR31: 0 | AS31: 2.5 | AT31: 0 | AU31: 2.5 | AV31: 0 | AW31: 5 | AX31: 0 | AY31: 0 | AZ31: 0 | BA31: 2.5 | BB31: 0 | BC31: 0 | BD31: 0 | BE31: 5 | BF31: 0 | BG31: 2.5 | BH31: 0 | BI31: 5 | BJ31: 0 | BK31: 0 | BL31: 0 | BM31: 0 | BN31: 0 | BO31: 0 | BP31: 0 | BQ31: 2.5 | BR31: 0 | BS31: 5 | BT31: 0 | BU31: 0 | BV31: 0 | BW31: 2.5 | BX31: 0 | BY31: 7.5 | BZ31: 0 | CA31: 7.5 | CB31: 0 | CC31: 5 | CD31: 88 | CE31: 89 | CF31: 88 | CG31: 98 | CH31: 95 | CI31: 87 | CJ31: 87 | CK31: 86 | CL31: 88 | CM31: 90 | CN31: 82 | CO31: 86 | CP31: 77 | CQ31: 77 | CR31: 91 | CS31: 78 | CT31: 80 | CU31: 87 | CV31: 88 | CW31: 79 | CX31: 120 | CY31: 119 | CZ31: 120 | DA31: 120 | DB31: 123 | DC31: 111 | DD31: 119 | DE31: 118 | DF31: 110 | DG31: 111 | DH31: 102 | DI31: 115 | DJ31: 108 | DK31: 111 | DL31: 109 | DM31: 109 | DN31: 106 | DO31: 105 | DP31: 113 | DQ31: 106 | DR31: F | DS31: 21 | DT31: F | DU31: F | DV31: 2.45pm | DW31: A | DX31: 20
A32: CJ101 | B32: 21.804 | C32: 30.704 | D32: 20.85 | E32: 30.92 | F32: 18.439 | G32: 30.272 | H32: 20.435 | I32: 30.512 | J32: 16.442 | K32: 34.126 | L32: 16.785 | M32: 30.77 | N32: 13.609 | O32: 33.327 | P32: 12.887 | Q32: 31.713 | R32: 14.216 | S32: 29.945 | T32: 17.6 | U32: 31.481 | V32: 13.921 | W32: 23.271 | X32: 14.864 | Y32: 26.85 | Z32: 16.897 | AA32: 33.665 | AB32: 15.616 | AC32: 33.343 | AD32: 14.4 | AE32: 31.664 | AF32: 16.032 | AG32: 26.417 | AH32: 16.032 | AI32: 33.8 | AJ32: 13.656 | AK32: 31.216 | AL32: 13.999 | AM32: 30.36 | AN32: 13.816 | AO32: 29.8 | AP32: 0 | AQ32: 0 | AR32: 0 | AS32: 0 | AT32: 0 | AU32: 0 | AV32: 0 | AW32: 0 | AX32: 0 | AY32: 5 | AZ32: 0 | BA32: 0 | BB32: 0 | BC32: 5 | BD32: 0 | BE32: 2.5 | BF32: 0 | BG32: 0 | BH32: 0 | BI32: 0 | BJ32: 0 | BK32: 0 | BL32: 0 | BM32: 0 | BN32: 0 | BO32: 5 | BP32: 0 | BQ32: 2.5 | BR32: 0 | BS32: 5 | BT32: 0 | BU32: 0 | BV32: 2.5 | BW32: 2.5 | BX32: 0 | BY32: 2.5 | BZ32: 0 | CA32: 2.5 | CB32: 0 | CC32: 0 | CD32: 110 | CE32: 116 | CF32: 109 | CG32: 107 | CH32: 100 | CI32: 112 | CJ32: 103 | CK32: 91 | CL32: 104 | CM32: 89 | CN32: 105 | CO32: 100 | CP32: 107 | CQ32: 108 | CR32: 99 | CS32: 111 | CT32: 110 | CU32: 95 | CV32: 101 | CW32: 93 | CX32: 130 | CY32: 126 | CZ32: 124 | DA32: 120 | DB32: 124 | DC32: 122 | DD32: 122 | DE32: 118 | DF32: 116 | DG32: 112 | DH32: 117 | DI32: 103 | DJ32: 103 | DK32: 118 | DL32: 121 | DM32: 111 | DN32: 120 | DO32: 118 | DP32: 99 | DQ32: 114 | DR32: M | DS32: 26.78 | DT32: F | DU32: F | DV32: 10am | DW32: W | DX32: 17
A33: AK101 | B33: 22.944 | C33: 23.313 | D33: 20.456 | E33: 25.968 | F33: 18.4 | G33: 25.265 | H33: 18.59 | I33: 23.762 | J33: 18.45 | K33: 26.993 | L33: 16.522 | M33: 24.199 | N33: 16.305 | O33: 24.936 | P33: 15.432 | Q33: 25.17 | R33: 16.184 | S33: 22.703 | T33: 15.376 | U33: 24.016 | V33: 16.376 | W33: 21.993 | X33: 14.777 | Y33: 26.929 | Z33: 14.688 | AA33: 19.91 | AB33: 14.81 | AC33: 18.656 | AD33: 14.223 | AE33: 20.664 | AF33: 12.753 | AG33: 20.408 | AH33: 13.808 | AI33: 23.578 | AJ33: 13.401 | AK33: 23.295 | AL33: 13.432 | AM33: 21.752 | AN33: 12.529 | AO33: 20.137 | AP33: 0 | AQ33: 0 | AR33: 0 | AS33: 0 | AT33: 0 | AU33: 0 | AV33: 0 | AW33: 0 | AX33: 0 | AY33: 0 | AZ33: 0 | BA33: 0 | BB33: 0 | BC33: 0 | BD33: 0 | BE33: 0 | BF33: 0 | BG33: 0 | BH33: 0 | BI33: 0 | BJ33: 0 | BK33: 0 | BL33: 0 | BM33: 2.5 | BN33: 0 | BO33: 0 | BP33: 0 | BQ33: 0 | BR33: 0 | BS33: 0 | BT33: 0 | BU33: 0 | BV33: 0 | BW33: 2.5 | BX33: 0 | BY33: 0 | BZ33: 0 | CA33: 0 | CB33: 0 | CC33: 0 | CD33: 91 | CE33: 95 | CF33: 94 | CG33: 80 | CH33: 79 | CI33: 79 | CJ33: 86 | CK33: 93 | CL33: 72 | CM33: 86 | CN33: 93 | CO33: 98 | CP33: 98 | CQ33: 98 | CR33: 98 | CS33: 90 | CT33: 83 | CU33: 83 | CV33: 83 | CW33: 83 | CX33: 101 | CY33: 82 | CZ33: 88 | DA33: 90 | DB33: 88 | DC33: 88 | DD33: 98 | DE33: 86 | DF33: 90 | DG33: 90 | DH33: 90 | DI33: 90 | DJ33: 90 | DK33: 90 | DL33: 90 | DM33: 90 | DN33: 82 | DO33: 85 | DP33: 85 | DQ33: 85 | DR33: F | DS33: 21.97 | DT33: F | DU33: F | DV33: 11.23am | DW33: W | DX33: 22
A34: AI101 | B34: 28.658 | C34: 38.071 | D34: 23.7 | E34: 38.64 | F34: 23.913 | G34: 33.281 | H34: 22.194 | I34: 37.753 | J34: 19.961 | K34: 38.168 | L34: 19.137 | M34: 34.559 | N34: 19.449 | O34: 33.344 | P34: 17.816 | Q34: 32.649 | R34: 18.593 | S34: 35.359 | T34: 16.401 | U34: 31.087 | V34: 19.246 | W34: 31.416 | X34: 16.736 | Y34: 28.7 | Z34: 16.728 | AA34: 28.825 | AB34: 16.61 | AC34: 33.714 | AD34: 17.314 | AE34: 31.144 | AF34: 15.76 | AG34: 35.648 | AH34: 16.576 | AI34: 32.496 | AJ34: 14.92 | AK34: 32.04 | AL34: 14.425 | AM34: 30.385 | AN34: 14.969 | AO34: 29.832 | AP34: 0 | AQ34: 0 | AR34: 0 | AS34: 0 | AT34: 0 | AU34: 0 | AV34: 0 | AW34: 2.5 | AX34: 0 | AY34: 2.5 | AZ34: 0 | BA34: 0 | BB34: 0 | BC34: 0 | BD34: 0 | BE34: 0 | BF34: 0 | BG34: 0 | BH34: 0 | BI34: 0 | BJ34: 0 | BK34: 0 | BL34: 0 | BM34: 0 | BN34: 0 | BO34: 0 | BP34: 0 | BQ34: 0 | BR34: 0 | BS34: 0 | BT34: 0 | BU34: 0 | BV34: 0 | BW34: 0 | BX34: 0 | BY34: 0 | BZ34: 0 | CA34: 0 | CB34: 0 | CC34: 0 | CD34: 92 | CE34: 104 | CF34: 102 | CG34: 96 | CH34: 92 | CI34: 97 | CJ34: 101 | CK34: 95 | CL34: 96 | CM34: 97 | CN34: 102 | CO34: 94 | CP34: 94 | CQ34: 97 | CR34: 85 | CS34: 94 | CT34: 99 | CU34: 97 | CV34: 90 | CW34: 93 | CX34: 98 | CY34: 96 | CZ34: 92 | DA34: 98 | DB34: 95 | DC34: 100 | DD34: 94 | DE34: 107 | DF34: 94 | DG34: 97 | DH34: 93 | DI34: 90 | DJ34: 97 | DK34: 85 | DL34: 93 | DM34: 93 | DN34: 93 | DO34: 98 | DP34: 95 | DQ34: 89 | DR34: F | DS34: 19 | DT34: F | DU34: F | DV34: 3.24pm | DW34: W | DX34: 22
A35: AP102 | B35: 15.729 | C35: 32.391 | D35: 20.443 | E35: 32.159 | F35: 19.159 | G35: 32.538 | H35: 19 | I35: 35.568 | J35: 17.816 | K35: 34.4 | L35: 17.41 | M35: 46.962 | N35: 17.414 | O35: 36.806 | P35: 18.864 | Q35: 35.496 | R35: 18.945 | S35: 34.89 | T35: 19.61 | U35: 34.505 | V35: 16.695 | W35: 32.047 | X35: 17.144 | Y35: 32.632 | Z35: 17.039 | AA35: 29.992 | AB35: 16.047 | AC35: 32.207 | AD35: 16.522 | AE35: 29.393 | AF35: 16.847 | AG35: 35.065 | AH35: 17.022 | AI35: 33.32 | AJ35: 16.735 | AK35: 30.32 | AL35: 19.807 | AM35: 30.425 | AN35: 18.848 | AO35: 31.424 | AP35: 0 | AQ35: 5 | AR35: 0 | AS35: 0 | AT35: 0 | AU35: 0 | AV35: 0 | AW35: 0 | AX35: 2.5 | AY35: 0 | AZ35: 0 | BA35: 5 | BB35: 0 | BC35: 0 | BD35: 0 | BE35: 2.5 | BF35: 0 | BG35: 0 | BH35: 0 | BI35: 0 | BJ35: 0 | BK35: 5 | BL35: 0 | BM35: 2.5 | BN35: 0 | BO35: 0 | BP35: 0 | BQ35: 0 | BR35: 0 | BS35: 0 | BT35: 0 | BU35: 5 | BV35: 5 | BW35: 0 | BX35: 0 | BY35: 0 | BZ35: 0 | CA35: 0 | CB35: 0 | CC35: 0 | CD35: 88 | CE35: 86 | CF35: 90 | CG35: 92 | CH35: 84 | CI35: 88 | CJ35: 91 | CK35: 90 | CL35: 90 | CM35: 87 | CN35: 83 | CO35: 84 | CP35: 79 | CQ35: 87 | CR35: 84 | CS35: 82 | CT35: 88 | CU35: 79 | CV35: 86 | CW35: 89 | CX35: 109 | CY35: 97 | CZ35: 105 | DA35: 101 | DB35: 105 | DC35: 99 | DD35: 104 | DE35: 97 | DF35: 97 | DG35: 98 | DH35: 95 | DI35: 91 | DJ35: 91 | DK35: 97 | DL35: 96 | DM35: 96 | DN35: 88 | DO35: 89 | DP35: 92 | DQ35: 92 | DR35: F | DS35: 22 | DT35: F | DU35: F | DV35: 3.00pm | DW35: A | DX35: 19
A36: DI101 | B36: 23.379 | C36: 56.934 | D36: 28.412 | E36: 30.442 | F36: 27.433 | G36: 45.113 | H36: 25.617 | I36: 40.84 | J36: 25.728 | K36: 40.536 | L36: 22.792 | M36: 37.367 | N36: 21.976 | O36: 41.353 | P36: 21.4 | Q36: 38.799 | R36: 23.368 | S36: 37.416 | T36: 20.833 | U36: 33.496 | V36: 20.009 | W36: 36.76 | X36: 21.303 | Y36: 33.169 | Z36: 21.128 | AA36: 36.545 | AB36: 19.816 | AC36: 36.169 | AD36: 21.097 | AE36: 41.856 | AF36: 21.866 | AG36: 36.352 | AH36: 21.129 | AI36: 38.16 | AJ36: 22.002 | AK36: 32.961 | AL36: 21.137 | AM36: 38.529 | AN36: 24.872 | AO36: 36.024 | AP36: 0 | AQ36: 17.5 | AR36: 0 | AS36: 2.5 | AT36: 0 | AU36: 0 | AV36: 0 | AW36: 2.5 | AX36: 0 | AY36: 0 | AZ36: 0 | BA36: 0 | BB36: 0 | BC36: 0 | BD36: 0 | BE36: 2.5 | BF36: 0 | BG36: 2.5 | BH36: 0 | BI36: 0 | BJ36: 0 | BK36: 2.5 | BL36: 0 | BM36: 0 | BN36: 0 | BO36: 0 | BP36: 0 | BQ36: 2.5 | BR36: 0 | BS36: 2.5 | BT36: 0 | BU36: 2.5 | BV36: 0 | BW36: 5 | BX36: 0 | BY36: 0 | BZ36: 0 | CA36: 0 | CB36: 2.5 | CC36: 0 | CD36: 71 | CE36: 74 | CF36: 77 | CG36: 82 | CH36: 62 | CI36: 86 | CJ36: 70 | CK36: 76 | CL36: 71 | CM36: 84 | CN36: 71 | CO36: 66 | CP36: 71 | CQ36: 73 | CR36: 76 | CS36: 74 | CT36: 79 | CU36: 71 | CV36: 73 | CW36: 82 | CX36: 101 | CY36: 94 | CZ36: 97 | DA36: 93 | DB36: 93 | DC36: 102 | DD36: 104 | DE36: 94 | DF36: 101 | DG36: 91 | DH36: 89 | DI36: 93 | DJ36: 96 | DK36: 83 | DL36: 94 | DM36: 88 | DN36: 89 | DO36: 90 | DP36: 93 | DQ36: 78 | DR36: F | DS36: 23 | DT36: T | DU36: F | DV36: 10.30am | DW36: W | DX36: 21
A37: AA102 | B37: 18.305 | C37: 34.625 | D37: 22.735 | E37: 35.799 | F37: 22.472 | G37: 30.232 | H37: 20.407 | I37: 33.417 | J37: 21.423 | K37: 28.513 | L37: 20.232 | M37: 36.513 | N37: 23.489 | O37: 32.007 | P37: 19.776 | Q37: 35.88 | R37: 21.049 | S37: 32.255 | T37: 19.991 | U37: 27.103 | V37: 18.948 | W37: 24.431 | X37: 18.14 | Y37: 30.767 | Z37: 18.792 | AA37: 30.783 | AB37: 16.81 | AC37: 30.584 | AD37: 19.16 | AE37: 29.046 | AF37: 18.208 | AG37: 26.535 | AH37: 18.839 | AI37: 29 | AJ37: 19.417 | AK37: 26.759 | AL37: 17.696 | AM37: 32.497 | AN37: 18.175 | AO37: 34.849 | AP37: 0 | AQ37: 12.5 | AR37: 0 | AS37: 10 | AT37: 0 | AU37: 5 | AV37: 0 | AW37: 7.5 | AX37: 0 | AY37: 7.5 | AZ37: 2.5 | BA37: 10 | BB37: 0 | BC37: 10 | BD37: 0 | BE37: 10 | BF37: 0 | BG37: 2.5 | BH37: 0 | BI37: 2.5 | BJ37: 2.5 | BK37: 10 | BL37: 2.5 | BM37: 5 | BN37: 0 | BO37: 10 | BP37: 2.5 | BQ37: 7.5 | BR37: 0 | BS37: 7.5 | BT37: 2.5 | BU37: 2.5 | BV37: 2.5 | BW37: 2.5 | BX37: 2.5 | BY37: 2.5 | BZ37: 0 | CA37: 5 | CB37: 2.5 | CC37: 10 | CD37: 95 | CE37: 92 | CF37: 78 | CG37: 89 | CH37: 85 | CI37: 92 | CJ37: 81 | CK37: 84 | CL37: 79 | CM37: 86 | CN37: 79 | CO37: 75 | CP37: 76 | CQ37: 78 | CR37: 79 | CS37: 81 | CT37: 75 | CU37: 74 | CV37: 74 | CW37: 90 | CX37: 107 | CY37: 106 | CZ37: 106 | DA37: 98 | DB37: 99 | DC37: 98 | DD37: 95 | DE37: 97 | DF37: 100 | DG37: 96 | DH37: 97 | DI37: 100 | DJ37: 96 | DK37: 100 | DL37: 94 | DM37: 98 | DN37: 97 | DO37: 93 | DP37: 89 | DQ37: 92 | DR37: F | DS37: 21 | DT37: F | DU37: F | DV37: 3pm | DW37: M | DX37: 23
A38: JS102 | B38: 20.687 | C38: 28.336 | D38: 15.409 | E38: 30.072 | F38: 19.113 | G38: 27.208 | H38: 16.544 | I38: 31.16 | J38: 15.48 | K38: 27.196 | L38: 15.936 | M38: 26.168 | N38: 17.216 | O38: 28.024 | P38: 15.408 | Q38: 32.232 | R38: 17.504 | S38: 27.528 | T38: 18.656 | U38: 28.216 | V38: 15.444 | W38: 34.096 | X38: 18.788 | Y38: 28.576 | Z38: 17.015 | AA38: 31.361 | AB38: 17.12 | AC38: 29.025 | AD38: 16.409 | AE38: 25.65 | AF38: 15.145 | AG38: 25.769 | AH38: 17.793 | AI38: 29.217 | AJ38: 17.881 | AK38: 25.088 | AL38: 12.968 | AM38: 27.024 | AN38: 13.144 | AO38: 29.727 | AP38: 0 | AQ38: 0 | AR38: 0 | AS38: 0 | AT38: 0 | AU38: 0 | AV38: 0 | AW38: 2.5 | AX38: 0 | AY38: 0 | AZ38: 0 | BA38: 0 | BB38: 0 | BC38: 0 | BD38: 0 | BE38: 0 | BF38: 0 | BG38: 2.5 | BH38: 0 | BI38: 2.5 | BJ38: 0 | BK38: 5 | BL38: 0 | BM38: 0 | BN38: 0 | BO38: 0 | BP38: 0 | BQ38: 0 | BR38: 0 | BS38: 0 | BT38: 0 | BU38: 2.5 | BV38: 0 | BW38: 2.5 | BX38: 0 | BY38: 0 | BZ38: 0 | CA38: 2.5 | CB38: 0 | CC38: 5 | CD38: 71 | CE38: 85 | CF38: 59 | CG38: 68 | CH38: 82 | CI38: 70 | CJ38: 67 | CK38: 73 | CL38: 78 | CM38: 72 | CN38: 84 | CO38: 75 | CP38: 63 | CQ38: 71 | CR38: 60 | CS38: 65 | CT38: 60 | CU38: 68 | CV38: 61 | CW38: 70 | CX38: 74 | CY38: 73 | CZ38: 74 | DA38: 70 | DB38: 73 | DC38: 75 | DD38: 73 | DE38: 77 | DF38: 73 | DG38: 74 | DH38: 77 | DI38: 66 | DJ38: 73 | DK38: 64 | DL38: 75 | DM38: 79 | DN38: 81 | DO38: 82 | DP38: 80 | DQ38: 74 | DR38: M | DS38: 20 | DT38: F | DU38: F | DV38: 11.30am | DW38: W | DX38: 23
A39: TB101 | B39: 17.175 | C39: 30.359 | D39: 16.824 | E39: 28.19 | F39: 16.664 | G39: 27.375 | H39: 17.544 | I39: 27.567 | J39: 15.991 | K39: 28.575 | L39: 16.767 | M39: 28.191 | N39: 16.855 | O39: 25.808 | P39: 16.935 | Q39: 25.017 | R39: 17.272 | S39: 26.768 | T39: 15.111 | U39: 27.624 | V39: 17.16 | W39: 22.751 | X39: 16.74 | Y39: 25.279 | Z39: 14.704 | AA39: 21.823 | AB39: 14.832 | AC39: 23.912 | AD39: 14.999 | AE39: 24.559 | AF39: 14.839 | AG39: 23.904 | AH39: 14.68 | AI39: 24.783 | AJ39: 15.551 | AK39: 22.888 | AL39: 13.935 | AM39: 23.664 | AN39: 14.327 | AO39: 25.367 | AP39: 0 | AQ39: 0 | AR39: 0 | AS39: 5 | AT39: 0 | AU39: 0 | AV39: 0 | AW39: 0 | AX39: 0 | AY39: 0 | AZ39: 0 | BA39: 2.5 | BB39: 0 | BC39: 2.5 | BD39: 0 | BE39: 2.5 | BF39: 0 | BG39: 2.5 | BH39: 0 | BI39: 2.5 | BJ39: 0 | BK39: 0 | BL39: 0 | BM39: 0 | BN39: 0 | BO39: 0 | BP39: 0 | BQ39: 0 | BR39: 0 | BS39: 5 | BT39: 0 | BU39: 0 | BV39: 0 | BW39: 0 | BX39: 0 | BY39: 5 | BZ39: 0 | CA39: 5 | CB39: 0 | CC39: 0 | CD39: 90 | CE39: 93 | CF39: 95 | CG39: 87 | CH39: 90 | CI39: 88 | CJ39: 92 | CK39: 91 | CL39: 93 | CM39: 89 | CN39: 87 | CO39: 85 | CP39: 93 | CQ39: 87 | CR39: 86 | CS39: 85 | CT39: 94 | CU39: 85 | CV39: 86 | CW39: 85 | CX39: 92 | CY39: 93 | CZ39: 93 | DA39: 91 | DB39: 92 | DC39: 92 | DD39: 91 | DE39: 94 | DF39: 88 | DG39: 91 | DH39: 93 | DI39: 92 | DJ39: 88 | DK39: 91 | DL39: 95 | DM39: 90 | DN39: 92 | DO39: 92 | DP39: 90 | DQ39: 94 | DR39: F | DS39: 31 | DT39: F | DU39: F | DV39: 3.16pm | DW39: A | DX39: 23
A40: JP101 | B40: 15.264 | C40: 31.762 | D40: 15.848 | E40: 28.569 | F40: 15.203 | G40: 29.204 | H40: 14.871 | I40: 27.593 | J40: 14.424 | K40: 26.425 | L40: 14.209 | M40: 29.615 | N40: 13.064 | O40: 29 | P40: 13.417 | Q40: 27.464 | R40: 14.033 | S40: 29.376 | T40: 12.767 | U40: 29.552 | V40: 13.28 | W40: 24.896 | X40: 13.007 | Y40: 23.297 | Z40: 12.175 | AA40: 25.216 | AB40: 13.048 | AC40: 24.838 | AD40: 11.632 | AE40: 22.529 | AF40: 11.878 | AG40: 24.488 | AH40: 12.16 | AI40: 23.32 | AJ40: 11.505 | AK40: 23.468 | AL40: 11.508 | AM40: 24.601 | AN40: 11.269 | AO40: 29.849 | AP40: 0 | AQ40: 0 | AR40: 0 | AS40: 0 | AT40: 0 | AU40: 2.5 | AV40: 0 | AW40: 0 | AX40: 0 | AY40: 0 | AZ40: 0 | BA40: 2.5 | BB40: 0 | BC40: 2.5 | BD40: 0 | BE40: 2.5 | BF40: 0 | BG40: 0 | BH40: 0 | BI40: 2.5 | BJ40: 0 | BK40: 0 | BL40: 0 | BM40: 0 | BN40: 0 | BO40: 0 | BP40: 0 | BQ40: 0 | BR40: 0 | BS40: 0 | BT40: 0 | BU40: 0 | BV40: 0 | BW40: 0 | BX40: 0 | BY40: 0 | BZ40: 0 | CA40: 0 | CB40: 0 | CC40: 2.5 | CD40: 99 | CE40: 99 | CF40: 98 | CG40: 99 | CH40: 99 | CI40: 99 | CJ40: 98 | CK40: 96 | CL40: 98 | CM40: 99 | CN40: 98 | CO40: 98 | CP40: 97 | CQ40: 96 | CR40: 97 | CS40: 97 | CT40: 96 | CU40: 98 | CV40: 98 | CW40: 97 | CX40: 98 | CY40: 99 | CZ40: 99 | DA40: 99 | DB40: 98 | DC40: 98 | DD40: 99 | DE40: 98 | DF40: 98 | DG40: 98 | DH40: 98 | DI40: 98 | DJ40: 98 | DK40: 98 | DL40: 97 | DM40: 98 | DN40: 98 | DO40: 98 | DP40: 97 | DQ40: 98 | DR40: F | DS40: 37 | DT40: F | DU40: F | DV40: 4.41pm | DX40: 21
A41: EF101 | B41: 17.987 | C41: 38.706 | D41: 20.104 | E41: 37.713 | F41: 18.416 | G41: 35.28 | H41: 17.944 | I41: 35.033 | J41: 19.424 | K41: 37.841 | L41: 17.336 | M41: 36.552 | N41: 18.042 | O41: 38.786 | P41: 18.2 | Q41: 38.089 | R41: 18.109 | S41: 37.266 | T41: 18.72 | U41: 36.009 | V41: 17.448 | W41: 30.571 | X41: 15.839 | Y41: 29.383 | Z41: 17.058 | AA41: 34.401 | AB41: 16.527 | AC41: 32.729 | AD41: 17.505 | AE41: 32.368 | AF41: 18.346 | AG41: 32.018 | AH41: 18.163 | AI41: 31.201 | AJ41: 16.795 | AK41: 31.758 | AL41: 17.264 | AM41: 33.744 | AN41: 15.295 | AO41: 29.849 | AP41: 0 | AQ41: 0 | AR41: 0 | AS41: 2.5 | AT41: 0 | AU41: 0 | AV41: 0 | AW41: 0 | AX41: 0 | AY41: 2.5 | AZ41: 0 | BA41: 0 | BB41: 2.5 | BC41: 0 | BD41: 0 | BE41: 0 | BF41: 0 | BG41: 2.5 | BH41: 0 | BI41: 0 | BJ41: 0 | BK41: 2.5 | BL41: 0 | BM41: 0 | BN41: 0 | BO41: 2.5 | BP41: 0 | BQ41: 2.5 | BR41: 0 | BS41: 2.5 | BT41: 0 | BU41: 0 | BV41: 0 | BW41: 0 | BX41: 0 | BY41: 0 | BZ41: 0 | CA41: 0 | CB41: 0 | CC41: 0 | CD41: 54 | CE41: 54 | CF41: 54 | CG41: 93 | CH41: 101 | CI41: 100 | CJ41: 101 | CK41: 105 | CL41: 106 | CM41: 97 | CN41: 111 | CO41: 112 | CP41: 106 | CQ41: 109 | CR41: 107 | CS41: 104 | CT41: 111 | CU41: 103 | CV41: 109 | CW41: 105 | CX41: 137 | CY41: 139 | CZ41: 135 | DA41: 141 | DB41: 132 | DC41: 137 | DD41: 128 | DE41: 124 | DF41: 129 | DG41: 127 | DH41: 127 | DI41: 132 | DJ41: 126 | DK41: 130 | DL41: 124 | DM41: 135 | DN41: 120 | DO41: 125 | DP41: 127 | DQ41: 135 | DR41: F | DS41: 29 | DT41: F | DU41: F | DV41: 4.30pm | DW41: W | DX41: 21
A42: JD101 | B42: 26.719 | C42: 37.146 | D42: 28.344 | E42: 35.68 | F42: 28.214 | G42: 38.631 | H42: 27.526 | I42: 37.68 | J42: 26.546 | K42: 35.56 | L42: 28.801 | M42: 36.617 | N42: 28.535 | O42: 34.546 | P42: 27.469 | Q42: 37.216 | R42: 27.304 | S42: 35.329 | T42: 25.864 | U42: 34.185 | V42: 24.263 | W42: 32.633 | X42: 23.416 | Y42: 31.576 | Z42: 24.44 | AA42: 34.073 | AB42: 23.336 | AC42: 34.046 | AD42: 25.762 | AE42: 32.224 | AF42: 23.96 | AG42: 32.248 | AH42: 23.624 | AI42: 33.641 | AJ42: 23.625 | AK42: 32.217 | AL42: 21.881 | AM42: 31.385 | AN42: 22.713 | AO42: 33.976 | AP42: 0 | AQ42: 0 | AR42: 0 | AS42: 2.5 | AT42: 0 | AU42: 2.5 | AV42: 0 | AW42: 5 | AX42: 0 | AY42: 2.5 | AZ42: 0 | BA42: 2.5 | BB42: 0 | BC42: 5 | BD42: 0 | BE42: 5 | BF42: 0 | BG42: 5 | BH42: 0 | BI42: 7.5 | BJ42: 0 | BK42: 2.5 | BL42: 0 | BM42: 2.5 | BN42: 0 | BO42: 2.5 | BP42: 0 | BQ42: 7.5 | BR42: 0 | BS42: 5 | BT42: 0 | BU42: 7.5 | BV42: 0 | BW42: 5 | BX42: 0 | BY42: 2.5 | BZ42: 0 | CA42: 0 | CB42: 0 | CC42: 5 | CD42: 90 | CE42: 88 | CF42: 79 | CG42: 74 | CH42: 79 | CI42: 91 | CJ42: 69 | CK42: 76 | CL42: 67 | CM42: 76 | CN42: 82 | CO42: 76 | CP42: 77 | CQ42: 75 | CR42: 71 | CS42: 84 | CT42: 78 | CU42: 73 | CV42: 69 | CW42: 76 | CX42: 75 | CY42: 77 | CZ42: 83 | DA42: 76 | DB42: 71 | DC42: 77 | DD42: 76 | DE42: 72 | DF42: 64 | DG42: 72 | DH42: 70 | DI42: 72 | DJ42: 70 | DK42: 72 | DL42: 76 | DM42: 81 | DN42: 71 | DO42: 82 | DP42: 67 | DQ42: 77 | DR42: M | DS42: 28 | DT42: T | DU42: F | DV42: 2.40pm | DX42: 26
A43: SR101 | B43: 15.832 | C43: 30.488 | D43: 17.296 | E43: 26.513 | F43: 14.736 | G43: 28.017 | H43: 14.736 | I43: 28.688 | J43: 13.72 | K43: 29.44 | L43: 13.72 | M43: 26.669 | N43: 14.646 | O43: 24.605 | P43: 13.648 | Q43: 23.928 | R43: 13.267 | S43: 26.001 | T43: 14.273 | U43: 22.688 | V43: 14.713 | W43: 22.68 | X43: 14.52 | Y43: 24.006 | Z43: 13.528 | AA43: 24.064 | AB43: 12.864 | AC43: 22.593 | AD43: 13.266 | AE43: 23.704 | AF43: 12.912 | AG43: 21.2 | AH43: 12.472 | AI43: 25.305 | AJ43: 11.889 | AK43: 22.688 | AL43: 13.104 | AM43: 23.505 | AN43: 12.032 | AO43: 22.912 | AP43: 0 | AQ43: 5 | AR43: 0 | AS43: 0 | AT43: 0 | AU43: 0 | AV43: 0 | AW43: 5 | AX43: 0 | AY43: 2.5 | AZ43: 0 | BA43: 0 | BB43: 0 | BC43: 0 | BD43: 0 | BE43: 0 | BF43: 0 | BG43: 2.5 | BH43: 0 | BI43: 0 | BJ43: 0 | BK43: 2.5 | BL43: 0 | BM43: 0 | BN43: 0 | BO43: 2.5 | BP43: 0 | BQ43: 0 | BR43: 0 | BS43: 0 | BT43: 0 | BU43: 0 | BV43: 0 | BW43: 2.5 | BX43: 0 | BY43: 2.5 | BZ43: 0 | CA43: 2.5 | CB43: 0 | CC43: 0 | DR43: F | DS43: 23 | DT43: F | DU43: F | DV43: 3.40pm | DX43: 20
A44: NV101 | B44: 19.416 | C44: 23.72 | D44: 18.318 | E44: 27.657 | F44: 17.863 | G44: 23.782 | H44: 16.832 | I44: 24.248 | J44: 18.001 | K44: 23.495 | L44: 16.772 | M44: 23.552 | N44: 18.249 | O44: 23.328 | P44: 17.504 | Q44: 23.144 | R44: 16.206 | S44: 22.426 | T44: 16.201 | U44: 26.529 | V44: 16.896 | W44: 22.41 | X44: 16.481 | Y44: 23.297 | Z44: 16.152 | AA44: 21.832 | AB44: 16.376 | AC44: 20.383 | AD44: 15.765 | AE44: 22.508 | AF44: 15.504 | AG44: 28 | AH44: 16.405 | AI44: 23.145 | AJ44: 15.993 | AK44: 20.288 | AL44: 15.361 | AM44: 21.239 | AN44: 15.215 | AO44: 19.952 | AP44: 0 | AQ44: 0 | AR44: 0 | AS44: 0 | AT44: 0 | AU44: 0 | AV44: 0 | AW44: 0 | AX44: 0 | AY44: 0 | AZ44: 0 | BA44: 0 | BB44: 0 | BC44: 0 | BD44: 0 | BE44: 0 | BF44: 0 | BG44: 0 | BH44: 0 | BI44: 5 | BJ44: 0 | BK44: 0 | BL44: 0 | BM44: 0 | BN44: 0 | BO44: 0 | BP44: 0 | BQ44: 0 | BR44: 0 | BS44: 2.5 | BT44: 0 | BU44: 2.5 | BV44: 0 | BW44: 0 | BX44: 0 | BY44: 0 | BZ44: 0 | CA44: 0 | CB44: 0 | CC44: 0 | DR44: F | DS44: 24 | DT44: F | DU44: F | DV44: 9.44am | DX44: 21
A45: DS101 | B45: 13.672 | C45: 29.565 | D45: 13.152 | E45: 32.092 | F45: 13.672 | G45: 32.185 | H45: 11.512 | I45: 31.808 | J45: 11.395 | K45: 30.599 | L45: 11.4 | M45: 30.977 | N45: 12.2 | O45: 26.488 | P45: 10.944 | Q45: 28.665 | R45: 11.993 | S45: 29.944 | T45: 10.912 | U45: 27.289 | V45: 12.752 | W45: 22.808 | X45: 11.848 | Y45: 22.416 | Z45: 12.056 | AA45: 29.146 | AB45: 12.12 | AC45: 25.384 | AD45: 11.088 | AE45: 25.048 | AF45: 10.5 | AG45: 28.385 | AH45: 11.744 | AI45: 25.584 | AJ45: 10.512 | AK45: 26.552 | AL45: 10.582 | AM45: 28.249 | AN45: 10.568 | AO45: 26.544 | AP45: 0 | AQ45: 0 | AR45: 0 | AS45: 0 | AT45: 0 | AU45: 0 | AV45: 0 | AW45: 0 | AX45: 0 | AY45: 2.5 | AZ45: 0 | BA45: 2.5 | BB45: 0 | BC45: 0 | BD45: 0 | BE45: 0 | BF45: 0 | BG45: 0 | BH45: 0 | BI45: 2.5 | BJ45: 0 | BK45: 0 | BL45: 0 | BM45: 0 | BN45: 0 | BO45: 5 | BP45: 0 | BQ45: 5 | BR45: 0 | BS45: 0 | BT45: 0 | BU45: 0 | BV45: 0 | BW45: 0 | BX45: 0 | BY45: 2.5 | BZ45: 0 | CA45: 2.5 | CB45: 0 | CC45: 0 | CD45: 83 | CE45: 76 | CF45: 68 | CG45: 71 | CH45: 70 | CI45: 66 | CJ45: 63 | CK45: 73 | CL45: 75 | CM45: 70 | CN45: 65 | CO45: 66 | CP45: 67 | CQ45: 66 | CR45: 82 | CS45: 70 | CT45: 75 | CU45: 69 | CV45: 75 | CW45: 68 | CX45: 97 | CY45: 110 | CZ45: 102 | DA45: 107 | DB45: 109 | DC45: 95 | DD45: 92 | DE45: 90 | DF45: 99 | DG45: 95 | DH45: 100 | DI45: 83 | DJ45: 87 | DK45: 91 | DL45: 98 | DM45: 97 | DN45: 97 | DO45: 89 | DP45: 86 | DQ45: 104 | DR45: F | DS45: 18 | DT45: F | DU45: F | DV45: 1.31pm | DW45: A | DX45: 18
A46: DT101 | B46: 23.112 | C46: 63.977 | D46: 24.568 | E46: 84.545 | F46: 25 | G46: 67.033 | H46: 27.056 | I46: 125.57 | J46: 17.145 | K46: 85.913 | L46: 31.832 | M46: 120.747 | N46: 27.441 | O46: 108.666 | P46: 28.449 | Q46: 102.251 | R46: 31.576 | S46: 91.466 | T46: 24.84 | U46: 112.722 | V46: 18.896 | W46: 77.042 | X46: 18.128 | Y46: 58.041 | Z46: 15.152 | AA46: 63.097 | AB46: 15.368 | AC46: 58.377 | AD46: 13.92 | AE46: 70.121 | AF46: 16.192 | AG46: 78.217 | AH46: 14.271 | AI46: 62.713 | AJ46: 15.233 | AK46: 68.465 | AL46: 16.456 | AM46: 80.673 | AN46: 18.217 | AO46: 82.609 | AP46: 0 | AQ46: 7.5 | AR46: 0 | AS46: 7.5 | AT46: 0 | AU46: 0 | AV46: 0 | AW46: 12.5 | AX46: 0 | AY46: 7.5 | AZ46: 0 | BA46: 12.5 | BB46: 0 | BC46: 10 | BD46: 0 | BE46: 10 | BF46: 0 | BG46: 12.5 | BH46: 0 | BI46: 7.5 | BJ46: 0 | BK46: 7.5 | BL46: 0 | BM46: 7.5 | BN46: 0 | BO46: 5 | BP46: 0 | BQ46: 2.5 | BR46: 0 | BS46: 5 | BT46: 0 | BU46: 5 | BV46: 2.5 | BW46: 2.5 | BX46: 0 | BY46: 7.5 | BZ46: 0 | CA46: 12.5 | CB46: 0 | CC46: 37.5 | CD46: 77 | CE46: 77 | CF46: 76 | CG46: 76 | CH46: 72 | CI46: 80 | CJ46: 73 | CK46: 80 | CL46: 74 | CM46: 80 | CN46: 87 | CO46: 75 | CP46: 77 | CQ46: 87 | CR46: 74 | CS46: 74 | CT46: 79 | CU46: 81 | CV46: 73 | CW46: 81 | CX46: 101 | CY46: 96 | CZ46: 99 | DA46: 97 | DB46: 98 | DC46: 98 | DD46: 97 | DE46: 96 | DF46: 99 | DG46: 102 | DH46: 99 | DI46: 92 | DJ46: 99 | DK46: 100 | DL46: 94 | DM46: 96 | DN46: 100 | DO46: 95 | DP46: 96 | DQ46: 95 | DR46: M | DS46: 25 | DT46: T | DU46: F, sleep deprivation ADD | DV46: 11.11am | DW46: A | DX46: 24
A47: LB101 | B47: 19.312 | C47: 33.077 | D47: 24.025 | E47: 35.257 | F47: 17.936 | G47: 32.089 | H47: 19.649 | I47: 33.505 | J47: 19.8 | K47: 35.897 | L47: 20.785 | M47: 36.433 | N47: 17.273 | O47: 31.753 | P47: 17.08 | Q47: 33.969 | R47: 16.352 | S47: 30.52 | T47: 18.336 | U47: 29.624 | V47: 18.106 | W47: 33.521 | X47: 16.332 | Y47: 30.952 | Z47: 19.273 | AA47: 36.168 | AB47: 18.008 | AC47: 27.672 | AD47: 17.072 | AE47: 32.592 | AF47: 17.383 | AG47: 36.299 | AH47: 16.544 | AI47: 37.049 | AJ47: 15.497 | AK47: 33.705 | AL47: 17.48 | AM47: 34.145 | AN47: 16.183 | AO47: 38.481 | AP47: 0 | AQ47: 2.5 | AR47: 0 | AS47: 5 | AT47: 0 | AU47: 5 | AV47: 0 | AW47: 5 | AX47: 0 | AY47: 2.5 | AZ47: 0 | BA47: 2.5 | BB47: 0 | BC47: 0 | BD47: 0 | BE47: 0 | BF47: 0 | BG47: 0 | BH47: 0 | BI47: 0 | BJ47: 0 | BK47: 5 | BL47: 0 | BM47: 0 | BN47: 0 | BO47: 0 | BP47: 0 | BQ47: 0 | BR47: 0 | BS47: 0 | BT47: 0 | BU47: 0 | BV47: 0 | BW47: 0 | BX47: 0 | BY47: 5 | BZ47: 0 | CA47: 0 | CB47: 0 | CC47: 0 | CD47: 76 | CE47: 81 | CF47: 77 | CG47: 78 | CH47: 82 | CI47: 80 | CJ47: 73 | CK47: 71 | CL47: 76 | CM47: 78 | CN47: 82 | CO47: 75 | CP47: 77 | CQ47: 79 | CR47: 78 | CS47: 87 | CT47: 75 | CU47: 81 | CV47: 73 | CW47: 75 | CX47: 96 | CY47: 90 | CZ47: 92 | DA47: 85 | DB47: 89 | DC47: 88 | DD47: 86 | DE47: 83 | DF47: 88 | DG47: 89 | DH47: 84 | DI47: 84 | DJ47: 77 | DK47: 89 | DL47: 86 | DM47: 83 | DN47: 85 | DO47: 85 | DP47: 86 | DQ47: 75 | DR47: M | DS47: 24 | DT47: F | DU47: F, sleep deprivbfion BDD | DV47: 4.44pm | DW47: B | DX47: 22
A48: FA101 | B48: 23.736 | C48: 39 | D48: 24.664 | E48: 35.808 | F48: 19.27 | G48: 41.985 | H48: 18.151 | I48: 42.344 | J48: 18.848 | K48: 40.696 | L48: 19.329 | M48: 47.213 | N48: 19.88 | O48: 39.592 | P48: 17.352 | Q48: 33.272 | R48: 18.768 | S48: 43.649 | T48: 17.537 | U48: 51.665 | V48: 18.024 | W48: 34.753 | X48: 16.327 | Y48: 33.816 | Z48: 18 | AA48: 37.729 | AB48: 19.28 | AC48: 38.873 | AD48: 18.303 | AE48: 41.248 | AF48: 17.432 | AG48: 43.985 | AH48: 19.024 | AI48: 45.097 | AJ48: 18.953 | AK48: 40.817 | AL48: 18.728 | AM48: 39.696 | AN48: 18.096 | AO48: 37.64 | AP48: 0 | AQ48: 0 | AR48: 0 | AS48: 2.5 | AT48: 0 | AU48: 7.5 | AV48: 0 | AW48: 0 | AX48: 0 | AY48: 2.5 | AZ48: 0 | BA48: 2.5 | BB48: 0 | BC48: 2.5 | BD48: 0 | BE48: 0 | BF48: 0 | BG48: 0 | BH48: 0 | BI48: 0 | BJ48: 0 | BK48: 0 | BL48: 0 | BM48: 0 | BN48: 0 | BO48: 0 | BP48: 0 | BQ48: 5 | BR48: 0 | BS48: 5 | BT48: 0 | BU48: 0 | BV48: 0 | BW48: 5 | BX48: 0 | BY48: 5 | BZ48: 0 | CA48: 5 | CB48: 0 | CC48: 0 | CD48: 95 | CE48: 94 | CF48: 97 | CG48: 93 | CH48: 99 | CI48: 94 | CJ48: 91 | CK48: 95 | CL48: 95 | CM48: 96 | CN48: 89 | CO48: 98 | CP48: 87 | CQ48: 77 | CR48: 89 | CS48: 87 | CT48: 90 | CU48: 95 | CV48: 90 | CW48: 89 | CX48: 101 | CY48: 96 | CZ48: 101 | DA48: 101 | DB48: 98 | DC48: 107 | DD48: 108 | DE48: 100 | DF48: 105 | DG48: 99 | DH48: 96 | DI48: 97 | DJ48: 98 | DK48: 100 | DL48: 103 | DM48: 98 | DN48: 102 | DO48: 102 | DP48: 97 | DQ48: 97 | DR48: M | DS48: 20 | DT48: F | DU48: F | DV48: 4.21pm | DW48: W | DX48: 25
A49: KP101 | B49: 21.76 | C49: 33.368 | D49: 23.223 | E49: 31.624 | F49: 22.4 | G49: 32.089 | H49: 20.336 | I49: 33.736 | J49: 20.248 | K49: 28.617 | L49: 19.801 | M49: 28.68 | N49: 19.072 | O49: 29.416 | P49: 18.392 | Q49: 28.161 | R49: 20.568 | S49: 32.176 | T49: 17.653 | U49: 30.345 | V49: 17.456 | W49: 23.841 | X49: 16.508 | Y49: 24.712 | Z49: 17.104 | AA49: 36.649 | AB49: 17.312 | AC49: 25.705 | AD49: 17.128 | AE49: 24.856 | AF49: 16.361 | AG49: 28.977 | AH49: 16.728 | AI49: 26.139 | AJ49: 15.953 | AK49: 27.097 | AL49: 17.984 | AM49: 29.64 | AN49: 17.705 | AO49: 27.817 | AP49: 0 | AQ49: 5 | AR49: 0 | AS49: 2.5 | AT49: 0 | AU49: 0 | AV49: 0 | AW49: 7.5 | AX49: 0 | AY49: 0 | AZ49: 0 | BA49: 0 | BB49: 0 | BC49: 0 | BD49: 0 | BE49: 0 | BF49: 0 | BG49: 0 | BH49: 0 | BI49: 0 | BJ49: 0 | BK49: 0 | BL49: 0 | BM49: 5 | BN49: 0 | BO49: 10 | BP49: 0 | BQ49: 0 | BR49: 0 | BS49: 0 | BT49: 0 | BU49: 2.5 | BV49: 0 | BW49: 0 | BX49: 0 | BY49: 2.5 | BZ49: 0 | CA49: 0 | CB49: 0 | CC49: 0 | CD49: 82 | CE49: 102 | CF49: 77 | CG49: 81 | CH49: 80 | CI49: 93 | CJ49: 80 | CK49: 96 | CL49: 74 | CM49: 100 | CN49: 80 | CO49: 88 | CP49: 79 | CQ49: 89 | CR49: 79 | CS49: 79 | CT49: 83 | CU49: 78 | CV49: 81 | CW49: 93 | CX49: 118 | CY49: 110 | CZ49: 111 | DA49: 112 | DB49: 109 | DC49: 109 | DD49: 111 | DE49: 114 | DF49: 113 | DG49: 112 | DH49: 115 | DI49: 113 | DJ49: 102 | DK49: 110 | DL49: 111 | DM49: 112 | DN49: 107 | DO49: 116 | DP49: 111 | DQ49: 113 | DR49: M | DS49: 24 | DT49: F | DU49: f | DV49: 12.25pm | DW49: A | DX49: 20
A50: MD101 | B50: 56.805 | C50: 48.841 | D50: 29.784 | E50: 45.201 | F50: 28.377 | G50: 41.287 | H50: 22.609 | I50: 44.704 | J50: 28.368 | K50: 43.392 | L50: 27.496 | M50: 51.865 | N50: 31.328 | O50: 44.897 | P50: 26.409 | Q50: 36.241 | R50: 25.504 | S50: 36.984 | T50: 25.784 | U50: 33.954 | V50: 25.08 | W50: 38.352 | X50: 25.057 | Y50: 34.616 | Z50: 23.65 | AA50: 33.92 | AB50: 24.52 | AC50: 36.305 | AD50: 23.745 | AE50: 39.457 | AF50: 27.977 | AG50: 35.504 | AH50: 25.896 | AI50: 34.377 | AJ50: 24.456 | AK50: 35.113 | AL50: 22.544 | AM50: 33.456 | AN50: 22.88 | AO50: 33.356 | AP50: 0 | AQ50: 0 | AR50: 0 | AS50: 5 | AT50: 0 | AU50: 0 | AV50: 0 | AW50: 0 | AX50: 2.5 | AY50: 0 | AZ50: 2.5 | BA50: 0 | BB50: 5 | BC50: 0 | BD50: 0 | BE50: 0 | BF50: 0 | BG50: 0 | BH50: 0 | BI50: 0 | BJ50: 0 | BK50: 0 | BL50: 0 | BM50: 0 | BN50: 0 | BO50: 0 | BP50: 0 | BQ50: 0 | BR50: 0 | BS50: 2.5 | BT50: 0 | BU50: 0 | BV50: 0 | BW50: 0 | BX50: 0 | BY50: 0 | BZ50: 0 | CA50: 0 | CB50: 0 | CC50: 2.5 | CD50: 90 | CE50: 72 | CF50: 71 | CG50: 71 | CH50: 68 | CI50: 72 | CJ50: 76 | CK50: 69 | CL50: 76 | CM50: 71 | CN50: 79 | CO50: 84 | CP50: 82 | CQ50: 80 | CR50: 80 | CS50: 69 | CT50: 77 | CU50: 76 | CV50: 81 | CW50: 80 | CX50: 82 | CY50: 74 | CZ50: 73 | DA50: 75 | DB50: 75 | DC50: 69 | DD50: 68 | DE50: 75 | DF50: 72 | DG50: 71 | DH50: 62 | DI50: 67 | DJ50: 67 | DK50: 64 | DL50: 75 | DM50: 71 | DN50: 74 | DO50: 58 | DP50: 71 | DQ50: 66 | DR50: M | DS50: 29 | DT50: F | DU50: f | DV50: 6.12pm | DW50: ME | DX50: 22
A51: IG101 | B51: 18.232 | C51: 36.295 | D51: 20.305 | E51: 34.656 | F51: 16.88 | G51: 31.448 | H51: 17.544 | I51: 45.045 | J51: 17.649 | K51: 31.904 | L51: 16.776 | M51: 31.305 | N51: 17.304 | O51: 32.851 | P51: 17.325 | Q51: 36.056 | R51: 17.256 | S51: 29.881 | T51: 17.136 | U51: 31.96 | V51: 14.285 | W51: 32.512 | X51: 15.304 | Y51: 25.857 | Z51: 15.784 | AA51: 35.76 | AB51: 15.816 | AC51: 30.689 | AD51: 15.28 | AE51: 28.592 | AF51: 15.15 | AG51: 27.979 | AH51: 15.56 | AI51: 33.616 | AJ51: 14.19 | AK51: 27.272 | AL51: 15.032 | AM51: 30.784 | AN51: 16.424 | AO51: 32.529 | AP51: 0 | AQ51: 10 | AR51: 0 | AS51: 5 | AT51: 0 | AU51: 2.5 | AV51: 0 | AW51: 7.5 | AX51: 0 | AY51: 0 | AZ51: 0 | BA51: 2.5 | BB51: 0 | BC51: 5 | BD51: 0 | BE51: 2.5 | BF51: 0 | BG51: 0 | BH51: 0 | BI51: 0 | BJ51: 0 | BK51: 7.5 | BL51: 0 | BM51: 2.5 | BN51: 0 | BO51: 7.5 | BP51: 0 | BQ51: 0 | BR51: 0 | BS51: 2.5 | BT51: 0 | BU51: 0 | BV51: 0 | BW51: 2.5 | BX51: 0 | BY51: 0 | BZ51: 0 | CA51: 0 | CB51: 0 | CC51: 2.5 | CD51: 115 | CE51: 104 | CF51: 112 | CG51: 104 | CH51: 101 | CI51: 102 | CJ51: 116 | CK51: 102 | CL51: 104 | CM51: 104 | CN51: 103 | CO51: 107 | CP51: 107 | CQ51: 110 | CR51: 107 | CS51: 103 | CT51: 98 | CU51: 112 | CV51: 111 | CW51: 103 | CX51: 124 | CY51: 125 | CZ51: 116 | DA51: 128 | DB51: 123 | DC51: 116 | DD51: 122 | DE51: 127 | DF51: 119 | DG51: 123 | DH51: 122 | DI51: 121 | DJ51: 127 | DK51: 123 | DL51: 117 | DM51: 120 | DN51: 124 | DO51: 121 | DP51: 127 | DQ51: 124 | DR51: F | DS51: 33 | DT51: T | DU51: f | DV51: 2.09pm | DW51: W | DX51: 31
A52: GH101 | B52: 17.672 | C52: 42.681 | D52: 18.705 | E52: 38.713 | F52: 16.6 | G52: 43.832 | H52: 16.689 | I52: 44.992 | J52: 16.544 | K52: 39.599 | L52: 16.681 | M52: 44.097 | N52: 15.993 | O52: 49.953 | P52: 16.336 | Q52: 41.712 | R52: 15.153 | S52: 47.009 | T52: 14.972 | U52: 48.936 | V52: 15.16 | W52: 41.36 | X52: 14.707 | Y52: 49.577 | Z52: 14.128 | AA52: 40.072 | AB52: 14.018 | AC52: 37.183 | AD52: 13.328 | AE52: 40.856 | AF52: 13.744 | AG52: 41.465 | AH52: 14.144 | AI52: 35.508 | AJ52: 12.719 | AK52: 47.825 | AL52: 13.288 | AM52: 37.423 | AN52: 13.121 | AO52: 42.696 | AP52: 0 | AQ52: 0 | AR52: 0 | AS52: 0 | AT52: 0 | AU52: 0 | AV52: 0 | AW52: 0 | AX52: 0 | AY52: 0 | AZ52: 0 | BA52: 2.5 | BB52: 0 | BC52: 0 | BD52: 0 | BE52: 0 | BF52: 0 | BG52: 0 | BH52: 0 | BI52: 0 | BJ52: 0 | BK52: 0 | BL52: 0 | BM52: 0 | BN52: 0 | BO52: 0 | BP52: 0 | BQ52: 0 | BR52: 0 | BS52: 0 | BT52: 0 | BU52: 0 | BV52: 0 | BW52: 0 | BX52: 0 | BY52: 0 | BZ52: 0 | CA52: 0 | CB52: 0 | CC52: 0 | CD52: 58 | CE52: 58 | CF52: 64 | CG52: 57 | CH52: 75 | CI52: 76 | CJ52: 77 | CK52: 67 | CL52: 76 | CM52: 71 | CN52: 78 | CO52: 70 | CP52: 72 | CQ52: 75 | CR52: 74 | CS52: 73 | CT52: 80 | CU52: 70 | CV52: 82 | CW52: 78 | CX52: 79 | CY52: 82 | CZ52: 74 | DA52: 73 | DB52: 74 | DC52: 81 | DD52: 80 | DE52: 80 | DF52: 72 | DG52: 74 | DH52: 80 | DI52: 80 | DJ52: 77 | DK52: 84 | DL52: 83 | DM52: 84 | DN52: 85 | DO52: 74 | DP52: 81 | DQ52: 87 | DR52: M | DS52: 25 | DT52: F | DU52: f | DV52: 4.08pm | DW52: W | DX52: 21
A53: DST102 | B53: 13.745 | C53: 27.177 | D53: 16.416 | E53: 25.4 | F53: 13.464 | G53: 25.185 | H53: 14.895 | I53: 28.497 | J53: 13.681 | K53: 26.888 | L53: 13.856 | M53: 30.608 | N53: 13.352 | O53: 25.56 | P53: 14.128 | Q53: 26.537 | R53: 13.209 | S53: 26.809 | T53: 12.775 | U53: 26.352 | V53: 11.624 | W53: 23.967 | X53: 12.08 | Y53: 24.32 | Z53: 12.529 | AA53: 26.736 | AB53: 11.399 | AC53: 26.744 | AD53: 11.513 | AE53: 24.368 | AF53: 12.024 | AG53: 24.952 | AH53: 11.184 | AI53: 23.472 | AJ53: 11.023 | AK53: 24.217 | AL53: 12.104 | AM53: 23.688 | AN53: 11.136 | AO53: 24.28 | AP53: 0 | AQ53: 2.5 | AR53: 0 | AS53: 2.5 | AT53: 0 | AU53: 0 | AV53: 0 | AW53: 5 | AX53: 0 | AY53: 0 | AZ53: 0 | BA53: 2.5 | BB53: 0 | BC53: 0 | BD53: 0 | BE53: 0 | BF53: 0 | BG53: 2.5 | BH53: 0 | BI53: 7.5 | BJ53: 0 | BK53: 5 | BL53: 0 | BM53: 5 | BN53: 0 | BO53: 5 | BP53: 0 | BQ53: 2.5 | BR53: 0 | BS53: 0 | BT53: 0 | BU53: 2.5 | BV53: 0 | BW53: 0 | BX53: 0 | BY53: 5 | BZ53: 0 | CA53: 0 | CB53: 0 | CC53: 0 | CD53: 102 | CE53: 102 | CF53: 96 | CG53: 104 | CH53: 98 | CI53: 92 | CJ53: 111 | CK53: 94 | CL53: 103 | CM53: 101 | CN53: 103 | CO53: 99 | CP53: 98 | CQ53: 97 | CR53: 101 | CS53: 102 | CT53: 104 | CU53: 100 | CV53: 104 | CW53: 106 | CX53: 119 | CY53: 117 | CZ53: 113 | DA53: 110 | DB53: 114 | DC53: 112 | DD53: 113 | DE53: 104 | DF53: 112 | DG53: 101 | DH53: 111 | DI53: 112 | DJ53: 107 | DK53: 108 | DL53: 110 | DM53: 113 | DN53: 105 | DO53: 113 | DP53: 105 | DQ53: 113 | DR53: M | DS53: 22 | DT53: F | DU53: f | DV53: 2.17pm | DW53: W | DX53: 22
A54: RT101 | B54: 37.385 | C54: 42.921 | D54: 32.816 | E54: 38.298 | F54: 26.56 | G54: 33.657 | H54: 24.913 | I54: 33.633 | J54: 22.423 | K54: 32.168 | L54: 19.608 | M54: 33.145 | N54: 18.457 | O54: 30.736 | P54: 18.368 | Q54: 35.577 | R54: 16.681 | S54: 31.896 | T54: 16.92 | U54: 29.608 | V54: 19.504 | W54: 28.64 | X54: 18.264 | Y54: 32.985 | Z54: 17.288 | AA54: 30.292 | AB54: 17.137 | AC54: 28.249 | AD54: 16.944 | AE54: 29.656 | AF54: 17.025 | AG54: 30.888 | AH54: 18.098 | AI54: 35.168 | AJ54: 18.291 | AK54: 31.648 | AL54: 18.424 | AM54: 30.609 | AN54: 16.284 | AO54: 30.696 | AP54: 0 | AQ54: 0 | AR54: 0 | AS54: 0 | AT54: 0 | AU54: 0 | AV54: 0 | AW54: 0 | AX54: 0 | AY54: 0 | AZ54: 0 | BA54: 0 | BB54: 0 | BC54: 0 | BD54: 0 | BE54: 0 | BF54: 0 | BG54: 0 | BH54: 0 | BI54: 0 | BJ54: 0 | BK54: 0 | BL54: 0 | BM54: 0 | BN54: 0 | BO54: 0 | BP54: 0 | BQ54: 0 | BR54: 0 | BS54: 0 | BT54: 0 | BU54: 0 | BV54: 0 | BW54: 2.5 | BX54: 0 | BY54: 0 | BZ54: 0 | CA54: 0 | CB54: 0 | CC54: 0 | CD54: 83 | CE54: 84 | CF54: 83 | CG54: 81 | CH54: 85 | CI54: 87 | CJ54: 84 | CK54: 88 | CL54: 80 | CM54: 95 | CN54: 86 | CO54: 87 | CP54: 79 | CQ54: 86 | CR54: 90 | CS54: 87 | CT54: 88 | CU54: 82 | CV54: 77 | CW54: 82 | CX54: 75 | CY54: 98 | CZ54: 91 | DA54: 89 | DB54: 88 | DC54: 95 | DD54: 96 | DE54: 97 | DF54: 92 | DG54: 99 | DH54: 93 | DI54: 93 | DJ54: 88 | DK54: 85 | DL54: 89 | DM54: 97 | DN54: 89 | DO54: 93 | DP54: 89 | DQ54: 87 | DR54: F | DS54: 23 | DT54: F | DU54: f | DV54: 12.35pm | DW54: A | DX54: 23
A55: JG101 | B55: 21.608 | C55: 32.377 | D55: 22.171 | E55: 31.633 | F55: 21.455 | G55: 33.16 | H55: 21.304 | I55: 31.08 | J55: 20.576 | K55: 33.44 | L55: 19.96 | M55: 33.465 | N55: 19.704 | O55: 33.344 | P55: 18.616 | Q55: 38.137 | R55: 18.704 | S55: 32.752 | T55: 19.616 | U55: 31.177 | V55: 17.329 | W55: 26.369 | X55: 17.712 | Y55: 26.304 | Z55: 17.465 | AA55: 25.72 | AB55: 17.456 | AC55: 27.552 | AD55: 17.56 | AE55: 25.856 | AF55: 16.6 | AG55: 27.169 | AH55: 16.2 | AI55: 27.761 | AJ55: 16.304 | AK55: 24.752 | AL55: 16.552 | AM55: 25.488 | AN55: 16.464 | AO55: 27.74 | AP55: 0 | AQ55: 0 | AR55: 0 | AS55: 2.5 | AT55: 5 | AU55: 5 | AV55: 0 | AW55: 0 | AX55: 0 | AY55: 5 | AZ55: 0 | BA55: 5 | BB55: 0 | BC55: 0 | BD55: 0 | BE55: 0 | BF55: 0 | BG55: 0 | BH55: 0 | BI55: 0 | BJ55: 0 | BK55: 0 | BL55: 0 | BM55: 0 | BN55: 0 | BO55: 0 | BP55: 0 | BQ55: 0 | BR55: 0 | BS55: 0 | BT55: 0 | BU55: 0 | BV55: 0 | BW55: 2.5 | BX55: 0 | BY55: 0 | BZ55: 0 | CA55: 0 | CB55: 0 | CC55: 2.5 | CD55: 79 | CE55: 78 | CF55: 73 | CG55: 72 | CH55: 80 | CI55: 80 | CJ55: 73 | CK55: 77 | CL55: 86 | CM55: 75 | CN55: 75 | CO55: 81 | CP55: 78 | CQ55: 72 | CR55: 79 | CS55: 80 | CT55: 77 | CU55: 70 | CV55: 72 | CW55: 84 | CX55: 114 | CY55: 111 | CZ55: 110 | DA55: 114 | DB55: 109 | DC55: 109 | DD55: 107 | DE55: 102 | DF55: 106 | DG55: 106 | DH55: 102 | DI55: 100 | DJ55: 99 | DK55: 106 | DL55: 103 | DM55: 101 | DN55: 96 | DO55: 94 | DP55: 93 | DQ55: 92 | DR55: F | DS55: 19 | DT55: F | DU55: f | DV55: 10.51am | DW55: W | DX55: 21
A56: CC101 | B56: 19.051 | C56: 35.386 | D56: 16.533 | E56: 42.064 | F56: 17.216 | G56: 38.506 | H56: 16.277 | I56: 45.905 | J56: 17.374 | K56: 36.439 | L56: 17.92 | M56: 35.921 | N56: 16.857 | O56: 35.739 | P56: 17.813 | Q56: 39.074 | R56: 17.776 | S56: 36.628 | T56: 16.7 | U56: 35.409 | V56: 15.255 | W56: 37.29 | X56: 14.607 | Y56: 38.25 | Z56: 15.001 | AA56: 34.482 | AB56: 14.759 | AC56: 33.001 | AD56: 14.843 | AE56: 31.941 | AF56: 15.204 | AG56: 36.009 | AH56: 15.285 | AI56: 33.986 | AJ56: 15.043 | AK56: 32.768 | AL56: 16.858 | AM56: 35.129 | AN56: 13.833 | AO56: 35.699 | AP56: 0 | AQ56: 0 | AR56: 0 | AS56: 2.5 | AT56: 0 | AU56: 0 | AV56: 0 | AW56: 7.5 | AX56: 0 | AY56: 0 | AZ56: 0 | BA56: 0 | BB56: 0 | BC56: 0 | BD56: 0 | BE56: 0 | BF56: 0 | BG56: 0 | BH56: 0 | BI56: 0 | BJ56: 0 | BK56: 5 | BL56: 0 | BM56: 2.5 | BN56: 0 | BO56: 0 | BP56: 0 | BQ56: 0 | BR56: 0 | BS56: 0 | BT56: 0 | BU56: 0 | BV56: 0 | BW56: 0 | BX56: 0 | BY56: 0 | BZ56: 0 | CA56: 0 | CB56: 0 | CC56: 2.5 | CD56: 89 | CE56: 83 | CF56: 88 | CG56: 95 | CH56: 81 | CI56: 88 | CJ56: 83 | CK56: 88 | CL56: 88 | CM56: 91 | CN56: 88 | CO56: 87 | CP56: 95 | CQ56: 87 | CR56: 95 | CS56: 86 | CT56: 95 | CU56: 82 | CV56: 88 | CW56: 89 | CX56: 108 | CY56: 107 | CZ56: 14 | DA56: 107 | DB56: 104 | DC56: 103 | DD56: 108 | DE56: 104 | DF56: 107 | DG56: 103 | DH56: 106 | DI56: 112 | DJ56: 105 | DK56: 106 | DL56: 112 | DM56: 104 | DN56: 107 | DO56: 106 | DP56: 104 | DQ56: 106 | DR56: F | DS56: 25 | DT56: T | DU56: f | DV56: 2.22pm | DW56: A | DX56: 16
A57: SN102 | B57: 27.736 | C57: 52.453 | D57: 22.525 | E57: 44.728 | F57: 19.839 | G57: 44.912 | H57: 19.872 | I57: 43.952 | J57: 18.935 | K57: 44.344 | L57: 18.792 | M57: 45.016 | N57: 20.017 | O57: 40.76 | P57: 18.503 | Q57: 42.713 | R57: 17.335 | S57: 38.543 | T57: 17.04 | U57: 36.57 | V57: 20.121 | W57: 34.608 | X57: 18.423 | Y57: 36.32 | Z57: 18.64 | AA57: 37.961 | AB57: 16.935 | AC57: 37.608 | AD57: 18.351 | AE57: 37.736 | AF57: 18.183 | AG57: 37.76 | AH57: 20.128 | AI57: 38.562 | AJ57: 20.16 | AK57: 37.624 | AL57: 18.432 | AM57: 34.816 | AN57: 18.424 | AO57: 34.759 | AP57: 0 | AQ57: 2.5 | AR57: 0 | AS57: 5 | AT57: 0 | AU57: 0 | AV57: 0 | AW57: 0 | AX57: 0 | AY57: 2.5 | AZ57: 0 | BA57: 0 | BB57: 0 | BC57: 5 | BD57: 0 | BE57: 0 | BF57: 0 | BG57: 7.5 | BH57: 0 | BI57: 5 | BJ57: 0 | BK57: 0 | BL57: 0 | BM57: 2.5 | BN57: 0 | BO57: 2.5 | BP57: 0 | BQ57: 0 | BR57: 0 | BS57: 0 | BT57: 0 | BU57: 2.5 | BV57: 0 | BW57: 0 | BX57: 0 | BY57: 5 | BZ57: 0 | CA57: 0 | CB57: 0 | CC57: 0 | CD57: 74 | CE57: 90 | CF57: 84 | CG57: 80 | CH57: 74 | CI57: 76 | CJ57: 78 | CK57: 72 | CL57: 79 | CM57: 79 | CN57: 80 | CO57: 76 | CP57: 75 | CQ57: 75 | CR57: 79 | CS57: 75 | CT57: 80 | CU57: 77 | CV57: 81 | CW57: 75 | CX57: 100 | CY57: 99 | CZ57: 99 | DA57: 98 | DB57: 91 | DC57: 88 | DD57: 89 | DE57: 89 | DF57: 91 | DG57: 91 | DH57: 90 | DI57: 92 | DJ57: 82 | DK57: 92 | DL57: 83 | DM57: 86 | DN57: 90 | DO57: 86 | DP57: 90 | DQ57: 85 | DR57: F | DS57: 28 | DT57: F | DU57: F, on menstruation day 5 | DV57: 6.30 pm | DW57: A(South) | DX57: 30
A58: SW101 | B58: 9.358 | C58: 27.295 | D58: 9.166 | E58: 27.312 | F58: 9.488 | G58: 35.326 | H58: 9.199 | I58: 28.192 | J58: 8.623 | K58: 25.559 | L58: 8.775 | M58: 26.336 | N58: 10.561 | O58: 31.211 | P58: 9.896 | Q58: 25.519 | R58: 9.904 | S58: 29.616 | T58: 9.303 | U58: 28.192 | V58: 9.513 | W58: 26.104 | X58: 10.6 | Y58: 29.952 | Z58: 9.471 | AA58: 29.888 | AB58: 9.862 | AC58: 25.984 | AD58: 9.752 | AE58: 27.391 | AF58: 9.864 | AG58: 25.343 | AH58: 10.423 | AI58: 28.568 | AJ58: 9.64 | AK58: 27.376 | AL58: 10.039 | AM58: 30.376 | AN58: 10.750 | AO58: 27.128 | AP58: 0 | AQ58: 0 | AR58: 0 | AS58: 0 | AT58: 0 | AU58: 2.5 | AV58: 0 | AW58: 2.5 | AX58: 0 | AY58: 0 | AZ58: 0 | BA58: 2.5 | BB58: 2.5 | BC58: 7.5 | BD58: 0 | BE58: 0 | BF58: 2.5 | BG58: 2.5 | BH58: 0 | BI58: 2.5 | BJ58: 0 | BK58: 7.5 | BL58: 2.5 | BM58: 2.5 | BN58: 2.5 | BO58: 2.5 | BP58: 0 | BQ58: 0 | BR58: 0 | BS58: 5 | BT58: 0 | BU58: 0 | BV58: 2.5 | BW58: 2.5 | BX58: 0 | BY58: 2.5 | BZ58: 2.5 | CA58: 5 | CB58: 2.5 | CC58: 0 | CD58: 95 | CE58: 93 | CF58: 93 | CG58: 92 | CH58: 91 | CI58: 93 | CJ58: 89 | CK58: 91 | CL58: 87 | CM58: 90 | CN58: 95 | CO58: 84 | CP58: 93 | CQ58: 85 | CR58: 90 | CS58: 86 | CT58: 95 | CU58: 87 | CV58: 84 | CW58: 76 | CX58: 108 | CY58: 108 | CZ58: 109 | DA58: 107 | DB58: 102 | DC58: 105 | DD58: 109 | DE58: 104 | DF58: 102 | DG58: 107 | DH58: 106 | DI58: 107 | DJ58: 102 | DK58: 106 | DL58: 105 | DM58: 99 | DN58: 105 | DO58: 93 | DP58: 108 | DQ58: 103 | DR58: M | DS58: 26 | DT58: F | DU58: F | DV58: 9.00 am | DW58: A | DX58: 24
A59: FA102 | B59: 14.059 | C59: 30.293 | D59: 15.213 | E59: 31.671 | F59: 14.068 | G59: 31.969 | H59: 13.489 | I59: 30.714 | J59: 14.255 | K59: 36.275 | L59: 14.396 | M59: 26.012 | N59: 13.161 | O59: 27.005 | P59: 13.588 | Q59: 28.72 | R59: 13.924 | S59: 33.103 | T59: 12.929 | U59: 27.335 | V59: 13.955 | W59: 28.986 | X59: 15.79 | Y59: 28.492 | Z59: 13.637 | AA59: 30.786 | AB59: 14.738 | AC59: 31.88 | AD59: 13.705 | AE59: 30.446 | AF59: 13.37 | AG59: 28.867 | AH59: 15.861 | AI59: 28.66 | AJ59: 13.55 | AK59: 37.848 | AL59: 14.564 | AM59: 31.667 | AN59: 15.624 | AO59: 31.906 | AP59: 0 | AQ59: 2.5 | AR59: 0 | AS59: 5 | AT59: 0 | AU59: 2.5 | AV59: 0 | AW59: 2.5 | AX59: 2.5 | AY59: 5 | AZ59: 0 | BA59: 0 | BB59: 0 | BC59: 0 | BD59: 0 | BE59: 2.5 | BF59: 0 | BG59: 5 | BH59: 0 | BI59: 0 | BJ59: 0 | BK59: 2.5 | BL59: 2.5 | BM59: 0 | BN59: 0 | BO59: 7.5 | BP59: 2.5 | BQ59: 10 | BR59: 0 | BS59: 7.5 | BT59: 0 | BU59: 7.5 | BV59: 0 | BW59: 0 | BX59: 0 | BY59: 15 | BZ59: 5 | CA59: 5 | CB59: 2.5 | CC59: 10 | CD59: 84 | CE59: 90 | CF59: 91 | CG59: 95 | CH59: 85 | CI59: 80 | CJ59: 87 | CK59: 85 | CL59: 85 | CM59: 87 | CN59: 82 | CO59: 78 | CP59: 84 | CQ59: 82 | CR59: 91 | CS59: 80 | CT59: 85 | CU59: 86 | CV59: 84 | CW59: 88 | CX59: 85 | CY59: 94 | CZ59: 87 | DA59: 86 | DB59: 85 | DC59: 89 | DD59: 96 | DE59: 82 | DF59: 82 | DG59: 83 | DH59: 76 | DI59: 82 | DJ59: 78 | DK59: 89 | DL59: 84 | DM59: 83 | DN59: 86 | DO59: 91 | DP59: 84 | DQ59: 80 | DR59: F | DS59: 21 | DT59: F | DU59: F | DV59: 8.30 am | DW59: Middle eastern | DX59: 21
A60: JH102 | B60: 16.825 | C60: 31.08 | D60: 17.531 | E60: 28.656 | F60: 16.274 | G60: 34.225 | H60: 16.702 | I60: 27.889 | J60: 15.857 | K60: 30.394 | L60: 16.508 | M60: 30.344 | N60: 16.877 | O60: 27.137 | P60: 15.108 | Q60: 25.499 | R60: 15.102 | S60: 25.064 | T60: 15.841 | U60: 28.837 | V60: 14.656 | W60: 27.87 | X60: 14.354 | Y60: 23.26 | Z60: 14.036 | AA60: 23.928 | AB60: 15.004 | AC60: 25.182 | AD60: 13.886 | AE60: 27.922 | AF60: 14.17 | AG60: 29.075 | AH60: 14.207 | AI60: 25.766 | AJ60: 14.571 | AK60: 29.058 | AL60: 13.835 | AM60: 27.957 | AN60: 14.806 | AO60: 24.832 | AP60: 0 | AQ60: 2.5 | AR60: 0 | AS60: 0 | AT60: 0 | AU60: 0 | AV60: 0 | AW60: 0 | AX60: 0 | AY60: 2.5 | AZ60: 0 | BA60: 2.5 | BB60: 2.5 | BC60: 0 | BD60: 0 | BE60: 0 | BF60: 0 | BG60: 0 | BH60: 0 | BI60: 2.5 | BJ60: 0 | BK60: 0 | BL60: 0 | BM60: 0 | BN60: 0 | BO60: 0 | BP60: 0 | BQ60: 0 | BR60: 0 | BS60: 0 | BT60: 0 | BU60: 0 | BV60: 0 | BW60: 0 | BX60: 0 | BY60: 2.5 | BZ60: 0 | CA60: 0 | CB60: 0 | CC60: 2.5 | CD60: 103 | CE60: 109 | CF60: 72 | CG60: 99 | CH60: 86 | CI60: 88 | CJ60: 83 | CK60: 89 | CL60: 80 | CM60: 88 | CN60: 82 | CO60: 86 | CP60: 80 | CQ60: 76 | CR60: 75 | CS60: 73 | CT60: 75 | CU60: 71 | CV60: 71 | CW60: 94 | CX60: 107 | CY60: 100 | CZ60: 101 | DA60: 91 | DB60: 97 | DC60: 99 | DD60: 95 | DE60: 91 | DF60: 107 | DG60: 95 | DH60: 94 | DI60: 78 | DJ60: 105 | DK60: 94 | DL60: 90 | DM60: 95 | DN60: 95 | DO60: 63 | DP60: 97 | DQ60: 89 | DR60: F | DS60: 19 | DT60: F | DU60: F | DV60: 2.00 pm | DW60: A+W | DX60: 16
A61: RS101 | B61: 36.008 | C61: 44.956 | D61: 31.772 | E61: 40.19 | F61: 30.719 | G61: 35.879 | H61: 29.846 | I61: 36.55 | J61: 30.745 | K61: 38.052 | L61: 33.486 | M61: 36.143 | N61: 27.908 | O61: 36.028 | P61: 26.755 | Q61: 32.268 | R61: 30.296 | S61: 36.162 | T61: 29.025 | U61: 35.506 | V61: 22.244 | W61: 39.198 | X61: 21.291 | Y61: 27.786 | Z61: 19.417 | AA61: 28.26 | AB61: 18.368 | AC61: 30.481 | AD61: 21.009 | AE61: 28.236 | AF61: 21.038 | AG61: 31.176 | AH61: 18.903 | AI61: 30.617 | AJ61: 20.05 | AK61: 29.776 | AL61: 21.054 | AM61: 30.463 | AN61: 22.308 | AO61: 33.169 | AP61: 0 | AQ61: 2.5 | AR61: 0 | AS61: 2.5 | AT61: 0 | AU61: 0 | AV61: 0 | AW61: 0 | AX61: 0 | AY61: 2.5 | AZ61: 0 | BA61: 2.5 | BB61: 0 | BC61: 0 | BD61: 0 | BE61: 2.5 | BF61: 0 | BG61: 0 | BH61: 0 | BI61: 2.5 | BJ61: 0 | BK61: 5 | BL61: 0 | BM61: 2.5 | BN61: 0 | BO61: 2.5 | BP61: 0 | BQ61: 2.5 | BR61: 0 | BS61: 0 | BT61: 0 | BU61: 2.5 | BV61: 0 | BW61: 0 | BX61: 0 | BY61: 0 | BZ61: 0 | CA61: 2.5 | CB61: 0 | CC61: 7.5 | CD61: 99 | CE61: 90 | CF61: 77 | CG61: 98 | CH61: 98 | CI61: 87 | CJ61: 91 | CK61: 87 | CL61: 78 | CM61: 88 | CN61: 93 | CO61: 97 | CP61: 91 | CQ61: 93 | CR61: 87 | CS61: 86 | CT61: 80 | CU61: 87 | CV61: 79 | CW61: 90 | CX61: 97 | CY61: 95 | CZ61: 105 | DA61: 101 | DB61: 98 | DC61: 108 | DD61: 111 | DE61: 101 | DF61: 103 | DG61: 103 | DH61: 93 | DI61: 102 | DJ61: 103 | DK61: 83 | DL61: 99 | DM61: 101 | DN61: 82 | DO61: 88 | DP61: 87 | DQ61: 85 | DR61: F | DS61: 25 | DT61: F | DU61: F | DV61: 2.00 pm | DW61: B+W | DX61: 16
A62: TN102 | B62: 18.532 | C62: 28.803 | D62: 17.427 | E62: 25.634 | F62: 18.045 | G62: 29.381 | H62: 16.242 | I62: 27.549 | J62: 16.087 | K62: 25.884 | L62: 16.668 | M62: 25.261 | N62: 16.568 | O62: 25.056 | P62: 16.465 | Q62: 24.711 | R62: 16.868 | S62: 24.945 | T62: 16.563 | U62: 24.216 | V62: 15.598 | W62: 24.783 | X62: 16.317 | Y62: 24.885 | Z62: 15.638 | AA62: 28.224 | AB62: 17.534 | AC62: 23.998 | AD62: 16.718 | AE62: 26.348 | AF62: 16.128 | AG62: 23.147 | AH62: 17.318 | AI62: 23.043 | AJ62: 17.282 | AK62: 24.148 | AL62: 17.428 | AM62: 22.597 | AN62: 17.152 | AO62: 27.236 | AP62: 0 | AQ62: 2.5 | AR62: 0 | AS62: 0 | AT62: 0 | AU62: 2.5 | AV62: 0 | AW62: 2.5 | AX62: 0 | AY62: 2.5 | AZ62: 0 | BA62: 2.5 | BB62: 0 | BC62: 2.5 | BD62: 0 | BE62: 2.5 | BF62: 0 | BG62: 2.5 | BH62: 0 | BI62: 2.5 | BJ62: 0 | BK62: 7.5 | BL62: 0 | BM62: 5 | BN62: 0 | BO62: 5 | BP62: 0 | BQ62: 2.5 | BR62: 0 | BS62: 5 | BT62: 0 | BU62: 5 | BV62: 0 | BW62: 2.5 | BX62: 0 | BY62: 2.5 | BZ62: 0 | CA62: 0 | CB62: 0 | CC62: 5 | CD62: 75 | CE62: 83 | CF62: 83 | CG62: 73 | CH62: 75 | CI62: 82 | CJ62: 85 | CK62: 76 | CL62: 81 | CM62: 83 | CN62: 88 | CO62: 83 | CP62: 90 | CQ62: 92 | CR62: 89 | CS62: 82 | CT62: 87 | CU62: 80 | CV62: 75 | CW62: 80 | CX62: 113 | CY62: 109 | CZ62: 113 | DA62: 104 | DB62: 106 | DC62: 105 | DD62: 102 | DE62: 104 | DF62: 100 | DG62: 101 | DH62: 102 | DI62: 100 | DJ62: 97 | DK62: 98 | DL62: 95 | DM62: 100 | DN62: 104 | DO62: 96 | DP62: 97 | DQ62: 97 | DR62: F | DS62: 22 | DT62: F | DU62: f | DV62: 12.30 pm | DW62: A | DX62: 17
